Workbook

Sheet Title
G5: ="International Benchmark Tests "&DD!CP1 -> International Benchmark Tests November 2018
G6: INTERACTIVE REPORT
G9: =DD!B4 -> IBT_SAMPLESCHOOL

Sheet Glossary
C2: GLOSSARY
C4: Abbreviations
C6: St | D6: Student
C7: Cl | D7: Class
C8: M | D8: Mean
C9: N | D9: Number (number of students)
C10: SD | D10: Standard Deviation
C11: Schs. | D11: Schools
C12: IBT | D12: International Benchmark Tests
C13: =IF(DD!$B$6="MIDDLE EAST","*","") -> * | D13: =IF(DD!$B$6="MIDDLE EAST", "Student falls under Special Education Needs (SEN) Category","") -> Student falls under Special Education Needs (SEN) Category
C17: Explanation of some terms and statistics
C19: Grade | D19: Grade is known as "class", "form" or "year level" in some countries.
C21: Class | D21: Class is known as "section" in some countries. For reports by class, where a class has more than 25 students, results are displayed over multiple pages, i.e., Grade 3A, Grade 3A Page 2, etc.
C23: Subject | D23: The IBT has eight subjects: English, Mathematics, Science, ArabicA, ArabicB, Reasoning, English2 and Hindi
C25: Strand | D25: Skill areas within subjects, i.e., "Measurement" in Maths or "Comprehension" in English.
C27: Item descriptor | D27: Item descriptor is a specific description of each item to describe what each item is assessing.
C29: Scale Scores | D29: The IBT is reported in “IBT scale score” points. These are different to the “raw score” results that you would get by adding up the number of score points for correct answers on each part of the assessment. A separate scale is constructed for each subject assessed, so that raw score results are standardised. It is then possible to make meaningful comparisons of results between different years, and between different grade levels, even though the tests that are administered are not the same. See, for example, IBT_SchStats.
C30: Band | D30: Achievement bands have been described along the IBT scale to span the range of skills and understandings demonstrated in each subject. There are 9 bands for each subject where band 1 describes the lowest set of skills and band 9 the highest level of skills. A full description of each band is included in the Described Achievement Report or at https://ibt.acer.edu.au/about-ibt-tests/understanding-ibt. See, for example, Student_scores
C32: Box Plots | D32: Box plots are graphical representations of data, and are used here to describe the variation or spread of scale scores. The shaded band shows the middle 80% of students with the middle 50% highlighted in a darker shade. The line within the box is the mean; the spread of scores is also determined by whether this line is towards the top or bottom of the box. See, for example, IBT_SchStats.
C34: Mean and Standard Deviation | D34: Mean scale scores are the average of the scale scores. Standard deviation of scale scores shows how much variation exists from the mean scale score. A low standard deviation indicates that the scale scores tend to be very close to the mean; high standard deviation indicates that the scale scores are spread out over a large range of values.
C36: All IBT Schools | D36: All schools in countries which participate in the IBT testing program.
C65: "Like School"
C66: =DD!$B$6 -> MIDDLE EAST | D66: =VLOOKUP($C$66,$C$67:$D$70,2,FALSE) -> 
C67: 4 | D67: more than 55% of students in the school are from an English speaking background.
C68: 3 | D68: between 41% and 55% of students in the school are from an English speaking background.
C69: 2 | D69: between 26% and 40% of students in the school are from an English speaking background.
C70: 1 | D70: fewer than 26% of students in the school are from an English speaking background.
C73: ="For the ISA " & DD!CP1& " ""Like School"" reporting, each school has been assigned to one of four groups, according to whether, of the students participating in the ISA in "& DD!CP1&"," -> For the ISA November 2018 "Like School" reporting, each school has been assigned to one of four groups, according to whether, of the students participating in the ISA in November 2018,
C74: more than 55% of students were from an English speaking background; between 41% and 55% of students were from an English speaking background; between 26% and 40% of students were from an English speaking background; or 25% or fewer students were from an English speaking background. As with the “All Other Schools” figures, your school is not included in the figures for “Other Like Schools”.

Sheet Summary
C2: SUMMARY OF PAGES
C4: Summary | D4: Summary of pages.
C6: Glossary | D6: Lists abbreviations and explains some terms and statistical concepts used in the report.
C8: IBT_SchStats | D8: ="School Statistics displays the mean scale scores for all subjects and test levels for your school, country/region and all IBT schools. The spread of scores (minimum, maximum and median) is shown for each test/subject." -> School Statistics displays the mean scale scores for all subjects and test levels for your school, country/region and all IBT schools. The spread of scores (minimum, maximum and median) is shown for each test/subject.
C10: IBT_SchStats_Gender | D10: =IF(Gender!$F$95=0,"Your school did not provide gender information.", "School Statistics displays the mean scale scores for all subjects and test levels for your school, country/region and all IBT schools by gender. The spread of scores (minimum, maximum and median) is shown for each test/subject.") -> School Statistics displays the mean scale scores for all subjects and test levels for your school, country/region and all IBT schools by gender. The spread of scores (minimum, maximum and median) is shown for each test/subject.
C13: Class_means | D13: =IF(OR(STdb!$G$4=5,STdb!$G$4=3,STdb!$G$4=4),"Class Means Scores displays the mean scale scores for each class at your school. The mean scores for the region and for all IBT schools are included for comparison.", IF(STdb!$G$4=7,"This page is not available for South African schools where reporting is by grade only.", IF(STdb!$G$4=6,"This page is not available for Indian schools where reporting is by grade only.",""))) -> Class Means Scores displays the mean scale scores for each class at your school. The mean scores for the region and for all IBT schools are included for comparison.
C15: Student_scores | D15: Student Scores displays the scale score for each student in each class, by subject and test level. The mean scale score for each class is included for comparison.
C17: Cl_Math | D17: =IF(DD!$G$4=1,"Class Results - Math displays the percentage of correct answers for each Math item by strand and by class. The percentage correct for the country/region and for All IBT Schools is also included for comparison.","Your school did not participate in the "&DD!$CP$2&" IBT Mathematics Test.") -> Class Results - Math displays the percentage of correct answers for each Math item by strand and by class. The percentage correct for the country/region and for All IBT Schools is also included for comparison.
C19: Cl_English | D19: =IF(DD!$G$5=1,"Class Results - English displays the percentage of correct answers for each English item by strand and by class. The percentage correct for the country/region and for All IBT Schools is also included for comparison.","Your school did not participate in the "&DD!$CP$2&" IBT English Test.") -> Class Results - English displays the percentage of correct answers for each English item by strand and by class. The percentage correct for the country/region and for All IBT Schools is also included for comparison.
C21: Cl_Science | D21: =IF(DD!$G$6=1,"Class Results - Science displays the percentage of correct answers for each Science item by strand and by class. The percentage correct for the country/region and for All IBT Schools is also included for comparison.","Your school did not participate in the "&DD!$CP$2& " IBT Science Test.") -> Class Results - Science displays the percentage of correct answers for each Science item by strand and by class. The percentage correct for the country/region and for All IBT Schools is also included for comparison.
C23: Cl_ArabicA | D23: =IF(DD!$G$7=1,"Class Results - ArabicA displays the percentage of correct answers for each ArabicA item by strand and by class. The percentage correct for the country/region is included for comparison.","Your school did not participate in the "&DD!$CP$2&" IBT ArabicA Test.") -> Class Results - ArabicA displays the percentage of correct answers for each ArabicA item by strand and by class. The percentage correct for the country/region is included for comparison.
C25: Cl_ArabicB | D25: =IF(DD!$G$8=1,"Test Results - ArabicB displays the percentage of correct answers for each ArabicB item by strand and by test level The percentage correct for the country/region is included for comparison.","Your school did not participate in the "&DD!$CP$2&" IBT ArabicB Test.") -> Test Results - ArabicB displays the percentage of correct answers for each ArabicB item by strand and by test level The percentage correct for the country/region is included for comparison.
C26: Cl_Reasoning | D26: =IF(DD!$G$9=1,"Test Results - Reasoning displays the percentage of correct answers for each Reasoning item by strand and by test level The percentage correct for the country/region is included for comparison.","Your school did not participate in the "&DD!$CP$2&" IBT Reasoning Test.") -> Test Results - Reasoning displays the percentage of correct answers for each Reasoning item by strand and by test level The percentage correct for the country/region is included for comparison.
C27: Cl_English2 | D27: =IF(DD!$G$10=1,"Test Results - English2 displays the percentage of correct answers for each English2 item by strand and by test level The percentage correct for the country/region is included for comparison.","Your school did not participate in the "&DD!$CP$2&" IBT English2 Test.") -> Test Results - English2 displays the percentage of correct answers for each English2 item by strand and by test level The percentage correct for the country/region is included for comparison.
C28: Cl_Hindi | D28: =IF(DD!$G$11=1,"Test Results - Hindi displays the percentage of correct answers for each Hindi item by strand and by test level The percentage correct for the country/region is included for comparison.","Your school did not participate in the "&DD!$CP$2&" IBT Hindi Test.") -> Test Results - Hindi displays the percentage of correct answers for each Hindi item by strand and by test level The percentage correct for the country/region is included for comparison.
C30: Grade_Math | D30: =IF(DD!$G$4=1,CONCATENATE("Year Level Results - Math analyses Mathematics with the item (question) as the focus. Displays each item ranked by the percentage of correct answers for the year level at the school. ", "Highlights individual items and includes the average percentage of correct answers for the country/region and for All IBT Schools for comparison."),"Your school did not participate in the "&DD!$CP$2&" IBT Mathematics Test.") -> Year Level Results - Math analyses Mathematics with the item (question) as the focus. Displays each item ranked by the percentage of correct answers for the year level at the school. Highlights individual items and includes the average percentage of correct answers for the country/region and for All IBT Schools for comparison.
C32: Grade_English | D32: =IF(DD!$G$5=1,CONCATENATE("Year Level Results - English analyses English with the item (question) as the focus. Displays each item ranked by the percentage of correct answers for the year level at the school. ","Highlights individual items and includes the average percentage of correct answers for the country/region and for All IBT Schools for comparison."),"Your school did not participate in the "&DD!$CP$2&" IBT English Test.") -> Year Level Results - English analyses English with the item (question) as the focus. Displays each item ranked by the percentage of correct answers for the year level at the school. Highlights individual items and includes the average percentage of correct answers for the country/region and for All IBT Schools for comparison.
C34: Grade_Science | D34: =IF(DD!$G$6=1,CONCATENATE("Year Level Results - Science analyses Science with the item (question) as the focus. Displays each item ranked by the percentage of correct answers for the year level at the school. ","Highlights individual items and includes the average percentage of correct answers for the country/region and for All IBT Schools for comparison."),"Your school did not participate in the "&DD!$CP$2&" IBT Science Test.") -> Year Level Results - Science analyses Science with the item (question) as the focus. Displays each item ranked by the percentage of correct answers for the year level at the school. Highlights individual items and includes the average percentage of correct answers for the country/region and for All IBT Schools for comparison.
C36: Grade_ArabicA | D36: =IF(DD!$G$7=1,CONCATENATE("Year Level Results - ArabicA analyses ArabicA with the item (question) as the focus. Displays each item ranked by the percentage of correct answers for the year level at the school. ","Highlights individual items and includes the average percentage of correct answers for the country/region."),"Your school did not participate in the "&DD!$CP$2&" IBT ArabicA Test.") -> Year Level Results - ArabicA analyses ArabicA with the item (question) as the focus. Displays each item ranked by the percentage of correct answers for the year level at the school. Highlights individual items and includes the average percentage of correct answers for the country/region.
C37: Grade_ArabicB | D37: =IF(DD!$G$8=1,CONCATENATE("Test Level Results - ArabicB analyses ArabicB with the item (question) as the focus. Displays each item ranked by the percentage of correct answers for the test level at the school. ","Highlights individual items and includes the average percentage of correct answers for the country/region."),"Your school did not participate in the "&DD!$CP$2&" IBT ArabicB Test.") -> Test Level Results - ArabicB analyses ArabicB with the item (question) as the focus. Displays each item ranked by the percentage of correct answers for the test level at the school. Highlights individual items and includes the average percentage of correct answers for the country/region.
C38: Grade_Reasoning | D38: =IF(DD!$G$9=1,CONCATENATE("Test Level Results - Reasoning analyses Reasoning with the item (question) as the focus. Displays each item ranked by the percentage of correct answers for the test level at the school. ","Highlights individual items and includes the average percentage of correct answers for the country/region."),"Your school did not participate in the "&DD!$CP$2&" IBT Reasoning Test.") -> Test Level Results - Reasoning analyses Reasoning with the item (question) as the focus. Displays each item ranked by the percentage of correct answers for the test level at the school. Highlights individual items and includes the average percentage of correct answers for the country/region.
C39: Grade_English2 | D39: =IF(DD!$G$10=1,CONCATENATE("Test Level Results - English2 analyses English2 with the item (question) as the focus. Displays each item ranked by the percentage of correct answers for the test level at the school. ","Highlights individual items and includes the average percentage of correct answers for the country/region."),"Your school did not participate in the "&DD!$CP$2&" IBT English2 Test.") -> Test Level Results - English2 analyses English2 with the item (question) as the focus. Displays each item ranked by the percentage of correct answers for the test level at the school. Highlights individual items and includes the average percentage of correct answers for the country/region.
C40: Grade_Hindi | D40: =IF(DD!$G$11=1,CONCATENATE("Test Level Results - Hindi analyses Hindi with the item (question) as the focus. Displays each item ranked by the percentage of correct answers for the test level at the school. ","Highlights individual items and includes the average percentage of correct answers for the country/region."),"Your school did not participate in the "&DD!$CP$2&" IBT Hindi Test.") -> Test Level Results - Hindi analyses Hindi with the item (question) as the focus. Displays each item ranked by the percentage of correct answers for the test level at the school. Highlights individual items and includes the average percentage of correct answers for the country/region.

Sheet IBT_SchStats
A1: =DD_new!$AN$2 -> Math | O1: =IF(DD_new!$AO$2="B","Test Level","Grade") -> Grade | R1: Scale Score Means in All IBT Schools by Test Level | BL1: =SUM(BL3:BL12) -> 0 | BM1: =IF($BL$1>=1," Number of SEN students included in the total, shown in brackets.","") -> 
C2: SCHOOL STATISTICS | N2: get non-error cells | O2: Grade_col | P2: =IF(DD_new!AN2="Math","UT",IF(DD_new!AN2="English","UR",IF(DD_new!AN2="Science","UV",IF(DD_new!AN2="ArabicA","UX",IF(DD_new!AN2="ArabicB","UZ",IF(DD_new!AN2="Reasoning","VB",IF(DD_new!AN2="English2","VD",IF(DD_new!AN2="Hindi","VF","")))))))) -> UT | Q2: Re-arranged (get the unique value of the array) | R2: ="Scale Score Means in "&G15&" by Test Level" -> Scale Score Means in All Schools in MIDDLE EAST by Test Level | AA2: ="Scale Score Means in "&DD!B4&" by Grade" -> Scale Score Means in IBT_SAMPLESCHOOL by Grade | BL2: Sen Students
N3: =IFERROR(INDEX(P:P,SMALL(INDEX(NOT(ISNA($P$3:$P$15))*ROW($P$3:$P$15),0),COUNTIF($P$3:$P$15,NA())+ROW(P1))),"") -> 3 | O3: 3 | P3: =IF(ISNUMBER(INDIRECT("CLdb!"&$P$2&$O3-1)),INDIRECT("CLdb!"&$P$2&$O3-1),NA()) ->  | Q3: =IFERROR(INDEX(INDIRECT("$N$3:$N$12"),MATCH(0,COUNTIF($Q$2:Q2,INDIRECT("$N$3:$N$12")),0)),"") -> 3 | BL3: =SUMIFS(DD_new!$BZ:$BZ,DD_new!$BT:$BT,IF(IBT_SchStats!$A$1="Math","Maths",IBT_SchStats!$A$1),DD_new!$BV:$BV,IBT_SchStats!$Q3,DD_new!$BW:$BW,DD!$B$3) -> 0
C4: Subject: | N4: =IFERROR(INDEX(P:P,SMALL(INDEX(NOT(ISNA($P$3:$P$15))*ROW($P$3:$P$15),0),COUNTIF($P$3:$P$15,NA())+ROW(P2))),"") -> 4 | O4: 4 | P4: =IF(ISNUMBER(INDIRECT("CLdb!"&$P$2&$O4-1)),INDIRECT("CLdb!"&$P$2&$O4-1),NA()) ->  | Q4: =IFERROR(INDEX(INDIRECT("$N$3:$N$12"),MATCH(0,COUNTIF($Q$2:Q3,INDIRECT("$N$3:$N$12")),0)),"") -> 4 | R4: =DD!B5&CHAR(10)&" Scale Score Means" & " by "& IF(DD_new!$AO$2="B","Test Level", "Grade") &CHAR(10)&DD!$E$2 -> IBT_SAMPLESCHOOL Scale Score Means by Grade Math | BL4: =SUMIFS(DD_new!$BZ:$BZ,DD_new!$BT:$BT,IF(IBT_SchStats!$A$1="Math","Maths",IBT_SchStats!$A$1),DD_new!$BV:$BV,IBT_SchStats!$Q4,DD_new!$BW:$BW,DD!$B$3) -> 0
N5: =IFERROR(INDEX(P:P,SMALL(INDEX(NOT(ISNA($P$3:$P$15))*ROW($P$3:$P$15),0),COUNTIF($P$3:$P$15,NA())+ROW(P3))),"") -> 5 | O5: 5 | P5: 3 | Q5: =IFERROR(INDEX(INDIRECT("$N$3:$N$12"),MATCH(0,COUNTIF($Q$2:Q4,INDIRECT("$N$3:$N$12")),0)),"") -> 5 | R5: All IBT Schools: middle 50% of Scale Scores | BL5: =SUMIFS(DD_new!$BZ:$BZ,DD_new!$BT:$BT,IF(IBT_SchStats!$A$1="Math","Maths",IBT_SchStats!$A$1),DD_new!$BV:$BV,IBT_SchStats!$Q5,DD_new!$BW:$BW,DD!$B$3) -> 0
N6: =IFERROR(INDEX(P:P,SMALL(INDEX(NOT(ISNA($P$3:$P$15))*ROW($P$3:$P$15),0),COUNTIF($P$3:$P$15,NA())+ROW(P4))),"") -> 6 | O6: 6 | P6: 4 | Q6: =IFERROR(INDEX(INDIRECT("$N$3:$N$12"),MATCH(0,COUNTIF($Q$2:Q5,INDIRECT("$N$3:$N$12")),0)),"") -> 6 | R6: =DD!$B$6& ": middle 50% of Scale Scores" -> MIDDLE EAST: middle 50% of Scale Scores | BL6: =SUMIFS(DD_new!$BZ:$BZ,DD_new!$BT:$BT,IF(IBT_SchStats!$A$1="Math","Maths",IBT_SchStats!$A$1),DD_new!$BV:$BV,IBT_SchStats!$Q6,DD_new!$BW:$BW,DD!$B$3) -> 0
N7: =IFERROR(INDEX(P:P,SMALL(INDEX(NOT(ISNA($P$3:$P$15))*ROW($P$3:$P$15),0),COUNTIF($P$3:$P$15,NA())+ROW(P5))),"") -> 7 | O7: 7 | P7: 5 | Q7: =IFERROR(INDEX(INDIRECT("$N$3:$N$12"),MATCH(0,COUNTIF($Q$2:Q6,INDIRECT("$N$3:$N$12")),0)),"") -> 7 | R7: =DD!$B$5&": middle 50% of Scale Scores" -> IBT_SAMPLESCHOOL: middle 50% of Scale Scores | BL7: =SUMIFS(DD_new!$BZ:$BZ,DD_new!$BT:$BT,IF(IBT_SchStats!$A$1="Math","Maths",IBT_SchStats!$A$1),DD_new!$BV:$BV,IBT_SchStats!$Q7,DD_new!$BW:$BW,DD!$B$3) -> 0
N8: =IFERROR(INDEX(P:P,SMALL(INDEX(NOT(ISNA($P$3:$P$15))*ROW($P$3:$P$15),0),COUNTIF($P$3:$P$15,NA())+ROW(P6))),"") -> 8 | O8: 8 | P8: 6 | Q8: =IFERROR(INDEX(INDIRECT("$N$3:$N$12"),MATCH(0,COUNTIF($Q$2:Q7,INDIRECT("$N$3:$N$12")),0)),"") -> 8 | W8: =W18*3 -> 9 | X8: =X18*3+1 -> 10 | Y8: =Y18*3+2 -> 11 | AA8: =AA18*3 -> 12 | AB8: =AB18*3+1 -> 13 | AC8: =AC18*3+2 -> 14 | AE8: =AE18*3 -> 15 | AF8: =AF18*3+1 -> 16 | AG8: =AG18*3+2 -> 17 | AI8: =AI18*3 -> 18 | AJ8: =AJ18*3+1 -> 19 | AK8: =AK18*3+2 -> 20 | AM8: =AM18*3 -> 21 | AN8: =AN18*3+1 -> 22 | AO8: =AO18*3+2 -> 23 | AQ8: =AQ18*3 -> 24 | AR8: =AR18*3+1 -> 25 | AS8: =AS18*3+2 -> 26 | AU8: =AU18*3 -> 27 | AV8: =AV18*3+1 -> 28 | AW8: =AW18*3+2 -> 29 | AY8: =AY18*3 -> 30 | AZ8: =AZ18*3+1 -> 31 | BA8: =BA18*3+2 -> 32 | BC8: =BC18*3 -> 33 | BD8: =BD18*3+1 ->  | BE8: =BE18*3+2 ->  | BG8: =BG18*3 -> 36 | BH8: =BH18*3+1 ->  | BI8: =BI18*3+2 ->  | BL8: =SUMIFS(DD_new!$BZ:$BZ,DD_new!$BT:$BT,IF(IBT_SchStats!$A$1="Math","Maths",IBT_SchStats!$A$1),DD_new!$BV:$BV,IBT_SchStats!$Q8,DD_new!$BW:$BW,DD!$B$3) -> 0
N9: =IFERROR(INDEX(P:P,SMALL(INDEX(NOT(ISNA($P$3:$P$15))*ROW($P$3:$P$15),0),COUNTIF($P$3:$P$15,NA())+ROW(P7))),"") -> 9 | O9: 9 | P9: 7 | Q9: =IFERROR(INDEX(INDIRECT("$N$3:$N$12"),MATCH(0,COUNTIF($Q$2:Q8,INDIRECT("$N$3:$N$12")),0)),"") -> 9 | R9: =DD_new!$AP$2 -> 1 | S9: 1 | T9: =R9&"."&S9 -> 1.1 | W9: =IF(AND(INDIRECT(W$19)>0,ISNUMBER(VLOOKUP($T9,IBTdb!$AF$22:$BQ$68,W$8,FALSE))), VLOOKUP($T9,IBTdb!$AF$22:$BQ$68,W$8,FALSE), NA()) -> 366.5 | X9: =IF(AND(INDIRECT(X$19)>0,ISNUMBER(VLOOKUP($T9,IBTdb!$AF$22:$BQ$68,X$8,FALSE))), VLOOKUP($T9,IBTdb!$AF$22:$BQ$68,X$8,FALSE), NA()) -> 343 | Y9: =IF(OR(DD_new!$AN$2="ArabicA",DD_new!$AN$2="ArabicB",DD_new!$AN$2="English2",DD_new!$AN$2="Hindi"),NA(),IF(AND(INDIRECT(Y$19)>0,ISNUMBER(VLOOKUP($T9,IBTdb!$AF$22:$BQ$68,Y$8,FALSE))), VLOOKUP($T9,IBTdb!$AF$22:$BQ$68,Y$8,FALSE), NA())) -> 322 | AA9: =IF(AND(INDIRECT(AA$19)>0,ISNUMBER(VLOOKUP($T9,IBTdb!$AF$22:$BQ$68,AA$8,FALSE))), VLOOKUP($T9,IBTdb!$AF$22:$BQ$68,AA$8,FALSE), NA()) -> 368.5 | AB9: =IF(AND(INDIRECT(AB$19)>0,ISNUMBER(VLOOKUP($T9,IBTdb!$AF$22:$BQ$68,AB$8,FALSE))), VLOOKUP($T9,IBTdb!$AF$22:$BQ$68,AB$8,FALSE), NA()) -> 373 | AC9: =IF(OR(DD_new!$AN$2="ArabicA",DD_new!$AN$2="ArabicB",DD_new!$AN$2="English2",DD_new!$AN$2="Hindi"),NA(),IF(AND(INDIRECT(AC$19)>0,ISNUMBER(VLOOKUP($T9,IBTdb!$AF$22:$BQ$68,AC$8,FALSE))), VLOOKUP($T9,IBTdb!$AF$22:$BQ$68,AC$8,FALSE), NA())) -> 355 | AE9: =IF(AND(INDIRECT(AE$19)>0,ISNUMBER(VLOOKUP($T9,IBTdb!$AF$22:$BQ$68,AE$8,FALSE))), VLOOKUP($T9,IBTdb!$AF$22:$BQ$68,AE$8,FALSE), NA()) -> 424.5 | AF9: =IF(AND(INDIRECT(AF$19)>0,ISNUMBER(VLOOKUP($T9,IBTdb!$AF$22:$BQ$68,AF$8,FALSE))), VLOOKUP($T9,IBTdb!$AF$22:$BQ$68,AF$8,FALSE), NA()) -> 411 | AG9: =IF(OR(DD_new!$AN$2="ArabicA",DD_new!$AN$2="ArabicB",DD_new!$AN$2="English2",DD_new!$AN$2="Hindi"),NA(),IF(AND(INDIRECT(AG$19)>0,ISNUMBER(VLOOKUP($T9,IBTdb!$AF$22:$BQ$68,AG$8,FALSE))), VLOOKUP($T9,IBTdb!$AF$22:$BQ$68,AG$8,FALSE), NA())) -> 392 | AI9: =IF(AND(INDIRECT(AI$19)>0,ISNUMBER(VLOOKUP($T9,IBTdb!$AF$22:$BQ$68,AI$8,FALSE))), VLOOKUP($T9,IBTdb!$AF$22:$BQ$68,AI$8,FALSE), NA()) -> 432.5 | AJ9: =IF(AND(INDIRECT(AJ$19)>0,ISNUMBER(VLOOKUP($T9,IBTdb!$AF$22:$BQ$68,AJ$8,FALSE))), VLOOKUP($T9,IBTdb!$AF$22:$BQ$68,AJ$8,FALSE), NA()) -> 419 | AK9: =IF(OR(DD_new!$AN$2="ArabicA",DD_new!$AN$2="ArabicB",DD_new!$AN$2="English2",DD_new!$AN$2="Hindi"),NA(),IF(AND(INDIRECT(AK$19)>0,ISNUMBER(VLOOKUP($T9,IBTdb!$AF$22:$BQ$68,AK$8,FALSE))), VLOOKUP($T9,IBTdb!$AF$22:$BQ$68,AK$8,FALSE), NA())) -> 431 | AM9: =IF(AND(INDIRECT(AM$19)>0,ISNUMBER(VLOOKUP($T9,IBTdb!$AF$22:$BQ$68,AM$8,FALSE))), VLOOKUP($T9,IBTdb!$AF$22:$BQ$68,AM$8,FALSE), NA()) -> 479 | AN9: =IF(AND(INDIRECT(AN$19)>0,ISNUMBER(VLOOKUP($T9,IBTdb!$AF$22:$BQ$68,AN$8,FALSE))), VLOOKUP($T9,IBTdb!$AF$22:$BQ$68,AN$8,FALSE), NA()) -> 454 | AO9: =IF(OR(DD_new!$AN$2="ArabicA",DD_new!$AN$2="ArabicB",DD_new!$AN$2="English2",DD_new!$AN$2="Hindi"),NA(),IF(AND(INDIRECT(AO$19)>0,ISNUMBER(VLOOKUP($T9,IBTdb!$AF$22:$BQ$68,AO$8,FALSE))), VLOOKUP($T9,IBTdb!$AF$22:$BQ$68,AO$8,FALSE), NA())) -> 448 | AQ9: =IF(AND(INDIRECT(AQ$19)>0,ISNUMBER(VLOOKUP($T9,IBTdb!$AF$22:$BQ$68,AQ$8,FALSE))), VLOOKUP($T9,IBTdb!$AF$22:$BQ$68,AQ$8,FALSE), NA()) -> 488 | AR9: =IF(AND(INDIRECT(AR$19)>0,ISNUMBER(VLOOKUP($T9,IBTdb!$AF$22:$BQ$68,AR$8,FALSE))), VLOOKUP($T9,IBTdb!$AF$22:$BQ$68,AR$8,FALSE), NA()) -> 493 | AS9: =IF(OR(DD_new!$AN$2="ArabicA",DD_new!$AN$2="ArabicB",DD_new!$AN$2="English2",DD_new!$AN$2="Hindi"),NA(),IF(AND(INDIRECT(AS$19)>0,ISNUMBER(VLOOKUP($T9,IBTdb!$AF$22:$BQ$68,AS$8,FALSE))), VLOOKUP($T9,IBTdb!$AF$22:$BQ$68,AS$8,FALSE), NA())) -> 499 | AU9: =IF(AND(INDIRECT(AU$19)>0,ISNUMBER(VLOOKUP($T9,IBTdb!$AF$22:$BQ$68,AU$8,FALSE))), VLOOKUP($T9,IBTdb!$AF$22:$BQ$68,AU$8,FALSE), NA()) -> 512 | AV9: =IF(AND(INDIRECT(AV$19)>0,ISNUMBER(VLOOKUP($T9,IBTdb!$AF$22:$BQ$68,AV$8,FALSE))), VLOOKUP($T9,IBTdb!$AF$22:$BQ$68,AV$8,FALSE), NA()) -> 507 | AW9: =IF(OR(DD_new!$AN$2="ArabicA",DD_new!$AN$2="ArabicB",DD_new!$AN$2="English2",DD_new!$AN$2="Hindi"),NA(),IF(AND(INDIRECT(AW$19)>0,ISNUMBER(VLOOKUP($T9,IBTdb!$AF$22:$BQ$68,AW$8,FALSE))), VLOOKUP($T9,IBTdb!$AF$22:$BQ$68,AW$8,FALSE), NA())) -> 518 | AY9: =IF(AND(INDIRECT(AY$19)>0,ISNUMBER(VLOOKUP($T9,IBTdb!$AF$22:$BQ$68,AY$8,FALSE))), VLOOKUP($T9,IBTdb!$AF$22:$BQ$68,AY$8,FALSE), NA()) -> 512 | AZ9: =IF(AND(INDIRECT(AZ$19)>0,ISNUMBER(VLOOKUP($T9,IBTdb!$AF$22:$BQ$68,AZ$8,FALSE))), VLOOKUP($T9,IBTdb!$AF$22:$BQ$68,AZ$8,FALSE), NA()) -> 526 | BA9: =IF(OR(DD_new!$AN$2="ArabicA",DD_new!$AN$2="ArabicB",DD_new!$AN$2="English2",DD_new!$AN$2="Hindi"),NA(),IF(AND(INDIRECT(BA$19)>0,ISNUMBER(VLOOKUP($T9,IBTdb!$AF$22:$BQ$68,BA$8,FALSE))), VLOOKUP($T9,IBTdb!$AF$22:$BQ$68,BA$8,FALSE), NA())) -> 539 | BC9: =IF(AND(INDIRECT(BC$19)>0,ISNUMBER(VLOOKUP($T9,IBTdb!$AF$22:$BQ$68,BC$8,FALSE))), VLOOKUP($T9,IBTdb!$AF$22:$BQ$68,BC$8,FALSE), NA()) ->  | BD9: =IF(AND(INDIRECT(BD$19)>0,ISNUMBER(VLOOKUP($T9,IBTdb!$AF$22:$BQ$68,BD$8,FALSE))), VLOOKUP($T9,IBTdb!$AF$22:$BQ$68,BD$8,FALSE), NA()) ->  | BE9: =IF(OR(DD_new!$AN$2="ArabicA",DD_new!$AN$2="ArabicB",DD_new!$AN$2="English2",DD_new!$AN$2="Hindi"),NA(),IF(AND(INDIRECT(BE$19)>0,ISNUMBER(VLOOKUP($T9,IBTdb!$AF$22:$BQ$68,BE$8,FALSE))), VLOOKUP($T9,IBTdb!$AF$22:$BQ$68,BE$8,FALSE), NA())) ->  | BG9: =IF(AND(INDIRECT(BG$19)>0,ISNUMBER(VLOOKUP($T9,IBTdb!$AF$22:$BQ$68,BG$8,FALSE))), VLOOKUP($T9,IBTdb!$AF$22:$BQ$68,BG$8,FALSE), NA()) ->  | BH9: =IF(AND(INDIRECT(BH$19)>0,ISNUMBER(VLOOKUP($T9,IBTdb!$AF$22:$BQ$68,BH$8,FALSE))), VLOOKUP($T9,IBTdb!$AF$22:$BQ$68,BH$8,FALSE), NA()) ->  | BI9: =IF(OR(DD_new!$AN$2="ArabicA",DD_new!$AN$2="ArabicB",DD_new!$AN$2="English2",DD_new!$AN$2="Hindi"),NA(),IF(AND(INDIRECT(BI$19)>0,ISNUMBER(VLOOKUP($T9,IBTdb!$AF$22:$BQ$68,BI$8,FALSE))), VLOOKUP($T9,IBTdb!$AF$22:$BQ$68,BI$8,FALSE), NA())) ->  | BJ9: q1 | BL9: =SUMIFS(DD_new!$BZ:$BZ,DD_new!$BT:$BT,IF(IBT_SchStats!$A$1="Math","Maths",IBT_SchStats!$A$1),DD_new!$BV:$BV,IBT_SchStats!$Q9,DD_new!$BW:$BW,DD!$B$3) -> 0
N10: =IFERROR(INDEX(P:P,SMALL(INDEX(NOT(ISNA($P$3:$P$15))*ROW($P$3:$P$15),0),COUNTIF($P$3:$P$15,NA())+ROW(P8))),"") -> 10 | O10: 10 | P10: 8 | Q10: =IFERROR(INDEX(INDIRECT("$N$3:$N$12"),MATCH(0,COUNTIF($Q$2:Q9,INDIRECT("$N$3:$N$12")),0)),"") -> 10 | R10: =R9 -> 1 | S10: 2 | T10: =R10&"."&S10 -> 1.2 | W10: =IF(AND(INDIRECT(W$19)>0,ISNUMBER(VLOOKUP($T10,IBTdb!$AF$22:$BQ$68,W$8,FALSE))), VLOOKUP($T10,IBTdb!$AF$22:$BQ$68,W$8,FALSE), NA()) -> 39.5 | X10: =IF(AND(INDIRECT(X$19)>0,ISNUMBER(VLOOKUP($T10,IBTdb!$AF$22:$BQ$68,X$8,FALSE))), VLOOKUP($T10,IBTdb!$AF$22:$BQ$68,X$8,FALSE), NA()) -> 37 | Y10: =IF(OR(DD_new!$AN$2="ArabicA",DD_new!$AN$2="ArabicB",DD_new!$AN$2="English2",DD_new!$AN$2="Hindi"),NA(),IF(AND(INDIRECT(Y$19)>0,ISNUMBER(VLOOKUP($T10,IBTdb!$AF$22:$BQ$68,Y$8,FALSE))), VLOOKUP($T10,IBTdb!$AF$22:$BQ$68,Y$8,FALSE), NA())) -> 43 | AA10: =IF(AND(INDIRECT(AA$19)>0,ISNUMBER(VLOOKUP($T10,IBTdb!$AF$22:$BQ$68,AA$8,FALSE))), VLOOKUP($T10,IBTdb!$AF$22:$BQ$68,AA$8,FALSE), NA()) -> 30.5 | AB10: =IF(AND(INDIRECT(AB$19)>0,ISNUMBER(VLOOKUP($T10,IBTdb!$AF$22:$BQ$68,AB$8,FALSE))), VLOOKUP($T10,IBTdb!$AF$22:$BQ$68,AB$8,FALSE), NA()) -> 35 | AC10: =IF(OR(DD_new!$AN$2="ArabicA",DD_new!$AN$2="ArabicB",DD_new!$AN$2="English2",DD_new!$AN$2="Hindi"),NA(),IF(AND(INDIRECT(AC$19)>0,ISNUMBER(VLOOKUP($T10,IBTdb!$AF$22:$BQ$68,AC$8,FALSE))), VLOOKUP($T10,IBTdb!$AF$22:$BQ$68,AC$8,FALSE), NA())) -> 44 | AE10: =IF(AND(INDIRECT(AE$19)>0,ISNUMBER(VLOOKUP($T10,IBTdb!$AF$22:$BQ$68,AE$8,FALSE))), VLOOKUP($T10,IBTdb!$AF$22:$BQ$68,AE$8,FALSE), NA()) -> 29.5 | AF10: =IF(AND(INDIRECT(AF$19)>0,ISNUMBER(VLOOKUP($T10,IBTdb!$AF$22:$BQ$68,AF$8,FALSE))), VLOOKUP($T10,IBTdb!$AF$22:$BQ$68,AF$8,FALSE), NA()) -> 27 | AG10: =IF(OR(DD_new!$AN$2="ArabicA",DD_new!$AN$2="ArabicB",DD_new!$AN$2="English2",DD_new!$AN$2="Hindi"),NA(),IF(AND(INDIRECT(AG$19)>0,ISNUMBER(VLOOKUP($T10,IBTdb!$AF$22:$BQ$68,AG$8,FALSE))), VLOOKUP($T10,IBTdb!$AF$22:$BQ$68,AG$8,FALSE), NA())) -> 41 | AI10: =IF(AND(INDIRECT(AI$19)>0,ISNUMBER(VLOOKUP($T10,IBTdb!$AF$22:$BQ$68,AI$8,FALSE))), VLOOKUP($T10,IBTdb!$AF$22:$BQ$68,AI$8,FALSE), NA()) -> 46.5 | AJ10: =IF(AND(INDIRECT(AJ$19)>0,ISNUMBER(VLOOKUP($T10,IBTdb!$AF$22:$BQ$68,AJ$8,FALSE))), VLOOKUP($T10,IBTdb!$AF$22:$BQ$68,AJ$8,FALSE), NA()) -> 44 | AK10: =IF(OR(DD_new!$AN$2="ArabicA",DD_new!$AN$2="ArabicB",DD_new!$AN$2="English2",DD_new!$AN$2="Hindi"),NA(),IF(AND(INDIRECT(AK$19)>0,ISNUMBER(VLOOKUP($T10,IBTdb!$AF$22:$BQ$68,AK$8,FALSE))), VLOOKUP($T10,IBTdb!$AF$22:$BQ$68,AK$8,FALSE), NA())) -> 43 | AM10: =IF(AND(INDIRECT(AM$19)>0,ISNUMBER(VLOOKUP($T10,IBTdb!$AF$22:$BQ$68,AM$8,FALSE))), VLOOKUP($T10,IBTdb!$AF$22:$BQ$68,AM$8,FALSE), NA()) -> 30 | AN10: =IF(AND(INDIRECT(AN$19)>0,ISNUMBER(VLOOKUP($T10,IBTdb!$AF$22:$BQ$68,AN$8,FALSE))), VLOOKUP($T10,IBTdb!$AF$22:$BQ$68,AN$8,FALSE), NA()) -> 33 | AO10: =IF(OR(DD_new!$AN$2="ArabicA",DD_new!$AN$2="ArabicB",DD_new!$AN$2="English2",DD_new!$AN$2="Hindi"),NA(),IF(AND(INDIRECT(AO$19)>0,ISNUMBER(VLOOKUP($T10,IBTdb!$AF$22:$BQ$68,AO$8,FALSE))), VLOOKUP($T10,IBTdb!$AF$22:$BQ$68,AO$8,FALSE), NA())) -> 38 | AQ10: =IF(AND(INDIRECT(AQ$19)>0,ISNUMBER(VLOOKUP($T10,IBTdb!$AF$22:$BQ$68,AQ$8,FALSE))), VLOOKUP($T10,IBTdb!$AF$22:$BQ$68,AQ$8,FALSE), NA()) -> 36 | AR10: =IF(AND(INDIRECT(AR$19)>0,ISNUMBER(VLOOKUP($T10,IBTdb!$AF$22:$BQ$68,AR$8,FALSE))), VLOOKUP($T10,IBTdb!$AF$22:$BQ$68,AR$8,FALSE), NA()) -> 32 | AS10: =IF(OR(DD_new!$AN$2="ArabicA",DD_new!$AN$2="ArabicB",DD_new!$AN$2="English2",DD_new!$AN$2="Hindi"),NA(),IF(AND(INDIRECT(AS$19)>0,ISNUMBER(VLOOKUP($T10,IBTdb!$AF$22:$BQ$68,AS$8,FALSE))), VLOOKUP($T10,IBTdb!$AF$22:$BQ$68,AS$8,FALSE), NA())) -> 33 | AU10: =IF(AND(INDIRECT(AU$19)>0,ISNUMBER(VLOOKUP($T10,IBTdb!$AF$22:$BQ$68,AU$8,FALSE))), VLOOKUP($T10,IBTdb!$AF$22:$BQ$68,AU$8,FALSE), NA()) -> 36 | AV10: =IF(AND(INDIRECT(AV$19)>0,ISNUMBER(VLOOKUP($T10,IBTdb!$AF$22:$BQ$68,AV$8,FALSE))), VLOOKUP($T10,IBTdb!$AF$22:$BQ$68,AV$8,FALSE), NA()) -> 25 | AW10: =IF(OR(DD_new!$AN$2="ArabicA",DD_new!$AN$2="ArabicB",DD_new!$AN$2="English2",DD_new!$AN$2="Hindi"),NA(),IF(AND(INDIRECT(AW$19)>0,ISNUMBER(VLOOKUP($T10,IBTdb!$AF$22:$BQ$68,AW$8,FALSE))), VLOOKUP($T10,IBTdb!$AF$22:$BQ$68,AW$8,FALSE), NA())) -> 25 | AY10: =IF(AND(INDIRECT(AY$19)>0,ISNUMBER(VLOOKUP($T10,IBTdb!$AF$22:$BQ$68,AY$8,FALSE))), VLOOKUP($T10,IBTdb!$AF$22:$BQ$68,AY$8,FALSE), NA()) -> 54 | AZ10: =IF(AND(INDIRECT(AZ$19)>0,ISNUMBER(VLOOKUP($T10,IBTdb!$AF$22:$BQ$68,AZ$8,FALSE))), VLOOKUP($T10,IBTdb!$AF$22:$BQ$68,AZ$8,FALSE), NA()) -> 40 | BA10: =IF(OR(DD_new!$AN$2="ArabicA",DD_new!$AN$2="ArabicB",DD_new!$AN$2="English2",DD_new!$AN$2="Hindi"),NA(),IF(AND(INDIRECT(BA$19)>0,ISNUMBER(VLOOKUP($T10,IBTdb!$AF$22:$BQ$68,BA$8,FALSE))), VLOOKUP($T10,IBTdb!$AF$22:$BQ$68,BA$8,FALSE), NA())) -> 25 | BC10: =IF(AND(INDIRECT(BC$19)>0,ISNUMBER(VLOOKUP($T10,IBTdb!$AF$22:$BQ$68,BC$8,FALSE))), VLOOKUP($T10,IBTdb!$AF$22:$BQ$68,BC$8,FALSE), NA()) ->  | BD10: =IF(AND(INDIRECT(BD$19)>0,ISNUMBER(VLOOKUP($T10,IBTdb!$AF$22:$BQ$68,BD$8,FALSE))), VLOOKUP($T10,IBTdb!$AF$22:$BQ$68,BD$8,FALSE), NA()) ->  | BE10: =IF(OR(DD_new!$AN$2="ArabicA",DD_new!$AN$2="ArabicB",DD_new!$AN$2="English2",DD_new!$AN$2="Hindi"),NA(),IF(AND(INDIRECT(BE$19)>0,ISNUMBER(VLOOKUP($T10,IBTdb!$AF$22:$BQ$68,BE$8,FALSE))), VLOOKUP($T10,IBTdb!$AF$22:$BQ$68,BE$8,FALSE), NA())) ->  | BG10: =IF(AND(INDIRECT(BG$19)>0,ISNUMBER(VLOOKUP($T10,IBTdb!$AF$22:$BQ$68,BG$8,FALSE))), VLOOKUP($T10,IBTdb!$AF$22:$BQ$68,BG$8,FALSE), NA()) ->  | BH10: =IF(AND(INDIRECT(BH$19)>0,ISNUMBER(VLOOKUP($T10,IBTdb!$AF$22:$BQ$68,BH$8,FALSE))), VLOOKUP($T10,IBTdb!$AF$22:$BQ$68,BH$8,FALSE), NA()) ->  | BI10: =IF(OR(DD_new!$AN$2="ArabicA",DD_new!$AN$2="ArabicB",DD_new!$AN$2="English2",DD_new!$AN$2="Hindi"),NA(),IF(AND(INDIRECT(BI$19)>0,ISNUMBER(VLOOKUP($T10,IBTdb!$AF$22:$BQ$68,BI$8,FALSE))), VLOOKUP($T10,IBTdb!$AF$22:$BQ$68,BI$8,FALSE), NA())) ->  | BJ10: med-q1 | BL10: =SUMIFS(DD_new!$BZ:$BZ,DD_new!$BT:$BT,IF(IBT_SchStats!$A$1="Math","Maths",IBT_SchStats!$A$1),DD_new!$BV:$BV,IBT_SchStats!$Q10,DD_new!$BW:$BW,DD!$B$3) -> 0
N11: =IFERROR(INDEX(P:P,SMALL(INDEX(NOT(ISNA($P$3:$P$15))*ROW($P$3:$P$15),0),COUNTIF($P$3:$P$15,NA())+ROW(P9))),"") ->  | O11: 11 | P11: 9 | Q11: =IFERROR(INDEX(INDIRECT("$N$3:$N$12"),MATCH(0,COUNTIF($Q$2:Q10,INDIRECT("$N$3:$N$12")),0)),"") ->  | R11: =R10 -> 1 | S11: 3 | T11: =R11&"."&S11 -> 1.3 | W11: =IF(AND(INDIRECT(W$19)>0,ISNUMBER(VLOOKUP($T11,IBTdb!$AF$22:$BQ$68,W$8,FALSE))), VLOOKUP($T11,IBTdb!$AF$22:$BQ$68,W$8,FALSE), NA()) -> 41.16 | X11: =IF(AND(INDIRECT(X$19)>0,ISNUMBER(VLOOKUP($T11,IBTdb!$AF$22:$BQ$68,X$8,FALSE))), VLOOKUP($T11,IBTdb!$AF$22:$BQ$68,X$8,FALSE), NA()) -> 45.01 | Y11: =IF(OR(DD_new!$AN$2="ArabicA",DD_new!$AN$2="ArabicB",DD_new!$AN$2="English2",DD_new!$AN$2="Hindi"),NA(),IF(AND(INDIRECT(Y$19)>0,ISNUMBER(VLOOKUP($T11,IBTdb!$AF$22:$BQ$68,Y$8,FALSE))), VLOOKUP($T11,IBTdb!$AF$22:$BQ$68,Y$8,FALSE), NA())) -> 54.68 | AA11: =IF(AND(INDIRECT(AA$19)>0,ISNUMBER(VLOOKUP($T11,IBTdb!$AF$22:$BQ$68,AA$8,FALSE))), VLOOKUP($T11,IBTdb!$AF$22:$BQ$68,AA$8,FALSE), NA()) -> 47.52 | AB11: =IF(AND(INDIRECT(AB$19)>0,ISNUMBER(VLOOKUP($T11,IBTdb!$AF$22:$BQ$68,AB$8,FALSE))), VLOOKUP($T11,IBTdb!$AF$22:$BQ$68,AB$8,FALSE), NA()) -> 45.47 | AC11: =IF(OR(DD_new!$AN$2="ArabicA",DD_new!$AN$2="ArabicB",DD_new!$AN$2="English2",DD_new!$AN$2="Hindi"),NA(),IF(AND(INDIRECT(AC$19)>0,ISNUMBER(VLOOKUP($T11,IBTdb!$AF$22:$BQ$68,AC$8,FALSE))), VLOOKUP($T11,IBTdb!$AF$22:$BQ$68,AC$8,FALSE), NA())) -> 51.1 | AE11: =IF(AND(INDIRECT(AE$19)>0,ISNUMBER(VLOOKUP($T11,IBTdb!$AF$22:$BQ$68,AE$8,FALSE))), VLOOKUP($T11,IBTdb!$AF$22:$BQ$68,AE$8,FALSE), NA()) -> 55.44 | AF11: =IF(AND(INDIRECT(AF$19)>0,ISNUMBER(VLOOKUP($T11,IBTdb!$AF$22:$BQ$68,AF$8,FALSE))), VLOOKUP($T11,IBTdb!$AF$22:$BQ$68,AF$8,FALSE), NA()) -> 47.44 | AG11: =IF(OR(DD_new!$AN$2="ArabicA",DD_new!$AN$2="ArabicB",DD_new!$AN$2="English2",DD_new!$AN$2="Hindi"),NA(),IF(AND(INDIRECT(AG$19)>0,ISNUMBER(VLOOKUP($T11,IBTdb!$AF$22:$BQ$68,AG$8,FALSE))), VLOOKUP($T11,IBTdb!$AF$22:$BQ$68,AG$8,FALSE), NA())) -> 54.34 | AI11: =IF(AND(INDIRECT(AI$19)>0,ISNUMBER(VLOOKUP($T11,IBTdb!$AF$22:$BQ$68,AI$8,FALSE))), VLOOKUP($T11,IBTdb!$AF$22:$BQ$68,AI$8,FALSE), NA()) -> 46.52 | AJ11: =IF(AND(INDIRECT(AJ$19)>0,ISNUMBER(VLOOKUP($T11,IBTdb!$AF$22:$BQ$68,AJ$8,FALSE))), VLOOKUP($T11,IBTdb!$AF$22:$BQ$68,AJ$8,FALSE), NA()) -> 52.31 | AK11: =IF(OR(DD_new!$AN$2="ArabicA",DD_new!$AN$2="ArabicB",DD_new!$AN$2="English2",DD_new!$AN$2="Hindi"),NA(),IF(AND(INDIRECT(AK$19)>0,ISNUMBER(VLOOKUP($T11,IBTdb!$AF$22:$BQ$68,AK$8,FALSE))), VLOOKUP($T11,IBTdb!$AF$22:$BQ$68,AK$8,FALSE), NA())) -> 50.5 | AM11: =IF(AND(INDIRECT(AM$19)>0,ISNUMBER(VLOOKUP($T11,IBTdb!$AF$22:$BQ$68,AM$8,FALSE))), VLOOKUP($T11,IBTdb!$AF$22:$BQ$68,AM$8,FALSE), NA()) -> 44.04 | AN11: =IF(AND(INDIRECT(AN$19)>0,ISNUMBER(VLOOKUP($T11,IBTdb!$AF$22:$BQ$68,AN$8,FALSE))), VLOOKUP($T11,IBTdb!$AF$22:$BQ$68,AN$8,FALSE), NA()) -> 51.35 | AO11: =IF(OR(DD_new!$AN$2="ArabicA",DD_new!$AN$2="ArabicB",DD_new!$AN$2="English2",DD_new!$AN$2="Hindi"),NA(),IF(AND(INDIRECT(AO$19)>0,ISNUMBER(VLOOKUP($T11,IBTdb!$AF$22:$BQ$68,AO$8,FALSE))), VLOOKUP($T11,IBTdb!$AF$22:$BQ$68,AO$8,FALSE), NA())) -> 50.7 | AQ11: =IF(AND(INDIRECT(AQ$19)>0,ISNUMBER(VLOOKUP($T11,IBTdb!$AF$22:$BQ$68,AQ$8,FALSE))), VLOOKUP($T11,IBTdb!$AF$22:$BQ$68,AQ$8,FALSE), NA()) -> 39 | AR11: =IF(AND(INDIRECT(AR$19)>0,ISNUMBER(VLOOKUP($T11,IBTdb!$AF$22:$BQ$68,AR$8,FALSE))), VLOOKUP($T11,IBTdb!$AF$22:$BQ$68,AR$8,FALSE), NA()) -> 41 | AS11: =IF(OR(DD_new!$AN$2="ArabicA",DD_new!$AN$2="ArabicB",DD_new!$AN$2="English2",DD_new!$AN$2="Hindi"),NA(),IF(AND(INDIRECT(AS$19)>0,ISNUMBER(VLOOKUP($T11,IBTdb!$AF$22:$BQ$68,AS$8,FALSE))), VLOOKUP($T11,IBTdb!$AF$22:$BQ$68,AS$8,FALSE), NA())) -> 39 | AU11: =IF(AND(INDIRECT(AU$19)>0,ISNUMBER(VLOOKUP($T11,IBTdb!$AF$22:$BQ$68,AU$8,FALSE))), VLOOKUP($T11,IBTdb!$AF$22:$BQ$68,AU$8,FALSE), NA()) -> 32 | AV11: =IF(AND(INDIRECT(AV$19)>0,ISNUMBER(VLOOKUP($T11,IBTdb!$AF$22:$BQ$68,AV$8,FALSE))), VLOOKUP($T11,IBTdb!$AF$22:$BQ$68,AV$8,FALSE), NA()) -> 44 | AW11: =IF(OR(DD_new!$AN$2="ArabicA",DD_new!$AN$2="ArabicB",DD_new!$AN$2="English2",DD_new!$AN$2="Hindi"),NA(),IF(AND(INDIRECT(AW$19)>0,ISNUMBER(VLOOKUP($T11,IBTdb!$AF$22:$BQ$68,AW$8,FALSE))), VLOOKUP($T11,IBTdb!$AF$22:$BQ$68,AW$8,FALSE), NA())) -> 47 | AY11: =IF(AND(INDIRECT(AY$19)>0,ISNUMBER(VLOOKUP($T11,IBTdb!$AF$22:$BQ$68,AY$8,FALSE))), VLOOKUP($T11,IBTdb!$AF$22:$BQ$68,AY$8,FALSE), NA()) -> 38 | AZ11: =IF(AND(INDIRECT(AZ$19)>0,ISNUMBER(VLOOKUP($T11,IBTdb!$AF$22:$BQ$68,AZ$8,FALSE))), VLOOKUP($T11,IBTdb!$AF$22:$BQ$68,AZ$8,FALSE), NA()) -> 54 | BA11: =IF(OR(DD_new!$AN$2="ArabicA",DD_new!$AN$2="ArabicB",DD_new!$AN$2="English2",DD_new!$AN$2="Hindi"),NA(),IF(AND(INDIRECT(BA$19)>0,ISNUMBER(VLOOKUP($T11,IBTdb!$AF$22:$BQ$68,BA$8,FALSE))), VLOOKUP($T11,IBTdb!$AF$22:$BQ$68,BA$8,FALSE), NA())) -> 46 | BC11: =IF(AND(INDIRECT(BC$19)>0,ISNUMBER(VLOOKUP($T11,IBTdb!$AF$22:$BQ$68,BC$8,FALSE))), VLOOKUP($T11,IBTdb!$AF$22:$BQ$68,BC$8,FALSE), NA()) ->  | BD11: =IF(AND(INDIRECT(BD$19)>0,ISNUMBER(VLOOKUP($T11,IBTdb!$AF$22:$BQ$68,BD$8,FALSE))), VLOOKUP($T11,IBTdb!$AF$22:$BQ$68,BD$8,FALSE), NA()) ->  | BE11: =IF(OR(DD_new!$AN$2="ArabicA",DD_new!$AN$2="ArabicB",DD_new!$AN$2="English2",DD_new!$AN$2="Hindi"),NA(),IF(AND(INDIRECT(BE$19)>0,ISNUMBER(VLOOKUP($T11,IBTdb!$AF$22:$BQ$68,BE$8,FALSE))), VLOOKUP($T11,IBTdb!$AF$22:$BQ$68,BE$8,FALSE), NA())) ->  | BG11: =IF(AND(INDIRECT(BG$19)>0,ISNUMBER(VLOOKUP($T11,IBTdb!$AF$22:$BQ$68,BG$8,FALSE))), VLOOKUP($T11,IBTdb!$AF$22:$BQ$68,BG$8,FALSE), NA()) ->  | BH11: =IF(AND(INDIRECT(BH$19)>0,ISNUMBER(VLOOKUP($T11,IBTdb!$AF$22:$BQ$68,BH$8,FALSE))), VLOOKUP($T11,IBTdb!$AF$22:$BQ$68,BH$8,FALSE), NA()) ->  | BI11: =IF(OR(DD_new!$AN$2="ArabicA",DD_new!$AN$2="ArabicB",DD_new!$AN$2="English2",DD_new!$AN$2="Hindi"),NA(),IF(AND(INDIRECT(BI$19)>0,ISNUMBER(VLOOKUP($T11,IBTdb!$AF$22:$BQ$68,BI$8,FALSE))), VLOOKUP($T11,IBTdb!$AF$22:$BQ$68,BI$8,FALSE), NA())) ->  | BJ11: q3-med | BL11: =SUMIFS(DD_new!$BZ:$BZ,DD_new!$BT:$BT,IF(IBT_SchStats!$A$1="Math","Maths",IBT_SchStats!$A$1),DD_new!$BV:$BV,IBT_SchStats!$Q11,DD_new!$BW:$BW,DD!$B$3) -> 0
N12: =IFERROR(INDEX(P:P,SMALL(INDEX(NOT(ISNA($P$3:$P$15))*ROW($P$3:$P$15),0),COUNTIF($P$3:$P$15,NA())+ROW(P10))),"") ->  | O12: 12 | P12: =IF(ISNUMBER(INDIRECT("CLdb!"&$P$2&$O12-1)),INDIRECT("CLdb!"&$P$2&$O12-1),NA()) -> 10 | Q12: =IFERROR(INDEX(INDIRECT("$N$3:$N$12"),MATCH(0,COUNTIF($Q$2:Q11,INDIRECT("$N$3:$N$12")),0)),"") ->  | R12: =R11 -> 1 | S12: 4 | T12: =R12&"."&S12 -> 1.4 | W12: =IF(AND(INDIRECT(W$19)>0,ISNUMBER(VLOOKUP($T12,IBTdb!$AF$22:$BQ$68,W$8,FALSE))), VLOOKUP($T12,IBTdb!$AF$22:$BQ$68,W$8,FALSE), NA()) -> 42.84 | X12: =IF(AND(INDIRECT(X$19)>0,ISNUMBER(VLOOKUP($T12,IBTdb!$AF$22:$BQ$68,X$8,FALSE))), VLOOKUP($T12,IBTdb!$AF$22:$BQ$68,X$8,FALSE), NA()) -> 44.99 | Y12: =IF(OR(DD_new!$AN$2="ArabicA",DD_new!$AN$2="ArabicB",DD_new!$AN$2="English2",DD_new!$AN$2="Hindi"),NA(),IF(AND(INDIRECT(Y$19)>0,ISNUMBER(VLOOKUP($T12,IBTdb!$AF$22:$BQ$68,Y$8,FALSE))), VLOOKUP($T12,IBTdb!$AF$22:$BQ$68,Y$8,FALSE), NA())) -> 53.32 | AA12: =IF(AND(INDIRECT(AA$19)>0,ISNUMBER(VLOOKUP($T12,IBTdb!$AF$22:$BQ$68,AA$8,FALSE))), VLOOKUP($T12,IBTdb!$AF$22:$BQ$68,AA$8,FALSE), NA()) -> 46.48 | AB12: =IF(AND(INDIRECT(AB$19)>0,ISNUMBER(VLOOKUP($T12,IBTdb!$AF$22:$BQ$68,AB$8,FALSE))), VLOOKUP($T12,IBTdb!$AF$22:$BQ$68,AB$8,FALSE), NA()) -> 39.53 | AC12: =IF(OR(DD_new!$AN$2="ArabicA",DD_new!$AN$2="ArabicB",DD_new!$AN$2="English2",DD_new!$AN$2="Hindi"),NA(),IF(AND(INDIRECT(AC$19)>0,ISNUMBER(VLOOKUP($T12,IBTdb!$AF$22:$BQ$68,AC$8,FALSE))), VLOOKUP($T12,IBTdb!$AF$22:$BQ$68,AC$8,FALSE), NA())) -> 45.9 | AE12: =IF(AND(INDIRECT(AE$19)>0,ISNUMBER(VLOOKUP($T12,IBTdb!$AF$22:$BQ$68,AE$8,FALSE))), VLOOKUP($T12,IBTdb!$AF$22:$BQ$68,AE$8,FALSE), NA()) -> 52.56 | AF12: =IF(AND(INDIRECT(AF$19)>0,ISNUMBER(VLOOKUP($T12,IBTdb!$AF$22:$BQ$68,AF$8,FALSE))), VLOOKUP($T12,IBTdb!$AF$22:$BQ$68,AF$8,FALSE), NA()) -> 40.56 | AG12: =IF(OR(DD_new!$AN$2="ArabicA",DD_new!$AN$2="ArabicB",DD_new!$AN$2="English2",DD_new!$AN$2="Hindi"),NA(),IF(AND(INDIRECT(AG$19)>0,ISNUMBER(VLOOKUP($T12,IBTdb!$AF$22:$BQ$68,AG$8,FALSE))), VLOOKUP($T12,IBTdb!$AF$22:$BQ$68,AG$8,FALSE), NA())) -> 42.66 | AI12: =IF(AND(INDIRECT(AI$19)>0,ISNUMBER(VLOOKUP($T12,IBTdb!$AF$22:$BQ$68,AI$8,FALSE))), VLOOKUP($T12,IBTdb!$AF$22:$BQ$68,AI$8,FALSE), NA()) -> 35.48 | AJ12: =IF(AND(INDIRECT(AJ$19)>0,ISNUMBER(VLOOKUP($T12,IBTdb!$AF$22:$BQ$68,AJ$8,FALSE))), VLOOKUP($T12,IBTdb!$AF$22:$BQ$68,AJ$8,FALSE), NA()) -> 45.69 | AK12: =IF(OR(DD_new!$AN$2="ArabicA",DD_new!$AN$2="ArabicB",DD_new!$AN$2="English2",DD_new!$AN$2="Hindi"),NA(),IF(AND(INDIRECT(AK$19)>0,ISNUMBER(VLOOKUP($T12,IBTdb!$AF$22:$BQ$68,AK$8,FALSE))), VLOOKUP($T12,IBTdb!$AF$22:$BQ$68,AK$8,FALSE), NA())) -> 46.5 | AM12: =IF(AND(INDIRECT(AM$19)>0,ISNUMBER(VLOOKUP($T12,IBTdb!$AF$22:$BQ$68,AM$8,FALSE))), VLOOKUP($T12,IBTdb!$AF$22:$BQ$68,AM$8,FALSE), NA()) -> 33.96 | AN12: =IF(AND(INDIRECT(AN$19)>0,ISNUMBER(VLOOKUP($T12,IBTdb!$AF$22:$BQ$68,AN$8,FALSE))), VLOOKUP($T12,IBTdb!$AF$22:$BQ$68,AN$8,FALSE), NA()) -> 40.65 | AO12: =IF(OR(DD_new!$AN$2="ArabicA",DD_new!$AN$2="ArabicB",DD_new!$AN$2="English2",DD_new!$AN$2="Hindi"),NA(),IF(AND(INDIRECT(AO$19)>0,ISNUMBER(VLOOKUP($T12,IBTdb!$AF$22:$BQ$68,AO$8,FALSE))), VLOOKUP($T12,IBTdb!$AF$22:$BQ$68,AO$8,FALSE), NA())) -> 47.3 | AQ12: =IF(AND(INDIRECT(AQ$19)>0,ISNUMBER(VLOOKUP($T12,IBTdb!$AF$22:$BQ$68,AQ$8,FALSE))), VLOOKUP($T12,IBTdb!$AF$22:$BQ$68,AQ$8,FALSE), NA()) -> 30 | AR12: =IF(AND(INDIRECT(AR$19)>0,ISNUMBER(VLOOKUP($T12,IBTdb!$AF$22:$BQ$68,AR$8,FALSE))), VLOOKUP($T12,IBTdb!$AF$22:$BQ$68,AR$8,FALSE), NA()) -> 35 | AS12: =IF(OR(DD_new!$AN$2="ArabicA",DD_new!$AN$2="ArabicB",DD_new!$AN$2="English2",DD_new!$AN$2="Hindi"),NA(),IF(AND(INDIRECT(AS$19)>0,ISNUMBER(VLOOKUP($T12,IBTdb!$AF$22:$BQ$68,AS$8,FALSE))), VLOOKUP($T12,IBTdb!$AF$22:$BQ$68,AS$8,FALSE), NA())) -> 36 | AU12: =IF(AND(INDIRECT(AU$19)>0,ISNUMBER(VLOOKUP($T12,IBTdb!$AF$22:$BQ$68,AU$8,FALSE))), VLOOKUP($T12,IBTdb!$AF$22:$BQ$68,AU$8,FALSE), NA()) -> 24 | AV12: =IF(AND(INDIRECT(AV$19)>0,ISNUMBER(VLOOKUP($T12,IBTdb!$AF$22:$BQ$68,AV$8,FALSE))), VLOOKUP($T12,IBTdb!$AF$22:$BQ$68,AV$8,FALSE), NA()) -> 34 | AW12: =IF(OR(DD_new!$AN$2="ArabicA",DD_new!$AN$2="ArabicB",DD_new!$AN$2="English2",DD_new!$AN$2="Hindi"),NA(),IF(AND(INDIRECT(AW$19)>0,ISNUMBER(VLOOKUP($T12,IBTdb!$AF$22:$BQ$68,AW$8,FALSE))), VLOOKUP($T12,IBTdb!$AF$22:$BQ$68,AW$8,FALSE), NA())) -> 33 | AY12: =IF(AND(INDIRECT(AY$19)>0,ISNUMBER(VLOOKUP($T12,IBTdb!$AF$22:$BQ$68,AY$8,FALSE))), VLOOKUP($T12,IBTdb!$AF$22:$BQ$68,AY$8,FALSE), NA()) -> 44 | AZ12: =IF(AND(INDIRECT(AZ$19)>0,ISNUMBER(VLOOKUP($T12,IBTdb!$AF$22:$BQ$68,AZ$8,FALSE))), VLOOKUP($T12,IBTdb!$AF$22:$BQ$68,AZ$8,FALSE), NA()) -> 53 | BA12: =IF(OR(DD_new!$AN$2="ArabicA",DD_new!$AN$2="ArabicB",DD_new!$AN$2="English2",DD_new!$AN$2="Hindi"),NA(),IF(AND(INDIRECT(BA$19)>0,ISNUMBER(VLOOKUP($T12,IBTdb!$AF$22:$BQ$68,BA$8,FALSE))), VLOOKUP($T12,IBTdb!$AF$22:$BQ$68,BA$8,FALSE), NA())) -> 41 | BC12: =IF(AND(INDIRECT(BC$19)>0,ISNUMBER(VLOOKUP($T12,IBTdb!$AF$22:$BQ$68,BC$8,FALSE))), VLOOKUP($T12,IBTdb!$AF$22:$BQ$68,BC$8,FALSE), NA()) ->  | BD12: =IF(AND(INDIRECT(BD$19)>0,ISNUMBER(VLOOKUP($T12,IBTdb!$AF$22:$BQ$68,BD$8,FALSE))), VLOOKUP($T12,IBTdb!$AF$22:$BQ$68,BD$8,FALSE), NA()) ->  | BE12: =IF(OR(DD_new!$AN$2="ArabicA",DD_new!$AN$2="ArabicB",DD_new!$AN$2="English2",DD_new!$AN$2="Hindi"),NA(),IF(AND(INDIRECT(BE$19)>0,ISNUMBER(VLOOKUP($T12,IBTdb!$AF$22:$BQ$68,BE$8,FALSE))), VLOOKUP($T12,IBTdb!$AF$22:$BQ$68,BE$8,FALSE), NA())) ->  | BG12: =IF(AND(INDIRECT(BG$19)>0,ISNUMBER(VLOOKUP($T12,IBTdb!$AF$22:$BQ$68,BG$8,FALSE))), VLOOKUP($T12,IBTdb!$AF$22:$BQ$68,BG$8,FALSE), NA()) ->  | BH12: =IF(AND(INDIRECT(BH$19)>0,ISNUMBER(VLOOKUP($T12,IBTdb!$AF$22:$BQ$68,BH$8,FALSE))), VLOOKUP($T12,IBTdb!$AF$22:$BQ$68,BH$8,FALSE), NA()) ->  | BI12: =IF(OR(DD_new!$AN$2="ArabicA",DD_new!$AN$2="ArabicB",DD_new!$AN$2="English2",DD_new!$AN$2="Hindi"),NA(),IF(AND(INDIRECT(BI$19)>0,ISNUMBER(VLOOKUP($T12,IBTdb!$AF$22:$BQ$68,BI$8,FALSE))), VLOOKUP($T12,IBTdb!$AF$22:$BQ$68,BI$8,FALSE), NA())) ->  | BJ12: q1-min | BL12: =SUMIFS(DD_new!$BZ:$BZ,DD_new!$BT:$BT,IF(IBT_SchStats!$A$1="Math","Maths",IBT_SchStats!$A$1),DD_new!$BV:$BV,IBT_SchStats!$Q12,DD_new!$BW:$BW,DD!$B$3) -> 0
N13: =IFERROR(INDEX(P:P,SMALL(INDEX(NOT(ISNA($P$3:$P$15))*ROW($P$3:$P$15),0),COUNTIF($P$3:$P$15,NA())+ROW(P11))),"") ->  | O13: 13 | P13: =IF(ISNUMBER(INDIRECT("CLdb!"&$P$2&$O13-1)),INDIRECT("CLdb!"&$P$2&$O13-1),NA()) ->  | Q13: =IFERROR(INDEX(INDIRECT("$N$3:$N$12"),MATCH(0,COUNTIF($Q$2:Q12,INDIRECT("$N$3:$N$12")),0)),"") ->  | R13: =R12 -> 1 | S13: 5 | T13: =R13&"."&S13 -> 1.5 | W13: =IF(AND(INDIRECT(W$19)>0,ISNUMBER(VLOOKUP($T13,IBTdb!$AF$22:$BQ$68,W$8,FALSE))), VLOOKUP($T13,IBTdb!$AF$22:$BQ$68,W$8,FALSE), NA()) -> 22 | X13: =IF(AND(INDIRECT(X$19)>0,ISNUMBER(VLOOKUP($T13,IBTdb!$AF$22:$BQ$68,X$8,FALSE))), VLOOKUP($T13,IBTdb!$AF$22:$BQ$68,X$8,FALSE), NA()) -> 42 | Y13: =IF(OR(DD_new!$AN$2="ArabicA",DD_new!$AN$2="ArabicB",DD_new!$AN$2="English2",DD_new!$AN$2="Hindi"),NA(),IF(AND(INDIRECT(Y$19)>0,ISNUMBER(VLOOKUP($T13,IBTdb!$AF$22:$BQ$68,Y$8,FALSE))), VLOOKUP($T13,IBTdb!$AF$22:$BQ$68,Y$8,FALSE), NA())) -> 33 | AA13: =IF(AND(INDIRECT(AA$19)>0,ISNUMBER(VLOOKUP($T13,IBTdb!$AF$22:$BQ$68,AA$8,FALSE))), VLOOKUP($T13,IBTdb!$AF$22:$BQ$68,AA$8,FALSE), NA()) -> 46 | AB13: =IF(AND(INDIRECT(AB$19)>0,ISNUMBER(VLOOKUP($T13,IBTdb!$AF$22:$BQ$68,AB$8,FALSE))), VLOOKUP($T13,IBTdb!$AF$22:$BQ$68,AB$8,FALSE), NA()) -> 52 | AC13: =IF(OR(DD_new!$AN$2="ArabicA",DD_new!$AN$2="ArabicB",DD_new!$AN$2="English2",DD_new!$AN$2="Hindi"),NA(),IF(AND(INDIRECT(AC$19)>0,ISNUMBER(VLOOKUP($T13,IBTdb!$AF$22:$BQ$68,AC$8,FALSE))), VLOOKUP($T13,IBTdb!$AF$22:$BQ$68,AC$8,FALSE), NA())) -> 46 | AE13: =IF(AND(INDIRECT(AE$19)>0,ISNUMBER(VLOOKUP($T13,IBTdb!$AF$22:$BQ$68,AE$8,FALSE))), VLOOKUP($T13,IBTdb!$AF$22:$BQ$68,AE$8,FALSE), NA()) -> 68.5 | AF13: =IF(AND(INDIRECT(AF$19)>0,ISNUMBER(VLOOKUP($T13,IBTdb!$AF$22:$BQ$68,AF$8,FALSE))), VLOOKUP($T13,IBTdb!$AF$22:$BQ$68,AF$8,FALSE), NA()) -> 46 | AG13: =IF(OR(DD_new!$AN$2="ArabicA",DD_new!$AN$2="ArabicB",DD_new!$AN$2="English2",DD_new!$AN$2="Hindi"),NA(),IF(AND(INDIRECT(AG$19)>0,ISNUMBER(VLOOKUP($T13,IBTdb!$AF$22:$BQ$68,AG$8,FALSE))), VLOOKUP($T13,IBTdb!$AF$22:$BQ$68,AG$8,FALSE), NA())) -> 62 | AI13: =IF(AND(INDIRECT(AI$19)>0,ISNUMBER(VLOOKUP($T13,IBTdb!$AF$22:$BQ$68,AI$8,FALSE))), VLOOKUP($T13,IBTdb!$AF$22:$BQ$68,AI$8,FALSE), NA()) -> 41 | AJ13: =IF(AND(INDIRECT(AJ$19)>0,ISNUMBER(VLOOKUP($T13,IBTdb!$AF$22:$BQ$68,AJ$8,FALSE))), VLOOKUP($T13,IBTdb!$AF$22:$BQ$68,AJ$8,FALSE), NA()) -> 53 | AK13: =IF(OR(DD_new!$AN$2="ArabicA",DD_new!$AN$2="ArabicB",DD_new!$AN$2="English2",DD_new!$AN$2="Hindi"),NA(),IF(AND(INDIRECT(AK$19)>0,ISNUMBER(VLOOKUP($T13,IBTdb!$AF$22:$BQ$68,AK$8,FALSE))), VLOOKUP($T13,IBTdb!$AF$22:$BQ$68,AK$8,FALSE), NA())) -> 52 | AM13: =IF(AND(INDIRECT(AM$19)>0,ISNUMBER(VLOOKUP($T13,IBTdb!$AF$22:$BQ$68,AM$8,FALSE))), VLOOKUP($T13,IBTdb!$AF$22:$BQ$68,AM$8,FALSE), NA()) -> 52 | AN13: =IF(AND(INDIRECT(AN$19)>0,ISNUMBER(VLOOKUP($T13,IBTdb!$AF$22:$BQ$68,AN$8,FALSE))), VLOOKUP($T13,IBTdb!$AF$22:$BQ$68,AN$8,FALSE), NA()) -> 50 | AO13: =IF(OR(DD_new!$AN$2="ArabicA",DD_new!$AN$2="ArabicB",DD_new!$AN$2="English2",DD_new!$AN$2="Hindi"),NA(),IF(AND(INDIRECT(AO$19)>0,ISNUMBER(VLOOKUP($T13,IBTdb!$AF$22:$BQ$68,AO$8,FALSE))), VLOOKUP($T13,IBTdb!$AF$22:$BQ$68,AO$8,FALSE), NA())) -> 49 | AQ13: =IF(AND(INDIRECT(AQ$19)>0,ISNUMBER(VLOOKUP($T13,IBTdb!$AF$22:$BQ$68,AQ$8,FALSE))), VLOOKUP($T13,IBTdb!$AF$22:$BQ$68,AQ$8,FALSE), NA()) -> 57 | AR13: =IF(AND(INDIRECT(AR$19)>0,ISNUMBER(VLOOKUP($T13,IBTdb!$AF$22:$BQ$68,AR$8,FALSE))), VLOOKUP($T13,IBTdb!$AF$22:$BQ$68,AR$8,FALSE), NA()) -> 46 | AS13: =IF(OR(DD_new!$AN$2="ArabicA",DD_new!$AN$2="ArabicB",DD_new!$AN$2="English2",DD_new!$AN$2="Hindi"),NA(),IF(AND(INDIRECT(AS$19)>0,ISNUMBER(VLOOKUP($T13,IBTdb!$AF$22:$BQ$68,AS$8,FALSE))), VLOOKUP($T13,IBTdb!$AF$22:$BQ$68,AS$8,FALSE), NA())) -> 40 | AU13: =IF(AND(INDIRECT(AU$19)>0,ISNUMBER(VLOOKUP($T13,IBTdb!$AF$22:$BQ$68,AU$8,FALSE))), VLOOKUP($T13,IBTdb!$AF$22:$BQ$68,AU$8,FALSE), NA()) -> 29 | AV13: =IF(AND(INDIRECT(AV$19)>0,ISNUMBER(VLOOKUP($T13,IBTdb!$AF$22:$BQ$68,AV$8,FALSE))), VLOOKUP($T13,IBTdb!$AF$22:$BQ$68,AV$8,FALSE), NA()) -> 38 | AW13: =IF(OR(DD_new!$AN$2="ArabicA",DD_new!$AN$2="ArabicB",DD_new!$AN$2="English2",DD_new!$AN$2="Hindi"),NA(),IF(AND(INDIRECT(AW$19)>0,ISNUMBER(VLOOKUP($T13,IBTdb!$AF$22:$BQ$68,AW$8,FALSE))), VLOOKUP($T13,IBTdb!$AF$22:$BQ$68,AW$8,FALSE), NA())) -> 55 | AY13: =IF(AND(INDIRECT(AY$19)>0,ISNUMBER(VLOOKUP($T13,IBTdb!$AF$22:$BQ$68,AY$8,FALSE))), VLOOKUP($T13,IBTdb!$AF$22:$BQ$68,AY$8,FALSE), NA()) -> 58 | AZ13: =IF(AND(INDIRECT(AZ$19)>0,ISNUMBER(VLOOKUP($T13,IBTdb!$AF$22:$BQ$68,AZ$8,FALSE))), VLOOKUP($T13,IBTdb!$AF$22:$BQ$68,AZ$8,FALSE), NA()) -> 50 | BA13: =IF(OR(DD_new!$AN$2="ArabicA",DD_new!$AN$2="ArabicB",DD_new!$AN$2="English2",DD_new!$AN$2="Hindi"),NA(),IF(AND(INDIRECT(BA$19)>0,ISNUMBER(VLOOKUP($T13,IBTdb!$AF$22:$BQ$68,BA$8,FALSE))), VLOOKUP($T13,IBTdb!$AF$22:$BQ$68,BA$8,FALSE), NA())) -> 48 | BC13: =IF(AND(INDIRECT(BC$19)>0,ISNUMBER(VLOOKUP($T13,IBTdb!$AF$22:$BQ$68,BC$8,FALSE))), VLOOKUP($T13,IBTdb!$AF$22:$BQ$68,BC$8,FALSE), NA()) ->  | BD13: =IF(AND(INDIRECT(BD$19)>0,ISNUMBER(VLOOKUP($T13,IBTdb!$AF$22:$BQ$68,BD$8,FALSE))), VLOOKUP($T13,IBTdb!$AF$22:$BQ$68,BD$8,FALSE), NA()) ->  | BE13: =IF(OR(DD_new!$AN$2="ArabicA",DD_new!$AN$2="ArabicB",DD_new!$AN$2="English2",DD_new!$AN$2="Hindi"),NA(),IF(AND(INDIRECT(BE$19)>0,ISNUMBER(VLOOKUP($T13,IBTdb!$AF$22:$BQ$68,BE$8,FALSE))), VLOOKUP($T13,IBTdb!$AF$22:$BQ$68,BE$8,FALSE), NA())) ->  | BG13: =IF(AND(INDIRECT(BG$19)>0,ISNUMBER(VLOOKUP($T13,IBTdb!$AF$22:$BQ$68,BG$8,FALSE))), VLOOKUP($T13,IBTdb!$AF$22:$BQ$68,BG$8,FALSE), NA()) ->  | BH13: =IF(AND(INDIRECT(BH$19)>0,ISNUMBER(VLOOKUP($T13,IBTdb!$AF$22:$BQ$68,BH$8,FALSE))), VLOOKUP($T13,IBTdb!$AF$22:$BQ$68,BH$8,FALSE), NA()) ->  | BI13: =IF(OR(DD_new!$AN$2="ArabicA",DD_new!$AN$2="ArabicB",DD_new!$AN$2="English2",DD_new!$AN$2="Hindi"),NA(),IF(AND(INDIRECT(BI$19)>0,ISNUMBER(VLOOKUP($T13,IBTdb!$AF$22:$BQ$68,BI$8,FALSE))), VLOOKUP($T13,IBTdb!$AF$22:$BQ$68,BI$8,FALSE), NA())) ->  | BJ13: max-q3
C14: =IBTdb!W75&$BM$1 ->  | N14: =IFERROR(INDEX(P:P,SMALL(INDEX(NOT(ISNA($P$3:$P$15))*ROW($P$3:$P$15),0),COUNTIF($P$3:$P$15,NA())+ROW(P12))),"") ->  | O14: 14 | P14: =IF(ISNUMBER(INDIRECT("CLdb!"&$P$2&$O14-1)),INDIRECT("CLdb!"&$P$2&$O14-1),NA()) ->  | Q14: =IFERROR(INDEX(INDIRECT("$N$3:$N$12"),MATCH(0,COUNTIF($Q$2:Q13,INDIRECT("$N$3:$N$12")),0)),"") ->  | S14: col | T14: 9 | Y14: =IF(OR(DD_new!$AN$2="ArabicA",DD_new!$AN$2="ArabicB",DD_new!$AN$2="English2",DD_new!$AN$2="Hindi"), NA(), IF(VLOOKUP(X$17,$C$15:$L$26,$T14,0)="n/a*",NA(),VLOOKUP(X$17,$C$15:$L$26,$T14,0))) -> 420 | AC14: =IF(OR(DD_new!$AN$2="ArabicA",DD_new!$AN$2="ArabicB",DD_new!$AN$2="English2",DD_new!$AN$2="Hindi"), NA(), IF(VLOOKUP(AB$17,$C$15:$L$26,$T14,0)="n/a*",NA(),VLOOKUP(AB$17,$C$15:$L$26,$T14,0))) -> 450 | AG14: =IF(OR(DD_new!$AN$2="ArabicA",DD_new!$AN$2="ArabicB",DD_new!$AN$2="English2",DD_new!$AN$2="Hindi"), NA(), IF(VLOOKUP(AF$17,$C$15:$L$26,$T14,0)="n/a*",NA(),VLOOKUP(AF$17,$C$15:$L$26,$T14,0))) -> 487 | AK14: =IF(OR(DD_new!$AN$2="ArabicA",DD_new!$AN$2="ArabicB",DD_new!$AN$2="English2",DD_new!$AN$2="Hindi"), NA(), IF(VLOOKUP(AJ$17,$C$15:$L$26,$T14,0)="n/a*",NA(),VLOOKUP(AJ$17,$C$15:$L$26,$T14,0))) -> 525 | AO14: =IF(OR(DD_new!$AN$2="ArabicA",DD_new!$AN$2="ArabicB",DD_new!$AN$2="English2",DD_new!$AN$2="Hindi"), NA(), IF(VLOOKUP(AN$17,$C$15:$L$26,$T14,0)="n/a*",NA(),VLOOKUP(AN$17,$C$15:$L$26,$T14,0))) -> 537 | AS14: =IF(OR(DD_new!$AN$2="ArabicA",DD_new!$AN$2="ArabicB",DD_new!$AN$2="English2",DD_new!$AN$2="Hindi"), NA(), IF(VLOOKUP(AR$17,$C$15:$L$26,$T14,0)="n/a*",NA(),VLOOKUP(AR$17,$C$15:$L$26,$T14,0))) -> 571 | AW14: =IF(OR(DD_new!$AN$2="ArabicA",DD_new!$AN$2="ArabicB",DD_new!$AN$2="English2",DD_new!$AN$2="Hindi"), NA(), IF(VLOOKUP(AV$17,$C$15:$L$26,$T14,0)="n/a*",NA(),VLOOKUP(AV$17,$C$15:$L$26,$T14,0))) -> 590 | BA14: =IF(OR(DD_new!$AN$2="ArabicA",DD_new!$AN$2="ArabicB",DD_new!$AN$2="English2",DD_new!$AN$2="Hindi"), NA(), IF(VLOOKUP(AZ$17,$C$15:$L$26,$T14,0)="n/a*",NA(),VLOOKUP(AZ$17,$C$15:$L$26,$T14,0))) -> 610 | BE14: =IF(OR(DD_new!$AN$2="ArabicA",DD_new!$AN$2="ArabicB",DD_new!$AN$2="English2",DD_new!$AN$2="Hindi"), NA(), IF(VLOOKUP(BD$17,$C$15:$L$26,$T14,0)="n/a*",NA(),VLOOKUP(BD$17,$C$15:$L$26,$T14,0))) ->  | BI14: =IF(OR(DD_new!$AN$2="ArabicA",DD_new!$AN$2="ArabicB",DD_new!$AN$2="English2",DD_new!$AN$2="Hindi"), NA(), IF(VLOOKUP(BH$17,$C$15:$L$26,$T14,0)="n/a*",NA(),VLOOKUP(BH$17,$C$15:$L$26,$T14,0))) ->  | BJ14: =R1 -> Scale Score Means in All IBT Schools by Test Level
C15: =IF(DD_new!$AO$2="B","Test Level", "Grade") -> Grade | D15: =DD!B4 -> IBT_SAMPLESCHOOL | F15: International School of Bangkok | G15: ="All Schools in "&DD!B6 -> All Schools in MIDDLE EAST | J15: All IBT Schools | N15: =IFERROR(INDEX(P:P,SMALL(INDEX(NOT(ISNA($P$3:$P$15))*ROW($P$3:$P$15),0),COUNTIF($P$3:$P$15,NA())+ROW(P13))),"") ->  | O15: 15 | Q15: =IFERROR(INDEX(INDIRECT("$N$3:$N$12"),MATCH(0,COUNTIF($Q$2:Q14,INDIRECT("$N$3:$N$12")),0)),"") ->  | S15: =COUNT(W15:BI15) -> 8 | T15: 6 | X15: =IF(VLOOKUP(X$17,$C$15:$L$26,$T15,0)="n/a*",NA(),VLOOKUP(X$17,$C$15:$L$26,$T15,0)) -> 425 | AB15: =IF(VLOOKUP(AB$17,$C$15:$L$26,$T15,0)="n/a*",NA(),VLOOKUP(AB$17,$C$15:$L$26,$T15,0)) -> 453 | AF15: =IF(VLOOKUP(AF$17,$C$15:$L$26,$T15,0)="n/a*",NA(),VLOOKUP(AF$17,$C$15:$L$26,$T15,0)) -> 485 | AJ15: =IF(VLOOKUP(AJ$17,$C$15:$L$26,$T15,0)="n/a*",NA(),VLOOKUP(AJ$17,$C$15:$L$26,$T15,0)) -> 515 | AN15: =IF(VLOOKUP(AN$17,$C$15:$L$26,$T15,0)="n/a*",NA(),VLOOKUP(AN$17,$C$15:$L$26,$T15,0)) -> 538 | AR15: =IF(VLOOKUP(AR$17,$C$15:$L$26,$T15,0)="n/a*",NA(),VLOOKUP(AR$17,$C$15:$L$26,$T15,0)) -> 566 | AV15: =IF(VLOOKUP(AV$17,$C$15:$L$26,$T15,0)="n/a*",NA(),VLOOKUP(AV$17,$C$15:$L$26,$T15,0)) -> 576 | AZ15: =IF(VLOOKUP(AZ$17,$C$15:$L$26,$T15,0)="n/a*",NA(),VLOOKUP(AZ$17,$C$15:$L$26,$T15,0)) -> 620 | BD15: =IF(VLOOKUP(BD$17,$C$15:$L$26,$T15,0)="n/a*",NA(),VLOOKUP(BD$17,$C$15:$L$26,$T15,0)) ->  | BH15: =IF(VLOOKUP(BH$17,$C$15:$L$26,$T15,0)="n/a*",NA(),VLOOKUP(BH$17,$C$15:$L$26,$T15,0)) ->  | BJ15: =R2 -> Scale Score Means in All Schools in MIDDLE EAST by Test Level
D16: N | E16: Scale M | F16: Scale SD | G16: N | H16: Scale M | I16: Scale SD | J16: N | K16: Scale M | L16: Scale SD | T16: 3 | W16: =IF(VLOOKUP(X$17,$C$15:$L$26,$T16,0)="n/a*",NA(),VLOOKUP(X$17,$C$15:$L$26,$T16,0)) -> 447 | AA16: =IF(VLOOKUP(AB$17,$C$15:$L$26,$T16,0)="n/a*",NA(),VLOOKUP(AB$17,$C$15:$L$26,$T16,0)) -> 447 | AE16: =IF(VLOOKUP(AF$17,$C$15:$L$26,$T16,0)="n/a*",NA(),VLOOKUP(AF$17,$C$15:$L$26,$T16,0)) -> 509 | AI16: =IF(VLOOKUP(AJ$17,$C$15:$L$26,$T16,0)="n/a*",NA(),VLOOKUP(AJ$17,$C$15:$L$26,$T16,0)) -> 526 | AM16: =IF(VLOOKUP(AN$17,$C$15:$L$26,$T16,0)="n/a*",NA(),VLOOKUP(AN$17,$C$15:$L$26,$T16,0)) -> 553 | AQ16: =IF(VLOOKUP(AR$17,$C$15:$L$26,$T16,0)="n/a*",NA(),VLOOKUP(AR$17,$C$15:$L$26,$T16,0)) -> 564 | AU16: =IF(VLOOKUP(AV$17,$C$15:$L$26,$T16,0)="n/a*",NA(),VLOOKUP(AV$17,$C$15:$L$26,$T16,0)) -> 579 | AY16: =IF(VLOOKUP(AZ$17,$C$15:$L$26,$T16,0)="n/a*",NA(),VLOOKUP(AZ$17,$C$15:$L$26,$T16,0)) -> 604 | BC16: =IF(VLOOKUP(BD$17,$C$15:$L$26,$T16,0)="n/a*",NA(),VLOOKUP(BD$17,$C$15:$L$26,$T16,0)) ->  | BG16: =IF(VLOOKUP(BH$17,$C$15:$L$26,$T16,0)="n/a*",NA(),VLOOKUP(BH$17,$C$15:$L$26,$T16,0)) ->  | BJ16: =R4 -> IBT_SAMPLESCHOOL Scale Score Means by Grade Math
C17: =IF(ISNUMBER(Q3),IF(DD_new!$AO$2="B","Test Level ", "Grade ") &Q3,"") -> Grade 3 | D17: =IF(ISNUMBER($Q3),IF($BL3>=1,VLOOKUP($Q3,IBTdb!$S$58:$AB$69,4,0)+$BL3&"("&$BL3&")",VLOOKUP($Q3,IBTdb!$S$58:$AB$69,4,0)),"") -> 50 | E17: =IF(ISNUMBER($Q3),VLOOKUP($Q3,IBTdb!$S$58:$AB$69,6,0),"") -> 447 | F17: =IF(ISNUMBER($Q3),VLOOKUP($Q3,IBTdb!$S$58:$AB$69,8,0),"") -> 57 | G17: =IF(ISNUMBER($Q3),VLOOKUP($Q3,IBTdb!$S$45:$AB$56,4,0),"") -> 2198 | H17: =IF(ISNUMBER($Q3),VLOOKUP($Q3,IBTdb!$S$45:$AB$56,6,0),"") -> 425 | I17: =IF(ISNUMBER($Q3),VLOOKUP($Q3,IBTdb!$S$45:$AB$56,8,0),"") -> 69 | J17: =IF(ISNUMBER($Q3),VLOOKUP($Q3,IBTdb!$S$32:$AB$43,4,0),"") -> 10539 | K17: =IF(ISNUMBER($Q3),VLOOKUP($Q3,IBTdb!$S$32:$AB$43,6,0),"") -> 420 | L17: =IF(ISNUMBER($Q3),VLOOKUP($Q3,IBTdb!$S$32:$AB$43,8,0),"") -> 74 | X17: =IF(DD_new!$AO$2="B", "Test Level 1","Grade 3") -> Grade 3 | AB17: =IF(DD_new!$AO$2="B", "Test Level 2","Grade 4") -> Grade 4 | AF17: =IF(DD_new!$AO$2="B", "Test Level 3","Grade 5") -> Grade 5 | AJ17: =IF(DD_new!$AO$2="B", "","Grade 6") -> Grade 6 | AN17: =IF(DD_new!$AO$2="B", "","Grade 7") -> Grade 7 | AR17: =IF(DD_new!$AO$2="B", "","Grade 8") -> Grade 8 | AV17: =IF(DD_new!$AO$2="B", "","Grade 9") -> Grade 9 | AZ17: =IF(DD_new!$AO$2="B", "","Grade 10") -> Grade 10 | BD17: =IF(DD_new!$AO$2="B", "","Grade 11") -> Grade 11 | BH17: =IF(DD_new!$AO$2="B", "","Grade 12") -> Grade 12
C18: =IF(ISNUMBER(Q4),IF(DD_new!$AO$2="B","Test Level ", "Grade ") &Q4,"") -> Grade 4 | D18: =IF(ISNUMBER($Q4),IF($BL4>=1,VLOOKUP($Q4,IBTdb!$S$58:$AB$69,4,0)+$BL4&"("&$BL4&")",VLOOKUP($Q4,IBTdb!$S$58:$AB$69,4,0)),"") -> 50 | E18: =IF(ISNUMBER($Q4),VLOOKUP($Q4,IBTdb!$S$58:$AB$69,6,0),"") -> 447 | F18: =IF(ISNUMBER($Q4),VLOOKUP($Q4,IBTdb!$S$58:$AB$69,8,0),"") -> 70 | G18: =IF(ISNUMBER($Q4),VLOOKUP($Q4,IBTdb!$S$45:$AB$56,4,0),"") -> 2479 | H18: =IF(ISNUMBER($Q4),VLOOKUP($Q4,IBTdb!$S$45:$AB$56,6,0),"") -> 453 | I18: =IF(ISNUMBER($Q4),VLOOKUP($Q4,IBTdb!$S$45:$AB$56,8,0),"") -> 69 | J18: =IF(ISNUMBER($Q4),VLOOKUP($Q4,IBTdb!$S$32:$AB$43,4,0),"") -> 7882 | K18: =IF(ISNUMBER($Q4),VLOOKUP($Q4,IBTdb!$S$32:$AB$43,6,0),"") -> 450 | L18: =IF(ISNUMBER($Q4),VLOOKUP($Q4,IBTdb!$S$32:$AB$43,8,0),"") -> 76 | S18: Grade (This school =Grade) | W18: =RIGHT(X17,2)*1 -> 3 | X18: =IF($R$9=1,VLOOKUP(W18,CLdb!$UT$2:$UU$100,2,0),IF($R$9=2,VLOOKUP(W18,CLdb!$UR$2:$US$100,2,0),IF($R$9=3,VLOOKUP(W18,CLdb!$UV$2:$UW$100,2,0),IF($R$9=4,VLOOKUP(W18,CLdb!$UX$2:$UY$100,2,0),IF($R$9=5,VLOOKUP(W18,CLdb!$UZ$2:$VA$100,2,0),IF($R$9=6,VLOOKUP(W18,CLdb!$VB$2:$VC$100,2,0),IF($R$9=7,VLOOKUP(W18,CLdb!$VD$2:$VE$100,2,0),IF($R$9=8,VLOOKUP(W18,CLdb!$VF$2:$VG$100,2,0),"")))))))) -> 3 | Y18: =IF($R$9=1,VLOOKUP(W18,CLdb!$UT$2:$UU$100,2,0),IF($R$9=2,VLOOKUP(W18,CLdb!$UR$2:$US$100,2,0),IF($R$9=3,VLOOKUP(W18,CLdb!$UV$2:$UW$100,2,0),IF($R$9=4,VLOOKUP(W18,CLdb!$UX$2:$UY$100,2,0),IF($R$9=5,VLOOKUP(W18,CLdb!$UZ$2:$VA$100,2,0),IF($R$9=6,VLOOKUP(W18,CLdb!$VB$2:$VC$100,2,0),IF($R$9=7,VLOOKUP(W18,CLdb!$VD$2:$VE$100,2,0),IF($R$9=8,VLOOKUP(W18,CLdb!$VF$2:$VG$100,2,0),"")))))))) -> 3 | AA18: =RIGHT(AB17,2)*1 -> 4 | AB18: =IF($R$9=1,VLOOKUP(AA18,CLdb!$UT$2:$UU$100,2,0),IF($R$9=2,VLOOKUP(AA18,CLdb!$UR$2:$US$100,2,0),IF($R$9=3,VLOOKUP(AA18,CLdb!$UV$2:$UW$100,2,0),IF($R$9=4,VLOOKUP(AA18,CLdb!$UX$2:$UY$100,2,0),IF($R$9=5,VLOOKUP(AA18,CLdb!$UZ$2:$VA$100,2,0),IF($R$9=6,VLOOKUP(AA18,CLdb!$VB$2:$VC$100,2,0),IF($R$9=7,VLOOKUP(AA18,CLdb!$VD$2:$VE$100,2,0),IF($R$9=8,VLOOKUP(AA18,CLdb!$VF$2:$VG$100,2,0),"")))))))) -> 4 | AC18: =IF($R$9=1,VLOOKUP(AA18,CLdb!$UT$2:$UU$100,2,0),IF($R$9=2,VLOOKUP(AA18,CLdb!$UR$2:$US$100,2,0),IF($R$9=3,VLOOKUP(AA18,CLdb!$UV$2:$UW$100,2,0),IF($R$9=4,VLOOKUP(AA18,CLdb!$UX$2:$UY$100,2,0),IF($R$9=5,VLOOKUP(AA18,CLdb!$UZ$2:$VA$100,2,0),IF($R$9=6,VLOOKUP(AA18,CLdb!$VB$2:$VC$100,2,0),IF($R$9=7,VLOOKUP(AA18,CLdb!$VD$2:$VE$100,2,0),IF($R$9=8,VLOOKUP(AA18,CLdb!$VF$2:$VG$100,2,0),"")))))))) -> 4 | AE18: =RIGHT(AF17,2)*1 -> 5 | AF18: =IF($R$9=1,VLOOKUP(AE18,CLdb!$UT$2:$UU$100,2,0),IF($R$9=2,VLOOKUP(AE18,CLdb!$UR$2:$US$100,2,0),IF($R$9=3,VLOOKUP(AE18,CLdb!$UV$2:$UW$100,2,0),IF($R$9=4,VLOOKUP(AE18,CLdb!$UX$2:$UY$100,2,0),IF($R$9=5,VLOOKUP(AE18,CLdb!$UZ$2:$VA$100,2,0),IF($R$9=6,VLOOKUP(AE18,CLdb!$VB$2:$VC$100,2,0),IF($R$9=7,VLOOKUP(AE18,CLdb!$VD$2:$VE$100,2,0),IF($R$9=8,VLOOKUP(AE18,CLdb!$VF$2:$VG$100,2,0),"")))))))) -> 5 | AG18: =IF($R$9=1,VLOOKUP(AE18,CLdb!$UT$2:$UU$100,2,0),IF($R$9=2,VLOOKUP(AE18,CLdb!$UR$2:$US$100,2,0),IF($R$9=3,VLOOKUP(AE18,CLdb!$UV$2:$UW$100,2,0),IF($R$9=4,VLOOKUP(AE18,CLdb!$UX$2:$UY$100,2,0),IF($R$9=5,VLOOKUP(AE18,CLdb!$UZ$2:$VA$100,2,0),IF($R$9=6,VLOOKUP(AE18,CLdb!$VB$2:$VC$100,2,0),IF($R$9=7,VLOOKUP(AE18,CLdb!$VD$2:$VE$100,2,0),IF($R$9=8,VLOOKUP(AE18,CLdb!$VF$2:$VG$100,2,0),"")))))))) -> 5 | AI18: =RIGHT(AJ17,2)*1 -> 6 | AJ18: =IF($R$9=1,VLOOKUP(AI18,CLdb!$UT$2:$UU$100,2,0),IF($R$9=2,VLOOKUP(AI18,CLdb!$UR$2:$US$100,2,0),IF($R$9=3,VLOOKUP(AI18,CLdb!$UV$2:$UW$100,2,0),IF($R$9=4,VLOOKUP(AI18,CLdb!$UX$2:$UY$100,2,0),IF($R$9=5,VLOOKUP(AI18,CLdb!$UZ$2:$VA$100,2,0),IF($R$9=6,VLOOKUP(AI18,CLdb!$VB$2:$VC$100,2,0),IF($R$9=7,VLOOKUP(AI18,CLdb!$VD$2:$VE$100,2,0),IF($R$9=8,VLOOKUP(AI18,CLdb!$VF$2:$VG$100,2,0),"")))))))) -> 6 | AK18: =IF($R$9=1,VLOOKUP(AI18,CLdb!$UT$2:$UU$100,2,0),IF($R$9=2,VLOOKUP(AI18,CLdb!$UR$2:$US$100,2,0),IF($R$9=3,VLOOKUP(AI18,CLdb!$UV$2:$UW$100,2,0),IF($R$9=4,VLOOKUP(AI18,CLdb!$UX$2:$UY$100,2,0),IF($R$9=5,VLOOKUP(AI18,CLdb!$UZ$2:$VA$100,2,0),IF($R$9=6,VLOOKUP(AI18,CLdb!$VB$2:$VC$100,2,0),IF($R$9=7,VLOOKUP(AI18,CLdb!$VD$2:$VE$100,2,0),IF($R$9=8,VLOOKUP(AI18,CLdb!$VF$2:$VG$100,2,0),"")))))))) -> 6 | AM18: =RIGHT(AN17,2)*1 -> 7 | AN18: =IF($R$9=1,VLOOKUP(AM18,CLdb!$UT$2:$UU$100,2,0),IF($R$9=2,VLOOKUP(AM18,CLdb!$UR$2:$US$100,2,0),IF($R$9=3,VLOOKUP(AM18,CLdb!$UV$2:$UW$100,2,0),IF($R$9=4,VLOOKUP(AM18,CLdb!$UX$2:$UY$100,2,0),IF($R$9=5,VLOOKUP(AM18,CLdb!$UZ$2:$VA$100,2,0),IF($R$9=6,VLOOKUP(AM18,CLdb!$VB$2:$VC$100,2,0),IF($R$9=7,VLOOKUP(AM18,CLdb!$VD$2:$VE$100,2,0),IF($R$9=8,VLOOKUP(AM18,CLdb!$VF$2:$VG$100,2,0),"")))))))) -> 7 | AO18: =IF($R$9=1,VLOOKUP(AM18,CLdb!$UT$2:$UU$100,2,0),IF($R$9=2,VLOOKUP(AM18,CLdb!$UR$2:$US$100,2,0),IF($R$9=3,VLOOKUP(AM18,CLdb!$UV$2:$UW$100,2,0),IF($R$9=4,VLOOKUP(AM18,CLdb!$UX$2:$UY$100,2,0),IF($R$9=5,VLOOKUP(AM18,CLdb!$UZ$2:$VA$100,2,0),IF($R$9=6,VLOOKUP(AM18,CLdb!$VB$2:$VC$100,2,0),IF($R$9=7,VLOOKUP(AM18,CLdb!$VD$2:$VE$100,2,0),IF($R$9=8,VLOOKUP(AM18,CLdb!$VF$2:$VG$100,2,0),"")))))))) -> 7 | AQ18: =RIGHT(AR17,2)*1 -> 8 | AR18: =IF($R$9=1,VLOOKUP(AQ18,CLdb!$UT$2:$UU$100,2,0),IF($R$9=2,VLOOKUP(AQ18,CLdb!$UR$2:$US$100,2,0),IF($R$9=3,VLOOKUP(AQ18,CLdb!$UV$2:$UW$100,2,0),IF($R$9=4,VLOOKUP(AQ18,CLdb!$UX$2:$UY$100,2,0),IF($R$9=5,VLOOKUP(AQ18,CLdb!$UZ$2:$VA$100,2,0),IF($R$9=6,VLOOKUP(AQ18,CLdb!$VB$2:$VC$100,2,0),IF($R$9=7,VLOOKUP(AQ18,CLdb!$VD$2:$VE$100,2,0),IF($R$9=8,VLOOKUP(AQ18,CLdb!$VF$2:$VG$100,2,0),"")))))))) -> 8 | AS18: =IF($R$9=1,VLOOKUP(AQ18,CLdb!$UT$2:$UU$100,2,0),IF($R$9=2,VLOOKUP(AQ18,CLdb!$UR$2:$US$100,2,0),IF($R$9=3,VLOOKUP(AQ18,CLdb!$UV$2:$UW$100,2,0),IF($R$9=4,VLOOKUP(AQ18,CLdb!$UX$2:$UY$100,2,0),IF($R$9=5,VLOOKUP(AQ18,CLdb!$UZ$2:$VA$100,2,0),IF($R$9=6,VLOOKUP(AQ18,CLdb!$VB$2:$VC$100,2,0),IF($R$9=7,VLOOKUP(AQ18,CLdb!$VD$2:$VE$100,2,0),IF($R$9=8,VLOOKUP(AQ18,CLdb!$VF$2:$VG$100,2,0),"")))))))) -> 8 | AU18: =RIGHT(AV17,2)*1 -> 9 | AV18: =IF($R$9=1,VLOOKUP(AU18,CLdb!$UT$2:$UU$100,2,0),IF($R$9=2,VLOOKUP(AU18,CLdb!$UR$2:$US$100,2,0),IF($R$9=3,VLOOKUP(AU18,CLdb!$UV$2:$UW$100,2,0),IF($R$9=4,VLOOKUP(AU18,CLdb!$UX$2:$UY$100,2,0),IF($R$9=5,VLOOKUP(AU18,CLdb!$UZ$2:$VA$100,2,0),IF($R$9=6,VLOOKUP(AU18,CLdb!$VB$2:$VC$100,2,0),IF($R$9=7,VLOOKUP(AU18,CLdb!$VD$2:$VE$100,2,0),IF($R$9=8,VLOOKUP(AU18,CLdb!$VF$2:$VG$100,2,0),"")))))))) -> 9 | AW18: =IF($R$9=1,VLOOKUP(AU18,CLdb!$UT$2:$UU$100,2,0),IF($R$9=2,VLOOKUP(AU18,CLdb!$UR$2:$US$100,2,0),IF($R$9=3,VLOOKUP(AU18,CLdb!$UV$2:$UW$100,2,0),IF($R$9=4,VLOOKUP(AU18,CLdb!$UX$2:$UY$100,2,0),IF($R$9=5,VLOOKUP(AU18,CLdb!$UZ$2:$VA$100,2,0),IF($R$9=6,VLOOKUP(AU18,CLdb!$VB$2:$VC$100,2,0),IF($R$9=7,VLOOKUP(AU18,CLdb!$VD$2:$VE$100,2,0),IF($R$9=8,VLOOKUP(AU18,CLdb!$VF$2:$VG$100,2,0),"")))))))) -> 9 | AY18: =RIGHT(AZ17,2)*1 -> 10 | AZ18: =IF($R$9=1,VLOOKUP(AY18,CLdb!$UT$2:$UU$100,2,0),IF($R$9=2,VLOOKUP(AY18,CLdb!$UR$2:$US$100,2,0),IF($R$9=3,VLOOKUP(AY18,CLdb!$UV$2:$UW$100,2,0),IF($R$9=4,VLOOKUP(AY18,CLdb!$UX$2:$UY$100,2,0),IF($R$9=5,VLOOKUP(AY18,CLdb!$UZ$2:$VA$100,2,0),IF($R$9=6,VLOOKUP(AY18,CLdb!$VB$2:$VC$100,2,0),IF($R$9=7,VLOOKUP(AY18,CLdb!$VD$2:$VE$100,2,0),IF($R$9=8,VLOOKUP(AY18,CLdb!$VF$2:$VG$100,2,0),"")))))))) -> 10 | BA18: =IF($R$9=1,VLOOKUP(AY18,CLdb!$UT$2:$UU$100,2,0),IF($R$9=2,VLOOKUP(AY18,CLdb!$UR$2:$US$100,2,0),IF($R$9=3,VLOOKUP(AY18,CLdb!$UV$2:$UW$100,2,0),IF($R$9=4,VLOOKUP(AY18,CLdb!$UX$2:$UY$100,2,0),IF($R$9=5,VLOOKUP(AY18,CLdb!$UZ$2:$VA$100,2,0),IF($R$9=6,VLOOKUP(AY18,CLdb!$VB$2:$VC$100,2,0),IF($R$9=7,VLOOKUP(AY18,CLdb!$VD$2:$VE$100,2,0),IF($R$9=8,VLOOKUP(AY18,CLdb!$VF$2:$VG$100,2,0),"")))))))) -> 10 | BC18: =RIGHT(BD17,2)*1 -> 11 | BD18: =IF($R$9=1,VLOOKUP(BC18,CLdb!$UT$2:$UU$100,2,0),IF($R$9=2,VLOOKUP(BC18,CLdb!$UR$2:$US$100,2,0),IF($R$9=3,VLOOKUP(BC18,CLdb!$UV$2:$UW$100,2,0),IF($R$9=4,VLOOKUP(BC18,CLdb!$UX$2:$UY$100,2,0),IF($R$9=5,VLOOKUP(BC18,CLdb!$UZ$2:$VA$100,2,0),IF($R$9=6,VLOOKUP(BC18,CLdb!$VB$2:$VC$100,2,0),IF($R$9=7,VLOOKUP(BC18,CLdb!$VD$2:$VE$100,2,0),IF($R$9=8,VLOOKUP(BC18,CLdb!$VF$2:$VG$100,2,0),"")))))))) ->  | BE18: =IF($R$9=1,VLOOKUP(BC18,CLdb!$UT$2:$UU$100,2,0),IF($R$9=2,VLOOKUP(BC18,CLdb!$UR$2:$US$100,2,0),IF($R$9=3,VLOOKUP(BC18,CLdb!$UV$2:$UW$100,2,0),IF($R$9=4,VLOOKUP(BC18,CLdb!$UX$2:$UY$100,2,0),IF($R$9=5,VLOOKUP(BC18,CLdb!$UZ$2:$VA$100,2,0),IF($R$9=6,VLOOKUP(BC18,CLdb!$VB$2:$VC$100,2,0),IF($R$9=7,VLOOKUP(BC18,CLdb!$VD$2:$VE$100,2,0),IF($R$9=8,VLOOKUP(BC18,CLdb!$VF$2:$VG$100,2,0),"")))))))) ->  | BG18: =RIGHT(BH17,2)*1 -> 12 | BH18: =IF($R$9=1,VLOOKUP(BG18,CLdb!$UT$2:$UU$100,2,0),IF($R$9=2,VLOOKUP(BG18,CLdb!$UR$2:$US$100,2,0),IF($R$9=3,VLOOKUP(BG18,CLdb!$UV$2:$UW$100,2,0),IF($R$9=4,VLOOKUP(BG18,CLdb!$UX$2:$UY$100,2,0),IF($R$9=5,VLOOKUP(BG18,CLdb!$UZ$2:$VA$100,2,0),IF($R$9=6,VLOOKUP(BG18,CLdb!$VB$2:$VC$100,2,0),IF($R$9=7,VLOOKUP(BG18,CLdb!$VD$2:$VE$100,2,0),IF($R$9=8,VLOOKUP(BG18,CLdb!$VF$2:$VG$100,2,0),"")))))))) ->  | BI18: =IF($R$9=1,VLOOKUP(BG18,CLdb!$UT$2:$UU$100,2,0),IF($R$9=2,VLOOKUP(BG18,CLdb!$UR$2:$US$100,2,0),IF($R$9=3,VLOOKUP(BG18,CLdb!$UV$2:$UW$100,2,0),IF($R$9=4,VLOOKUP(BG18,CLdb!$UX$2:$UY$100,2,0),IF($R$9=5,VLOOKUP(BG18,CLdb!$UZ$2:$VA$100,2,0),IF($R$9=6,VLOOKUP(BG18,CLdb!$VB$2:$VC$100,2,0),IF($R$9=7,VLOOKUP(BG18,CLdb!$VD$2:$VE$100,2,0),IF($R$9=8,VLOOKUP(BG18,CLdb!$VF$2:$VG$100,2,0),"")))))))) -> 
C19: =IF(ISNUMBER(Q5),IF(DD_new!$AO$2="B","Test Level ", "Grade ") &Q5,"") -> Grade 5 | D19: =IF(ISNUMBER($Q5),IF($BL5>=1,VLOOKUP($Q5,IBTdb!$S$58:$AB$69,4,0)+$BL5&"("&$BL5&")",VLOOKUP($Q5,IBTdb!$S$58:$AB$69,4,0)),"") -> 50 | E19: =IF(ISNUMBER($Q5),VLOOKUP($Q5,IBTdb!$S$58:$AB$69,6,0),"") -> 509 | F19: =IF(ISNUMBER($Q5),VLOOKUP($Q5,IBTdb!$S$58:$AB$69,8,0),"") -> 77 | G19: =IF(ISNUMBER($Q5),VLOOKUP($Q5,IBTdb!$S$45:$AB$56,4,0),"") -> 2079 | H19: =IF(ISNUMBER($Q5),VLOOKUP($Q5,IBTdb!$S$45:$AB$56,6,0),"") -> 485 | I19: =IF(ISNUMBER($Q5),VLOOKUP($Q5,IBTdb!$S$45:$AB$56,8,0),"") -> 66 | J19: =IF(ISNUMBER($Q5),VLOOKUP($Q5,IBTdb!$S$32:$AB$43,4,0),"") -> 6967 | K19: =IF(ISNUMBER($Q5),VLOOKUP($Q5,IBTdb!$S$32:$AB$43,6,0),"") -> 487 | L19: =IF(ISNUMBER($Q5),VLOOKUP($Q5,IBTdb!$S$32:$AB$43,8,0),"") -> 76 | R19: =IF(DD!E2="Math", "Mathematics IBT Scale", DD!E2& " IBT Scale") -> Mathematics IBT Scale | W19: ="D"&(16+INT(W20/3)) -> D17 | X19: ="D"&(16+INT(X20/3)) -> D17 | Y19: D17 | AA19: ="D"&(16+INT(AA20/3)) -> D18 | AB19: ="D"&(16+INT(AB20/3)) -> D18 | AC19: ="D"&(16+INT(AC20/3)) -> D18 | AE19: ="D"&(16+INT(AE20/3)) -> D19 | AF19: ="D"&(16+INT(AF20/3)) -> D19 | AG19: ="D"&(16+INT(AG20/3)) -> D19 | AI19: ="D"&(16+INT(AI20/3)) -> D20 | AJ19: ="D"&(16+INT(AJ20/3)) -> D20 | AK19: ="D"&(16+INT(AK20/3)) -> D20 | AM19: ="D"&(16+INT(AM20/3)) -> D21 | AN19: ="D"&(16+INT(AN20/3)) -> D21 | AO19: ="D"&(16+INT(AO20/3)) -> D21 | AQ19: ="D"&(16+INT(AQ20/3)) -> D22 | AR19: ="D"&(16+INT(AR20/3)) -> D22 | AS19: ="D"&(16+INT(AS20/3)) -> D22 | AU19: ="D"&(16+INT(AU20/3)) -> D23 | AV19: ="D"&(16+INT(AV20/3)) -> D23 | AW19: ="D"&(16+INT(AW20/3)) -> D23 | AY19: ="D"&(16+INT(AY20/3)) -> D24 | AZ19: ="D"&(16+INT(AZ20/3)) -> D24 | BA19: ="D"&(16+INT(BA20/3)) -> D24 | BC19: ="D"&(16+INT(BC20/3)) -> D25 | BD19: ="D"&(16+INT(BD20/3)) -> D25 | BE19: ="D"&(16+INT(BE20/3)) -> D25 | BG19: ="D"&(16+INT(BG20/3)) -> D26 | BH19: ="D"&(16+INT(BH20/3)) -> D26 | BI19: ="D"&(16+INT(BI20/3)) -> D26
C20: =IF(ISNUMBER(Q6),IF(DD_new!$AO$2="B","Test Level ", "Grade ") &Q6,"") -> Grade 6 | D20: =IF(ISNUMBER($Q6),IF($BL6>=1,VLOOKUP($Q6,IBTdb!$S$58:$AB$69,4,0)+$BL6&"("&$BL6&")",VLOOKUP($Q6,IBTdb!$S$58:$AB$69,4,0)),"") -> 50 | E20: =IF(ISNUMBER($Q6),VLOOKUP($Q6,IBTdb!$S$58:$AB$69,6,0),"") -> 526 | F20: =IF(ISNUMBER($Q6),VLOOKUP($Q6,IBTdb!$S$58:$AB$69,8,0),"") -> 70 | G20: =IF(ISNUMBER($Q6),VLOOKUP($Q6,IBTdb!$S$45:$AB$56,4,0),"") -> 1975 | H20: =IF(ISNUMBER($Q6),VLOOKUP($Q6,IBTdb!$S$45:$AB$56,6,0),"") -> 515 | I20: =IF(ISNUMBER($Q6),VLOOKUP($Q6,IBTdb!$S$45:$AB$56,8,0),"") -> 74 | J20: =IF(ISNUMBER($Q6),VLOOKUP($Q6,IBTdb!$S$32:$AB$43,4,0),"") -> 8125 | K20: =IF(ISNUMBER($Q6),VLOOKUP($Q6,IBTdb!$S$32:$AB$43,6,0),"") -> 525 | L20: =IF(ISNUMBER($Q6),VLOOKUP($Q6,IBTdb!$S$32:$AB$43,8,0),"") -> 77 | W20: 3 | X20: 4 | Y20: 5 | AA20: 6 | AB20: 7 | AC20: 8 | AE20: 9 | AF20: 10 | AG20: 11 | AI20: 12 | AJ20: 13 | AK20: 14 | AM20: 15 | AN20: 16 | AO20: 17 | AQ20: 18 | AR20: 19 | AS20: 20 | AU20: 21 | AV20: 22 | AW20: 23 | AY20: 24 | AZ20: 25 | BA20: 26 | BC20: 27 | BD20: 28 | BE20: 29 | BG20: 30 | BH20: 31 | BI20: 32
C21: =IF(ISNUMBER(Q7),IF(DD_new!$AO$2="B","Test Level ", "Grade ") &Q7,"") -> Grade 7 | D21: =IF(ISNUMBER($Q7),IF($BL7>=1,VLOOKUP($Q7,IBTdb!$S$58:$AB$69,4,0)+$BL7&"("&$BL7&")",VLOOKUP($Q7,IBTdb!$S$58:$AB$69,4,0)),"") -> 50 | E21: =IF(ISNUMBER($Q7),VLOOKUP($Q7,IBTdb!$S$58:$AB$69,6,0),"") -> 553 | F21: =IF(ISNUMBER($Q7),VLOOKUP($Q7,IBTdb!$S$58:$AB$69,8,0),"") -> 61 | G21: =IF(ISNUMBER($Q7),VLOOKUP($Q7,IBTdb!$S$45:$AB$56,4,0),"") -> 1705 | H21: =IF(ISNUMBER($Q7),VLOOKUP($Q7,IBTdb!$S$45:$AB$56,6,0),"") -> 538 | I21: =IF(ISNUMBER($Q7),VLOOKUP($Q7,IBTdb!$S$45:$AB$56,8,0),"") -> 67 | J21: =IF(ISNUMBER($Q7),VLOOKUP($Q7,IBTdb!$S$32:$AB$43,4,0),"") -> 5210 | K21: =IF(ISNUMBER($Q7),VLOOKUP($Q7,IBTdb!$S$32:$AB$43,6,0),"") -> 537 | L21: =IF(ISNUMBER($Q7),VLOOKUP($Q7,IBTdb!$S$32:$AB$43,8,0),"") -> 73 | X21: =IF(ISNUMBER(W16),X17,"") -> Grade 3 | AB21: =IF(ISNUMBER(AA16),AB17,"") -> Grade 4 | AF21: =IF(ISNUMBER(AE16),AF17,"") -> Grade 5 | AJ21: =IF(ISNUMBER(AI16),AJ17,"") -> Grade 6 | AN21: =IF(ISNUMBER(AM16),AN17,"") -> Grade 7 | AR21: =IF(ISNUMBER(AQ16),AR17,"") -> Grade 8 | AV21: =IF(ISNUMBER(AU16),AV17,"") -> Grade 9 | AZ21: =IF(ISNUMBER(AY16),AZ17,"") -> Grade 10 | BD21: =IF(ISNUMBER(BC16),BD17,"") ->  | BH21: =IF(ISNUMBER(BG16),BH17,"") -> 
C22: =IF(ISNUMBER(Q8),IF(DD_new!$AO$2="B","Test Level ", "Grade ") &Q8,"") -> Grade 8 | D22: =IF(ISNUMBER($Q8),IF($BL8>=1,VLOOKUP($Q8,IBTdb!$S$58:$AB$69,4,0)+$BL8&"("&$BL8&")",VLOOKUP($Q8,IBTdb!$S$58:$AB$69,4,0)),"") -> 50 | E22: =IF(ISNUMBER($Q8),VLOOKUP($Q8,IBTdb!$S$58:$AB$69,6,0),"") -> 564 | F22: =IF(ISNUMBER($Q8),VLOOKUP($Q8,IBTdb!$S$58:$AB$69,8,0),"") -> 63 | G22: =IF(ISNUMBER($Q8),VLOOKUP($Q8,IBTdb!$S$45:$AB$56,4,0),"") -> 1283 | H22: =IF(ISNUMBER($Q8),VLOOKUP($Q8,IBTdb!$S$45:$AB$56,6,0),"") -> 566 | I22: =IF(ISNUMBER($Q8),VLOOKUP($Q8,IBTdb!$S$45:$AB$56,8,0),"") -> 63 | J22: =IF(ISNUMBER($Q8),VLOOKUP($Q8,IBTdb!$S$32:$AB$43,4,0),"") -> 5680 | K22: =IF(ISNUMBER($Q8),VLOOKUP($Q8,IBTdb!$S$32:$AB$43,6,0),"") -> 571 | L22: =IF(ISNUMBER($Q8),VLOOKUP($Q8,IBTdb!$S$32:$AB$43,8,0),"") -> 61 | X22: =IF(ISERROR(VLOOKUP(X17,$C$17:$C$26,1,0)),"",VLOOKUP(X17,$C$17:$C$26,1,0)) -> Grade 3 | AB22: =IF(ISERROR(VLOOKUP(AB17,$C$17:$C$26,1,0)),"",VLOOKUP(AB17,$C$17:$C$26,1,0)) -> Grade 4 | AF22: =IF(ISERROR(VLOOKUP(AF17,$C$17:$C$26,1,0)),"",VLOOKUP(AF17,$C$17:$C$26,1,0)) -> Grade 5 | AJ22: =IF(ISERROR(VLOOKUP(AJ17,$C$17:$C$26,1,0)),"",VLOOKUP(AJ17,$C$17:$C$26,1,0)) -> Grade 6 | AN22: =IF(ISERROR(VLOOKUP(AN17,$C$17:$C$26,1,0)),"",VLOOKUP(AN17,$C$17:$C$26,1,0)) -> Grade 7 | AR22: =IF(ISERROR(VLOOKUP(AR17,$C$17:$C$26,1,0)),"",VLOOKUP(AR17,$C$17:$C$26,1,0)) -> Grade 8 | AV22: =IF(ISERROR(VLOOKUP(AV17,$C$17:$C$26,1,0)),"",VLOOKUP(AV17,$C$17:$C$26,1,0)) -> Grade 9 | AZ22: =IF(ISERROR(VLOOKUP(AZ17,$C$17:$C$26,1,0)),"",VLOOKUP(AZ17,$C$17:$C$26,1,0)) -> Grade 10 | BD22: =IF(ISERROR(VLOOKUP(BD17,$C$17:$C$26,1,0)),"",VLOOKUP(BD17,$C$17:$C$26,1,0)) ->  | BH22: =IF(ISERROR(VLOOKUP(BH17,$C$17:$C$26,1,0)),"",VLOOKUP(BH17,$C$17:$C$26,1,0)) -> 
C23: =IF(ISNUMBER(Q9),IF(DD_new!$AO$2="B","Test Level ", "Grade ") &Q9,"") -> Grade 9 | D23: =IF(ISNUMBER($Q9),IF($BL9>=1,VLOOKUP($Q9,IBTdb!$S$58:$AB$69,4,0)+$BL9&"("&$BL9&")",VLOOKUP($Q9,IBTdb!$S$58:$AB$69,4,0)),"") -> 50 | E23: =IF(ISNUMBER($Q9),VLOOKUP($Q9,IBTdb!$S$58:$AB$69,6,0),"") -> 579 | F23: =IF(ISNUMBER($Q9),VLOOKUP($Q9,IBTdb!$S$58:$AB$69,8,0),"") -> 65 | G23: =IF(ISNUMBER($Q9),VLOOKUP($Q9,IBTdb!$S$45:$AB$56,4,0),"") -> 1229 | H23: =IF(ISNUMBER($Q9),VLOOKUP($Q9,IBTdb!$S$45:$AB$56,6,0),"") -> 576 | I23: =IF(ISNUMBER($Q9),VLOOKUP($Q9,IBTdb!$S$45:$AB$56,8,0),"") -> 61 | J23: =IF(ISNUMBER($Q9),VLOOKUP($Q9,IBTdb!$S$32:$AB$43,4,0),"") -> 6042 | K23: =IF(ISNUMBER($Q9),VLOOKUP($Q9,IBTdb!$S$32:$AB$43,6,0),"") -> 590 | L23: =IF(ISNUMBER($Q9),VLOOKUP($Q9,IBTdb!$S$32:$AB$43,8,0),"") -> 63 | P23: =COUNT(P3:P15) -> 8
C24: =IF(ISNUMBER(Q10),IF(DD_new!$AO$2="B","Test Level ", "Grade ") &Q10,"") -> Grade 10 | D24: =IF(ISNUMBER($Q10),IF($BL10>=1,VLOOKUP($Q10,IBTdb!$S$58:$AB$69,4,0)+$BL10&"("&$BL10&")",VLOOKUP($Q10,IBTdb!$S$58:$AB$69,4,0)),"") -> 50 | E24: =IF(ISNUMBER($Q10),VLOOKUP($Q10,IBTdb!$S$58:$AB$69,6,0),"") -> 604 | F24: =IF(ISNUMBER($Q10),VLOOKUP($Q10,IBTdb!$S$58:$AB$69,8,0),"") -> 74 | G24: =IF(ISNUMBER($Q10),VLOOKUP($Q10,IBTdb!$S$45:$AB$56,4,0),"") -> 762 | H24: =IF(ISNUMBER($Q10),VLOOKUP($Q10,IBTdb!$S$45:$AB$56,6,0),"") -> 620 | I24: =IF(ISNUMBER($Q10),VLOOKUP($Q10,IBTdb!$S$45:$AB$56,8,0),"") -> 78 | J24: =IF(ISNUMBER($Q10),VLOOKUP($Q10,IBTdb!$S$32:$AB$43,4,0),"") -> 3199 | K24: =IF(ISNUMBER($Q10),VLOOKUP($Q10,IBTdb!$S$32:$AB$43,6,0),"") -> 610 | L24: =IF(ISNUMBER($Q10),VLOOKUP($Q10,IBTdb!$S$32:$AB$43,8,0),"") -> 64 | U24: 1 | V24: 2 | W24: 3 | X24: 4 | Y24: 5 | Z24: 6 | AA24: 7 | AB24: 8 | AC24: 9 | AD24: 10 | AE24: 11 | AF24: 12 | AG24: 13 | AH24: 14 | AI24: 15 | AJ24: 16 | AK24: 17 | AL24: 18 | AM24: 19 | AN24: 20 | AO24: 21 | AP24: 22 | AQ24: 23 | AR24: 24 | AS24: 25 | AT24: 26 | AU24: 27 | AV24: 28 | AW24: 29 | AX24: 30 | AY24: 31 | AZ24: 32 | BA24: 33 | BB24: 34 | BC24: 35 | BD24: 36 | BE24: 37 | BF24: 38 | BG24: 39 | BH24: 40 | BI24: 41
C25: =IF(ISNUMBER(Q11),IF(DD_new!$AO$2="B","Test Level ", "Grade ") &Q11,"") ->  | D25: =IF(ISNUMBER($Q11),IF($BL11>=1,VLOOKUP($Q11,IBTdb!$S$58:$AB$69,4,0)+$BL11&"("&$BL11&")",VLOOKUP($Q11,IBTdb!$S$58:$AB$69,4,0)),"") ->  | E25: =IF(ISNUMBER($Q11),VLOOKUP($Q11,IBTdb!$S$58:$AB$69,6,0),"") ->  | F25: =IF(ISNUMBER($Q11),VLOOKUP($Q11,IBTdb!$S$58:$AB$69,8,0),"") ->  | G25: =IF(ISNUMBER($Q11),VLOOKUP($Q11,IBTdb!$S$45:$AB$56,4,0),"") ->  | H25: =IF(ISNUMBER($Q11),VLOOKUP($Q11,IBTdb!$S$45:$AB$56,6,0),"") ->  | I25: =IF(ISNUMBER($Q11),VLOOKUP($Q11,IBTdb!$S$45:$AB$56,8,0),"") ->  | J25: =IF(ISNUMBER($Q11),VLOOKUP($Q11,IBTdb!$S$32:$AB$43,4,0),"") ->  | K25: =IF(ISNUMBER($Q11),VLOOKUP($Q11,IBTdb!$S$32:$AB$43,6,0),"") ->  | L25: =IF(ISNUMBER($Q11),VLOOKUP($Q11,IBTdb!$S$32:$AB$43,8,0),"") ->  | W25: S | X25: C | Y25: I | AA25: S | AB25: C | AC25: I | AE25: S | AF25: C | AG25: I | AI25: S | AJ25: C | AK25: I | AM25: S | AN25: C | AO25: I | AQ25: S | AR25: C | AS25: I | AU25: S | AV25: C | AW25: I | AY25: S | AZ25: C | BA25: I | BC25: S | BD25: C | BE25: I | BG25: S | BH25: C | BI25: I
C26: =IF(ISNUMBER(Q12),IF(DD_new!$AO$2="B","Test Level ", "Grade ") &Q12,"") ->  | D26: =IF(ISNUMBER($Q12),IF($BL12>=1,VLOOKUP($Q12,IBTdb!$S$58:$AB$69,4,0)+$BL12&"("&$BL12&")",VLOOKUP($Q12,IBTdb!$S$58:$AB$69,4,0)),"") ->  | E26: =IF(ISNUMBER($Q12),VLOOKUP($Q12,IBTdb!$S$58:$AB$69,6,0),"") ->  | F26: =IF(ISNUMBER($Q12),VLOOKUP($Q12,IBTdb!$S$58:$AB$69,8,0),"") ->  | G26: =IF(ISNUMBER($Q12),VLOOKUP($Q12,IBTdb!$S$45:$AB$56,4,0),"") ->  | H26: =IF(ISNUMBER($Q12),VLOOKUP($Q12,IBTdb!$S$45:$AB$56,6,0),"") ->  | I26: =IF(ISNUMBER($Q12),VLOOKUP($Q12,IBTdb!$S$45:$AB$56,8,0),"") ->  | J26: =IF(ISNUMBER($Q12),VLOOKUP($Q12,IBTdb!$S$32:$AB$43,4,0),"") ->  | K26: =IF(ISNUMBER($Q12),VLOOKUP($Q12,IBTdb!$S$32:$AB$43,6,0),"") ->  | L26: =IF(ISNUMBER($Q12),VLOOKUP($Q12,IBTdb!$S$32:$AB$43,8,0),"") -> 
W27: S | X27: C | Y27: I
U28: 3 | V28: 1 | W28: =4*(V28)-1 -> 3 | X28: =4*(V28) -> 4 | Y28: =4*(V28)+1 -> 5
U29: 4 | V29: 2 | W29: =4*(V29)-1 -> 7 | X29: =4*(V29) -> 8 | Y29: =4*(V29)+1 -> 9
U30: 5 | V30: 3 | W30: 11 | X30: 12 | Y30: 13
U31: 6 | V31: 4 | W31: 15 | X31: 16 | Y31: 17
U32: 7 | V32: 5 | W32: 19 | X32: 20 | Y32: 21
U33: 8 | V33: 6 | W33: 23 | X33: 24 | Y33: 25
U34: 9 | V34: 7 | W34: 27 | X34: 28 | Y34: 29
U35: 10 | V35: 8 | W35: 31 | X35: 32 | Y35: 33
U36: 11 | V36: 9 | W36: 35 | X36: 36 | Y36: 37
U37: 12 | V37: 10 | W37: 39 | X37: 40 | Y37: 41
T41: Series | U41: row | V41: Start_col | W41: start_col | X41: end_col
T42: 1 | U42: 9 | V42: U | W42: 21 | X42: =W42+$S$15*4 -> 53 | Z42: =IF(DD_new!AM2=4,26,21) -> 21
T43: 2 | U43: 10 | V43: =$V$42 -> U | Z43: =IF(DD_new!AM2=4,"Z","U") -> U
T44: 3 | U44: 11 | V44: =$V$42 -> U
T45: 4 | U45: 12 | V45: U
T46: 5 | U46: 13 | V46: U
T47: 6 | U47: 16 | V47: U
T48: 7 | U48: 15 | V48: U
T49: 8 | U49: 14 | V49: U
T50: X-Label | U50: 22 | V50: U

Sheet IBT_SchStats_Gender
A1: =DD_new!$BB$2 -> Math | O1: =IF(DD_new!$BC$2="B","Test Level","Grade") -> Grade | R1: Scale Score Means in All IBT Schools by Test Level
C2: SCHOOL STATISTICS BY GENDER | O2: Grade_col | P2: =IF(DD_new!BB2="Math","UT",IF(DD_new!BB2="English","UR",IF(DD_new!BB2="Science","UV",IF(DD_new!BB2="ArabicA","UX",IF(DD_new!BB2="ArabicB","UZ",IF(DD_new!BB2="Reasoning","VB",IF(DD_new!BB2="English2","VD",IF(DD_new!BB2="Hindi","VF","")))))))) -> UT | Q2: Re-arranged (get the unique value of the array) | R2: ="Scale Score Means in "&IBT_SchStats_Gender!H15&" by Test Level" -> Scale Score Means in All Schools in MIDDLE EAST by Test Level | AA2: ="Scale Score Means in "&DD!B4&" by Grade" -> Scale Score Means in IBT_SAMPLESCHOOL by Grade
N3: =IFERROR(INDEX(P:P,SMALL(INDEX(NOT(ISNA($P$3:$P$15))*ROW($P$3:$P$15),0),COUNTIF($P$3:$P$15,NA())+ROW(P1))),"") -> 3 | O3: 3 | P3: =IF(ISNUMBER(INDIRECT("CLdb!"&$P$2&$O3-1)),INDIRECT("CLdb!"&$P$2&$O3-1),NA()) ->  | Q3: =IFERROR(INDEX(INDIRECT("$N$3:$N$12"),MATCH(0,COUNTIF($Q$2:Q2,INDIRECT("$N$3:$N$12")),0)),"") -> 3
C4: Subject: | N4: =IFERROR(INDEX(P:P,SMALL(INDEX(NOT(ISNA($P$3:$P$15))*ROW($P$3:$P$15),0),COUNTIF($P$3:$P$15,NA())+ROW(P2))),"") -> 4 | O4: 4 | Q4: =IFERROR(INDEX(INDIRECT("$N$3:$N$12"),MATCH(0,COUNTIF($Q$2:Q3,INDIRECT("$N$3:$N$12")),0)),"") -> 4 | R4: =DD!B5&CHAR(10)&" Scale Score Means" & " by "& IF(DD_new!$BC$2="B","Test Level","Grade") & " by Gender"&CHAR(10)&DD_new!$BB$2 -> IBT_SAMPLESCHOOL Scale Score Means by Grade by Gender Math
N5: 5 | O5: 5 | P5: 3 | Q5: =IFERROR(INDEX(INDIRECT("$N$3:$N$12"),MATCH(0,COUNTIF($Q$2:Q4,INDIRECT("$N$3:$N$12")),0)),"") -> 5 | R5: All IBT Schools: middle 50% of Scale Scores
N6: 6 | O6: 6 | P6: 4 | Q6: =IFERROR(INDEX(INDIRECT("$N$3:$N$12"),MATCH(0,COUNTIF($Q$2:Q5,INDIRECT("$N$3:$N$12")),0)),"") -> 6 | R6: =DD!$B$6& ": middle 50% of Scale Scores" -> MIDDLE EAST: middle 50% of Scale Scores
N7: 7 | O7: 7 | P7: 5 | Q7: =IFERROR(INDEX(INDIRECT("$N$3:$N$12"),MATCH(0,COUNTIF($Q$2:Q6,INDIRECT("$N$3:$N$12")),0)),"") -> 7 | R7: =DD!$B$5&": middle 50% of Scale Scores" -> IBT_SAMPLESCHOOL: middle 50% of Scale Scores
N8: 8 | O8: 8 | P8: 6 | Q8: =IFERROR(INDEX(INDIRECT("$N$3:$N$12"),MATCH(0,COUNTIF($Q$2:Q7,INDIRECT("$N$3:$N$12")),0)),"") -> 8 | W8: =(6*W21-3) -> 15 | X8: =(6*X21-3)+1 -> 16 | Y8: =(6*Y21-3)+2 -> 17 | Z8: =(6*Z21-3)+3 -> 18 | AA8: =(6*AA21-3)+4 -> 19 | AB8: =(6*AB21-3)+5 -> 20 | AD8: =(6*AD21-3) -> 21 | AE8: =(6*AE21-3)+1 -> 22 | AF8: =(6*AF21-3)+2 -> 23 | AG8: =(6*AG21-3)+3 -> 24 | AH8: =(6*AH21-3)+4 -> 25 | AI8: =(6*AI21-3)+5 -> 26 | AK8: =(6*AK21-3) -> 27 | AL8: =(6*AL21-3)+1 -> 28 | AM8: =(6*AM21-3)+2 -> 29 | AN8: =(6*AN21-3)+3 -> 30 | AO8: =(6*AO21-3)+4 -> 31 | AP8: =(6*AP21-3)+5 -> 32 | AR8: =(6*AR21-3) -> 33 | AS8: =(6*AS21-3)+1 -> 34 | AT8: =(6*AT21-3)+2 -> 35 | AU8: =(6*AU21-3)+3 -> 36 | AV8: =(6*AV21-3)+4 -> 37 | AW8: =(6*AW21-3)+5 -> 38 | AY8: =(6*AY21-3) -> 39 | AZ8: =(6*AZ21-3)+1 -> 40 | BA8: =(6*BA21-3)+2 -> 41 | BB8: =(6*BB21-3)+3 -> 42 | BC8: =(6*BC21-3)+4 -> 43 | BD8: =(6*BD21-3)+5 -> 44 | BF8: =(6*BF21-3) -> 45 | BG8: =(6*BG21-3)+1 -> 46 | BH8: =(6*BH21-3)+2 -> 47 | BI8: =(6*BI21-3)+3 -> 48 | BJ8: =(6*BJ21-3)+4 -> 49 | BK8: =(6*BK21-3)+5 -> 50 | BM8: =(6*BM21-3) -> 51 | BN8: =(6*BN21-3)+1 -> 52 | BO8: =(6*BO21-3)+2 -> 53 | BP8: =(6*BP21-3)+3 -> 54 | BQ8: =(6*BQ21-3)+4 -> 55 | BR8: =(6*BR21-3)+5 -> 56 | BT8: =(6*BT21-3) -> 57 | BU8: =(6*BU21-3)+1 -> 58 | BV8: =(6*BV21-3)+2 -> 59 | BW8: =(6*BW21-3)+3 -> 60 | BX8: =(6*BX21-3)+4 -> 61 | BY8: =(6*BY21-3)+5 -> 62 | CA8: =(6*CA21-3) -> 63 | CB8: =(6*CB21-3)+1 -> 64 | CC8: =(6*CC21-3)+2 ->  | CD8: =(6*CD21-3)+3 ->  | CE8: =(6*CE21-3)+4 ->  | CF8: =(6*CF21-3)+5 ->  | CH8: =(6*CH21-3) -> 69 | CI8: =(6*CI21-3)+1 -> 70 | CJ8: =(6*CJ21-3)+2 ->  | CK8: =(6*CK21-3)+3 ->  | CL8: =(6*CL21-3)+4 ->  | CM8: =(6*CM21-3)+5 -> 
N9: 9 | O9: 9 | P9: 7 | Q9: =IFERROR(INDEX(INDIRECT("$N$3:$N$12"),MATCH(0,COUNTIF($Q$2:Q8,INDIRECT("$N$3:$N$12")),0)),"") -> 9 | R9: =DD_new!$BD$2 -> 1 | S9: 1 | T9: =R9&"."&S9 -> 1.1 | W9: =IF(AND(INDIRECT(W$22)>0,ISNUMBER(VLOOKUP($T9,Gender!$C$3:$BX$50,W$8,FALSE))), VLOOKUP($T9,Gender!$C$3:$BX$50,W$8,FALSE), NA()) -> 352 | X9: =IF(AND(INDIRECT(X$22)>0,ISNUMBER(VLOOKUP($T9,Gender!$C$3:$BX$50,X$8,FALSE))), VLOOKUP($T9,Gender!$C$3:$BX$50,X$8,FALSE), NA()) -> 389 | Y9: =IF(AND(INDIRECT(Y$22)>0,ISNUMBER(VLOOKUP($T9,Gender!$C$3:$BX$50,Y$8,FALSE))), VLOOKUP($T9,Gender!$C$3:$BX$50,Y$8,FALSE), NA()) -> 343 | Z9: =IF(AND(INDIRECT(Z$22)>0,ISNUMBER(VLOOKUP($T9,Gender!$C$3:$BX$50,Z$8,FALSE))), VLOOKUP($T9,Gender!$C$3:$BX$50,Z$8,FALSE), NA()) -> 343 | AA9: =IF(OR(DD_new!$BC$2="A",DD_new!$BC$2="B",DD_new!$BC$2="Y"),NA(),IF(AND(INDIRECT(AA$22)>0,ISNUMBER(VLOOKUP($T9,Gender!$C$3:$BX$50,AA$8,FALSE))), VLOOKUP($T9,Gender!$C$3:$BX$50,AA$8,FALSE), NA())) -> 331 | AB9: =IF(OR(DD_new!$BC$2="A",DD_new!$BC$2="B",DD_new!$BC$2="Y"),NA(),IF(AND(INDIRECT(AB$22)>0,ISNUMBER(VLOOKUP($T9,Gender!$C$3:$BX$50,AB$8,FALSE))), VLOOKUP($T9,Gender!$C$3:$BX$50,AB$8,FALSE), NA())) -> 322 | AD9: =IF(AND(INDIRECT(AD$22)>0,ISNUMBER(VLOOKUP($T9,Gender!$C$3:$BX$50,AD$8,FALSE))), VLOOKUP($T9,Gender!$C$3:$BX$50,AD$8,FALSE), NA()) -> 373 | AE9: =IF(AND(INDIRECT(AE$22)>0,ISNUMBER(VLOOKUP($T9,Gender!$C$3:$BX$50,AE$8,FALSE))), VLOOKUP($T9,Gender!$C$3:$BX$50,AE$8,FALSE), NA()) -> 354 | AF9: =IF(AND(INDIRECT(AF$22)>0,ISNUMBER(VLOOKUP($T9,Gender!$C$3:$BX$50,AF$8,FALSE))), VLOOKUP($T9,Gender!$C$3:$BX$50,AF$8,FALSE), NA()) -> 373 | AG9: =IF(AND(INDIRECT(AG$22)>0,ISNUMBER(VLOOKUP($T9,Gender!$C$3:$BX$50,AG$8,FALSE))), VLOOKUP($T9,Gender!$C$3:$BX$50,AG$8,FALSE), NA()) -> 364 | AH9: =IF(OR(DD_new!$BC$2="A",DD_new!$BC$2="B",DD_new!$BC$2="Y"),NA(),IF(AND(INDIRECT(AH$22)>0,ISNUMBER(VLOOKUP($T9,Gender!$C$3:$BX$50,AH$8,FALSE))), VLOOKUP($T9,Gender!$C$3:$BX$50,AH$8,FALSE), NA())) -> 355 | AI9: =IF(OR(DD_new!$BC$2="A",DD_new!$BC$2="B",DD_new!$BC$2="Y"),NA(),IF(AND(INDIRECT(AI$22)>0,ISNUMBER(VLOOKUP($T9,Gender!$C$3:$BX$50,AI$8,FALSE))), VLOOKUP($T9,Gender!$C$3:$BX$50,AI$8,FALSE), NA())) -> 355 | AK9: =IF(AND(INDIRECT(AK$22)>0,ISNUMBER(VLOOKUP($T9,Gender!$C$3:$BX$50,AK$8,FALSE))), VLOOKUP($T9,Gender!$C$3:$BX$50,AK$8,FALSE), NA()) -> 429 | AL9: =IF(AND(INDIRECT(AL$22)>0,ISNUMBER(VLOOKUP($T9,Gender!$C$3:$BX$50,AL$8,FALSE))), VLOOKUP($T9,Gender!$C$3:$BX$50,AL$8,FALSE), NA()) -> 392 | AM9: =IF(AND(INDIRECT(AM$22)>0,ISNUMBER(VLOOKUP($T9,Gender!$C$3:$BX$50,AM$8,FALSE))), VLOOKUP($T9,Gender!$C$3:$BX$50,AM$8,FALSE), NA()) -> 402 | AN9: =IF(AND(INDIRECT(AN$22)>0,ISNUMBER(VLOOKUP($T9,Gender!$C$3:$BX$50,AN$8,FALSE))), VLOOKUP($T9,Gender!$C$3:$BX$50,AN$8,FALSE), NA()) -> 411 | AO9: =IF(OR(DD_new!$BC$2="A",DD_new!$BC$2="B",DD_new!$BC$2="Y"),NA(),IF(AND(INDIRECT(AO$22)>0,ISNUMBER(VLOOKUP($T9,Gender!$C$3:$BX$50,AO$8,FALSE))), VLOOKUP($T9,Gender!$C$3:$BX$50,AO$8,FALSE), NA())) -> 392 | AP9: =IF(OR(DD_new!$BC$2="A",DD_new!$BC$2="B",DD_new!$BC$2="Y"),NA(),IF(AND(INDIRECT(AP$22)>0,ISNUMBER(VLOOKUP($T9,Gender!$C$3:$BX$50,AP$8,FALSE))), VLOOKUP($T9,Gender!$C$3:$BX$50,AP$8,FALSE), NA())) -> 392 | AR9: =IF(AND(INDIRECT(AR$22)>0,ISNUMBER(VLOOKUP($T9,Gender!$C$3:$BX$50,AR$8,FALSE))), VLOOKUP($T9,Gender!$C$3:$BX$50,AR$8,FALSE), NA()) -> 455 | AS9: =IF(AND(INDIRECT(AS$22)>0,ISNUMBER(VLOOKUP($T9,Gender!$C$3:$BX$50,AS$8,FALSE))), VLOOKUP($T9,Gender!$C$3:$BX$50,AS$8,FALSE), NA()) -> 419 | AT9: =IF(AND(INDIRECT(AT$22)>0,ISNUMBER(VLOOKUP($T9,Gender!$C$3:$BX$50,AT$8,FALSE))), VLOOKUP($T9,Gender!$C$3:$BX$50,AT$8,FALSE), NA()) -> 419 | AU9: =IF(AND(INDIRECT(AU$22)>0,ISNUMBER(VLOOKUP($T9,Gender!$C$3:$BX$50,AU$8,FALSE))), VLOOKUP($T9,Gender!$C$3:$BX$50,AU$8,FALSE), NA()) -> 429 | AV9: =IF(OR(DD_new!$BC$2="A",DD_new!$BC$2="B",DD_new!$BC$2="Y"),NA(),IF(AND(INDIRECT(AV$22)>0,ISNUMBER(VLOOKUP($T9,Gender!$C$3:$BX$50,AV$8,FALSE))), VLOOKUP($T9,Gender!$C$3:$BX$50,AV$8,FALSE), NA())) -> 440 | AW9: =IF(OR(DD_new!$BC$2="A",DD_new!$BC$2="B",DD_new!$BC$2="Y"),NA(),IF(AND(INDIRECT(AW$22)>0,ISNUMBER(VLOOKUP($T9,Gender!$C$3:$BX$50,AW$8,FALSE))), VLOOKUP($T9,Gender!$C$3:$BX$50,AW$8,FALSE), NA())) -> 431 | AY9: =IF(AND(INDIRECT(AY$22)>0,ISNUMBER(VLOOKUP($T9,Gender!$C$3:$BX$50,AY$8,FALSE))), VLOOKUP($T9,Gender!$C$3:$BX$50,AY$8,FALSE), NA()) -> 479 | AZ9: =IF(AND(INDIRECT(AZ$22)>0,ISNUMBER(VLOOKUP($T9,Gender!$C$3:$BX$50,AZ$8,FALSE))), VLOOKUP($T9,Gender!$C$3:$BX$50,AZ$8,FALSE), NA()) -> 487 | BA9: =IF(AND(INDIRECT(BA$22)>0,ISNUMBER(VLOOKUP($T9,Gender!$C$3:$BX$50,BA$8,FALSE))), VLOOKUP($T9,Gender!$C$3:$BX$50,BA$8,FALSE), NA()) -> 454 | BB9: =IF(AND(INDIRECT(BB$22)>0,ISNUMBER(VLOOKUP($T9,Gender!$C$3:$BX$50,BB$8,FALSE))), VLOOKUP($T9,Gender!$C$3:$BX$50,BB$8,FALSE), NA()) -> 454 | BC9: =IF(OR(DD_new!$BC$2="A",DD_new!$BC$2="B",DD_new!$BC$2="Y"),NA(),IF(AND(INDIRECT(BC$22)>0,ISNUMBER(VLOOKUP($T9,Gender!$C$3:$BX$50,BC$8,FALSE))), VLOOKUP($T9,Gender!$C$3:$BX$50,BC$8,FALSE), NA())) -> 456 | BD9: =IF(OR(DD_new!$BC$2="A",DD_new!$BC$2="B",DD_new!$BC$2="Y"),NA(),IF(AND(INDIRECT(BD$22)>0,ISNUMBER(VLOOKUP($T9,Gender!$C$3:$BX$50,BD$8,FALSE))), VLOOKUP($T9,Gender!$C$3:$BX$50,BD$8,FALSE), NA())) -> 448 | BF9: =IF(AND(INDIRECT(BF$22)>0,ISNUMBER(VLOOKUP($T9,Gender!$C$3:$BX$50,BF$8,FALSE))), VLOOKUP($T9,Gender!$C$3:$BX$50,BF$8,FALSE), NA()) -> 475 | BG9: =IF(AND(INDIRECT(BG$22)>0,ISNUMBER(VLOOKUP($T9,Gender!$C$3:$BX$50,BG$8,FALSE))), VLOOKUP($T9,Gender!$C$3:$BX$50,BG$8,FALSE), NA()) -> 510 | BH9: =IF(AND(INDIRECT(BH$22)>0,ISNUMBER(VLOOKUP($T9,Gender!$C$3:$BX$50,BH$8,FALSE))), VLOOKUP($T9,Gender!$C$3:$BX$50,BH$8,FALSE), NA()) -> 493 | BI9: =IF(AND(INDIRECT(BI$22)>0,ISNUMBER(VLOOKUP($T9,Gender!$C$3:$BX$50,BI$8,FALSE))), VLOOKUP($T9,Gender!$C$3:$BX$50,BI$8,FALSE), NA()) -> 493 | BJ9: =IF(OR(DD_new!$BC$2="A",DD_new!$BC$2="B",DD_new!$BC$2="Y"),NA(),IF(AND(INDIRECT(BJ$22)>0,ISNUMBER(VLOOKUP($T9,Gender!$C$3:$BX$50,BJ$8,FALSE))), VLOOKUP($T9,Gender!$C$3:$BX$50,BJ$8,FALSE), NA())) -> 499 | BK9: =IF(OR(DD_new!$BC$2="A",DD_new!$BC$2="B",DD_new!$BC$2="Y"),NA(),IF(AND(INDIRECT(BK$22)>0,ISNUMBER(VLOOKUP($T9,Gender!$C$3:$BX$50,BK$8,FALSE))), VLOOKUP($T9,Gender!$C$3:$BX$50,BK$8,FALSE), NA())) -> 499 | BM9: =IF(AND(INDIRECT(BM$22)>0,ISNUMBER(VLOOKUP($T9,Gender!$C$3:$BX$50,BM$8,FALSE))), VLOOKUP($T9,Gender!$C$3:$BX$50,BM$8,FALSE), NA()) -> 499 | BN9: =IF(AND(INDIRECT(BN$22)>0,ISNUMBER(VLOOKUP($T9,Gender!$C$3:$BX$50,BN$8,FALSE))), VLOOKUP($T9,Gender!$C$3:$BX$50,BN$8,FALSE), NA()) -> 516 | BO9: =IF(AND(INDIRECT(BO$22)>0,ISNUMBER(VLOOKUP($T9,Gender!$C$3:$BX$50,BO$8,FALSE))), VLOOKUP($T9,Gender!$C$3:$BX$50,BO$8,FALSE), NA()) -> 507 | BP9: =IF(AND(INDIRECT(BP$22)>0,ISNUMBER(VLOOKUP($T9,Gender!$C$3:$BX$50,BP$8,FALSE))), VLOOKUP($T9,Gender!$C$3:$BX$50,BP$8,FALSE), NA()) -> 499 | BQ9: =IF(OR(DD_new!$BC$2="A",DD_new!$BC$2="B",DD_new!$BC$2="Y"),NA(),IF(AND(INDIRECT(BQ$22)>0,ISNUMBER(VLOOKUP($T9,Gender!$C$3:$BX$50,BQ$8,FALSE))), VLOOKUP($T9,Gender!$C$3:$BX$50,BQ$8,FALSE), NA())) -> 518 | BR9: =IF(OR(DD_new!$BC$2="A",DD_new!$BC$2="B",DD_new!$BC$2="Y"),NA(),IF(AND(INDIRECT(BR$22)>0,ISNUMBER(VLOOKUP($T9,Gender!$C$3:$BX$50,BR$8,FALSE))), VLOOKUP($T9,Gender!$C$3:$BX$50,BR$8,FALSE), NA())) -> 518 | BT9: =IF(AND(INDIRECT(BT$22)>0,ISNUMBER(VLOOKUP($T9,Gender!$C$3:$BX$50,BT$8,FALSE))), VLOOKUP($T9,Gender!$C$3:$BX$50,BT$8,FALSE), NA()) -> 517 | BU9: =IF(AND(INDIRECT(BU$22)>0,ISNUMBER(VLOOKUP($T9,Gender!$C$3:$BX$50,BU$8,FALSE))), VLOOKUP($T9,Gender!$C$3:$BX$50,BU$8,FALSE), NA()) -> 507 | BV9: =IF(AND(INDIRECT(BV$22)>0,ISNUMBER(VLOOKUP($T9,Gender!$C$3:$BX$50,BV$8,FALSE))), VLOOKUP($T9,Gender!$C$3:$BX$50,BV$8,FALSE), NA()) -> 526 | BW9: =IF(AND(INDIRECT(BW$22)>0,ISNUMBER(VLOOKUP($T9,Gender!$C$3:$BX$50,BW$8,FALSE))), VLOOKUP($T9,Gender!$C$3:$BX$50,BW$8,FALSE), NA()) -> 526 | BX9: =IF(OR(DD_new!$BC$2="A",DD_new!$BC$2="B",DD_new!$BC$2="Y"),NA(),IF(AND(INDIRECT(BX$22)>0,ISNUMBER(VLOOKUP($T9,Gender!$C$3:$BX$50,BX$8,FALSE))), VLOOKUP($T9,Gender!$C$3:$BX$50,BX$8,FALSE), NA())) -> 539 | BY9: =IF(OR(DD_new!$BC$2="A",DD_new!$BC$2="B",DD_new!$BC$2="Y"),NA(),IF(AND(INDIRECT(BY$22)>0,ISNUMBER(VLOOKUP($T9,Gender!$C$3:$BX$50,BY$8,FALSE))), VLOOKUP($T9,Gender!$C$3:$BX$50,BY$8,FALSE), NA())) -> 530 | CA9: =IF(AND(INDIRECT(CA$22)>0,ISNUMBER(VLOOKUP($T9,Gender!$C$3:$BX$50,CA$8,FALSE))), VLOOKUP($T9,Gender!$C$3:$BX$50,CA$8,FALSE), NA()) ->  | CB9: =IF(AND(INDIRECT(CB$22)>0,ISNUMBER(VLOOKUP($T9,Gender!$C$3:$BX$50,CB$8,FALSE))), VLOOKUP($T9,Gender!$C$3:$BX$50,CB$8,FALSE), NA()) ->  | CC9: =IF(AND(INDIRECT(CC$22)>0,ISNUMBER(VLOOKUP($T9,Gender!$C$3:$BX$50,CC$8,FALSE))), VLOOKUP($T9,Gender!$C$3:$BX$50,CC$8,FALSE), NA()) ->  | CD9: =IF(AND(INDIRECT(CD$22)>0,ISNUMBER(VLOOKUP($T9,Gender!$C$3:$BX$50,CD$8,FALSE))), VLOOKUP($T9,Gender!$C$3:$BX$50,CD$8,FALSE), NA()) ->  | CE9: =IF(OR(DD_new!$BC$2="A",DD_new!$BC$2="B",DD_new!$BC$2="Y"),NA(),IF(AND(INDIRECT(CE$22)>0,ISNUMBER(VLOOKUP($T9,Gender!$C$3:$BX$50,CE$8,FALSE))), VLOOKUP($T9,Gender!$C$3:$BX$50,CE$8,FALSE), NA())) ->  | CF9: =IF(OR(DD_new!$BC$2="A",DD_new!$BC$2="B",DD_new!$BC$2="Y"),NA(),IF(AND(INDIRECT(CF$22)>0,ISNUMBER(VLOOKUP($T9,Gender!$C$3:$BX$50,CF$8,FALSE))), VLOOKUP($T9,Gender!$C$3:$BX$50,CF$8,FALSE), NA())) ->  | CH9: =IF(AND(INDIRECT(CH$22)>0,ISNUMBER(VLOOKUP($T9,Gender!$C$3:$BX$50,CH$8,FALSE))), VLOOKUP($T9,Gender!$C$3:$BX$50,CH$8,FALSE), NA()) ->  | CI9: =IF(AND(INDIRECT(CI$22)>0,ISNUMBER(VLOOKUP($T9,Gender!$C$3:$BX$50,CI$8,FALSE))), VLOOKUP($T9,Gender!$C$3:$BX$50,CI$8,FALSE), NA()) ->  | CJ9: =IF(AND(INDIRECT(CJ$22)>0,ISNUMBER(VLOOKUP($T9,Gender!$C$3:$BX$50,CJ$8,FALSE))), VLOOKUP($T9,Gender!$C$3:$BX$50,CJ$8,FALSE), NA()) ->  | CK9: =IF(AND(INDIRECT(CK$22)>0,ISNUMBER(VLOOKUP($T9,Gender!$C$3:$BX$50,CK$8,FALSE))), VLOOKUP($T9,Gender!$C$3:$BX$50,CK$8,FALSE), NA()) ->  | CL9: =IF(OR(DD_new!$BC$2="A",DD_new!$BC$2="B",DD_new!$BC$2="Y"),NA(),IF(AND(INDIRECT(CL$22)>0,ISNUMBER(VLOOKUP($T9,Gender!$C$3:$BX$50,CL$8,FALSE))), VLOOKUP($T9,Gender!$C$3:$BX$50,CL$8,FALSE), NA())) ->  | CM9: =IF(OR(DD_new!$BC$2="A",DD_new!$BC$2="B",DD_new!$BC$2="Y"),NA(),IF(AND(INDIRECT(CM$22)>0,ISNUMBER(VLOOKUP($T9,Gender!$C$3:$BX$50,CM$8,FALSE))), VLOOKUP($T9,Gender!$C$3:$BX$50,CM$8,FALSE), NA())) ->  | CN9: q1
N10: 10 | O10: 10 | P10: 8 | Q10: =IFERROR(INDEX(INDIRECT("$N$3:$N$12"),MATCH(0,COUNTIF($Q$2:Q9,INDIRECT("$N$3:$N$12")),0)),"") -> 10 | R10: =DD_new!$BD$2 -> 1 | S10: 2 | T10: =R10&"."&S10 -> 1.2 | W10: =IF(AND(INDIRECT(W$22)>0,ISNUMBER(VLOOKUP($T10,Gender!$C$3:$BX$50,W$8,FALSE))), VLOOKUP($T10,Gender!$C$3:$BX$50,W$8,FALSE), NA()) -> 28 | X10: =IF(AND(INDIRECT(X$22)>0,ISNUMBER(VLOOKUP($T10,Gender!$C$3:$BX$50,X$8,FALSE))), VLOOKUP($T10,Gender!$C$3:$BX$50,X$8,FALSE), NA()) -> 21.5 | Y10: =IF(AND(INDIRECT(Y$22)>0,ISNUMBER(VLOOKUP($T10,Gender!$C$3:$BX$50,Y$8,FALSE))), VLOOKUP($T10,Gender!$C$3:$BX$50,Y$8,FALSE), NA()) -> 37 | Z10: =IF(AND(INDIRECT(Z$22)>0,ISNUMBER(VLOOKUP($T10,Gender!$C$3:$BX$50,Z$8,FALSE))), VLOOKUP($T10,Gender!$C$3:$BX$50,Z$8,FALSE), NA()) -> 37 | AA10: =IF(OR(DD_new!$BC$2="A",DD_new!$BC$2="B",DD_new!$BC$2="Y"),NA(),IF(AND(INDIRECT(AA$22)>0,ISNUMBER(VLOOKUP($T10,Gender!$C$3:$BX$50,AA$8,FALSE))), VLOOKUP($T10,Gender!$C$3:$BX$50,AA$8,FALSE), NA())) -> 42 | AB10: =IF(OR(DD_new!$BC$2="A",DD_new!$BC$2="B",DD_new!$BC$2="Y"),NA(),IF(AND(INDIRECT(AB$22)>0,ISNUMBER(VLOOKUP($T10,Gender!$C$3:$BX$50,AB$8,FALSE))), VLOOKUP($T10,Gender!$C$3:$BX$50,AB$8,FALSE), NA())) -> 43 | AD10: =IF(AND(INDIRECT(AD$22)>0,ISNUMBER(VLOOKUP($T10,Gender!$C$3:$BX$50,AD$8,FALSE))), VLOOKUP($T10,Gender!$C$3:$BX$50,AD$8,FALSE), NA()) -> 26 | AE10: =IF(AND(INDIRECT(AE$22)>0,ISNUMBER(VLOOKUP($T10,Gender!$C$3:$BX$50,AE$8,FALSE))), VLOOKUP($T10,Gender!$C$3:$BX$50,AE$8,FALSE), NA()) -> 45 | AF10: =IF(AND(INDIRECT(AF$22)>0,ISNUMBER(VLOOKUP($T10,Gender!$C$3:$BX$50,AF$8,FALSE))), VLOOKUP($T10,Gender!$C$3:$BX$50,AF$8,FALSE), NA()) -> 35 | AG10: =IF(AND(INDIRECT(AG$22)>0,ISNUMBER(VLOOKUP($T10,Gender!$C$3:$BX$50,AG$8,FALSE))), VLOOKUP($T10,Gender!$C$3:$BX$50,AG$8,FALSE), NA()) -> 35 | AH10: =IF(OR(DD_new!$BC$2="A",DD_new!$BC$2="B",DD_new!$BC$2="Y"),NA(),IF(AND(INDIRECT(AH$22)>0,ISNUMBER(VLOOKUP($T10,Gender!$C$3:$BX$50,AH$8,FALSE))), VLOOKUP($T10,Gender!$C$3:$BX$50,AH$8,FALSE), NA())) -> 44 | AI10: =IF(OR(DD_new!$BC$2="A",DD_new!$BC$2="B",DD_new!$BC$2="Y"),NA(),IF(AND(INDIRECT(AI$22)>0,ISNUMBER(VLOOKUP($T10,Gender!$C$3:$BX$50,AI$8,FALSE))), VLOOKUP($T10,Gender!$C$3:$BX$50,AI$8,FALSE), NA())) -> 44 | AK10: =IF(AND(INDIRECT(AK$22)>0,ISNUMBER(VLOOKUP($T10,Gender!$C$3:$BX$50,AK$8,FALSE))), VLOOKUP($T10,Gender!$C$3:$BX$50,AK$8,FALSE), NA()) -> 25 | AL10: =IF(AND(INDIRECT(AL$22)>0,ISNUMBER(VLOOKUP($T10,Gender!$C$3:$BX$50,AL$8,FALSE))), VLOOKUP($T10,Gender!$C$3:$BX$50,AL$8,FALSE), NA()) -> 70 | AM10: =IF(AND(INDIRECT(AM$22)>0,ISNUMBER(VLOOKUP($T10,Gender!$C$3:$BX$50,AM$8,FALSE))), VLOOKUP($T10,Gender!$C$3:$BX$50,AM$8,FALSE), NA()) -> 36 | AN10: =IF(AND(INDIRECT(AN$22)>0,ISNUMBER(VLOOKUP($T10,Gender!$C$3:$BX$50,AN$8,FALSE))), VLOOKUP($T10,Gender!$C$3:$BX$50,AN$8,FALSE), NA()) -> 35 | AO10: =IF(OR(DD_new!$BC$2="A",DD_new!$BC$2="B",DD_new!$BC$2="Y"),NA(),IF(AND(INDIRECT(AO$22)>0,ISNUMBER(VLOOKUP($T10,Gender!$C$3:$BX$50,AO$8,FALSE))), VLOOKUP($T10,Gender!$C$3:$BX$50,AO$8,FALSE), NA())) -> 41 | AP10: =IF(OR(DD_new!$BC$2="A",DD_new!$BC$2="B",DD_new!$BC$2="Y"),NA(),IF(AND(INDIRECT(AP$22)>0,ISNUMBER(VLOOKUP($T10,Gender!$C$3:$BX$50,AP$8,FALSE))), VLOOKUP($T10,Gender!$C$3:$BX$50,AP$8,FALSE), NA())) -> 41 | AR10: =IF(AND(INDIRECT(AR$22)>0,ISNUMBER(VLOOKUP($T10,Gender!$C$3:$BX$50,AR$8,FALSE))), VLOOKUP($T10,Gender!$C$3:$BX$50,AR$8,FALSE), NA()) -> 24 | AS10: =IF(AND(INDIRECT(AS$22)>0,ISNUMBER(VLOOKUP($T10,Gender!$C$3:$BX$50,AS$8,FALSE))), VLOOKUP($T10,Gender!$C$3:$BX$50,AS$8,FALSE), NA()) -> 83 | AT10: =IF(AND(INDIRECT(AT$22)>0,ISNUMBER(VLOOKUP($T10,Gender!$C$3:$BX$50,AT$8,FALSE))), VLOOKUP($T10,Gender!$C$3:$BX$50,AT$8,FALSE), NA()) -> 44 | AU10: =IF(AND(INDIRECT(AU$22)>0,ISNUMBER(VLOOKUP($T10,Gender!$C$3:$BX$50,AU$8,FALSE))), VLOOKUP($T10,Gender!$C$3:$BX$50,AU$8,FALSE), NA()) -> 34 | AV10: =IF(OR(DD_new!$BC$2="A",DD_new!$BC$2="B",DD_new!$BC$2="Y"),NA(),IF(AND(INDIRECT(AV$22)>0,ISNUMBER(VLOOKUP($T10,Gender!$C$3:$BX$50,AV$8,FALSE))), VLOOKUP($T10,Gender!$C$3:$BX$50,AV$8,FALSE), NA())) -> 34 | AW10: =IF(OR(DD_new!$BC$2="A",DD_new!$BC$2="B",DD_new!$BC$2="Y"),NA(),IF(AND(INDIRECT(AW$22)>0,ISNUMBER(VLOOKUP($T10,Gender!$C$3:$BX$50,AW$8,FALSE))), VLOOKUP($T10,Gender!$C$3:$BX$50,AW$8,FALSE), NA())) -> 43 | AY10: =IF(AND(INDIRECT(AY$22)>0,ISNUMBER(VLOOKUP($T10,Gender!$C$3:$BX$50,AY$8,FALSE))), VLOOKUP($T10,Gender!$C$3:$BX$50,AY$8,FALSE), NA()) -> 30 | AZ10: =IF(AND(INDIRECT(AZ$22)>0,ISNUMBER(VLOOKUP($T10,Gender!$C$3:$BX$50,AZ$8,FALSE))), VLOOKUP($T10,Gender!$C$3:$BX$50,AZ$8,FALSE), NA()) -> 22 | BA10: =IF(AND(INDIRECT(BA$22)>0,ISNUMBER(VLOOKUP($T10,Gender!$C$3:$BX$50,BA$8,FALSE))), VLOOKUP($T10,Gender!$C$3:$BX$50,BA$8,FALSE), NA()) -> 33 | BB10: =IF(AND(INDIRECT(BB$22)>0,ISNUMBER(VLOOKUP($T10,Gender!$C$3:$BX$50,BB$8,FALSE))), VLOOKUP($T10,Gender!$C$3:$BX$50,BB$8,FALSE), NA()) -> 33 | BC10: =IF(OR(DD_new!$BC$2="A",DD_new!$BC$2="B",DD_new!$BC$2="Y"),NA(),IF(AND(INDIRECT(BC$22)>0,ISNUMBER(VLOOKUP($T10,Gender!$C$3:$BX$50,BC$8,FALSE))), VLOOKUP($T10,Gender!$C$3:$BX$50,BC$8,FALSE), NA())) -> 30 | BD10: =IF(OR(DD_new!$BC$2="A",DD_new!$BC$2="B",DD_new!$BC$2="Y"),NA(),IF(AND(INDIRECT(BD$22)>0,ISNUMBER(VLOOKUP($T10,Gender!$C$3:$BX$50,BD$8,FALSE))), VLOOKUP($T10,Gender!$C$3:$BX$50,BD$8,FALSE), NA())) -> 31 | BF10: =IF(AND(INDIRECT(BF$22)>0,ISNUMBER(VLOOKUP($T10,Gender!$C$3:$BX$50,BF$8,FALSE))), VLOOKUP($T10,Gender!$C$3:$BX$50,BF$8,FALSE), NA()) -> 60 | BG10: =IF(AND(INDIRECT(BG$22)>0,ISNUMBER(VLOOKUP($T10,Gender!$C$3:$BX$50,BG$8,FALSE))), VLOOKUP($T10,Gender!$C$3:$BX$50,BG$8,FALSE), NA()) -> 15 | BH10: =IF(AND(INDIRECT(BH$22)>0,ISNUMBER(VLOOKUP($T10,Gender!$C$3:$BX$50,BH$8,FALSE))), VLOOKUP($T10,Gender!$C$3:$BX$50,BH$8,FALSE), NA()) -> 24 | BI10: =IF(AND(INDIRECT(BI$22)>0,ISNUMBER(VLOOKUP($T10,Gender!$C$3:$BX$50,BI$8,FALSE))), VLOOKUP($T10,Gender!$C$3:$BX$50,BI$8,FALSE), NA()) -> 32 | BJ10: =IF(OR(DD_new!$BC$2="A",DD_new!$BC$2="B",DD_new!$BC$2="Y"),NA(),IF(AND(INDIRECT(BJ$22)>0,ISNUMBER(VLOOKUP($T10,Gender!$C$3:$BX$50,BJ$8,FALSE))), VLOOKUP($T10,Gender!$C$3:$BX$50,BJ$8,FALSE), NA())) -> 25 | BK10: =IF(OR(DD_new!$BC$2="A",DD_new!$BC$2="B",DD_new!$BC$2="Y"),NA(),IF(AND(INDIRECT(BK$22)>0,ISNUMBER(VLOOKUP($T10,Gender!$C$3:$BX$50,BK$8,FALSE))), VLOOKUP($T10,Gender!$C$3:$BX$50,BK$8,FALSE), NA())) -> 33 | BM10: =IF(AND(INDIRECT(BM$22)>0,ISNUMBER(VLOOKUP($T10,Gender!$C$3:$BX$50,BM$8,FALSE))), VLOOKUP($T10,Gender!$C$3:$BX$50,BM$8,FALSE), NA()) -> 62 | BN10: =IF(AND(INDIRECT(BN$22)>0,ISNUMBER(VLOOKUP($T10,Gender!$C$3:$BX$50,BN$8,FALSE))), VLOOKUP($T10,Gender!$C$3:$BX$50,BN$8,FALSE), NA()) -> 23 | BO10: =IF(AND(INDIRECT(BO$22)>0,ISNUMBER(VLOOKUP($T10,Gender!$C$3:$BX$50,BO$8,FALSE))), VLOOKUP($T10,Gender!$C$3:$BX$50,BO$8,FALSE), NA()) -> 32 | BP10: =IF(AND(INDIRECT(BP$22)>0,ISNUMBER(VLOOKUP($T10,Gender!$C$3:$BX$50,BP$8,FALSE))), VLOOKUP($T10,Gender!$C$3:$BX$50,BP$8,FALSE), NA()) -> 33 | BQ10: =IF(OR(DD_new!$BC$2="A",DD_new!$BC$2="B",DD_new!$BC$2="Y"),NA(),IF(AND(INDIRECT(BQ$22)>0,ISNUMBER(VLOOKUP($T10,Gender!$C$3:$BX$50,BQ$8,FALSE))), VLOOKUP($T10,Gender!$C$3:$BX$50,BQ$8,FALSE), NA())) -> 25 | BR10: =IF(OR(DD_new!$BC$2="A",DD_new!$BC$2="B",DD_new!$BC$2="Y"),NA(),IF(AND(INDIRECT(BR$22)>0,ISNUMBER(VLOOKUP($T10,Gender!$C$3:$BX$50,BR$8,FALSE))), VLOOKUP($T10,Gender!$C$3:$BX$50,BR$8,FALSE), NA())) -> 25 | BT10: =IF(AND(INDIRECT(BT$22)>0,ISNUMBER(VLOOKUP($T10,Gender!$C$3:$BX$50,BT$8,FALSE))), VLOOKUP($T10,Gender!$C$3:$BX$50,BT$8,FALSE), NA()) -> 41 | BU10: =IF(AND(INDIRECT(BU$22)>0,ISNUMBER(VLOOKUP($T10,Gender!$C$3:$BX$50,BU$8,FALSE))), VLOOKUP($T10,Gender!$C$3:$BX$50,BU$8,FALSE), NA()) -> 59 | BV10: =IF(AND(INDIRECT(BV$22)>0,ISNUMBER(VLOOKUP($T10,Gender!$C$3:$BX$50,BV$8,FALSE))), VLOOKUP($T10,Gender!$C$3:$BX$50,BV$8,FALSE), NA()) -> 47 | BW10: =IF(AND(INDIRECT(BW$22)>0,ISNUMBER(VLOOKUP($T10,Gender!$C$3:$BX$50,BW$8,FALSE))), VLOOKUP($T10,Gender!$C$3:$BX$50,BW$8,FALSE), NA()) -> 32 | BX10: =IF(OR(DD_new!$BC$2="A",DD_new!$BC$2="B",DD_new!$BC$2="Y"),NA(),IF(AND(INDIRECT(BX$22)>0,ISNUMBER(VLOOKUP($T10,Gender!$C$3:$BX$50,BX$8,FALSE))), VLOOKUP($T10,Gender!$C$3:$BX$50,BX$8,FALSE), NA())) -> 25 | BY10: =IF(OR(DD_new!$BC$2="A",DD_new!$BC$2="B",DD_new!$BC$2="Y"),NA(),IF(AND(INDIRECT(BY$22)>0,ISNUMBER(VLOOKUP($T10,Gender!$C$3:$BX$50,BY$8,FALSE))), VLOOKUP($T10,Gender!$C$3:$BX$50,BY$8,FALSE), NA())) -> 34 | CA10: =IF(AND(INDIRECT(CA$22)>0,ISNUMBER(VLOOKUP($T10,Gender!$C$3:$BX$50,CA$8,FALSE))), VLOOKUP($T10,Gender!$C$3:$BX$50,CA$8,FALSE), NA()) ->  | CB10: =IF(AND(INDIRECT(CB$22)>0,ISNUMBER(VLOOKUP($T10,Gender!$C$3:$BX$50,CB$8,FALSE))), VLOOKUP($T10,Gender!$C$3:$BX$50,CB$8,FALSE), NA()) ->  | CC10: =IF(AND(INDIRECT(CC$22)>0,ISNUMBER(VLOOKUP($T10,Gender!$C$3:$BX$50,CC$8,FALSE))), VLOOKUP($T10,Gender!$C$3:$BX$50,CC$8,FALSE), NA()) ->  | CD10: =IF(AND(INDIRECT(CD$22)>0,ISNUMBER(VLOOKUP($T10,Gender!$C$3:$BX$50,CD$8,FALSE))), VLOOKUP($T10,Gender!$C$3:$BX$50,CD$8,FALSE), NA()) ->  | CE10: =IF(OR(DD_new!$BC$2="A",DD_new!$BC$2="B",DD_new!$BC$2="Y"),NA(),IF(AND(INDIRECT(CE$22)>0,ISNUMBER(VLOOKUP($T10,Gender!$C$3:$BX$50,CE$8,FALSE))), VLOOKUP($T10,Gender!$C$3:$BX$50,CE$8,FALSE), NA())) ->  | CF10: =IF(OR(DD_new!$BC$2="A",DD_new!$BC$2="B",DD_new!$BC$2="Y"),NA(),IF(AND(INDIRECT(CF$22)>0,ISNUMBER(VLOOKUP($T10,Gender!$C$3:$BX$50,CF$8,FALSE))), VLOOKUP($T10,Gender!$C$3:$BX$50,CF$8,FALSE), NA())) ->  | CH10: =IF(AND(INDIRECT(CH$22)>0,ISNUMBER(VLOOKUP($T10,Gender!$C$3:$BX$50,CH$8,FALSE))), VLOOKUP($T10,Gender!$C$3:$BX$50,CH$8,FALSE), NA()) ->  | CI10: =IF(AND(INDIRECT(CI$22)>0,ISNUMBER(VLOOKUP($T10,Gender!$C$3:$BX$50,CI$8,FALSE))), VLOOKUP($T10,Gender!$C$3:$BX$50,CI$8,FALSE), NA()) ->  | CJ10: =IF(AND(INDIRECT(CJ$22)>0,ISNUMBER(VLOOKUP($T10,Gender!$C$3:$BX$50,CJ$8,FALSE))), VLOOKUP($T10,Gender!$C$3:$BX$50,CJ$8,FALSE), NA()) ->  | CK10: =IF(AND(INDIRECT(CK$22)>0,ISNUMBER(VLOOKUP($T10,Gender!$C$3:$BX$50,CK$8,FALSE))), VLOOKUP($T10,Gender!$C$3:$BX$50,CK$8,FALSE), NA()) ->  | CL10: =IF(OR(DD_new!$BC$2="A",DD_new!$BC$2="B",DD_new!$BC$2="Y"),NA(),IF(AND(INDIRECT(CL$22)>0,ISNUMBER(VLOOKUP($T10,Gender!$C$3:$BX$50,CL$8,FALSE))), VLOOKUP($T10,Gender!$C$3:$BX$50,CL$8,FALSE), NA())) ->  | CM10: =IF(OR(DD_new!$BC$2="A",DD_new!$BC$2="B",DD_new!$BC$2="Y"),NA(),IF(AND(INDIRECT(CM$22)>0,ISNUMBER(VLOOKUP($T10,Gender!$C$3:$BX$50,CM$8,FALSE))), VLOOKUP($T10,Gender!$C$3:$BX$50,CM$8,FALSE), NA())) ->  | CN10: med-q1
O11: 11 | P11: 9 | Q11: =IFERROR(INDEX(INDIRECT("$N$3:$N$12"),MATCH(0,COUNTIF($Q$2:Q10,INDIRECT("$N$3:$N$12")),0)),"") ->  | R11: =DD_new!$BD$2 -> 1 | S11: 3 | T11: =R11&"."&S11 -> 1.3 | W11: =IF(AND(INDIRECT(W$22)>0,ISNUMBER(VLOOKUP($T11,Gender!$C$3:$BX$50,W$8,FALSE))), VLOOKUP($T11,Gender!$C$3:$BX$50,W$8,FALSE), NA()) -> 61.78 | X11: =IF(AND(INDIRECT(X$22)>0,ISNUMBER(VLOOKUP($T11,Gender!$C$3:$BX$50,X$8,FALSE))), VLOOKUP($T11,Gender!$C$3:$BX$50,X$8,FALSE), NA()) -> 39.69 | Y11: =IF(AND(INDIRECT(Y$22)>0,ISNUMBER(VLOOKUP($T11,Gender!$C$3:$BX$50,Y$8,FALSE))), VLOOKUP($T11,Gender!$C$3:$BX$50,Y$8,FALSE), NA()) -> 41.85 | Z11: =IF(AND(INDIRECT(Z$22)>0,ISNUMBER(VLOOKUP($T11,Gender!$C$3:$BX$50,Z$8,FALSE))), VLOOKUP($T11,Gender!$C$3:$BX$50,Z$8,FALSE), NA()) -> 47.72 | AA11: =IF(OR(DD_new!$BC$2="A",DD_new!$BC$2="B",DD_new!$BC$2="Y"),NA(),IF(AND(INDIRECT(AA$22)>0,ISNUMBER(VLOOKUP($T11,Gender!$C$3:$BX$50,AA$8,FALSE))), VLOOKUP($T11,Gender!$C$3:$BX$50,AA$8,FALSE), NA())) -> 46.67 | AB11: =IF(OR(DD_new!$BC$2="A",DD_new!$BC$2="B",DD_new!$BC$2="Y"),NA(),IF(AND(INDIRECT(AB$22)>0,ISNUMBER(VLOOKUP($T11,Gender!$C$3:$BX$50,AB$8,FALSE))), VLOOKUP($T11,Gender!$C$3:$BX$50,AB$8,FALSE), NA())) -> 56.35 | AD11: =IF(AND(INDIRECT(AD$22)>0,ISNUMBER(VLOOKUP($T11,Gender!$C$3:$BX$50,AD$8,FALSE))), VLOOKUP($T11,Gender!$C$3:$BX$50,AD$8,FALSE), NA()) -> 50.68 | AE11: =IF(AND(INDIRECT(AE$22)>0,ISNUMBER(VLOOKUP($T11,Gender!$C$3:$BX$50,AE$8,FALSE))), VLOOKUP($T11,Gender!$C$3:$BX$50,AE$8,FALSE), NA()) -> 44.36 | AF11: =IF(AND(INDIRECT(AF$22)>0,ISNUMBER(VLOOKUP($T11,Gender!$C$3:$BX$50,AF$8,FALSE))), VLOOKUP($T11,Gender!$C$3:$BX$50,AF$8,FALSE), NA()) -> 41.43 | AG11: =IF(AND(INDIRECT(AG$22)>0,ISNUMBER(VLOOKUP($T11,Gender!$C$3:$BX$50,AG$8,FALSE))), VLOOKUP($T11,Gender!$C$3:$BX$50,AG$8,FALSE), NA()) -> 57.69 | AH11: =IF(OR(DD_new!$BC$2="A",DD_new!$BC$2="B",DD_new!$BC$2="Y"),NA(),IF(AND(INDIRECT(AH$22)>0,ISNUMBER(VLOOKUP($T11,Gender!$C$3:$BX$50,AH$8,FALSE))), VLOOKUP($T11,Gender!$C$3:$BX$50,AH$8,FALSE), NA())) -> 47.89 | AI11: =IF(OR(DD_new!$BC$2="A",DD_new!$BC$2="B",DD_new!$BC$2="Y"),NA(),IF(AND(INDIRECT(AI$22)>0,ISNUMBER(VLOOKUP($T11,Gender!$C$3:$BX$50,AI$8,FALSE))), VLOOKUP($T11,Gender!$C$3:$BX$50,AI$8,FALSE), NA())) -> 54.03 | AK11: =IF(AND(INDIRECT(AK$22)>0,ISNUMBER(VLOOKUP($T11,Gender!$C$3:$BX$50,AK$8,FALSE))), VLOOKUP($T11,Gender!$C$3:$BX$50,AK$8,FALSE), NA()) -> 45.12 | AL11: =IF(AND(INDIRECT(AL$22)>0,ISNUMBER(VLOOKUP($T11,Gender!$C$3:$BX$50,AL$8,FALSE))), VLOOKUP($T11,Gender!$C$3:$BX$50,AL$8,FALSE), NA()) -> 58.63 | AM11: =IF(AND(INDIRECT(AM$22)>0,ISNUMBER(VLOOKUP($T11,Gender!$C$3:$BX$50,AM$8,FALSE))), VLOOKUP($T11,Gender!$C$3:$BX$50,AM$8,FALSE), NA()) -> 38.08 | AN11: =IF(AND(INDIRECT(AN$22)>0,ISNUMBER(VLOOKUP($T11,Gender!$C$3:$BX$50,AN$8,FALSE))), VLOOKUP($T11,Gender!$C$3:$BX$50,AN$8,FALSE), NA()) -> 47.74 | AO11: =IF(OR(DD_new!$BC$2="A",DD_new!$BC$2="B",DD_new!$BC$2="Y"),NA(),IF(AND(INDIRECT(AO$22)>0,ISNUMBER(VLOOKUP($T11,Gender!$C$3:$BX$50,AO$8,FALSE))), VLOOKUP($T11,Gender!$C$3:$BX$50,AO$8,FALSE), NA())) -> 48.56 | AP11: =IF(OR(DD_new!$BC$2="A",DD_new!$BC$2="B",DD_new!$BC$2="Y"),NA(),IF(AND(INDIRECT(AP$22)>0,ISNUMBER(VLOOKUP($T11,Gender!$C$3:$BX$50,AP$8,FALSE))), VLOOKUP($T11,Gender!$C$3:$BX$50,AP$8,FALSE), NA())) -> 59.76 | AR11: =IF(AND(INDIRECT(AR$22)>0,ISNUMBER(VLOOKUP($T11,Gender!$C$3:$BX$50,AR$8,FALSE))), VLOOKUP($T11,Gender!$C$3:$BX$50,AR$8,FALSE), NA()) -> 36.92 | AS11: =IF(AND(INDIRECT(AS$22)>0,ISNUMBER(VLOOKUP($T11,Gender!$C$3:$BX$50,AS$8,FALSE))), VLOOKUP($T11,Gender!$C$3:$BX$50,AS$8,FALSE), NA()) -> 33.12 | AT11: =IF(AND(INDIRECT(AT$22)>0,ISNUMBER(VLOOKUP($T11,Gender!$C$3:$BX$50,AT$8,FALSE))), VLOOKUP($T11,Gender!$C$3:$BX$50,AT$8,FALSE), NA()) -> 46.99 | AU11: =IF(AND(INDIRECT(AU$22)>0,ISNUMBER(VLOOKUP($T11,Gender!$C$3:$BX$50,AU$8,FALSE))), VLOOKUP($T11,Gender!$C$3:$BX$50,AU$8,FALSE), NA()) -> 56.62 | AV11: =IF(OR(DD_new!$BC$2="A",DD_new!$BC$2="B",DD_new!$BC$2="Y"),NA(),IF(AND(INDIRECT(AV$22)>0,ISNUMBER(VLOOKUP($T11,Gender!$C$3:$BX$50,AV$8,FALSE))), VLOOKUP($T11,Gender!$C$3:$BX$50,AV$8,FALSE), NA())) -> 46.82 | AW11: =IF(OR(DD_new!$BC$2="A",DD_new!$BC$2="B",DD_new!$BC$2="Y"),NA(),IF(AND(INDIRECT(AW$22)>0,ISNUMBER(VLOOKUP($T11,Gender!$C$3:$BX$50,AW$8,FALSE))), VLOOKUP($T11,Gender!$C$3:$BX$50,AW$8,FALSE), NA())) -> 53.83 | AY11: =IF(AND(INDIRECT(AY$22)>0,ISNUMBER(VLOOKUP($T11,Gender!$C$3:$BX$50,AY$8,FALSE))), VLOOKUP($T11,Gender!$C$3:$BX$50,AY$8,FALSE), NA()) -> 47.84 | AZ11: =IF(AND(INDIRECT(AZ$22)>0,ISNUMBER(VLOOKUP($T11,Gender!$C$3:$BX$50,AZ$8,FALSE))), VLOOKUP($T11,Gender!$C$3:$BX$50,AZ$8,FALSE), NA()) -> 37.28 | BA11: =IF(AND(INDIRECT(BA$22)>0,ISNUMBER(VLOOKUP($T11,Gender!$C$3:$BX$50,BA$8,FALSE))), VLOOKUP($T11,Gender!$C$3:$BX$50,BA$8,FALSE), NA()) -> 47.79 | BB11: =IF(AND(INDIRECT(BB$22)>0,ISNUMBER(VLOOKUP($T11,Gender!$C$3:$BX$50,BB$8,FALSE))), VLOOKUP($T11,Gender!$C$3:$BX$50,BB$8,FALSE), NA()) -> 54.69 | BC11: =IF(OR(DD_new!$BC$2="A",DD_new!$BC$2="B",DD_new!$BC$2="Y"),NA(),IF(AND(INDIRECT(BC$22)>0,ISNUMBER(VLOOKUP($T11,Gender!$C$3:$BX$50,BC$8,FALSE))), VLOOKUP($T11,Gender!$C$3:$BX$50,BC$8,FALSE), NA())) -> 47.58 | BD11: =IF(OR(DD_new!$BC$2="A",DD_new!$BC$2="B",DD_new!$BC$2="Y"),NA(),IF(AND(INDIRECT(BD$22)>0,ISNUMBER(VLOOKUP($T11,Gender!$C$3:$BX$50,BD$8,FALSE))), VLOOKUP($T11,Gender!$C$3:$BX$50,BD$8,FALSE), NA())) -> 60.47 | BF11: =IF(AND(INDIRECT(BF$22)>0,ISNUMBER(VLOOKUP($T11,Gender!$C$3:$BX$50,BF$8,FALSE))), VLOOKUP($T11,Gender!$C$3:$BX$50,BF$8,FALSE), NA()) -> 32 | BG11: =IF(AND(INDIRECT(BG$22)>0,ISNUMBER(VLOOKUP($T11,Gender!$C$3:$BX$50,BG$8,FALSE))), VLOOKUP($T11,Gender!$C$3:$BX$50,BG$8,FALSE), NA()) -> 33 | BH11: =IF(AND(INDIRECT(BH$22)>0,ISNUMBER(VLOOKUP($T11,Gender!$C$3:$BX$50,BH$8,FALSE))), VLOOKUP($T11,Gender!$C$3:$BX$50,BH$8,FALSE), NA()) -> 44 | BI11: =IF(AND(INDIRECT(BI$22)>0,ISNUMBER(VLOOKUP($T11,Gender!$C$3:$BX$50,BI$8,FALSE))), VLOOKUP($T11,Gender!$C$3:$BX$50,BI$8,FALSE), NA()) -> 45 | BJ11: =IF(OR(DD_new!$BC$2="A",DD_new!$BC$2="B",DD_new!$BC$2="Y"),NA(),IF(AND(INDIRECT(BJ$22)>0,ISNUMBER(VLOOKUP($T11,Gender!$C$3:$BX$50,BJ$8,FALSE))), VLOOKUP($T11,Gender!$C$3:$BX$50,BJ$8,FALSE), NA())) -> 42 | BK11: =IF(OR(DD_new!$BC$2="A",DD_new!$BC$2="B",DD_new!$BC$2="Y"),NA(),IF(AND(INDIRECT(BK$22)>0,ISNUMBER(VLOOKUP($T11,Gender!$C$3:$BX$50,BK$8,FALSE))), VLOOKUP($T11,Gender!$C$3:$BX$50,BK$8,FALSE), NA())) -> 44 | BM11: =IF(AND(INDIRECT(BM$22)>0,ISNUMBER(VLOOKUP($T11,Gender!$C$3:$BX$50,BM$8,FALSE))), VLOOKUP($T11,Gender!$C$3:$BX$50,BM$8,FALSE), NA()) -> 33 | BN11: =IF(AND(INDIRECT(BN$22)>0,ISNUMBER(VLOOKUP($T11,Gender!$C$3:$BX$50,BN$8,FALSE))), VLOOKUP($T11,Gender!$C$3:$BX$50,BN$8,FALSE), NA()) -> 30 | BO11: =IF(AND(INDIRECT(BO$22)>0,ISNUMBER(VLOOKUP($T11,Gender!$C$3:$BX$50,BO$8,FALSE))), VLOOKUP($T11,Gender!$C$3:$BX$50,BO$8,FALSE), NA()) -> 32 | BP11: =IF(AND(INDIRECT(BP$22)>0,ISNUMBER(VLOOKUP($T11,Gender!$C$3:$BX$50,BP$8,FALSE))), VLOOKUP($T11,Gender!$C$3:$BX$50,BP$8,FALSE), NA()) -> 48 | BQ11: =IF(OR(DD_new!$BC$2="A",DD_new!$BC$2="B",DD_new!$BC$2="Y"),NA(),IF(AND(INDIRECT(BQ$22)>0,ISNUMBER(VLOOKUP($T11,Gender!$C$3:$BX$50,BQ$8,FALSE))), VLOOKUP($T11,Gender!$C$3:$BX$50,BQ$8,FALSE), NA())) -> 40 | BR11: =IF(OR(DD_new!$BC$2="A",DD_new!$BC$2="B",DD_new!$BC$2="Y"),NA(),IF(AND(INDIRECT(BR$22)>0,ISNUMBER(VLOOKUP($T11,Gender!$C$3:$BX$50,BR$8,FALSE))), VLOOKUP($T11,Gender!$C$3:$BX$50,BR$8,FALSE), NA())) -> 51 | BT11: =IF(AND(INDIRECT(BT$22)>0,ISNUMBER(VLOOKUP($T11,Gender!$C$3:$BX$50,BT$8,FALSE))), VLOOKUP($T11,Gender!$C$3:$BX$50,BT$8,FALSE), NA()) -> 45 | BU11: =IF(AND(INDIRECT(BU$22)>0,ISNUMBER(VLOOKUP($T11,Gender!$C$3:$BX$50,BU$8,FALSE))), VLOOKUP($T11,Gender!$C$3:$BX$50,BU$8,FALSE), NA()) -> 39 | BV11: =IF(AND(INDIRECT(BV$22)>0,ISNUMBER(VLOOKUP($T11,Gender!$C$3:$BX$50,BV$8,FALSE))), VLOOKUP($T11,Gender!$C$3:$BX$50,BV$8,FALSE), NA()) -> 47 | BW11: =IF(AND(INDIRECT(BW$22)>0,ISNUMBER(VLOOKUP($T11,Gender!$C$3:$BX$50,BW$8,FALSE))), VLOOKUP($T11,Gender!$C$3:$BX$50,BW$8,FALSE), NA()) -> 63 | BX11: =IF(OR(DD_new!$BC$2="A",DD_new!$BC$2="B",DD_new!$BC$2="Y"),NA(),IF(AND(INDIRECT(BX$22)>0,ISNUMBER(VLOOKUP($T11,Gender!$C$3:$BX$50,BX$8,FALSE))), VLOOKUP($T11,Gender!$C$3:$BX$50,BX$8,FALSE), NA())) -> 41 | BY11: =IF(OR(DD_new!$BC$2="A",DD_new!$BC$2="B",DD_new!$BC$2="Y"),NA(),IF(AND(INDIRECT(BY$22)>0,ISNUMBER(VLOOKUP($T11,Gender!$C$3:$BX$50,BY$8,FALSE))), VLOOKUP($T11,Gender!$C$3:$BX$50,BY$8,FALSE), NA())) -> 50 | CA11: =IF(AND(INDIRECT(CA$22)>0,ISNUMBER(VLOOKUP($T11,Gender!$C$3:$BX$50,CA$8,FALSE))), VLOOKUP($T11,Gender!$C$3:$BX$50,CA$8,FALSE), NA()) ->  | CB11: =IF(AND(INDIRECT(CB$22)>0,ISNUMBER(VLOOKUP($T11,Gender!$C$3:$BX$50,CB$8,FALSE))), VLOOKUP($T11,Gender!$C$3:$BX$50,CB$8,FALSE), NA()) ->  | CC11: =IF(AND(INDIRECT(CC$22)>0,ISNUMBER(VLOOKUP($T11,Gender!$C$3:$BX$50,CC$8,FALSE))), VLOOKUP($T11,Gender!$C$3:$BX$50,CC$8,FALSE), NA()) ->  | CD11: =IF(AND(INDIRECT(CD$22)>0,ISNUMBER(VLOOKUP($T11,Gender!$C$3:$BX$50,CD$8,FALSE))), VLOOKUP($T11,Gender!$C$3:$BX$50,CD$8,FALSE), NA()) ->  | CE11: =IF(OR(DD_new!$BC$2="A",DD_new!$BC$2="B",DD_new!$BC$2="Y"),NA(),IF(AND(INDIRECT(CE$22)>0,ISNUMBER(VLOOKUP($T11,Gender!$C$3:$BX$50,CE$8,FALSE))), VLOOKUP($T11,Gender!$C$3:$BX$50,CE$8,FALSE), NA())) ->  | CF11: =IF(OR(DD_new!$BC$2="A",DD_new!$BC$2="B",DD_new!$BC$2="Y"),NA(),IF(AND(INDIRECT(CF$22)>0,ISNUMBER(VLOOKUP($T11,Gender!$C$3:$BX$50,CF$8,FALSE))), VLOOKUP($T11,Gender!$C$3:$BX$50,CF$8,FALSE), NA())) ->  | CH11: =IF(AND(INDIRECT(CH$22)>0,ISNUMBER(VLOOKUP($T11,Gender!$C$3:$BX$50,CH$8,FALSE))), VLOOKUP($T11,Gender!$C$3:$BX$50,CH$8,FALSE), NA()) ->  | CI11: =IF(AND(INDIRECT(CI$22)>0,ISNUMBER(VLOOKUP($T11,Gender!$C$3:$BX$50,CI$8,FALSE))), VLOOKUP($T11,Gender!$C$3:$BX$50,CI$8,FALSE), NA()) ->  | CJ11: =IF(AND(INDIRECT(CJ$22)>0,ISNUMBER(VLOOKUP($T11,Gender!$C$3:$BX$50,CJ$8,FALSE))), VLOOKUP($T11,Gender!$C$3:$BX$50,CJ$8,FALSE), NA()) ->  | CK11: =IF(AND(INDIRECT(CK$22)>0,ISNUMBER(VLOOKUP($T11,Gender!$C$3:$BX$50,CK$8,FALSE))), VLOOKUP($T11,Gender!$C$3:$BX$50,CK$8,FALSE), NA()) ->  | CL11: =IF(OR(DD_new!$BC$2="A",DD_new!$BC$2="B",DD_new!$BC$2="Y"),NA(),IF(AND(INDIRECT(CL$22)>0,ISNUMBER(VLOOKUP($T11,Gender!$C$3:$BX$50,CL$8,FALSE))), VLOOKUP($T11,Gender!$C$3:$BX$50,CL$8,FALSE), NA())) ->  | CM11: =IF(OR(DD_new!$BC$2="A",DD_new!$BC$2="B",DD_new!$BC$2="Y"),NA(),IF(AND(INDIRECT(CM$22)>0,ISNUMBER(VLOOKUP($T11,Gender!$C$3:$BX$50,CM$8,FALSE))), VLOOKUP($T11,Gender!$C$3:$BX$50,CM$8,FALSE), NA())) ->  | CN11: q3-med
O12: 12 | P12: 10 | Q12: =IFERROR(INDEX(INDIRECT("$N$3:$N$12"),MATCH(0,COUNTIF($Q$2:Q11,INDIRECT("$N$3:$N$12")),0)),"") ->  | R12: =DD_new!$BD$2 -> 1 | S12: 4 | T12: =R12&"."&S12 -> 1.4 | W12: =IF(AND(INDIRECT(W$22)>0,ISNUMBER(VLOOKUP($T12,Gender!$C$3:$BX$50,W$8,FALSE))), VLOOKUP($T12,Gender!$C$3:$BX$50,W$8,FALSE), NA()) -> 48.22 | X12: =IF(AND(INDIRECT(X$22)>0,ISNUMBER(VLOOKUP($T12,Gender!$C$3:$BX$50,X$8,FALSE))), VLOOKUP($T12,Gender!$C$3:$BX$50,X$8,FALSE), NA()) -> 34.31 | Y12: =IF(AND(INDIRECT(Y$22)>0,ISNUMBER(VLOOKUP($T12,Gender!$C$3:$BX$50,Y$8,FALSE))), VLOOKUP($T12,Gender!$C$3:$BX$50,Y$8,FALSE), NA()) -> 38.15 | Z12: =IF(AND(INDIRECT(Z$22)>0,ISNUMBER(VLOOKUP($T12,Gender!$C$3:$BX$50,Z$8,FALSE))), VLOOKUP($T12,Gender!$C$3:$BX$50,Z$8,FALSE), NA()) -> 42.28 | AA12: =IF(OR(DD_new!$BC$2="A",DD_new!$BC$2="B",DD_new!$BC$2="Y"),NA(),IF(AND(INDIRECT(AA$22)>0,ISNUMBER(VLOOKUP($T12,Gender!$C$3:$BX$50,AA$8,FALSE))), VLOOKUP($T12,Gender!$C$3:$BX$50,AA$8,FALSE), NA())) -> 53.33 | AB12: =IF(OR(DD_new!$BC$2="A",DD_new!$BC$2="B",DD_new!$BC$2="Y"),NA(),IF(AND(INDIRECT(AB$22)>0,ISNUMBER(VLOOKUP($T12,Gender!$C$3:$BX$50,AB$8,FALSE))), VLOOKUP($T12,Gender!$C$3:$BX$50,AB$8,FALSE), NA())) -> 51.65 | AD12: =IF(AND(INDIRECT(AD$22)>0,ISNUMBER(VLOOKUP($T12,Gender!$C$3:$BX$50,AD$8,FALSE))), VLOOKUP($T12,Gender!$C$3:$BX$50,AD$8,FALSE), NA()) -> 52.32 | AE12: =IF(AND(INDIRECT(AE$22)>0,ISNUMBER(VLOOKUP($T12,Gender!$C$3:$BX$50,AE$8,FALSE))), VLOOKUP($T12,Gender!$C$3:$BX$50,AE$8,FALSE), NA()) -> 31.64 | AF12: =IF(AND(INDIRECT(AF$22)>0,ISNUMBER(VLOOKUP($T12,Gender!$C$3:$BX$50,AF$8,FALSE))), VLOOKUP($T12,Gender!$C$3:$BX$50,AF$8,FALSE), NA()) -> 38.57 | AG12: =IF(AND(INDIRECT(AG$22)>0,ISNUMBER(VLOOKUP($T12,Gender!$C$3:$BX$50,AG$8,FALSE))), VLOOKUP($T12,Gender!$C$3:$BX$50,AG$8,FALSE), NA()) -> 45.31 | AH12: =IF(OR(DD_new!$BC$2="A",DD_new!$BC$2="B",DD_new!$BC$2="Y"),NA(),IF(AND(INDIRECT(AH$22)>0,ISNUMBER(VLOOKUP($T12,Gender!$C$3:$BX$50,AH$8,FALSE))), VLOOKUP($T12,Gender!$C$3:$BX$50,AH$8,FALSE), NA())) -> 49.11 | AI12: =IF(OR(DD_new!$BC$2="A",DD_new!$BC$2="B",DD_new!$BC$2="Y"),NA(),IF(AND(INDIRECT(AI$22)>0,ISNUMBER(VLOOKUP($T12,Gender!$C$3:$BX$50,AI$8,FALSE))), VLOOKUP($T12,Gender!$C$3:$BX$50,AI$8,FALSE), NA())) -> 52.97 | AK12: =IF(AND(INDIRECT(AK$22)>0,ISNUMBER(VLOOKUP($T12,Gender!$C$3:$BX$50,AK$8,FALSE))), VLOOKUP($T12,Gender!$C$3:$BX$50,AK$8,FALSE), NA()) -> 34.88 | AL12: =IF(AND(INDIRECT(AL$22)>0,ISNUMBER(VLOOKUP($T12,Gender!$C$3:$BX$50,AL$8,FALSE))), VLOOKUP($T12,Gender!$C$3:$BX$50,AL$8,FALSE), NA()) -> 56.88 | AM12: =IF(AND(INDIRECT(AM$22)>0,ISNUMBER(VLOOKUP($T12,Gender!$C$3:$BX$50,AM$8,FALSE))), VLOOKUP($T12,Gender!$C$3:$BX$50,AM$8,FALSE), NA()) -> 32.92 | AN12: =IF(AND(INDIRECT(AN$22)>0,ISNUMBER(VLOOKUP($T12,Gender!$C$3:$BX$50,AN$8,FALSE))), VLOOKUP($T12,Gender!$C$3:$BX$50,AN$8,FALSE), NA()) -> 49.26 | AO12: =IF(OR(DD_new!$BC$2="A",DD_new!$BC$2="B",DD_new!$BC$2="Y"),NA(),IF(AND(INDIRECT(AO$22)>0,ISNUMBER(VLOOKUP($T12,Gender!$C$3:$BX$50,AO$8,FALSE))), VLOOKUP($T12,Gender!$C$3:$BX$50,AO$8,FALSE), NA())) -> 39.44 | AP12: =IF(OR(DD_new!$BC$2="A",DD_new!$BC$2="B",DD_new!$BC$2="Y"),NA(),IF(AND(INDIRECT(AP$22)>0,ISNUMBER(VLOOKUP($T12,Gender!$C$3:$BX$50,AP$8,FALSE))), VLOOKUP($T12,Gender!$C$3:$BX$50,AP$8,FALSE), NA())) -> 46.24 | AR12: =IF(AND(INDIRECT(AR$22)>0,ISNUMBER(VLOOKUP($T12,Gender!$C$3:$BX$50,AR$8,FALSE))), VLOOKUP($T12,Gender!$C$3:$BX$50,AR$8,FALSE), NA()) -> 36.08 | AS12: =IF(AND(INDIRECT(AS$22)>0,ISNUMBER(VLOOKUP($T12,Gender!$C$3:$BX$50,AS$8,FALSE))), VLOOKUP($T12,Gender!$C$3:$BX$50,AS$8,FALSE), NA()) -> 44.88 | AT12: =IF(AND(INDIRECT(AT$22)>0,ISNUMBER(VLOOKUP($T12,Gender!$C$3:$BX$50,AT$8,FALSE))), VLOOKUP($T12,Gender!$C$3:$BX$50,AT$8,FALSE), NA()) -> 42.01 | AU12: =IF(AND(INDIRECT(AU$22)>0,ISNUMBER(VLOOKUP($T12,Gender!$C$3:$BX$50,AU$8,FALSE))), VLOOKUP($T12,Gender!$C$3:$BX$50,AU$8,FALSE), NA()) -> 41.38 | AV12: =IF(OR(DD_new!$BC$2="A",DD_new!$BC$2="B",DD_new!$BC$2="Y"),NA(),IF(AND(INDIRECT(AV$22)>0,ISNUMBER(VLOOKUP($T12,Gender!$C$3:$BX$50,AV$8,FALSE))), VLOOKUP($T12,Gender!$C$3:$BX$50,AV$8,FALSE), NA())) -> 40.18 | AW12: =IF(OR(DD_new!$BC$2="A",DD_new!$BC$2="B",DD_new!$BC$2="Y"),NA(),IF(AND(INDIRECT(AW$22)>0,ISNUMBER(VLOOKUP($T12,Gender!$C$3:$BX$50,AW$8,FALSE))), VLOOKUP($T12,Gender!$C$3:$BX$50,AW$8,FALSE), NA())) -> 54.17 | AY12: =IF(AND(INDIRECT(AY$22)>0,ISNUMBER(VLOOKUP($T12,Gender!$C$3:$BX$50,AY$8,FALSE))), VLOOKUP($T12,Gender!$C$3:$BX$50,AY$8,FALSE), NA()) -> 42.16 | AZ12: =IF(AND(INDIRECT(AZ$22)>0,ISNUMBER(VLOOKUP($T12,Gender!$C$3:$BX$50,AZ$8,FALSE))), VLOOKUP($T12,Gender!$C$3:$BX$50,AZ$8,FALSE), NA()) -> 25.72 | BA12: =IF(AND(INDIRECT(BA$22)>0,ISNUMBER(VLOOKUP($T12,Gender!$C$3:$BX$50,BA$8,FALSE))), VLOOKUP($T12,Gender!$C$3:$BX$50,BA$8,FALSE), NA()) -> 37.21 | BB12: =IF(AND(INDIRECT(BB$22)>0,ISNUMBER(VLOOKUP($T12,Gender!$C$3:$BX$50,BB$8,FALSE))), VLOOKUP($T12,Gender!$C$3:$BX$50,BB$8,FALSE), NA()) -> 45.31 | BC12: =IF(OR(DD_new!$BC$2="A",DD_new!$BC$2="B",DD_new!$BC$2="Y"),NA(),IF(AND(INDIRECT(BC$22)>0,ISNUMBER(VLOOKUP($T12,Gender!$C$3:$BX$50,BC$8,FALSE))), VLOOKUP($T12,Gender!$C$3:$BX$50,BC$8,FALSE), NA())) -> 42.42 | BD12: =IF(OR(DD_new!$BC$2="A",DD_new!$BC$2="B",DD_new!$BC$2="Y"),NA(),IF(AND(INDIRECT(BD$22)>0,ISNUMBER(VLOOKUP($T12,Gender!$C$3:$BX$50,BD$8,FALSE))), VLOOKUP($T12,Gender!$C$3:$BX$50,BD$8,FALSE), NA())) -> 53.53 | BF12: =IF(AND(INDIRECT(BF$22)>0,ISNUMBER(VLOOKUP($T12,Gender!$C$3:$BX$50,BF$8,FALSE))), VLOOKUP($T12,Gender!$C$3:$BX$50,BF$8,FALSE), NA()) -> 40 | BG12: =IF(AND(INDIRECT(BG$22)>0,ISNUMBER(VLOOKUP($T12,Gender!$C$3:$BX$50,BG$8,FALSE))), VLOOKUP($T12,Gender!$C$3:$BX$50,BG$8,FALSE), NA()) -> 29 | BH12: =IF(AND(INDIRECT(BH$22)>0,ISNUMBER(VLOOKUP($T12,Gender!$C$3:$BX$50,BH$8,FALSE))), VLOOKUP($T12,Gender!$C$3:$BX$50,BH$8,FALSE), NA()) -> 33 | BI12: =IF(AND(INDIRECT(BI$22)>0,ISNUMBER(VLOOKUP($T12,Gender!$C$3:$BX$50,BI$8,FALSE))), VLOOKUP($T12,Gender!$C$3:$BX$50,BI$8,FALSE), NA()) -> 38 | BJ12: =IF(OR(DD_new!$BC$2="A",DD_new!$BC$2="B",DD_new!$BC$2="Y"),NA(),IF(AND(INDIRECT(BJ$22)>0,ISNUMBER(VLOOKUP($T12,Gender!$C$3:$BX$50,BJ$8,FALSE))), VLOOKUP($T12,Gender!$C$3:$BX$50,BJ$8,FALSE), NA())) -> 34 | BK12: =IF(OR(DD_new!$BC$2="A",DD_new!$BC$2="B",DD_new!$BC$2="Y"),NA(),IF(AND(INDIRECT(BK$22)>0,ISNUMBER(VLOOKUP($T12,Gender!$C$3:$BX$50,BK$8,FALSE))), VLOOKUP($T12,Gender!$C$3:$BX$50,BK$8,FALSE), NA())) -> 39 | BM12: =IF(AND(INDIRECT(BM$22)>0,ISNUMBER(VLOOKUP($T12,Gender!$C$3:$BX$50,BM$8,FALSE))), VLOOKUP($T12,Gender!$C$3:$BX$50,BM$8,FALSE), NA()) -> 9 | BN12: =IF(AND(INDIRECT(BN$22)>0,ISNUMBER(VLOOKUP($T12,Gender!$C$3:$BX$50,BN$8,FALSE))), VLOOKUP($T12,Gender!$C$3:$BX$50,BN$8,FALSE), NA()) -> 34 | BO12: =IF(AND(INDIRECT(BO$22)>0,ISNUMBER(VLOOKUP($T12,Gender!$C$3:$BX$50,BO$8,FALSE))), VLOOKUP($T12,Gender!$C$3:$BX$50,BO$8,FALSE), NA()) -> 32 | BP12: =IF(AND(INDIRECT(BP$22)>0,ISNUMBER(VLOOKUP($T12,Gender!$C$3:$BX$50,BP$8,FALSE))), VLOOKUP($T12,Gender!$C$3:$BX$50,BP$8,FALSE), NA()) -> 37 | BQ12: =IF(OR(DD_new!$BC$2="A",DD_new!$BC$2="B",DD_new!$BC$2="Y"),NA(),IF(AND(INDIRECT(BQ$22)>0,ISNUMBER(VLOOKUP($T12,Gender!$C$3:$BX$50,BQ$8,FALSE))), VLOOKUP($T12,Gender!$C$3:$BX$50,BQ$8,FALSE), NA())) -> 33 | BR12: =IF(OR(DD_new!$BC$2="A",DD_new!$BC$2="B",DD_new!$BC$2="Y"),NA(),IF(AND(INDIRECT(BR$22)>0,ISNUMBER(VLOOKUP($T12,Gender!$C$3:$BX$50,BR$8,FALSE))), VLOOKUP($T12,Gender!$C$3:$BX$50,BR$8,FALSE), NA())) -> 44 | BT12: =IF(AND(INDIRECT(BT$22)>0,ISNUMBER(VLOOKUP($T12,Gender!$C$3:$BX$50,BT$8,FALSE))), VLOOKUP($T12,Gender!$C$3:$BX$50,BT$8,FALSE), NA()) -> 53 | BU12: =IF(AND(INDIRECT(BU$22)>0,ISNUMBER(VLOOKUP($T12,Gender!$C$3:$BX$50,BU$8,FALSE))), VLOOKUP($T12,Gender!$C$3:$BX$50,BU$8,FALSE), NA()) -> 35 | BV12: =IF(AND(INDIRECT(BV$22)>0,ISNUMBER(VLOOKUP($T12,Gender!$C$3:$BX$50,BV$8,FALSE))), VLOOKUP($T12,Gender!$C$3:$BX$50,BV$8,FALSE), NA()) -> 45 | BW12: =IF(AND(INDIRECT(BW$22)>0,ISNUMBER(VLOOKUP($T12,Gender!$C$3:$BX$50,BW$8,FALSE))), VLOOKUP($T12,Gender!$C$3:$BX$50,BW$8,FALSE), NA()) -> 52 | BX12: =IF(OR(DD_new!$BC$2="A",DD_new!$BC$2="B",DD_new!$BC$2="Y"),NA(),IF(AND(INDIRECT(BX$22)>0,ISNUMBER(VLOOKUP($T12,Gender!$C$3:$BX$50,BX$8,FALSE))), VLOOKUP($T12,Gender!$C$3:$BX$50,BX$8,FALSE), NA())) -> 39 | BY12: =IF(OR(DD_new!$BC$2="A",DD_new!$BC$2="B",DD_new!$BC$2="Y"),NA(),IF(AND(INDIRECT(BY$22)>0,ISNUMBER(VLOOKUP($T12,Gender!$C$3:$BX$50,BY$8,FALSE))), VLOOKUP($T12,Gender!$C$3:$BX$50,BY$8,FALSE), NA())) -> 45 | CA12: =IF(AND(INDIRECT(CA$22)>0,ISNUMBER(VLOOKUP($T12,Gender!$C$3:$BX$50,CA$8,FALSE))), VLOOKUP($T12,Gender!$C$3:$BX$50,CA$8,FALSE), NA()) ->  | CB12: =IF(AND(INDIRECT(CB$22)>0,ISNUMBER(VLOOKUP($T12,Gender!$C$3:$BX$50,CB$8,FALSE))), VLOOKUP($T12,Gender!$C$3:$BX$50,CB$8,FALSE), NA()) ->  | CC12: =IF(AND(INDIRECT(CC$22)>0,ISNUMBER(VLOOKUP($T12,Gender!$C$3:$BX$50,CC$8,FALSE))), VLOOKUP($T12,Gender!$C$3:$BX$50,CC$8,FALSE), NA()) ->  | CD12: =IF(AND(INDIRECT(CD$22)>0,ISNUMBER(VLOOKUP($T12,Gender!$C$3:$BX$50,CD$8,FALSE))), VLOOKUP($T12,Gender!$C$3:$BX$50,CD$8,FALSE), NA()) ->  | CE12: =IF(OR(DD_new!$BC$2="A",DD_new!$BC$2="B",DD_new!$BC$2="Y"),NA(),IF(AND(INDIRECT(CE$22)>0,ISNUMBER(VLOOKUP($T12,Gender!$C$3:$BX$50,CE$8,FALSE))), VLOOKUP($T12,Gender!$C$3:$BX$50,CE$8,FALSE), NA())) ->  | CF12: =IF(OR(DD_new!$BC$2="A",DD_new!$BC$2="B",DD_new!$BC$2="Y"),NA(),IF(AND(INDIRECT(CF$22)>0,ISNUMBER(VLOOKUP($T12,Gender!$C$3:$BX$50,CF$8,FALSE))), VLOOKUP($T12,Gender!$C$3:$BX$50,CF$8,FALSE), NA())) ->  | CH12: =IF(AND(INDIRECT(CH$22)>0,ISNUMBER(VLOOKUP($T12,Gender!$C$3:$BX$50,CH$8,FALSE))), VLOOKUP($T12,Gender!$C$3:$BX$50,CH$8,FALSE), NA()) ->  | CI12: =IF(AND(INDIRECT(CI$22)>0,ISNUMBER(VLOOKUP($T12,Gender!$C$3:$BX$50,CI$8,FALSE))), VLOOKUP($T12,Gender!$C$3:$BX$50,CI$8,FALSE), NA()) ->  | CJ12: =IF(AND(INDIRECT(CJ$22)>0,ISNUMBER(VLOOKUP($T12,Gender!$C$3:$BX$50,CJ$8,FALSE))), VLOOKUP($T12,Gender!$C$3:$BX$50,CJ$8,FALSE), NA()) ->  | CK12: =IF(AND(INDIRECT(CK$22)>0,ISNUMBER(VLOOKUP($T12,Gender!$C$3:$BX$50,CK$8,FALSE))), VLOOKUP($T12,Gender!$C$3:$BX$50,CK$8,FALSE), NA()) ->  | CL12: =IF(OR(DD_new!$BC$2="A",DD_new!$BC$2="B",DD_new!$BC$2="Y"),NA(),IF(AND(INDIRECT(CL$22)>0,ISNUMBER(VLOOKUP($T12,Gender!$C$3:$BX$50,CL$8,FALSE))), VLOOKUP($T12,Gender!$C$3:$BX$50,CL$8,FALSE), NA())) ->  | CM12: =IF(OR(DD_new!$BC$2="A",DD_new!$BC$2="B",DD_new!$BC$2="Y"),NA(),IF(AND(INDIRECT(CM$22)>0,ISNUMBER(VLOOKUP($T12,Gender!$C$3:$BX$50,CM$8,FALSE))), VLOOKUP($T12,Gender!$C$3:$BX$50,CM$8,FALSE), NA())) ->  | CN12: q1-min
N13: =IFERROR(INDEX(P:P,SMALL(INDEX(NOT(ISNA($P$3:$P$15))*ROW($P$3:$P$15),0),COUNTIF($P$3:$P$15,NA())+ROW(P11))),"") ->  | O13: 13 | Q13: =IFERROR(INDEX(INDIRECT("$N$3:$N$12"),MATCH(0,COUNTIF($Q$2:Q12,INDIRECT("$N$3:$N$12")),0)),"") ->  | R13: =DD_new!$BD$2 -> 1 | S13: 5 | T13: =R13&"."&S13 -> 1.5 | W13: =IF(AND(INDIRECT(W$22)>0,ISNUMBER(VLOOKUP($T13,Gender!$C$3:$BX$50,W$8,FALSE))), VLOOKUP($T13,Gender!$C$3:$BX$50,W$8,FALSE), NA()) -> 47 | X13: =IF(AND(INDIRECT(X$22)>0,ISNUMBER(VLOOKUP($T13,Gender!$C$3:$BX$50,X$8,FALSE))), VLOOKUP($T13,Gender!$C$3:$BX$50,X$8,FALSE), NA()) -> 27.5 | Y13: =IF(AND(INDIRECT(Y$22)>0,ISNUMBER(VLOOKUP($T13,Gender!$C$3:$BX$50,Y$8,FALSE))), VLOOKUP($T13,Gender!$C$3:$BX$50,Y$8,FALSE), NA()) -> 52 | Z13: =IF(AND(INDIRECT(Z$22)>0,ISNUMBER(VLOOKUP($T13,Gender!$C$3:$BX$50,Z$8,FALSE))), VLOOKUP($T13,Gender!$C$3:$BX$50,Z$8,FALSE), NA()) -> 42 | AA13: =IF(OR(DD_new!$BC$2="A",DD_new!$BC$2="B",DD_new!$BC$2="Y"),NA(),IF(AND(INDIRECT(AA$22)>0,ISNUMBER(VLOOKUP($T13,Gender!$C$3:$BX$50,AA$8,FALSE))), VLOOKUP($T13,Gender!$C$3:$BX$50,AA$8,FALSE), NA())) -> 33 | AB13: =IF(OR(DD_new!$BC$2="A",DD_new!$BC$2="B",DD_new!$BC$2="Y"),NA(),IF(AND(INDIRECT(AB$22)>0,ISNUMBER(VLOOKUP($T13,Gender!$C$3:$BX$50,AB$8,FALSE))), VLOOKUP($T13,Gender!$C$3:$BX$50,AB$8,FALSE), NA())) -> 46 | AD13: =IF(AND(INDIRECT(AD$22)>0,ISNUMBER(VLOOKUP($T13,Gender!$C$3:$BX$50,AD$8,FALSE))), VLOOKUP($T13,Gender!$C$3:$BX$50,AD$8,FALSE), NA()) -> 56 | AE13: =IF(AND(INDIRECT(AE$22)>0,ISNUMBER(VLOOKUP($T13,Gender!$C$3:$BX$50,AE$8,FALSE))), VLOOKUP($T13,Gender!$C$3:$BX$50,AE$8,FALSE), NA()) -> 47 | AF13: =IF(AND(INDIRECT(AF$22)>0,ISNUMBER(VLOOKUP($T13,Gender!$C$3:$BX$50,AF$8,FALSE))), VLOOKUP($T13,Gender!$C$3:$BX$50,AF$8,FALSE), NA()) -> 45 | AG13: =IF(AND(INDIRECT(AG$22)>0,ISNUMBER(VLOOKUP($T13,Gender!$C$3:$BX$50,AG$8,FALSE))), VLOOKUP($T13,Gender!$C$3:$BX$50,AG$8,FALSE), NA()) -> 56 | AH13: =IF(OR(DD_new!$BC$2="A",DD_new!$BC$2="B",DD_new!$BC$2="Y"),NA(),IF(AND(INDIRECT(AH$22)>0,ISNUMBER(VLOOKUP($T13,Gender!$C$3:$BX$50,AH$8,FALSE))), VLOOKUP($T13,Gender!$C$3:$BX$50,AH$8,FALSE), NA())) -> 46 | AI13: =IF(OR(DD_new!$BC$2="A",DD_new!$BC$2="B",DD_new!$BC$2="Y"),NA(),IF(AND(INDIRECT(AI$22)>0,ISNUMBER(VLOOKUP($T13,Gender!$C$3:$BX$50,AI$8,FALSE))), VLOOKUP($T13,Gender!$C$3:$BX$50,AI$8,FALSE), NA())) -> 50 | AK13: =IF(AND(INDIRECT(AK$22)>0,ISNUMBER(VLOOKUP($T13,Gender!$C$3:$BX$50,AK$8,FALSE))), VLOOKUP($T13,Gender!$C$3:$BX$50,AK$8,FALSE), NA()) -> 38 | AL13: =IF(AND(INDIRECT(AL$22)>0,ISNUMBER(VLOOKUP($T13,Gender!$C$3:$BX$50,AL$8,FALSE))), VLOOKUP($T13,Gender!$C$3:$BX$50,AL$8,FALSE), NA()) -> 61.5 | AM13: =IF(AND(INDIRECT(AM$22)>0,ISNUMBER(VLOOKUP($T13,Gender!$C$3:$BX$50,AM$8,FALSE))), VLOOKUP($T13,Gender!$C$3:$BX$50,AM$8,FALSE), NA()) -> 43 | AN13: =IF(AND(INDIRECT(AN$22)>0,ISNUMBER(VLOOKUP($T13,Gender!$C$3:$BX$50,AN$8,FALSE))), VLOOKUP($T13,Gender!$C$3:$BX$50,AN$8,FALSE), NA()) -> 52 | AO13: =IF(OR(DD_new!$BC$2="A",DD_new!$BC$2="B",DD_new!$BC$2="Y"),NA(),IF(AND(INDIRECT(AO$22)>0,ISNUMBER(VLOOKUP($T13,Gender!$C$3:$BX$50,AO$8,FALSE))), VLOOKUP($T13,Gender!$C$3:$BX$50,AO$8,FALSE), NA())) -> 59 | AP13: =IF(OR(DD_new!$BC$2="A",DD_new!$BC$2="B",DD_new!$BC$2="Y"),NA(),IF(AND(INDIRECT(AP$22)>0,ISNUMBER(VLOOKUP($T13,Gender!$C$3:$BX$50,AP$8,FALSE))), VLOOKUP($T13,Gender!$C$3:$BX$50,AP$8,FALSE), NA())) -> 65 | AR13: =IF(AND(INDIRECT(AR$22)>0,ISNUMBER(VLOOKUP($T13,Gender!$C$3:$BX$50,AR$8,FALSE))), VLOOKUP($T13,Gender!$C$3:$BX$50,AR$8,FALSE), NA()) -> 50 | AS13: =IF(AND(INDIRECT(AS$22)>0,ISNUMBER(VLOOKUP($T13,Gender!$C$3:$BX$50,AS$8,FALSE))), VLOOKUP($T13,Gender!$C$3:$BX$50,AS$8,FALSE), NA()) -> 47 | AT13: =IF(AND(INDIRECT(AT$22)>0,ISNUMBER(VLOOKUP($T13,Gender!$C$3:$BX$50,AT$8,FALSE))), VLOOKUP($T13,Gender!$C$3:$BX$50,AT$8,FALSE), NA()) -> 50 | AU13: =IF(AND(INDIRECT(AU$22)>0,ISNUMBER(VLOOKUP($T13,Gender!$C$3:$BX$50,AU$8,FALSE))), VLOOKUP($T13,Gender!$C$3:$BX$50,AU$8,FALSE), NA()) -> 66 | AV13: =IF(OR(DD_new!$BC$2="A",DD_new!$BC$2="B",DD_new!$BC$2="Y"),NA(),IF(AND(INDIRECT(AV$22)>0,ISNUMBER(VLOOKUP($T13,Gender!$C$3:$BX$50,AV$8,FALSE))), VLOOKUP($T13,Gender!$C$3:$BX$50,AV$8,FALSE), NA())) -> 62 | AW13: =IF(OR(DD_new!$BC$2="A",DD_new!$BC$2="B",DD_new!$BC$2="Y"),NA(),IF(AND(INDIRECT(AW$22)>0,ISNUMBER(VLOOKUP($T13,Gender!$C$3:$BX$50,AW$8,FALSE))), VLOOKUP($T13,Gender!$C$3:$BX$50,AW$8,FALSE), NA())) -> 58 | AY13: =IF(AND(INDIRECT(AY$22)>0,ISNUMBER(VLOOKUP($T13,Gender!$C$3:$BX$50,AY$8,FALSE))), VLOOKUP($T13,Gender!$C$3:$BX$50,AY$8,FALSE), NA()) -> 40 | AZ13: =IF(AND(INDIRECT(AZ$22)>0,ISNUMBER(VLOOKUP($T13,Gender!$C$3:$BX$50,AZ$8,FALSE))), VLOOKUP($T13,Gender!$C$3:$BX$50,AZ$8,FALSE), NA()) -> 89 | BA13: =IF(AND(INDIRECT(BA$22)>0,ISNUMBER(VLOOKUP($T13,Gender!$C$3:$BX$50,BA$8,FALSE))), VLOOKUP($T13,Gender!$C$3:$BX$50,BA$8,FALSE), NA()) -> 48 | BB13: =IF(AND(INDIRECT(BB$22)>0,ISNUMBER(VLOOKUP($T13,Gender!$C$3:$BX$50,BB$8,FALSE))), VLOOKUP($T13,Gender!$C$3:$BX$50,BB$8,FALSE), NA()) -> 52 | BC13: =IF(OR(DD_new!$BC$2="A",DD_new!$BC$2="B",DD_new!$BC$2="Y"),NA(),IF(AND(INDIRECT(BC$22)>0,ISNUMBER(VLOOKUP($T13,Gender!$C$3:$BX$50,BC$8,FALSE))), VLOOKUP($T13,Gender!$C$3:$BX$50,BC$8,FALSE), NA())) -> 46 | BD13: =IF(OR(DD_new!$BC$2="A",DD_new!$BC$2="B",DD_new!$BC$2="Y"),NA(),IF(AND(INDIRECT(BD$22)>0,ISNUMBER(VLOOKUP($T13,Gender!$C$3:$BX$50,BD$8,FALSE))), VLOOKUP($T13,Gender!$C$3:$BX$50,BD$8,FALSE), NA())) -> 40 | BF13: =IF(AND(INDIRECT(BF$22)>0,ISNUMBER(VLOOKUP($T13,Gender!$C$3:$BX$50,BF$8,FALSE))), VLOOKUP($T13,Gender!$C$3:$BX$50,BF$8,FALSE), NA()) -> 66 | BG13: =IF(AND(INDIRECT(BG$22)>0,ISNUMBER(VLOOKUP($T13,Gender!$C$3:$BX$50,BG$8,FALSE))), VLOOKUP($T13,Gender!$C$3:$BX$50,BG$8,FALSE), NA()) -> 60 | BH13: =IF(AND(INDIRECT(BH$22)>0,ISNUMBER(VLOOKUP($T13,Gender!$C$3:$BX$50,BH$8,FALSE))), VLOOKUP($T13,Gender!$C$3:$BX$50,BH$8,FALSE), NA()) -> 36 | BI13: =IF(AND(INDIRECT(BI$22)>0,ISNUMBER(VLOOKUP($T13,Gender!$C$3:$BX$50,BI$8,FALSE))), VLOOKUP($T13,Gender!$C$3:$BX$50,BI$8,FALSE), NA()) -> 47 | BJ13: =IF(OR(DD_new!$BC$2="A",DD_new!$BC$2="B",DD_new!$BC$2="Y"),NA(),IF(AND(INDIRECT(BJ$22)>0,ISNUMBER(VLOOKUP($T13,Gender!$C$3:$BX$50,BJ$8,FALSE))), VLOOKUP($T13,Gender!$C$3:$BX$50,BJ$8,FALSE), NA())) -> 39 | BK13: =IF(OR(DD_new!$BC$2="A",DD_new!$BC$2="B",DD_new!$BC$2="Y"),NA(),IF(AND(INDIRECT(BK$22)>0,ISNUMBER(VLOOKUP($T13,Gender!$C$3:$BX$50,BK$8,FALSE))), VLOOKUP($T13,Gender!$C$3:$BX$50,BK$8,FALSE), NA())) -> 50 | BM13: =IF(AND(INDIRECT(BM$22)>0,ISNUMBER(VLOOKUP($T13,Gender!$C$3:$BX$50,BM$8,FALSE))), VLOOKUP($T13,Gender!$C$3:$BX$50,BM$8,FALSE), NA()) -> 53 | BN13: =IF(AND(INDIRECT(BN$22)>0,ISNUMBER(VLOOKUP($T13,Gender!$C$3:$BX$50,BN$8,FALSE))), VLOOKUP($T13,Gender!$C$3:$BX$50,BN$8,FALSE), NA()) -> 14 | BO13: =IF(AND(INDIRECT(BO$22)>0,ISNUMBER(VLOOKUP($T13,Gender!$C$3:$BX$50,BO$8,FALSE))), VLOOKUP($T13,Gender!$C$3:$BX$50,BO$8,FALSE), NA()) -> 29 | BP13: =IF(AND(INDIRECT(BP$22)>0,ISNUMBER(VLOOKUP($T13,Gender!$C$3:$BX$50,BP$8,FALSE))), VLOOKUP($T13,Gender!$C$3:$BX$50,BP$8,FALSE), NA()) -> 47 | BQ13: =IF(OR(DD_new!$BC$2="A",DD_new!$BC$2="B",DD_new!$BC$2="Y"),NA(),IF(AND(INDIRECT(BQ$22)>0,ISNUMBER(VLOOKUP($T13,Gender!$C$3:$BX$50,BQ$8,FALSE))), VLOOKUP($T13,Gender!$C$3:$BX$50,BQ$8,FALSE), NA())) -> 37 | BR13: =IF(OR(DD_new!$BC$2="A",DD_new!$BC$2="B",DD_new!$BC$2="Y"),NA(),IF(AND(INDIRECT(BR$22)>0,ISNUMBER(VLOOKUP($T13,Gender!$C$3:$BX$50,BR$8,FALSE))), VLOOKUP($T13,Gender!$C$3:$BX$50,BR$8,FALSE), NA())) -> 49 | BT13: =IF(AND(INDIRECT(BT$22)>0,ISNUMBER(VLOOKUP($T13,Gender!$C$3:$BX$50,BT$8,FALSE))), VLOOKUP($T13,Gender!$C$3:$BX$50,BT$8,FALSE), NA()) -> 35 | BU13: =IF(AND(INDIRECT(BU$22)>0,ISNUMBER(VLOOKUP($T13,Gender!$C$3:$BX$50,BU$8,FALSE))), VLOOKUP($T13,Gender!$C$3:$BX$50,BU$8,FALSE), NA()) -> 72 | BV13: =IF(AND(INDIRECT(BV$22)>0,ISNUMBER(VLOOKUP($T13,Gender!$C$3:$BX$50,BV$8,FALSE))), VLOOKUP($T13,Gender!$C$3:$BX$50,BV$8,FALSE), NA()) -> 58 | BW13: =IF(AND(INDIRECT(BW$22)>0,ISNUMBER(VLOOKUP($T13,Gender!$C$3:$BX$50,BW$8,FALSE))), VLOOKUP($T13,Gender!$C$3:$BX$50,BW$8,FALSE), NA()) -> 62 | BX13: =IF(OR(DD_new!$BC$2="A",DD_new!$BC$2="B",DD_new!$BC$2="Y"),NA(),IF(AND(INDIRECT(BX$22)>0,ISNUMBER(VLOOKUP($T13,Gender!$C$3:$BX$50,BX$8,FALSE))), VLOOKUP($T13,Gender!$C$3:$BX$50,BX$8,FALSE), NA())) -> 38 | BY13: =IF(OR(DD_new!$BC$2="A",DD_new!$BC$2="B",DD_new!$BC$2="Y"),NA(),IF(AND(INDIRECT(BY$22)>0,ISNUMBER(VLOOKUP($T13,Gender!$C$3:$BX$50,BY$8,FALSE))), VLOOKUP($T13,Gender!$C$3:$BX$50,BY$8,FALSE), NA())) -> 49 | CA13: =IF(AND(INDIRECT(CA$22)>0,ISNUMBER(VLOOKUP($T13,Gender!$C$3:$BX$50,CA$8,FALSE))), VLOOKUP($T13,Gender!$C$3:$BX$50,CA$8,FALSE), NA()) ->  | CB13: =IF(AND(INDIRECT(CB$22)>0,ISNUMBER(VLOOKUP($T13,Gender!$C$3:$BX$50,CB$8,FALSE))), VLOOKUP($T13,Gender!$C$3:$BX$50,CB$8,FALSE), NA()) ->  | CC13: =IF(AND(INDIRECT(CC$22)>0,ISNUMBER(VLOOKUP($T13,Gender!$C$3:$BX$50,CC$8,FALSE))), VLOOKUP($T13,Gender!$C$3:$BX$50,CC$8,FALSE), NA()) ->  | CD13: =IF(AND(INDIRECT(CD$22)>0,ISNUMBER(VLOOKUP($T13,Gender!$C$3:$BX$50,CD$8,FALSE))), VLOOKUP($T13,Gender!$C$3:$BX$50,CD$8,FALSE), NA()) ->  | CE13: =IF(OR(DD_new!$BC$2="A",DD_new!$BC$2="B",DD_new!$BC$2="Y"),NA(),IF(AND(INDIRECT(CE$22)>0,ISNUMBER(VLOOKUP($T13,Gender!$C$3:$BX$50,CE$8,FALSE))), VLOOKUP($T13,Gender!$C$3:$BX$50,CE$8,FALSE), NA())) ->  | CF13: =IF(OR(DD_new!$BC$2="A",DD_new!$BC$2="B",DD_new!$BC$2="Y"),NA(),IF(AND(INDIRECT(CF$22)>0,ISNUMBER(VLOOKUP($T13,Gender!$C$3:$BX$50,CF$8,FALSE))), VLOOKUP($T13,Gender!$C$3:$BX$50,CF$8,FALSE), NA())) ->  | CH13: =IF(AND(INDIRECT(CH$22)>0,ISNUMBER(VLOOKUP($T13,Gender!$C$3:$BX$50,CH$8,FALSE))), VLOOKUP($T13,Gender!$C$3:$BX$50,CH$8,FALSE), NA()) ->  | CI13: =IF(AND(INDIRECT(CI$22)>0,ISNUMBER(VLOOKUP($T13,Gender!$C$3:$BX$50,CI$8,FALSE))), VLOOKUP($T13,Gender!$C$3:$BX$50,CI$8,FALSE), NA()) ->  | CJ13: =IF(AND(INDIRECT(CJ$22)>0,ISNUMBER(VLOOKUP($T13,Gender!$C$3:$BX$50,CJ$8,FALSE))), VLOOKUP($T13,Gender!$C$3:$BX$50,CJ$8,FALSE), NA()) ->  | CK13: =IF(AND(INDIRECT(CK$22)>0,ISNUMBER(VLOOKUP($T13,Gender!$C$3:$BX$50,CK$8,FALSE))), VLOOKUP($T13,Gender!$C$3:$BX$50,CK$8,FALSE), NA()) ->  | CL13: =IF(OR(DD_new!$BC$2="A",DD_new!$BC$2="B",DD_new!$BC$2="Y"),NA(),IF(AND(INDIRECT(CL$22)>0,ISNUMBER(VLOOKUP($T13,Gender!$C$3:$BX$50,CL$8,FALSE))), VLOOKUP($T13,Gender!$C$3:$BX$50,CL$8,FALSE), NA())) ->  | CM13: =IF(OR(DD_new!$BC$2="A",DD_new!$BC$2="B",DD_new!$BC$2="Y"),NA(),IF(AND(INDIRECT(CM$22)>0,ISNUMBER(VLOOKUP($T13,Gender!$C$3:$BX$50,CM$8,FALSE))), VLOOKUP($T13,Gender!$C$3:$BX$50,CM$8,FALSE), NA())) ->  | CN13: max-q3
C14: =Gender!$F$93 ->  | O14: 14 | Q14: =IFERROR(INDEX(INDIRECT("$N$3:$N$12"),MATCH(0,COUNTIF($Q$2:Q13,INDIRECT("$N$3:$N$12")),0)),"") ->  | S14: col | T14: 10 | U14: Male | AB14: =IF(OR(DD_new!$BC$2="A",DD_new!$BC$2="B"), NA(), AVERAGEIFS($L$17:$L$36,$C$17:$C$36,X$20,$D$17:$D$36,$U14)) -> 421 | AI14: =IF(OR(DD_new!$BC$2="A",DD_new!$BC$2="B"), NA(), AVERAGEIFS($L$17:$L$36,$C$17:$C$36,AE$20,$D$17:$D$36,$U14)) -> 453 | AP14: =IF(OR(DD_new!$BC$2="A",DD_new!$BC$2="B"), NA(), AVERAGEIFS($L$17:$L$36,$C$17:$C$36,AL$20,$D$17:$D$36,$U14)) -> 493 | AW14: =IF(OR(DD_new!$BC$2="A",DD_new!$BC$2="B"), NA(), AVERAGEIFS($L$17:$L$36,$C$17:$C$36,AS$20,$D$17:$D$36,$U14)) -> 528 | BD14: =IF(OR(DD_new!$BC$2="A",DD_new!$BC$2="B"), NA(), AVERAGEIFS($L$17:$L$36,$C$17:$C$36,AZ$20,$D$17:$D$36,$U14)) -> 539 | BK14: =IF(OR(DD_new!$BC$2="A",DD_new!$BC$2="B"), NA(), AVERAGEIFS($L$17:$L$36,$C$17:$C$36,BG$20,$D$17:$D$36,$U14)) -> 576 | BR14: =IF(OR(DD_new!$BC$2="A",DD_new!$BC$2="B"), NA(), AVERAGEIFS($L$17:$L$36,$C$17:$C$36,BN$20,$D$17:$D$36,$U14)) -> 594 | BY14: =IF(OR(DD_new!$BC$2="A",DD_new!$BC$2="B"), NA(), AVERAGEIFS($L$17:$L$36,$C$17:$C$36,BU$20,$D$17:$D$36,$U14)) -> 614 | CF14: =IF(OR(DD_new!$BC$2="A",DD_new!$BC$2="B"), NA(), AVERAGEIFS($L$17:$L$36,$C$17:$C$36,CB$20,$D$17:$D$36,$U14)) ->  | CM14: =IF(OR(DD_new!$BC$2="A",DD_new!$BC$2="B"), NA(), AVERAGEIFS($L$17:$L$36,$C$17:$C$36,CI$20,$D$17:$D$36,$U14)) ->  | CN14: =R1 -> Scale Score Means in All IBT Schools by Test Level
C15: =IF(DD_new!$BC$2="B","Test Level","Grade") -> Grade | D15: Gender | E15: =DD!B4 -> IBT_SAMPLESCHOOL | G15: International School of Bangkok | H15: ="All Schools in "&DD!B6 -> All Schools in MIDDLE EAST | K15: All IBT Schools | O15: 15 | Q15: =IFERROR(INDEX(INDIRECT("$N$3:$N$12"),MATCH(0,COUNTIF($Q$2:Q14,INDIRECT("$N$3:$N$12")),0)),"") ->  | S15: =COUNT(U16:CM16) -> 8 | T15: 10 | U15: Female | AA15: =IF(OR(DD_new!$BC$2="A",DD_new!$BC$2="B"), NA(), AVERAGEIFS($L$17:$L$36,$C$17:$C$36,X$20,$D$17:$D$36,$U15)) -> 420 | AH15: =IF(OR(DD_new!$BC$2="A",DD_new!$BC$2="B"), NA(), AVERAGEIFS($L$17:$L$36,$C$17:$C$36,AE$20,$D$17:$D$36,$U15)) -> 447 | AO15: =IF(OR(DD_new!$BC$2="A",DD_new!$BC$2="B"), NA(), AVERAGEIFS($L$17:$L$36,$C$17:$C$36,AL$20,$D$17:$D$36,$U15)) -> 482 | AV15: =IF(DD_new!$BC$2="A", NA(), AVERAGEIFS($L$17:$L$36,$C$17:$C$36,AS$20,$D$17:$D$36,$U15)) -> 521 | BC15: =IF(OR(DD_new!$BC$2="A",DD_new!$BC$2="B"), NA(), AVERAGEIFS($L$17:$L$36,$C$17:$C$36,AZ$20,$D$17:$D$36,$U15)) -> 534 | BJ15: =IF(OR(DD_new!$BC$2="A",DD_new!$BC$2="B"), NA(), AVERAGEIFS($L$17:$L$36,$C$17:$C$36,BG$20,$D$17:$D$36,$U15)) -> 566 | BQ15: =IF(OR(DD_new!$BC$2="A",DD_new!$BC$2="B"), NA(), AVERAGEIFS($L$17:$L$36,$C$17:$C$36,BN$20,$D$17:$D$36,$U15)) -> 583 | BX15: =IF(OR(DD_new!$BC$2="A",DD_new!$BC$2="B"), NA(), AVERAGEIFS($L$17:$L$36,$C$17:$C$36,BU$20,$D$17:$D$36,$U15)) -> 605 | CE15: =IF(OR(DD_new!$BC$2="A",DD_new!$BC$2="B"), NA(), AVERAGEIFS($L$17:$L$36,$C$17:$C$36,CB$20,$D$17:$D$36,$U15)) ->  | CL15: =IF(OR(DD_new!$BC$2="A",DD_new!$BC$2="B"), NA(), AVERAGEIFS($L$17:$L$36,$C$17:$C$36,CI$20,$D$17:$D$36,$U15)) ->  | CN15: =R2 -> Scale Score Means in All Schools in MIDDLE EAST by Test Level
E16: N | F16: Scale M | G16: Scale SD | H16: N | I16: Scale M | J16: Scale SD | K16: N | L16: Scale M | M16: Scale SD | T16: 7 | U16: Male | Z16: =AVERAGEIFS($I$17:$I$36,$C$17:$C$36,X$20,$D$17:$D$36,$U16) -> 428 | AG16: =AVERAGEIFS($I$17:$I$36,$C$17:$C$36,AE$20,$D$17:$D$36,$U16) -> 457 | AN16: =AVERAGEIFS($I$17:$I$36,$C$17:$C$36,AL$20,$D$17:$D$36,$U16) -> 494 | AU16: =AVERAGEIFS($I$17:$I$36,$C$17:$C$36,AS$20,$D$17:$D$36,$U16) -> 520 | BB16: =AVERAGEIFS($I$17:$I$36,$C$17:$C$36,AZ$20,$D$17:$D$36,$U16) -> 542 | BI16: =AVERAGEIFS($I$17:$I$36,$C$17:$C$36,BG$20,$D$17:$D$36,$U16) -> 570 | BP16: =AVERAGEIFS($I$17:$I$36,$C$17:$C$36,BN$20,$D$17:$D$36,$U16) -> 580 | BW16: =AVERAGEIFS($I$17:$I$36,$C$17:$C$36,BU$20,$D$17:$D$36,$U16) -> 621 | CD16: =AVERAGEIFS($I$17:$I$36,$C$17:$C$36,CB$20,$D$17:$D$36,$U16) ->  | CK16: =AVERAGEIFS($I$17:$I$36,$C$17:$C$36,CI$20,$D$17:$D$36,$U16) ->  | CN16: =R4 -> IBT_SAMPLESCHOOL Scale Score Means by Grade by Gender Math
C17: =IF(ISNUMBER(IBT_SchStats_Gender!Q3), IF(DD_new!$BC$2="B","Test Level ","Grade ") &IBT_SchStats_Gender!Q3,"") -> Grade 3 | D17: =IF(C17="","","Female") -> Female | E17: =IF(ISNUMBER(IBT_SchStats_Gender!$Q3),IF(AVERAGEIFS(Gender!$Q$65:$Q$88,Gender!$A$65:$A$88,IBT_SchStats_Gender!$Q3,Gender!$C$65:$C$88,MID(IBT_SchStats_Gender!$D17,1,1))>0,AVERAGEIFS(Gender!$F$65:$F$88,Gender!$A$65:$A$88,IBT_SchStats_Gender!$Q3,Gender!$C$65:$C$88,MID(IBT_SchStats_Gender!$D17,1,1)) + AVERAGEIFS(Gender!$Q$65:$Q$88,Gender!$A$65:$A$88,IBT_SchStats_Gender!$Q3,Gender!$C$65:$C$88,MID(IBT_SchStats_Gender!$D17,1,1)) &"("& AVERAGEIFS(Gender!$Q$65:$Q$88,Gender!$A$65:$A$88,IBT_SchStats_Gender!$Q3,Gender!$C$65:$C$88,MID(IBT_SchStats_Gender!$D17,1,1)) &")", AVERAGEIFS(Gender!$F$65:$F$88,Gender!$A$65:$A$88,IBT_SchStats_Gender!$Q3,Gender!$C$65:$C$88,MID(IBT_SchStats_Gender!$D17,1,1))),"") -> 18 | F17: =IFERROR(IF(AVERAGEIFS(Gender!$F$65:$F$88,Gender!$A$65:$A$88,IBT_SchStats_Gender!$Q3,Gender!$C$65:$C$88,MID(IBT_SchStats_Gender!$D17,1,1))<15,"n/a*",IF(ISNUMBER(IBT_SchStats_Gender!$Q3),AVERAGEIFS(Gender!$G$65:$G$88,Gender!$A$65:$A$88,IBT_SchStats_Gender!$Q3,Gender!$C$65:$C$88,MID(IBT_SchStats_Gender!$D17,1,1)),"")),"") -> 442 | G17: =IFERROR(IF(AVERAGEIFS(Gender!$F$65:$F$88,Gender!$A$65:$A$88,IBT_SchStats_Gender!$Q3,Gender!$C$65:$C$88,MID(IBT_SchStats_Gender!$D17,1,1))<15,"n/a*",IF(ISNUMBER(IBT_SchStats_Gender!$Q3),AVERAGEIFS(Gender!$H$65:$H$88,Gender!$A$65:$A$88,IBT_SchStats_Gender!$Q3,Gender!$C$65:$C$88,MID(IBT_SchStats_Gender!$D17,1,1)),"")),"") -> 66 | H17: =IFERROR(IF(ISNUMBER(IBT_SchStats_Gender!$Q3),AVERAGEIFS(Gender!$J$65:$J$88,Gender!$A$65:$A$88,IBT_SchStats_Gender!$Q3,Gender!$C$65:$C$88,MID(IBT_SchStats_Gender!$D17,1,1)),""),"n/a*") -> 1016 | I17: =IFERROR(IF($H17<15,"n/a*",IF(ISNUMBER(IBT_SchStats_Gender!$Q3),AVERAGEIFS(Gender!$K$65:$K$88,Gender!$A$65:$A$88,IBT_SchStats_Gender!$Q3,Gender!$C$65:$C$88,MID(IBT_SchStats_Gender!$D17,1,1)),"")),"n/a*") -> 422 | J17: =IFERROR(IF($H17<15,"n/a*",IF(ISNUMBER(IBT_SchStats_Gender!$Q3),AVERAGEIFS(Gender!$L$65:$L$88,Gender!$A$65:$A$88,IBT_SchStats_Gender!$Q3,Gender!$C$65:$C$88,MID(IBT_SchStats_Gender!$D17,1,1)),"")),"n/a*") -> 66 | K17: =IFERROR(IF(ISNUMBER(IBT_SchStats_Gender!$Q3),AVERAGEIFS(Gender!$N$65:$N$88,Gender!$A$65:$A$88,IBT_SchStats_Gender!$Q3,Gender!$C$65:$C$88,MID(IBT_SchStats_Gender!$D17,1,1)),""),"n/a*") -> 5071 | L17: =IFERROR(IF($K17<15,"n/a*",IF(ISNUMBER(IBT_SchStats_Gender!$Q3),AVERAGEIFS(Gender!$O$65:$O$88,Gender!$A$65:$A$88,IBT_SchStats_Gender!$Q3,Gender!$C$65:$C$88,MID(IBT_SchStats_Gender!$D17,1,1)),"")),"n/a*") -> 420 | M17: =IFERROR(IF($K17<15,"n/a*",IF(ISNUMBER(IBT_SchStats_Gender!$Q3),AVERAGEIFS(Gender!$P$65:$P$88,Gender!$A$65:$A$88,IBT_SchStats_Gender!$Q3,Gender!$C$65:$C$88,MID(IBT_SchStats_Gender!$D17,1,1)),"")),"n/a*") -> 71 | T17: 7 | U17: Female | Y17: =AVERAGEIFS($I$17:$I$36,$C$17:$C$36,X$20,$D$17:$D$36,$U17) -> 422 | AF17: =AVERAGEIFS($I$17:$I$36,$C$17:$C$36,AE$20,$D$17:$D$36,$U17) -> 449 | AM17: =AVERAGEIFS($I$17:$I$36,$C$17:$C$36,AL$20,$D$17:$D$36,$U17) -> 476 | AT17: =AVERAGEIFS($I$17:$I$36,$C$17:$C$36,AS$20,$D$17:$D$36,$U17) -> 510 | BA17: =AVERAGEIFS($I$17:$I$36,$C$17:$C$36,AZ$20,$D$17:$D$36,$U17) -> 535 | BH17: =AVERAGEIFS($I$17:$I$36,$C$17:$C$36,BG$20,$D$17:$D$36,$U17) -> 561 | BO17: =AVERAGEIFS($I$17:$I$36,$C$17:$C$36,BN$20,$D$17:$D$36,$U17) -> 571 | BV17: =AVERAGEIFS($I$17:$I$36,$C$17:$C$36,BU$20,$D$17:$D$36,$U17) -> 620 | CC17: =AVERAGEIFS($I$17:$I$36,$C$17:$C$36,CB$20,$D$17:$D$36,$U17) ->  | CJ17: =AVERAGEIFS($I$17:$I$36,$C$17:$C$36,CI$20,$D$17:$D$36,$U17) -> 
C18: =IF(ISNUMBER(IBT_SchStats_Gender!Q3),IF(DD_new!$BC$2="B","Test Level ","Grade ") &IBT_SchStats_Gender!Q3,"") -> Grade 3 | D18: =IF(C17="","","Male") -> Male | E18: =IF(ISNUMBER(IBT_SchStats_Gender!$Q3),IF(AVERAGEIFS(Gender!$Q$65:$Q$88,Gender!$A$65:$A$88,IBT_SchStats_Gender!$Q3,Gender!$C$65:$C$88,MID(IBT_SchStats_Gender!$D18,1,1))>0,AVERAGEIFS(Gender!$F$65:$F$88,Gender!$A$65:$A$88,IBT_SchStats_Gender!$Q3,Gender!$C$65:$C$88,MID(IBT_SchStats_Gender!$D18,1,1)) + AVERAGEIFS(Gender!$Q$65:$Q$88,Gender!$A$65:$A$88,IBT_SchStats_Gender!$Q3,Gender!$C$65:$C$88,MID(IBT_SchStats_Gender!$D18,1,1)) &"("& AVERAGEIFS(Gender!$Q$65:$Q$88,Gender!$A$65:$A$88,IBT_SchStats_Gender!$Q3,Gender!$C$65:$C$88,MID(IBT_SchStats_Gender!$D18,1,1)) &")", AVERAGEIFS(Gender!$F$65:$F$88,Gender!$A$65:$A$88,IBT_SchStats_Gender!$Q3,Gender!$C$65:$C$88,MID(IBT_SchStats_Gender!$D18,1,1))),"") -> 32 | F18: =IFERROR(IF(AVERAGEIFS(Gender!$F$65:$F$88,Gender!$A$65:$A$88,IBT_SchStats_Gender!$Q3,Gender!$C$65:$C$88,MID(IBT_SchStats_Gender!$D18,1,1))<15,"n/a*",IF(ISNUMBER(IBT_SchStats_Gender!$Q3),AVERAGEIFS(Gender!$G$65:$G$88,Gender!$A$65:$A$88,IBT_SchStats_Gender!$Q3,Gender!$C$65:$C$88,MID(IBT_SchStats_Gender!$D18,1,1)),"")),"") -> 450 | G18: =IFERROR(IF(AVERAGEIFS(Gender!$F$65:$F$88,Gender!$A$65:$A$88,IBT_SchStats_Gender!$Q3,Gender!$C$65:$C$88,MID(IBT_SchStats_Gender!$D18,1,1))<15,"n/a*",IF(ISNUMBER(IBT_SchStats_Gender!$Q3),AVERAGEIFS(Gender!$H$65:$H$88,Gender!$A$65:$A$88,IBT_SchStats_Gender!$Q3,Gender!$C$65:$C$88,MID(IBT_SchStats_Gender!$D18,1,1)),"")),"") -> 52 | H18: =IFERROR(IF(ISNUMBER(IBT_SchStats_Gender!$Q3),AVERAGEIFS(Gender!$J$65:$J$88,Gender!$A$65:$A$88,IBT_SchStats_Gender!$Q3,Gender!$C$65:$C$88,MID(IBT_SchStats_Gender!$D18,1,1)),""),"n/a*") -> 1182 | I18: =IFERROR(IF($H18<15,"n/a*",IF(ISNUMBER(IBT_SchStats_Gender!$Q3),AVERAGEIFS(Gender!$K$65:$K$88,Gender!$A$65:$A$88,IBT_SchStats_Gender!$Q3,Gender!$C$65:$C$88,MID(IBT_SchStats_Gender!$D18,1,1)),"")),"n/a*") -> 428 | J18: =IFERROR(IF($H18<15,"n/a*",IF(ISNUMBER(IBT_SchStats_Gender!$Q3),AVERAGEIFS(Gender!$L$65:$L$88,Gender!$A$65:$A$88,IBT_SchStats_Gender!$Q3,Gender!$C$65:$C$88,MID(IBT_SchStats_Gender!$D18,1,1)),"")),"n/a*") -> 71 | K18: =IFERROR(IF(ISNUMBER(IBT_SchStats_Gender!$Q3),AVERAGEIFS(Gender!$N$65:$N$88,Gender!$A$65:$A$88,IBT_SchStats_Gender!$Q3,Gender!$C$65:$C$88,MID(IBT_SchStats_Gender!$D18,1,1)),""),"n/a*") -> 5198 | L18: =IFERROR(IF($K18<15,"n/a*",IF(ISNUMBER(IBT_SchStats_Gender!$Q3),AVERAGEIFS(Gender!$O$65:$O$88,Gender!$A$65:$A$88,IBT_SchStats_Gender!$Q3,Gender!$C$65:$C$88,MID(IBT_SchStats_Gender!$D18,1,1)),"")),"n/a*") -> 421 | M18: =IFERROR(IF($K18<15,"n/a*",IF(ISNUMBER(IBT_SchStats_Gender!$Q3),AVERAGEIFS(Gender!$P$65:$P$88,Gender!$A$65:$A$88,IBT_SchStats_Gender!$Q3,Gender!$C$65:$C$88,MID(IBT_SchStats_Gender!$D18,1,1)),"")),"n/a*") -> 76 | T18: 4 | U18: Male | X18: =AVERAGEIFS($F$17:$F$36,$C$17:$C$36,X$20,$D$17:$D$36,$U18) -> 450 | AE18: =AVERAGEIFS($F$17:$F$36,$C$17:$C$36,AE$20,$D$17:$D$36,$U18) -> 443 | AL18: =AVERAGEIFS($F$17:$F$36,$C$17:$C$36,AL$20,$D$17:$D$36,$U18) -> 521 | AS18: =AVERAGEIFS($F$17:$F$36,$C$17:$C$36,AS$20,$D$17:$D$36,$U18) -> 535 | AZ18: =AVERAGEIFS($F$17:$F$36,$C$17:$C$36,AZ$20,$D$17:$D$36,$U18) -> 546 | BG18: =AVERAGEIFS($F$17:$F$36,$C$17:$C$36,BG$20,$D$17:$D$36,$U18) -> 558 | BN18: =AVERAGEIFS($F$17:$F$36,$C$17:$C$36,BN$20,$D$17:$D$36,$U18) -> 569 | BU18: =AVERAGEIFS($F$17:$F$36,$C$17:$C$36,BU$20,$D$17:$D$36,$U18) -> 605 | CB18: =AVERAGEIFS($F$17:$F$36,$C$17:$C$36,CB$20,$D$17:$D$36,$U18) ->  | CI18: =AVERAGEIFS($F$17:$F$36,$C$17:$C$36,CI$20,$D$17:$D$36,$U18) -> 
C19: =IF(ISNUMBER(IBT_SchStats_Gender!Q4),IF(DD_new!$BC$2="B","Test Level ","Grade ") &IBT_SchStats_Gender!Q4,"") -> Grade 4 | D19: =IF(C19="","","Female") -> Female | E19: =IF(ISNUMBER(IBT_SchStats_Gender!$Q4),IF(AVERAGEIFS(Gender!$Q$65:$Q$88,Gender!$A$65:$A$88,IBT_SchStats_Gender!$Q4,Gender!$C$65:$C$88,MID(IBT_SchStats_Gender!$D17,1,1))>0,AVERAGEIFS(Gender!$F$65:$F$88,Gender!$A$65:$A$88,IBT_SchStats_Gender!$Q4,Gender!$C$65:$C$88,MID(IBT_SchStats_Gender!$D17,1,1)) + AVERAGEIFS(Gender!$Q$65:$Q$88,Gender!$A$65:$A$88,IBT_SchStats_Gender!$Q4,Gender!$C$65:$C$88,MID(IBT_SchStats_Gender!$D17,1,1)) &"("& AVERAGEIFS(Gender!$Q$65:$Q$88,Gender!$A$65:$A$88,IBT_SchStats_Gender!$Q4,Gender!$C$65:$C$88,MID(IBT_SchStats_Gender!$D17,1,1)) &")", AVERAGEIFS(Gender!$F$65:$F$88,Gender!$A$65:$A$88,IBT_SchStats_Gender!$Q4,Gender!$C$65:$C$88,MID(IBT_SchStats_Gender!$D17,1,1))),"") -> 25 | F19: =IFERROR(IF(AVERAGEIFS(Gender!$F$65:$F$88,Gender!$A$65:$A$88,IBT_SchStats_Gender!$Q4,Gender!$C$65:$C$88,MID(IBT_SchStats_Gender!$D17,1,1))<15,"n/a*",IF(ISNUMBER(IBT_SchStats_Gender!$Q4),AVERAGEIFS(Gender!$G$65:$G$88,Gender!$A$65:$A$88,IBT_SchStats_Gender!$Q4,Gender!$C$65:$C$88,MID(IBT_SchStats_Gender!$D17,1,1)),"")),"") -> 450 | G19: =IFERROR(IF(AVERAGEIFS(Gender!$F$65:$F$88,Gender!$A$65:$A$88,IBT_SchStats_Gender!$Q4,Gender!$C$65:$C$88,MID(IBT_SchStats_Gender!$D17,1,1))<15,"n/a*",IF(ISNUMBER(IBT_SchStats_Gender!$Q4),AVERAGEIFS(Gender!$H$65:$H$88,Gender!$A$65:$A$88,IBT_SchStats_Gender!$Q4,Gender!$C$65:$C$88,MID(IBT_SchStats_Gender!$D17,1,1)),"")),"") -> 67 | H19: =IFERROR(IF(ISNUMBER(IBT_SchStats_Gender!$Q4),AVERAGEIFS(Gender!$J$65:$J$88,Gender!$A$65:$A$88,IBT_SchStats_Gender!$Q4,Gender!$C$65:$C$88,MID(IBT_SchStats_Gender!$D17,1,1)),""),"n/a*") -> 1100 | I19: =IFERROR(IF($H19<15,"n/a*",IF(ISNUMBER(IBT_SchStats_Gender!$Q4),AVERAGEIFS(Gender!$K$65:$K$88,Gender!$A$65:$A$88,IBT_SchStats_Gender!$Q4,Gender!$C$65:$C$88,MID(IBT_SchStats_Gender!$D19,1,1)),"")),"n/a*") -> 449 | J19: =IFERROR(IF($H19<15,"n/a*",IF(ISNUMBER(IBT_SchStats_Gender!$Q4),AVERAGEIFS(Gender!$L$65:$L$88,Gender!$A$65:$A$88,IBT_SchStats_Gender!$Q4,Gender!$C$65:$C$88,MID(IBT_SchStats_Gender!$D19,1,1)),"")),"n/a*") -> 66 | K19: =IFERROR(IF(ISNUMBER(IBT_SchStats_Gender!$Q4),AVERAGEIFS(Gender!$N$65:$N$88,Gender!$A$65:$A$88,IBT_SchStats_Gender!$Q4,Gender!$C$65:$C$88,MID(IBT_SchStats_Gender!$D17,1,1)),""),"n/a*") -> 3765 | L19: =IFERROR(IF($K19<15,"n/a*",IF(ISNUMBER(IBT_SchStats_Gender!$Q4),AVERAGEIFS(Gender!$O$65:$O$88,Gender!$A$65:$A$88,IBT_SchStats_Gender!$Q4,Gender!$C$65:$C$88,MID(IBT_SchStats_Gender!$D19,1,1)),"")),"n/a*") -> 447 | M19: =IFERROR(IF($K19<15,"n/a*",IF(ISNUMBER(IBT_SchStats_Gender!$Q4),AVERAGEIFS(Gender!$P$65:$P$88,Gender!$A$65:$A$88,IBT_SchStats_Gender!$Q4,Gender!$C$65:$C$88,MID(IBT_SchStats_Gender!$D19,1,1)),"")),"n/a*") -> 72 | T19: 4 | U19: Female | W19: =AVERAGEIFS($F$17:$F$36,$C$17:$C$36,X$20,$D$17:$D$36,$U19) -> 442 | AD19: =AVERAGEIFS($F$17:$F$36,$C$17:$C$36,AE$20,$D$17:$D$36,$U19) -> 450 | AK19: =AVERAGEIFS($F$17:$F$36,$C$17:$C$36,AL$20,$D$17:$D$36,$U19) -> 499 | AR19: =AVERAGEIFS($F$17:$F$36,$C$17:$C$36,AS$20,$D$17:$D$36,$U19) -> 516 | AY19: =AVERAGEIFS($F$17:$F$36,$C$17:$C$36,AZ$20,$D$17:$D$36,$U19) -> 557 | BF19: =AVERAGEIFS($F$17:$F$36,$C$17:$C$36,BG$20,$D$17:$D$36,$U19) -> 568 | BM19: =AVERAGEIFS($F$17:$F$36,$C$17:$C$36,BN$20,$D$17:$D$36,$U19) -> 594 | BT19: =AVERAGEIFS($F$17:$F$36,$C$17:$C$36,BU$20,$D$17:$D$36,$U19) -> 603 | CA19: =AVERAGEIFS($F$17:$F$36,$C$17:$C$36,CB$20,$D$17:$D$36,$U19) ->  | CH19: =AVERAGEIFS($F$17:$F$36,$C$17:$C$36,CI$20,$D$17:$D$36,$U19) -> 
C20: =IF(ISNUMBER(IBT_SchStats_Gender!Q4),IF(DD_new!$BC$2="B","Test Level ","Grade ") &IBT_SchStats_Gender!Q4,"") -> Grade 4 | D20: =IF(C19="","","Male") -> Male | E20: =IF(ISNUMBER(IBT_SchStats_Gender!$Q4),IF(AVERAGEIFS(Gender!$Q$65:$Q$88,Gender!$A$65:$A$88,IBT_SchStats_Gender!$Q4,Gender!$C$65:$C$88,MID(IBT_SchStats_Gender!$D18,1,1))>0,AVERAGEIFS(Gender!$F$65:$F$88,Gender!$A$65:$A$88,IBT_SchStats_Gender!$Q4,Gender!$C$65:$C$88,MID(IBT_SchStats_Gender!$D18,1,1)) + AVERAGEIFS(Gender!$Q$65:$Q$88,Gender!$A$65:$A$88,IBT_SchStats_Gender!$Q4,Gender!$C$65:$C$88,MID(IBT_SchStats_Gender!$D18,1,1)) &"("& AVERAGEIFS(Gender!$Q$65:$Q$88,Gender!$A$65:$A$88,IBT_SchStats_Gender!$Q4,Gender!$C$65:$C$88,MID(IBT_SchStats_Gender!$D18,1,1)) &")", AVERAGEIFS(Gender!$F$65:$F$88,Gender!$A$65:$A$88,IBT_SchStats_Gender!$Q4,Gender!$C$65:$C$88,MID(IBT_SchStats_Gender!$D18,1,1))),"") -> 25 | F20: =IFERROR(IF(AVERAGEIFS(Gender!$F$65:$F$88,Gender!$A$65:$A$88,IBT_SchStats_Gender!$Q4,Gender!$C$65:$C$88,MID(IBT_SchStats_Gender!$D18,1,1))<15,"n/a*",IF(ISNUMBER(IBT_SchStats_Gender!$Q4),AVERAGEIFS(Gender!$G$65:$G$88,Gender!$A$65:$A$88,IBT_SchStats_Gender!$Q4,Gender!$C$65:$C$88,MID(IBT_SchStats_Gender!$D18,1,1)),"")),"") -> 443 | G20: =IFERROR(IF(AVERAGEIFS(Gender!$F$65:$F$88,Gender!$A$65:$A$88,IBT_SchStats_Gender!$Q4,Gender!$C$65:$C$88,MID(IBT_SchStats_Gender!$D18,1,1))<15,"n/a*",IF(ISNUMBER(IBT_SchStats_Gender!$Q4),AVERAGEIFS(Gender!$H$65:$H$88,Gender!$A$65:$A$88,IBT_SchStats_Gender!$Q4,Gender!$C$65:$C$88,MID(IBT_SchStats_Gender!$D18,1,1)),"")),"") -> 74 | H20: =IFERROR(IF(ISNUMBER(IBT_SchStats_Gender!$Q4),AVERAGEIFS(Gender!$J$65:$J$88,Gender!$A$65:$A$88,IBT_SchStats_Gender!$Q4,Gender!$C$65:$C$88,MID(IBT_SchStats_Gender!$D18,1,1)),""),"n/a*") -> 1379 | I20: =IFERROR(IF($H20<15,"n/a*",IF(ISNUMBER(IBT_SchStats_Gender!$Q4),AVERAGEIFS(Gender!$K$65:$K$88,Gender!$A$65:$A$88,IBT_SchStats_Gender!$Q4,Gender!$C$65:$C$88,MID(IBT_SchStats_Gender!$D20,1,1)),"")),"n/a*") -> 457 | J20: =IFERROR(IF($H20<15,"n/a*",IF(ISNUMBER(IBT_SchStats_Gender!$Q4),AVERAGEIFS(Gender!$L$65:$L$88,Gender!$A$65:$A$88,IBT_SchStats_Gender!$Q4,Gender!$C$65:$C$88,MID(IBT_SchStats_Gender!$D20,1,1)),"")),"n/a*") -> 72 | K20: =IFERROR(IF(ISNUMBER(IBT_SchStats_Gender!$Q4),AVERAGEIFS(Gender!$N$65:$N$88,Gender!$A$65:$A$88,IBT_SchStats_Gender!$Q4,Gender!$C$65:$C$88,MID(IBT_SchStats_Gender!$D18,1,1)),""),"n/a*") -> 3943 | L20: =IFERROR(IF($K20<15,"n/a*",IF(ISNUMBER(IBT_SchStats_Gender!$Q4),AVERAGEIFS(Gender!$O$65:$O$88,Gender!$A$65:$A$88,IBT_SchStats_Gender!$Q4,Gender!$C$65:$C$88,MID(IBT_SchStats_Gender!$D20,1,1)),"")),"n/a*") -> 453 | M20: =IFERROR(IF($K20<15,"n/a*",IF(ISNUMBER(IBT_SchStats_Gender!$Q4),AVERAGEIFS(Gender!$P$65:$P$88,Gender!$A$65:$A$88,IBT_SchStats_Gender!$Q4,Gender!$C$65:$C$88,MID(IBT_SchStats_Gender!$D20,1,1)),"")),"n/a*") -> 79 | R20: =IF(DD_new!$BB$2="Math", "Mathematics IBT Scale", DD_new!$BB$2& " IBT Scale") -> Mathematics IBT Scale | X20: =IF(DD_new!$BC$2="B","Test Level 1", "Grade 3") -> Grade 3 | AE20: =IF(DD_new!$BC$2="B","Test Level 2", "Grade 4") -> Grade 4 | AL20: =IF(DD_new!$BC$2="B","Test Level 3", "Grade 5") -> Grade 5 | AS20: =IF(DD_new!$BC$2="B","", "Grade 6") -> Grade 6 | AZ20: =IF(DD_new!$BC$2="B","", "Grade 7") -> Grade 7 | BG20: =IF(DD_new!$BC$2="B","", "Grade 8") -> Grade 8 | BN20: =IF(DD_new!$BC$2="B","", "Grade 9") -> Grade 9 | BU20: =IF(DD_new!$BC$2="B","", "Grade 10") -> Grade 10 | CB20: =IF(DD_new!$BC$2="B","", "Grade 11") -> Grade 11 | CI20: =IF(DD_new!$BC$2="B","", "Grade 12") -> Grade 12
C21: =IF(ISNUMBER(IBT_SchStats_Gender!Q5),IF(DD_new!$BC$2="B","Test Level ","Grade ") &IBT_SchStats_Gender!Q5,"") -> Grade 5 | D21: =IF(C21="","","Female") -> Female | E21: =IF(ISNUMBER(IBT_SchStats_Gender!$Q5),IF(AVERAGEIFS(Gender!$Q$65:$Q$88,Gender!$A$65:$A$88,IBT_SchStats_Gender!$Q5,Gender!$C$65:$C$88,MID(IBT_SchStats_Gender!$D17,1,1))>0,AVERAGEIFS(Gender!$F$65:$F$88,Gender!$A$65:$A$88,IBT_SchStats_Gender!$Q5,Gender!$C$65:$C$88,MID(IBT_SchStats_Gender!$D17,1,1)) + AVERAGEIFS(Gender!$Q$65:$Q$88,Gender!$A$65:$A$88,IBT_SchStats_Gender!$Q5,Gender!$C$65:$C$88,MID(IBT_SchStats_Gender!$D17,1,1)) &"("& AVERAGEIFS(Gender!$Q$65:$Q$88,Gender!$A$65:$A$88,IBT_SchStats_Gender!$Q5,Gender!$C$65:$C$88,MID(IBT_SchStats_Gender!$D17,1,1)) &")", AVERAGEIFS(Gender!$F$65:$F$88,Gender!$A$65:$A$88,IBT_SchStats_Gender!$Q5,Gender!$C$65:$C$88,MID(IBT_SchStats_Gender!$D17,1,1))),"") -> 26 | F21: =IFERROR(IF(AVERAGEIFS(Gender!$F$65:$F$88,Gender!$A$65:$A$88,IBT_SchStats_Gender!$Q5,Gender!$C$65:$C$88,MID(IBT_SchStats_Gender!$D17,1,1))<15,"n/a*",IF(ISNUMBER(IBT_SchStats_Gender!$Q5),AVERAGEIFS(Gender!$G$65:$G$88,Gender!$A$65:$A$88,IBT_SchStats_Gender!$Q5,Gender!$C$65:$C$88,MID(IBT_SchStats_Gender!$D17,1,1)),"")),"") -> 499 | G21: =IFERROR(IF(AVERAGEIFS(Gender!$F$65:$F$88,Gender!$A$65:$A$88,IBT_SchStats_Gender!$Q5,Gender!$C$65:$C$88,MID(IBT_SchStats_Gender!$D17,1,1))<15,"n/a*",IF(ISNUMBER(IBT_SchStats_Gender!$Q5),AVERAGEIFS(Gender!$H$65:$H$88,Gender!$A$65:$A$88,IBT_SchStats_Gender!$Q5,Gender!$C$65:$C$88,MID(IBT_SchStats_Gender!$D17,1,1)),"")),"") -> 60 | H21: =IFERROR(IF(ISNUMBER(IBT_SchStats_Gender!$Q5),AVERAGEIFS(Gender!$J$65:$J$88,Gender!$A$65:$A$88,IBT_SchStats_Gender!$Q5,Gender!$C$65:$C$88,MID(IBT_SchStats_Gender!$D17,1,1)),""),"n/a*") -> 977 | I21: =IFERROR(IF($H21<15,"n/a*",IF(ISNUMBER(IBT_SchStats_Gender!$Q5),AVERAGEIFS(Gender!$K$65:$K$88,Gender!$A$65:$A$88,IBT_SchStats_Gender!$Q5,Gender!$C$65:$C$88,MID(IBT_SchStats_Gender!$D21,1,1)),"")),"n/a*") -> 476 | J21: =IFERROR(IF($H21<15,"n/a*",IF(ISNUMBER(IBT_SchStats_Gender!$Q5),AVERAGEIFS(Gender!$L$65:$L$88,Gender!$A$65:$A$88,IBT_SchStats_Gender!$Q5,Gender!$C$65:$C$88,MID(IBT_SchStats_Gender!$D21,1,1)),"")),"n/a*") -> 59 | K21: =IFERROR(IF(ISNUMBER(IBT_SchStats_Gender!$Q5),AVERAGEIFS(Gender!$N$65:$N$88,Gender!$A$65:$A$88,IBT_SchStats_Gender!$Q5,Gender!$C$65:$C$88,MID(IBT_SchStats_Gender!$D17,1,1)),""),"n/a*") -> 3179 | L21: =IFERROR(IF($K21<15,"n/a*",IF(ISNUMBER(IBT_SchStats_Gender!$Q5),AVERAGEIFS(Gender!$O$65:$O$88,Gender!$A$65:$A$88,IBT_SchStats_Gender!$Q5,Gender!$C$65:$C$88,MID(IBT_SchStats_Gender!$D21,1,1)),"")),"n/a*") -> 482 | M21: =IFERROR(IF($K21<15,"n/a*",IF(ISNUMBER(IBT_SchStats_Gender!$Q5),AVERAGEIFS(Gender!$P$65:$P$88,Gender!$A$65:$A$88,IBT_SchStats_Gender!$Q5,Gender!$C$65:$C$88,MID(IBT_SchStats_Gender!$D21,1,1)),"")),"n/a*") -> 72 | S21: Grade (This school =Grade) | W21: =RIGHT(X20,2)*1 -> 3 | X21: =W21 -> 3 | Y21: =IF($R$9=1,VLOOKUP(W21,CLdb!$UT$2:$UU$100,2,0),IF($R$9=2,VLOOKUP(W21,CLdb!$UR$2:$US$100,2,0),IF($R$9=3,VLOOKUP(W21,CLdb!$UV$2:$UW$100,2,0),IF($R$9=4,VLOOKUP(W21,CLdb!$UX$2:$UY$100,2,0),IF($R$9=5,VLOOKUP(W21,CLdb!$UZ$2:$VA$100,2,0),IF($R$9=6,VLOOKUP(W21,CLdb!$VB$2:$VC$100,2,0),IF($R$9=7,VLOOKUP(W21,CLdb!$VD$2:$VE$100,2,0),IF($R$9=8,VLOOKUP(W21,CLdb!$VF$2:$VG$100,2,0),"")))))))) -> 3 | Z21: =Y21 -> 3 | AA21: =Z21 -> 3 | AB21: =AA21 -> 3 | AD21: =RIGHT(AE20,2)*1 -> 4 | AE21: =AD21 -> 4 | AF21: =IF($R$9=1,VLOOKUP(AD21,CLdb!$UT$2:$UU$100,2,0),IF($R$9=2,VLOOKUP(AD21,CLdb!$UR$2:$US$100,2,0),IF($R$9=3,VLOOKUP(AD21,CLdb!$UV$2:$UW$100,2,0),IF($R$9=4,VLOOKUP(AD21,CLdb!$UX$2:$UY$100,2,0),IF($R$9=5,VLOOKUP(AD21,CLdb!$UZ$2:$VA$100,2,0),IF($R$9=6,VLOOKUP(AD21,CLdb!$VB$2:$VC$100,2,0),IF($R$9=7,VLOOKUP(AD21,CLdb!$VD$2:$VE$100,2,0),IF($R$9=8,VLOOKUP(AD21,CLdb!$VF$2:$VG$100,2,0),"")))))))) -> 4 | AG21: =AF21 -> 4 | AH21: =AG21 -> 4 | AI21: =AH21 -> 4 | AK21: =RIGHT(AL20,2)*1 -> 5 | AL21: =AK21 -> 5 | AM21: =IF($R$9=1,VLOOKUP(AK21,CLdb!$UT$2:$UU$100,2,0),IF($R$9=2,VLOOKUP(AK21,CLdb!$UR$2:$US$100,2,0),IF($R$9=3,VLOOKUP(AK21,CLdb!$UV$2:$UW$100,2,0),IF($R$9=4,VLOOKUP(AK21,CLdb!$UX$2:$UY$100,2,0),IF($R$9=5,VLOOKUP(AK21,CLdb!$UZ$2:$VA$100,2,0),IF($R$9=6,VLOOKUP(AK21,CLdb!$VB$2:$VC$100,2,0),IF($R$9=7,VLOOKUP(AK21,CLdb!$VD$2:$VE$100,2,0),IF($R$9=8,VLOOKUP(AK21,CLdb!$VF$2:$VG$100,2,0),"")))))))) -> 5 | AN21: =AM21 -> 5 | AO21: =AN21 -> 5 | AP21: =AO21 -> 5 | AR21: =RIGHT(AS20,2)*1 -> 6 | AS21: =AR21 -> 6 | AT21: =IF($R$9=1,VLOOKUP(AR21,CLdb!$UT$2:$UU$100,2,0),IF($R$9=2,VLOOKUP(AR21,CLdb!$UR$2:$US$100,2,0),IF($R$9=3,VLOOKUP(AR21,CLdb!$UV$2:$UW$100,2,0),IF($R$9=4,VLOOKUP(AR21,CLdb!$UX$2:$UY$100,2,0),IF($R$9=5,VLOOKUP(AR21,CLdb!$UZ$2:$VA$100,2,0),IF($R$9=6,VLOOKUP(AR21,CLdb!$VB$2:$VC$100,2,0),IF($R$9=7,VLOOKUP(AR21,CLdb!$VD$2:$VE$100,2,0),IF($R$9=8,VLOOKUP(AR21,CLdb!$VF$2:$VG$100,2,0),"")))))))) -> 6 | AU21: =AT21 -> 6 | AV21: =AU21 -> 6 | AW21: =AV21 -> 6 | AY21: =RIGHT(AZ20,2)*1 -> 7 | AZ21: =AY21 -> 7 | BA21: =IF($R$9=1,VLOOKUP(AY21,CLdb!$UT$2:$UU$100,2,0),IF($R$9=2,VLOOKUP(AY21,CLdb!$UR$2:$US$100,2,0),IF($R$9=3,VLOOKUP(AY21,CLdb!$UV$2:$UW$100,2,0),IF($R$9=4,VLOOKUP(AY21,CLdb!$UX$2:$UY$100,2,0),IF($R$9=5,VLOOKUP(AY21,CLdb!$UZ$2:$VA$100,2,0),IF($R$9=6,VLOOKUP(AY21,CLdb!$VB$2:$VC$100,2,0),IF($R$9=7,VLOOKUP(AY21,CLdb!$VD$2:$VE$100,2,0),IF($R$9=8,VLOOKUP(AY21,CLdb!$VF$2:$VG$100,2,0),"")))))))) -> 7 | BB21: =BA21 -> 7 | BC21: =BB21 -> 7 | BD21: =BC21 -> 7 | BF21: =RIGHT(BG20,2)*1 -> 8 | BG21: =BF21 -> 8 | BH21: =IF($R$9=1,VLOOKUP(BF21,CLdb!$UT$2:$UU$100,2,0),IF($R$9=2,VLOOKUP(BF21,CLdb!$UR$2:$US$100,2,0),IF($R$9=3,VLOOKUP(BF21,CLdb!$UV$2:$UW$100,2,0),IF($R$9=4,VLOOKUP(BF21,CLdb!$UX$2:$UY$100,2,0),IF($R$9=5,VLOOKUP(BF21,CLdb!$UZ$2:$VA$100,2,0),IF($R$9=6,VLOOKUP(BF21,CLdb!$VB$2:$VC$100,2,0),IF($R$9=7,VLOOKUP(BF21,CLdb!$VD$2:$VE$100,2,0),IF($R$9=8,VLOOKUP(BF21,CLdb!$VF$2:$VG$100,2,0),"")))))))) -> 8 | BI21: =BH21 -> 8 | BJ21: =BI21 -> 8 | BK21: =BJ21 -> 8 | BM21: =RIGHT(BN20,2)*1 -> 9 | BN21: =BM21 -> 9 | BO21: =IF($R$9=1,VLOOKUP(BM21,CLdb!$UT$2:$UU$100,2,0),IF($R$9=2,VLOOKUP(BM21,CLdb!$UR$2:$US$100,2,0),IF($R$9=3,VLOOKUP(BM21,CLdb!$UV$2:$UW$100,2,0),IF($R$9=4,VLOOKUP(BM21,CLdb!$UX$2:$UY$100,2,0),IF($R$9=5,VLOOKUP(BM21,CLdb!$UZ$2:$VA$100,2,0),IF($R$9=6,VLOOKUP(BM21,CLdb!$VB$2:$VC$100,2,0),IF($R$9=7,VLOOKUP(BM21,CLdb!$VD$2:$VE$100,2,0),IF($R$9=8,VLOOKUP(BM21,CLdb!$VF$2:$VG$100,2,0),"")))))))) -> 9 | BP21: =BO21 -> 9 | BQ21: =BP21 -> 9 | BR21: =BQ21 -> 9 | BT21: =RIGHT(BU20,2)*1 -> 10 | BU21: =BT21 -> 10 | BV21: =IF($R$9=1,VLOOKUP(BT21,CLdb!$UT$2:$UU$100,2,0),IF($R$9=2,VLOOKUP(BT21,CLdb!$UR$2:$US$100,2,0),IF($R$9=3,VLOOKUP(BT21,CLdb!$UV$2:$UW$100,2,0),IF($R$9=4,VLOOKUP(BT21,CLdb!$UX$2:$UY$100,2,0),IF($R$9=5,VLOOKUP(BT21,CLdb!$UZ$2:$VA$100,2,0),IF($R$9=6,VLOOKUP(BT21,CLdb!$VB$2:$VC$100,2,0),IF($R$9=7,VLOOKUP(BT21,CLdb!$VD$2:$VE$100,2,0),IF($R$9=8,VLOOKUP(BT21,CLdb!$VF$2:$VG$100,2,0),"")))))))) -> 10 | BW21: =BV21 -> 10 | BX21: =BW21 -> 10 | BY21: =BX21 -> 10 | CA21: =RIGHT(CB20,2)*1 -> 11 | CB21: =CA21 -> 11 | CC21: =IF($R$9=1,VLOOKUP(CA21,CLdb!$UT$2:$UU$100,2,0),IF($R$9=2,VLOOKUP(CA21,CLdb!$UR$2:$US$100,2,0),IF($R$9=3,VLOOKUP(CA21,CLdb!$UV$2:$UW$100,2,0),IF($R$9=4,VLOOKUP(CA21,CLdb!$UX$2:$UY$100,2,0),IF($R$9=5,VLOOKUP(CA21,CLdb!$UZ$2:$VA$100,2,0),IF($R$9=6,VLOOKUP(CA21,CLdb!$VB$2:$VC$100,2,0),IF($R$9=7,VLOOKUP(CA21,CLdb!$VD$2:$VE$100,2,0),IF($R$9=8,VLOOKUP(CA21,CLdb!$VF$2:$VG$100,2,0),"")))))))) ->  | CD21: =CC21 ->  | CE21: =CD21 ->  | CF21: =CE21 ->  | CH21: =RIGHT(CI20,2)*1 -> 12 | CI21: =CH21 -> 12 | CJ21: =IF($R$9=1,VLOOKUP(CH21,CLdb!$UT$2:$UU$100,2,0),IF($R$9=2,VLOOKUP(CH21,CLdb!$UR$2:$US$100,2,0),IF($R$9=3,VLOOKUP(CH21,CLdb!$UV$2:$UW$100,2,0),IF($R$9=4,VLOOKUP(CH21,CLdb!$UX$2:$UY$100,2,0),IF($R$9=5,VLOOKUP(CH21,CLdb!$UZ$2:$VA$100,2,0),IF($R$9=6,VLOOKUP(CH21,CLdb!$VB$2:$VC$100,2,0),IF($R$9=7,VLOOKUP(CH21,CLdb!$VD$2:$VE$100,2,0),IF($R$9=8,VLOOKUP(CH21,CLdb!$VF$2:$VG$100,2,0),"")))))))) ->  | CK21: =CJ21 ->  | CL21: =CK21 ->  | CM21: =CL21 -> 
C22: =IF(ISNUMBER(IBT_SchStats_Gender!Q5),IF(DD_new!$BC$2="B","Test Level ","Grade ") &IBT_SchStats_Gender!Q5,"") -> Grade 5 | D22: =IF(C21="","","Male") -> Male | E22: =IF(ISNUMBER(IBT_SchStats_Gender!$Q5),IF(AVERAGEIFS(Gender!$Q$65:$Q$88,Gender!$A$65:$A$88,IBT_SchStats_Gender!$Q5,Gender!$C$65:$C$88,MID(IBT_SchStats_Gender!$D18,1,1))>0,AVERAGEIFS(Gender!$F$65:$F$88,Gender!$A$65:$A$88,IBT_SchStats_Gender!$Q5,Gender!$C$65:$C$88,MID(IBT_SchStats_Gender!$D18,1,1)) + AVERAGEIFS(Gender!$Q$65:$Q$88,Gender!$A$65:$A$88,IBT_SchStats_Gender!$Q5,Gender!$C$65:$C$88,MID(IBT_SchStats_Gender!$D18,1,1)) &"("& AVERAGEIFS(Gender!$Q$65:$Q$88,Gender!$A$65:$A$88,IBT_SchStats_Gender!$Q5,Gender!$C$65:$C$88,MID(IBT_SchStats_Gender!$D18,1,1)) &")", AVERAGEIFS(Gender!$F$65:$F$88,Gender!$A$65:$A$88,IBT_SchStats_Gender!$Q5,Gender!$C$65:$C$88,MID(IBT_SchStats_Gender!$D18,1,1))),"") -> 24 | F22: =IFERROR(IF(AVERAGEIFS(Gender!$F$65:$F$88,Gender!$A$65:$A$88,IBT_SchStats_Gender!$Q5,Gender!$C$65:$C$88,MID(IBT_SchStats_Gender!$D18,1,1))<15,"n/a*",IF(ISNUMBER(IBT_SchStats_Gender!$Q5),AVERAGEIFS(Gender!$G$65:$G$88,Gender!$A$65:$A$88,IBT_SchStats_Gender!$Q5,Gender!$C$65:$C$88,MID(IBT_SchStats_Gender!$D18,1,1)),"")),"") -> 521 | G22: =IFERROR(IF(AVERAGEIFS(Gender!$F$65:$F$88,Gender!$A$65:$A$88,IBT_SchStats_Gender!$Q5,Gender!$C$65:$C$88,MID(IBT_SchStats_Gender!$D18,1,1))<15,"n/a*",IF(ISNUMBER(IBT_SchStats_Gender!$Q5),AVERAGEIFS(Gender!$H$65:$H$88,Gender!$A$65:$A$88,IBT_SchStats_Gender!$Q5,Gender!$C$65:$C$88,MID(IBT_SchStats_Gender!$D18,1,1)),"")),"") -> 92 | H22: =IFERROR(IF(ISNUMBER(IBT_SchStats_Gender!$Q5),AVERAGEIFS(Gender!$J$65:$J$88,Gender!$A$65:$A$88,IBT_SchStats_Gender!$Q5,Gender!$C$65:$C$88,MID(IBT_SchStats_Gender!$D18,1,1)),""),"n/a*") -> 1102 | I22: =IFERROR(IF($H22<15,"n/a*",IF(ISNUMBER(IBT_SchStats_Gender!$Q5),AVERAGEIFS(Gender!$K$65:$K$88,Gender!$A$65:$A$88,IBT_SchStats_Gender!$Q5,Gender!$C$65:$C$88,MID(IBT_SchStats_Gender!$D22,1,1)),"")),"n/a*") -> 494 | J22: =IFERROR(IF($H22<15,"n/a*",IF(ISNUMBER(IBT_SchStats_Gender!$Q5),AVERAGEIFS(Gender!$L$65:$L$88,Gender!$A$65:$A$88,IBT_SchStats_Gender!$Q5,Gender!$C$65:$C$88,MID(IBT_SchStats_Gender!$D22,1,1)),"")),"n/a*") -> 71 | K22: =IFERROR(IF(ISNUMBER(IBT_SchStats_Gender!$Q5),AVERAGEIFS(Gender!$N$65:$N$88,Gender!$A$65:$A$88,IBT_SchStats_Gender!$Q5,Gender!$C$65:$C$88,MID(IBT_SchStats_Gender!$D18,1,1)),""),"n/a*") -> 3638 | L22: =IFERROR(IF($K22<15,"n/a*",IF(ISNUMBER(IBT_SchStats_Gender!$Q5),AVERAGEIFS(Gender!$O$65:$O$88,Gender!$A$65:$A$88,IBT_SchStats_Gender!$Q5,Gender!$C$65:$C$88,MID(IBT_SchStats_Gender!$D22,1,1)),"")),"n/a*") -> 493 | M22: =IFERROR(IF($K22<15,"n/a*",IF(ISNUMBER(IBT_SchStats_Gender!$Q5),AVERAGEIFS(Gender!$P$65:$P$88,Gender!$A$65:$A$88,IBT_SchStats_Gender!$Q5,Gender!$C$65:$C$88,MID(IBT_SchStats_Gender!$D22,1,1)),"")),"n/a*") -> 80 | W22: ="D"&(16+INT(W23/3)) -> D17 | X22: ="D"&(16+INT(X23/3)) -> D17 | Y22: D17 | Z22: D17 | AA22: D17 | AB22: D17 | AD22: ="D"&(16+INT(AD23/3)) -> D18 | AE22: ="D"&(16+INT(AE23/3)) -> D18 | AF22: D18 | AG22: D18 | AH22: D18 | AI22: D18 | AK22: ="D"&(16+INT(AK23/3)) -> D19 | AL22: ="D"&(16+INT(AL23/3)) -> D19 | AM22: D19 | AN22: D19 | AO22: D19 | AP22: D19 | AR22: ="D"&(16+INT(AR23/3)) -> D20 | AS22: ="D"&(16+INT(AS23/3)) -> D20 | AT22: D20 | AU22: D20 | AV22: D20 | AW22: D20 | AY22: ="D"&(16+INT(AY23/3)) -> D21 | AZ22: ="D"&(16+INT(AZ23/3)) -> D21 | BA22: D21 | BB22: D21 | BC22: D21 | BD22: D21 | BF22: ="D"&(16+INT(BF23/3)) -> D22 | BG22: ="D"&(16+INT(BG23/3)) -> D22 | BH22: D22 | BI22: D22 | BJ22: D22 | BK22: D22 | BM22: ="D"&(16+INT(BM23/3)) -> D23 | BN22: ="D"&(16+INT(BN23/3)) -> D23 | BO22: D23 | BP22: D23 | BQ22: D23 | BR22: D23 | BT22: ="D"&(16+INT(BT23/3)) -> D24 | BU22: ="D"&(16+INT(BU23/3)) -> D24 | BV22: D24 | BW22: D24 | BX22: D24 | BY22: D24 | CA22: ="D"&(16+INT(CA23/3)) -> D25 | CB22: ="D"&(16+INT(CB23/3)) -> D25 | CC22: D25 | CD22: D25 | CE22: D25 | CF22: D25 | CH22: ="D"&(16+INT(CH23/3)) -> D26 | CI22: ="D"&(16+INT(CI23/3)) -> D26 | CJ22: D26 | CK22: D26 | CL22: D26 | CM22: D26
C23: =IF(ISNUMBER(IBT_SchStats_Gender!Q6),IF(DD_new!$BC$2="B","Test Level ","Grade ") &IBT_SchStats_Gender!Q6,"") -> Grade 6 | D23: =IF(C23="","","Female") -> Female | E23: =IF(ISNUMBER(IBT_SchStats_Gender!$Q6),IF(AVERAGEIFS(Gender!$Q$65:$Q$88,Gender!$A$65:$A$88,IBT_SchStats_Gender!$Q6,Gender!$C$65:$C$88,MID(IBT_SchStats_Gender!$D17,1,1))>0,AVERAGEIFS(Gender!$F$65:$F$88,Gender!$A$65:$A$88,IBT_SchStats_Gender!$Q6,Gender!$C$65:$C$88,MID(IBT_SchStats_Gender!$D17,1,1)) + AVERAGEIFS(Gender!$Q$65:$Q$88,Gender!$A$65:$A$88,IBT_SchStats_Gender!$Q6,Gender!$C$65:$C$88,MID(IBT_SchStats_Gender!$D17,1,1)) &"("& AVERAGEIFS(Gender!$Q$65:$Q$88,Gender!$A$65:$A$88,IBT_SchStats_Gender!$Q6,Gender!$C$65:$C$88,MID(IBT_SchStats_Gender!$D17,1,1)) &")", AVERAGEIFS(Gender!$F$65:$F$88,Gender!$A$65:$A$88,IBT_SchStats_Gender!$Q6,Gender!$C$65:$C$88,MID(IBT_SchStats_Gender!$D17,1,1))),"") -> 25 | F23: =IFERROR(IF(AVERAGEIFS(Gender!$F$65:$F$88,Gender!$A$65:$A$88,IBT_SchStats_Gender!$Q6,Gender!$C$65:$C$88,MID(IBT_SchStats_Gender!$D17,1,1))<15,"n/a*",IF(ISNUMBER(IBT_SchStats_Gender!$Q6),AVERAGEIFS(Gender!$G$65:$G$88,Gender!$A$65:$A$88,IBT_SchStats_Gender!$Q6,Gender!$C$65:$C$88,MID(IBT_SchStats_Gender!$D17,1,1)),"")),"") -> 516 | G23: =IFERROR(IF(AVERAGEIFS(Gender!$F$65:$F$88,Gender!$A$65:$A$88,IBT_SchStats_Gender!$Q6,Gender!$C$65:$C$88,MID(IBT_SchStats_Gender!$D17,1,1))<15,"n/a*",IF(ISNUMBER(IBT_SchStats_Gender!$Q6),AVERAGEIFS(Gender!$H$65:$H$88,Gender!$A$65:$A$88,IBT_SchStats_Gender!$Q6,Gender!$C$65:$C$88,MID(IBT_SchStats_Gender!$D17,1,1)),"")),"") -> 60 | H23: =IFERROR(IF(ISNUMBER(IBT_SchStats_Gender!$Q6),AVERAGEIFS(Gender!$J$65:$J$88,Gender!$A$65:$A$88,IBT_SchStats_Gender!$Q6,Gender!$C$65:$C$88,MID(IBT_SchStats_Gender!$D17,1,1)),""),"n/a*") -> 897 | I23: =IFERROR(IF($H23<15,"n/a*",IF(ISNUMBER(IBT_SchStats_Gender!$Q6),AVERAGEIFS(Gender!$K$65:$K$88,Gender!$A$65:$A$88,IBT_SchStats_Gender!$Q6,Gender!$C$65:$C$88,MID(IBT_SchStats_Gender!$D23,1,1)),"")),"n/a*") -> 510 | J23: =IFERROR(IF($H23<15,"n/a*",IF(ISNUMBER(IBT_SchStats_Gender!$Q6),AVERAGEIFS(Gender!$L$65:$L$88,Gender!$A$65:$A$88,IBT_SchStats_Gender!$Q6,Gender!$C$65:$C$88,MID(IBT_SchStats_Gender!$D23,1,1)),"")),"n/a*") -> 71 | K23: =IFERROR(IF(ISNUMBER(IBT_SchStats_Gender!$Q6),AVERAGEIFS(Gender!$N$65:$N$88,Gender!$A$65:$A$88,IBT_SchStats_Gender!$Q6,Gender!$C$65:$C$88,MID(IBT_SchStats_Gender!$D17,1,1)),""),"n/a*") -> 3959 | L23: =IFERROR(IF($K23<15,"n/a*",IF(ISNUMBER(IBT_SchStats_Gender!$Q6),AVERAGEIFS(Gender!$O$65:$O$88,Gender!$A$65:$A$88,IBT_SchStats_Gender!$Q6,Gender!$C$65:$C$88,MID(IBT_SchStats_Gender!$D23,1,1)),"")),"n/a*") -> 521 | M23: =IFERROR(IF($K23<15,"n/a*",IF(ISNUMBER(IBT_SchStats_Gender!$Q6),AVERAGEIFS(Gender!$P$65:$P$88,Gender!$A$65:$A$88,IBT_SchStats_Gender!$Q6,Gender!$C$65:$C$88,MID(IBT_SchStats_Gender!$D23,1,1)),"")),"n/a*") -> 71 | P23: =COUNT(P3:P15) -> 8 | W23: 3 | X23: 3 | Y23: 4 | Z23: 4 | AA23: 5 | AB23: 5 | AD23: 6 | AE23: 6 | AF23: 7 | AG23: 7 | AH23: 8 | AI23: 8 | AK23: 9 | AL23: 9 | AM23: 10 | AN23: 10 | AO23: 11 | AP23: 11 | AR23: 12 | AS23: 12 | AT23: 13 | AU23: 13 | AV23: 14 | AW23: 14 | AY23: 15 | AZ23: 15 | BA23: 16 | BB23: 16 | BC23: 17 | BD23: 17 | BF23: 18 | BG23: 18 | BH23: 19 | BI23: 19 | BJ23: 20 | BK23: 20 | BM23: 21 | BN23: 21 | BO23: 22 | BP23: 22 | BQ23: 23 | BR23: 23 | BT23: 24 | BU23: 24 | BV23: 25 | BW23: 25 | BX23: 26 | BY23: 26 | CA23: 27 | CB23: 27 | CC23: 28 | CD23: 28 | CE23: 29 | CF23: 29 | CH23: 30 | CI23: 30 | CJ23: 31 | CK23: 31 | CL23: 32 | CM23: 32
C24: =IF(ISNUMBER(IBT_SchStats_Gender!Q6),IF(DD_new!$BC$2="B","Test Level ","Grade ") &IBT_SchStats_Gender!Q6,"") -> Grade 6 | D24: =IF(C23="","","Male") -> Male | E24: =IF(ISNUMBER(IBT_SchStats_Gender!$Q6),IF(AVERAGEIFS(Gender!$Q$65:$Q$88,Gender!$A$65:$A$88,IBT_SchStats_Gender!$Q6,Gender!$C$65:$C$88,MID(IBT_SchStats_Gender!$D18,1,1))>0,AVERAGEIFS(Gender!$F$65:$F$88,Gender!$A$65:$A$88,IBT_SchStats_Gender!$Q6,Gender!$C$65:$C$88,MID(IBT_SchStats_Gender!$D18,1,1)) + AVERAGEIFS(Gender!$Q$65:$Q$88,Gender!$A$65:$A$88,IBT_SchStats_Gender!$Q6,Gender!$C$65:$C$88,MID(IBT_SchStats_Gender!$D18,1,1)) &"("& AVERAGEIFS(Gender!$Q$65:$Q$88,Gender!$A$65:$A$88,IBT_SchStats_Gender!$Q6,Gender!$C$65:$C$88,MID(IBT_SchStats_Gender!$D18,1,1)) &")", AVERAGEIFS(Gender!$F$65:$F$88,Gender!$A$65:$A$88,IBT_SchStats_Gender!$Q6,Gender!$C$65:$C$88,MID(IBT_SchStats_Gender!$D18,1,1))),"") -> 25 | F24: =IFERROR(IF(AVERAGEIFS(Gender!$F$65:$F$88,Gender!$A$65:$A$88,IBT_SchStats_Gender!$Q6,Gender!$C$65:$C$88,MID(IBT_SchStats_Gender!$D18,1,1))<15,"n/a*",IF(ISNUMBER(IBT_SchStats_Gender!$Q6),AVERAGEIFS(Gender!$G$65:$G$88,Gender!$A$65:$A$88,IBT_SchStats_Gender!$Q6,Gender!$C$65:$C$88,MID(IBT_SchStats_Gender!$D18,1,1)),"")),"") -> 535 | G24: =IFERROR(IF(AVERAGEIFS(Gender!$F$65:$F$88,Gender!$A$65:$A$88,IBT_SchStats_Gender!$Q6,Gender!$C$65:$C$88,MID(IBT_SchStats_Gender!$D18,1,1))<15,"n/a*",IF(ISNUMBER(IBT_SchStats_Gender!$Q6),AVERAGEIFS(Gender!$H$65:$H$88,Gender!$A$65:$A$88,IBT_SchStats_Gender!$Q6,Gender!$C$65:$C$88,MID(IBT_SchStats_Gender!$D18,1,1)),"")),"") -> 79 | H24: =IFERROR(IF(ISNUMBER(IBT_SchStats_Gender!$Q6),AVERAGEIFS(Gender!$J$65:$J$88,Gender!$A$65:$A$88,IBT_SchStats_Gender!$Q6,Gender!$C$65:$C$88,MID(IBT_SchStats_Gender!$D18,1,1)),""),"n/a*") -> 1077 | I24: =IFERROR(IF($H24<15,"n/a*",IF(ISNUMBER(IBT_SchStats_Gender!$Q6),AVERAGEIFS(Gender!$K$65:$K$88,Gender!$A$65:$A$88,IBT_SchStats_Gender!$Q6,Gender!$C$65:$C$88,MID(IBT_SchStats_Gender!$D24,1,1)),"")),"n/a*") -> 520 | J24: =IFERROR(IF($H24<15,"n/a*",IF(ISNUMBER(IBT_SchStats_Gender!$Q6),AVERAGEIFS(Gender!$L$65:$L$88,Gender!$A$65:$A$88,IBT_SchStats_Gender!$Q6,Gender!$C$65:$C$88,MID(IBT_SchStats_Gender!$D24,1,1)),"")),"n/a*") -> 77 | K24: =IFERROR(IF(ISNUMBER(IBT_SchStats_Gender!$Q6),AVERAGEIFS(Gender!$N$65:$N$88,Gender!$A$65:$A$88,IBT_SchStats_Gender!$Q6,Gender!$C$65:$C$88,MID(IBT_SchStats_Gender!$D18,1,1)),""),"n/a*") -> 4056 | L24: =IFERROR(IF($K24<15,"n/a*",IF(ISNUMBER(IBT_SchStats_Gender!$Q6),AVERAGEIFS(Gender!$O$65:$O$88,Gender!$A$65:$A$88,IBT_SchStats_Gender!$Q6,Gender!$C$65:$C$88,MID(IBT_SchStats_Gender!$D24,1,1)),"")),"n/a*") -> 528 | M24: =IFERROR(IF($K24<15,"n/a*",IF(ISNUMBER(IBT_SchStats_Gender!$Q6),AVERAGEIFS(Gender!$P$65:$P$88,Gender!$A$65:$A$88,IBT_SchStats_Gender!$Q6,Gender!$C$65:$C$88,MID(IBT_SchStats_Gender!$D24,1,1)),"")),"n/a*") -> 82 | Z24: =IF(ISNUMBER(W19),X20,"") -> Grade 3 | AG24: =IF(ISNUMBER(AD19),AE20,"") -> Grade 4 | AN24: =IF(ISNUMBER(AK19),AL20,"") -> Grade 5 | AU24: =IF(ISNUMBER(AR19),AS20,"") -> Grade 6 | BB24: =IF(ISNUMBER(AY19),AZ20,"") -> Grade 7 | BI24: =IF(ISNUMBER(BF19),BG20,"") -> Grade 8 | BP24: =IF(ISNUMBER(BM19),BN20,"") -> Grade 9 | BW24: =IF(ISNUMBER(BT19),BU20,"") -> Grade 10 | CD24: =IF(ISNUMBER(CA19),CB20,"") ->  | CK24: =IF(ISNUMBER(CH19),CI20,"") -> 
C25: =IF(ISNUMBER(IBT_SchStats_Gender!Q7),IF(DD_new!$BC$2="B","Test Level ","Grade ") &IBT_SchStats_Gender!Q7,"") -> Grade 7 | D25: =IF(C25="","","Female") -> Female | E25: =IF(ISNUMBER(IBT_SchStats_Gender!$Q7),IF(AVERAGEIFS(Gender!$Q$65:$Q$88,Gender!$A$65:$A$88,IBT_SchStats_Gender!$Q7,Gender!$C$65:$C$88,MID(IBT_SchStats_Gender!$D17,1,1))>0,AVERAGEIFS(Gender!$F$65:$F$88,Gender!$A$65:$A$88,IBT_SchStats_Gender!$Q7,Gender!$C$65:$C$88,MID(IBT_SchStats_Gender!$D17,1,1)) + AVERAGEIFS(Gender!$Q$65:$Q$88,Gender!$A$65:$A$88,IBT_SchStats_Gender!$Q7,Gender!$C$65:$C$88,MID(IBT_SchStats_Gender!$D17,1,1)) &"("& AVERAGEIFS(Gender!$Q$65:$Q$88,Gender!$A$65:$A$88,IBT_SchStats_Gender!$Q7,Gender!$C$65:$C$88,MID(IBT_SchStats_Gender!$D17,1,1)) &")", AVERAGEIFS(Gender!$F$65:$F$88,Gender!$A$65:$A$88,IBT_SchStats_Gender!$Q7,Gender!$C$65:$C$88,MID(IBT_SchStats_Gender!$D17,1,1))),"") -> 32 | F25: =IFERROR(IF(AVERAGEIFS(Gender!$F$65:$F$88,Gender!$A$65:$A$88,IBT_SchStats_Gender!$Q7,Gender!$C$65:$C$88,MID(IBT_SchStats_Gender!$D17,1,1))<15,"n/a*",IF(ISNUMBER(IBT_SchStats_Gender!$Q7),AVERAGEIFS(Gender!$G$65:$G$88,Gender!$A$65:$A$88,IBT_SchStats_Gender!$Q7,Gender!$C$65:$C$88,MID(IBT_SchStats_Gender!$D17,1,1)),"")),"") -> 557 | G25: =IFERROR(IF(AVERAGEIFS(Gender!$F$65:$F$88,Gender!$A$65:$A$88,IBT_SchStats_Gender!$Q7,Gender!$C$65:$C$88,MID(IBT_SchStats_Gender!$D17,1,1))<15,"n/a*",IF(ISNUMBER(IBT_SchStats_Gender!$Q7),AVERAGEIFS(Gender!$H$65:$H$88,Gender!$A$65:$A$88,IBT_SchStats_Gender!$Q7,Gender!$C$65:$C$88,MID(IBT_SchStats_Gender!$D17,1,1)),"")),"") -> 64 | H25: =IFERROR(IF(ISNUMBER(IBT_SchStats_Gender!$Q7),AVERAGEIFS(Gender!$J$65:$J$88,Gender!$A$65:$A$88,IBT_SchStats_Gender!$Q7,Gender!$C$65:$C$88,MID(IBT_SchStats_Gender!$D17,1,1)),""),"n/a*") -> 825 | I25: =IFERROR(IF($H25<15,"n/a*",IF(ISNUMBER(IBT_SchStats_Gender!$Q7),AVERAGEIFS(Gender!$K$65:$K$88,Gender!$A$65:$A$88,IBT_SchStats_Gender!$Q7,Gender!$C$65:$C$88,MID(IBT_SchStats_Gender!$D25,1,1)),"")),"n/a*") -> 535 | J25: =IFERROR(IF($H25<15,"n/a*",IF(ISNUMBER(IBT_SchStats_Gender!$Q7),AVERAGEIFS(Gender!$L$65:$L$88,Gender!$A$65:$A$88,IBT_SchStats_Gender!$Q7,Gender!$C$65:$C$88,MID(IBT_SchStats_Gender!$D25,1,1)),"")),"n/a*") -> 62 | K25: =IFERROR(IF(ISNUMBER(IBT_SchStats_Gender!$Q7),AVERAGEIFS(Gender!$N$65:$N$88,Gender!$A$65:$A$88,IBT_SchStats_Gender!$Q7,Gender!$C$65:$C$88,MID(IBT_SchStats_Gender!$D17,1,1)),""),"n/a*") -> 2228 | L25: =IFERROR(IF($K25<15,"n/a*",IF(ISNUMBER(IBT_SchStats_Gender!$Q7),AVERAGEIFS(Gender!$O$65:$O$88,Gender!$A$65:$A$88,IBT_SchStats_Gender!$Q7,Gender!$C$65:$C$88,MID(IBT_SchStats_Gender!$D25,1,1)),"")),"n/a*") -> 534 | M25: =IFERROR(IF($K25<15,"n/a*",IF(ISNUMBER(IBT_SchStats_Gender!$Q7),AVERAGEIFS(Gender!$P$65:$P$88,Gender!$A$65:$A$88,IBT_SchStats_Gender!$Q7,Gender!$C$65:$C$88,MID(IBT_SchStats_Gender!$D25,1,1)),"")),"n/a*") -> 68 | W25: =IF(ISNUMBER(W19),MID($U19,1,1),"") -> F | X25: =IF(ISNUMBER(X18),MID($U18,1,1),"") -> M | Y25: =IF(ISNUMBER(Y17),MID($U17,1,1),"") -> F | Z25: =IF(ISNUMBER(Z16),MID($U16,1,1),"") -> M | AA25: =IF(ISNUMBER(AA15),MID($U15,1,1),"") -> F | AB25: =IF(ISNUMBER(AB14),MID($U14,1,1),"") -> M | AD25: =IF(ISNUMBER(AD19),MID($U19,1,1),"") -> F | AE25: =IF(ISNUMBER(AE18),MID($U18,1,1),"") -> M | AF25: =IF(ISNUMBER(AF17),MID($U17,1,1),"") -> F | AG25: =IF(ISNUMBER(AG16),MID($U16,1,1),"") -> M | AH25: =IF(ISNUMBER(AH15),MID($U15,1,1),"") -> F | AI25: =IF(ISNUMBER(AI14),MID($U14,1,1),"") -> M | AK25: =IF(ISNUMBER(AK19),MID($U19,1,1),"") -> F | AL25: =IF(ISNUMBER(AL18),MID($U18,1,1),"") -> M | AM25: =IF(ISNUMBER(AM17),MID($U17,1,1),"") -> F | AN25: =IF(ISNUMBER(AN16),MID($U16,1,1),"") -> M | AO25: =IF(ISNUMBER(AO15),MID($U15,1,1),"") -> F | AP25: =IF(ISNUMBER(AP14),MID($U14,1,1),"") -> M | AR25: =IF(ISNUMBER(AR19),MID($U19,1,1),"") -> F | AS25: =IF(ISNUMBER(AS18),MID($U18,1,1),"") -> M | AT25: =IF(ISNUMBER(AT17),MID($U17,1,1),"") -> F | AU25: =IF(ISNUMBER(AU16),MID($U16,1,1),"") -> M | AV25: =IF(ISNUMBER(AV15),MID($U15,1,1),"") -> F | AW25: =IF(ISNUMBER(AW14),MID($U14,1,1),"") -> M | AY25: =IF(ISNUMBER(AY19),MID($U19,1,1),"") -> F | AZ25: =IF(ISNUMBER(AZ18),MID($U18,1,1),"") -> M | BA25: =IF(ISNUMBER(BA17),MID($U17,1,1),"") -> F | BB25: =IF(ISNUMBER(BB16),MID($U16,1,1),"") -> M | BC25: =IF(ISNUMBER(BC15),MID($U15,1,1),"") -> F | BD25: =IF(ISNUMBER(BD14),MID($U14,1,1),"") -> M | BF25: =IF(ISNUMBER(BF19),MID($U19,1,1),"") -> F | BG25: =IF(ISNUMBER(BG18),MID($U18,1,1),"") -> M | BH25: =IF(ISNUMBER(BH17),MID($U17,1,1),"") -> F | BI25: =IF(ISNUMBER(BI16),MID($U16,1,1),"") -> M | BJ25: =IF(ISNUMBER(BJ15),MID($U15,1,1),"") -> F | BK25: =IF(ISNUMBER(BK14),MID($U14,1,1),"") -> M | BM25: =IF(ISNUMBER(BM19),MID($U19,1,1),"") -> F | BN25: =IF(ISNUMBER(BN18),MID($U18,1,1),"") -> M | BO25: =IF(ISNUMBER(BO17),MID($U17,1,1),"") -> F | BP25: =IF(ISNUMBER(BP16),MID($U16,1,1),"") -> M | BQ25: =IF(ISNUMBER(BQ15),MID($U15,1,1),"") -> F | BR25: =IF(ISNUMBER(BR14),MID($U14,1,1),"") -> M | BT25: =IF(ISNUMBER(BT19),MID($U19,1,1),"") -> F | BU25: =IF(ISNUMBER(BU18),MID($U18,1,1),"") -> M | BV25: =IF(ISNUMBER(BV17),MID($U17,1,1),"") -> F | BW25: =IF(ISNUMBER(BW16),MID($U16,1,1),"") -> M | BX25: =IF(ISNUMBER(BX15),MID($U15,1,1),"") -> F | BY25: =IF(ISNUMBER(BY14),MID($U14,1,1),"") -> M | CA25: =IF(ISNUMBER(CA19),MID($U19,1,1),"") ->  | CB25: =IF(ISNUMBER(CB18),MID($U18,1,1),"") ->  | CC25: =IF(ISNUMBER(CC17),MID($U17,1,1),"") ->  | CD25: =IF(ISNUMBER(CD16),MID($U16,1,1),"") ->  | CE25: =IF(ISNUMBER(CE15),MID($U15,1,1),"") ->  | CF25: =IF(ISNUMBER(CF14),MID($U14,1,1),"") ->  | CH25: =IF(ISNUMBER(CH19),$U19,"") ->  | CI25: =IF(ISNUMBER(CI18),$U18,"") ->  | CJ25: =IF(ISNUMBER(CJ17),$U17,"") ->  | CK25: =IF(ISNUMBER(CK16),$U16,"") ->  | CL25: =IF(ISNUMBER(CL15),$U15,"") ->  | CM25: =IF(ISNUMBER(CM14),$U14,"") -> 
C26: =IF(ISNUMBER(IBT_SchStats_Gender!Q7),IF(DD_new!$BC$2="B","Test Level ","Grade ") &IBT_SchStats_Gender!Q7,"") -> Grade 7 | D26: =IF(C25="","","Male") -> Male | E26: =IF(ISNUMBER(IBT_SchStats_Gender!$Q7),IF(AVERAGEIFS(Gender!$Q$65:$Q$88,Gender!$A$65:$A$88,IBT_SchStats_Gender!$Q7,Gender!$C$65:$C$88,MID(IBT_SchStats_Gender!$D18,1,1))>0,AVERAGEIFS(Gender!$F$65:$F$88,Gender!$A$65:$A$88,IBT_SchStats_Gender!$Q7,Gender!$C$65:$C$88,MID(IBT_SchStats_Gender!$D18,1,1)) + AVERAGEIFS(Gender!$Q$65:$Q$88,Gender!$A$65:$A$88,IBT_SchStats_Gender!$Q7,Gender!$C$65:$C$88,MID(IBT_SchStats_Gender!$D18,1,1)) &"("& AVERAGEIFS(Gender!$Q$65:$Q$88,Gender!$A$65:$A$88,IBT_SchStats_Gender!$Q7,Gender!$C$65:$C$88,MID(IBT_SchStats_Gender!$D18,1,1)) &")", AVERAGEIFS(Gender!$F$65:$F$88,Gender!$A$65:$A$88,IBT_SchStats_Gender!$Q7,Gender!$C$65:$C$88,MID(IBT_SchStats_Gender!$D18,1,1))),"") -> 18 | F26: =IFERROR(IF(AVERAGEIFS(Gender!$F$65:$F$88,Gender!$A$65:$A$88,IBT_SchStats_Gender!$Q7,Gender!$C$65:$C$88,MID(IBT_SchStats_Gender!$D18,1,1))<15,"n/a*",IF(ISNUMBER(IBT_SchStats_Gender!$Q7),AVERAGEIFS(Gender!$G$65:$G$88,Gender!$A$65:$A$88,IBT_SchStats_Gender!$Q7,Gender!$C$65:$C$88,MID(IBT_SchStats_Gender!$D18,1,1)),"")),"") -> 546 | G26: =IFERROR(IF(AVERAGEIFS(Gender!$F$65:$F$88,Gender!$A$65:$A$88,IBT_SchStats_Gender!$Q7,Gender!$C$65:$C$88,MID(IBT_SchStats_Gender!$D18,1,1))<15,"n/a*",IF(ISNUMBER(IBT_SchStats_Gender!$Q7),AVERAGEIFS(Gender!$H$65:$H$88,Gender!$A$65:$A$88,IBT_SchStats_Gender!$Q7,Gender!$C$65:$C$88,MID(IBT_SchStats_Gender!$D18,1,1)),"")),"") -> 57 | H26: =IFERROR(IF(ISNUMBER(IBT_SchStats_Gender!$Q7),AVERAGEIFS(Gender!$J$65:$J$88,Gender!$A$65:$A$88,IBT_SchStats_Gender!$Q7,Gender!$C$65:$C$88,MID(IBT_SchStats_Gender!$D18,1,1)),""),"n/a*") -> 880 | I26: =IFERROR(IF($H26<15,"n/a*",IF(ISNUMBER(IBT_SchStats_Gender!$Q7),AVERAGEIFS(Gender!$K$65:$K$88,Gender!$A$65:$A$88,IBT_SchStats_Gender!$Q7,Gender!$C$65:$C$88,MID(IBT_SchStats_Gender!$D26,1,1)),"")),"n/a*") -> 542 | J26: =IFERROR(IF($H26<15,"n/a*",IF(ISNUMBER(IBT_SchStats_Gender!$Q7),AVERAGEIFS(Gender!$L$65:$L$88,Gender!$A$65:$A$88,IBT_SchStats_Gender!$Q7,Gender!$C$65:$C$88,MID(IBT_SchStats_Gender!$D26,1,1)),"")),"n/a*") -> 72 | K26: =IFERROR(IF(ISNUMBER(IBT_SchStats_Gender!$Q7),AVERAGEIFS(Gender!$N$65:$N$88,Gender!$A$65:$A$88,IBT_SchStats_Gender!$Q7,Gender!$C$65:$C$88,MID(IBT_SchStats_Gender!$D18,1,1)),""),"n/a*") -> 2885 | L26: =IFERROR(IF($K26<15,"n/a*",IF(ISNUMBER(IBT_SchStats_Gender!$Q7),AVERAGEIFS(Gender!$O$65:$O$88,Gender!$A$65:$A$88,IBT_SchStats_Gender!$Q7,Gender!$C$65:$C$88,MID(IBT_SchStats_Gender!$D26,1,1)),"")),"n/a*") -> 539 | M26: =IFERROR(IF($K26<15,"n/a*",IF(ISNUMBER(IBT_SchStats_Gender!$Q7),AVERAGEIFS(Gender!$P$65:$P$88,Gender!$A$65:$A$88,IBT_SchStats_Gender!$Q7,Gender!$C$65:$C$88,MID(IBT_SchStats_Gender!$D26,1,1)),"")),"n/a*") -> 77 | Z26: =IF(ISERROR(VLOOKUP(X20,IBT_SchStats_Gender!$C$17:$C$36,1,0)),"",VLOOKUP(X20,IBT_SchStats_Gender!$C$17:$C$36,1,0)) -> Grade 3 | AG26: =IF(ISERROR(VLOOKUP(AE20,IBT_SchStats_Gender!$C$17:$C$36,1,0)),"",VLOOKUP(AE20,IBT_SchStats_Gender!$C$17:$C$36,1,0)) -> Grade 4 | AN26: =IF(ISERROR(VLOOKUP(AL20,IBT_SchStats_Gender!$C$17:$C$36,1,0)),"",VLOOKUP(AL20,IBT_SchStats_Gender!$C$17:$C$36,1,0)) -> Grade 5 | AU26: =IF(ISERROR(VLOOKUP(AS20,IBT_SchStats_Gender!$C$17:$C$36,1,0)),"",VLOOKUP(AS20,IBT_SchStats_Gender!$C$17:$C$36,1,0)) -> Grade 6 | BB26: =IF(ISERROR(VLOOKUP(AZ20,IBT_SchStats_Gender!$C$17:$C$36,1,0)),"",VLOOKUP(AZ20,IBT_SchStats_Gender!$C$17:$C$36,1,0)) -> Grade 7 | BI26: =IF(ISERROR(VLOOKUP(BG20,IBT_SchStats_Gender!$C$17:$C$36,1,0)),"",VLOOKUP(BG20,IBT_SchStats_Gender!$C$17:$C$36,1,0)) -> Grade 8 | BP26: =IF(ISERROR(VLOOKUP(BN20,IBT_SchStats_Gender!$C$17:$C$36,1,0)),"",VLOOKUP(BN20,IBT_SchStats_Gender!$C$17:$C$36,1,0)) -> Grade 9 | BW26: =IF(ISERROR(VLOOKUP(BU20,IBT_SchStats_Gender!$C$17:$C$36,1,0)),"",VLOOKUP(BU20,IBT_SchStats_Gender!$C$17:$C$36,1,0)) -> Grade 10 | CD26: =IF(ISERROR(VLOOKUP(CB20,IBT_SchStats_Gender!$C$17:$C$36,1,0)),"",VLOOKUP(CB20,IBT_SchStats_Gender!$C$17:$C$36,1,0)) ->  | CK26: =IF(ISERROR(VLOOKUP(CI20,IBT_SchStats_Gender!$C$17:$C$36,1,0)),"",VLOOKUP(CI20,IBT_SchStats_Gender!$C$17:$C$36,1,0)) -> 
C27: =IF(ISNUMBER(IBT_SchStats_Gender!Q8),IF(DD_new!$BC$2="B","Test Level ","Grade ") &IBT_SchStats_Gender!Q8,"") -> Grade 8 | D27: =IF(C27="","","Female") -> Female | E27: =IF(ISNUMBER(IBT_SchStats_Gender!$Q8),IF(AVERAGEIFS(Gender!$Q$65:$Q$88,Gender!$A$65:$A$88,IBT_SchStats_Gender!$Q8,Gender!$C$65:$C$88,MID(IBT_SchStats_Gender!$D17,1,1))>0,AVERAGEIFS(Gender!$F$65:$F$88,Gender!$A$65:$A$88,IBT_SchStats_Gender!$Q8,Gender!$C$65:$C$88,MID(IBT_SchStats_Gender!$D17,1,1)) + AVERAGEIFS(Gender!$Q$65:$Q$88,Gender!$A$65:$A$88,IBT_SchStats_Gender!$Q8,Gender!$C$65:$C$88,MID(IBT_SchStats_Gender!$D17,1,1)) &"("& AVERAGEIFS(Gender!$Q$65:$Q$88,Gender!$A$65:$A$88,IBT_SchStats_Gender!$Q8,Gender!$C$65:$C$88,MID(IBT_SchStats_Gender!$D17,1,1)) &")", AVERAGEIFS(Gender!$F$65:$F$88,Gender!$A$65:$A$88,IBT_SchStats_Gender!$Q8,Gender!$C$65:$C$88,MID(IBT_SchStats_Gender!$D17,1,1))),"") -> 28 | F27: =IFERROR(IF(AVERAGEIFS(Gender!$F$65:$F$88,Gender!$A$65:$A$88,IBT_SchStats_Gender!$Q8,Gender!$C$65:$C$88,MID(IBT_SchStats_Gender!$D17,1,1))<15,"n/a*",IF(ISNUMBER(IBT_SchStats_Gender!$Q8),AVERAGEIFS(Gender!$G$65:$G$88,Gender!$A$65:$A$88,IBT_SchStats_Gender!$Q8,Gender!$C$65:$C$88,MID(IBT_SchStats_Gender!$D17,1,1)),"")),"") -> 568 | G27: =IFERROR(IF(AVERAGEIFS(Gender!$F$65:$F$88,Gender!$A$65:$A$88,IBT_SchStats_Gender!$Q8,Gender!$C$65:$C$88,MID(IBT_SchStats_Gender!$D17,1,1))<15,"n/a*",IF(ISNUMBER(IBT_SchStats_Gender!$Q8),AVERAGEIFS(Gender!$H$65:$H$88,Gender!$A$65:$A$88,IBT_SchStats_Gender!$Q8,Gender!$C$65:$C$88,MID(IBT_SchStats_Gender!$D17,1,1)),"")),"") -> 67 | H27: =IFERROR(IF(ISNUMBER(IBT_SchStats_Gender!$Q8),AVERAGEIFS(Gender!$J$65:$J$88,Gender!$A$65:$A$88,IBT_SchStats_Gender!$Q8,Gender!$C$65:$C$88,MID(IBT_SchStats_Gender!$D17,1,1)),""),"n/a*") -> 574 | I27: =IFERROR(IF($H27<15,"n/a*",IF(ISNUMBER(IBT_SchStats_Gender!$Q8),AVERAGEIFS(Gender!$K$65:$K$88,Gender!$A$65:$A$88,IBT_SchStats_Gender!$Q8,Gender!$C$65:$C$88,MID(IBT_SchStats_Gender!$D27,1,1)),"")),"n/a*") -> 561 | J27: =IFERROR(IF($H27<15,"n/a*",IF(ISNUMBER(IBT_SchStats_Gender!$Q8),AVERAGEIFS(Gender!$L$65:$L$88,Gender!$A$65:$A$88,IBT_SchStats_Gender!$Q8,Gender!$C$65:$C$88,MID(IBT_SchStats_Gender!$D27,1,1)),"")),"n/a*") -> 58 | K27: =IFERROR(IF(ISNUMBER(IBT_SchStats_Gender!$Q8),AVERAGEIFS(Gender!$N$65:$N$88,Gender!$A$65:$A$88,IBT_SchStats_Gender!$Q8,Gender!$C$65:$C$88,MID(IBT_SchStats_Gender!$D17,1,1)),""),"n/a*") -> 2575 | L27: =IFERROR(IF($K27<15,"n/a*",IF(ISNUMBER(IBT_SchStats_Gender!$Q8),AVERAGEIFS(Gender!$O$65:$O$88,Gender!$A$65:$A$88,IBT_SchStats_Gender!$Q8,Gender!$C$65:$C$88,MID(IBT_SchStats_Gender!$D27,1,1)),"")),"n/a*") -> 566 | M27: =IFERROR(IF($K27<15,"n/a*",IF(ISNUMBER(IBT_SchStats_Gender!$Q8),AVERAGEIFS(Gender!$P$65:$P$88,Gender!$A$65:$A$88,IBT_SchStats_Gender!$Q8,Gender!$C$65:$C$88,MID(IBT_SchStats_Gender!$D27,1,1)),"")),"n/a*") -> 56 | U27: 1 | V27: 2 | W27: 3 | X27: 4 | Y27: 5 | AC27: 6 | AD27: 7 | AE27: 8 | AF27: 9 | AJ27: 10 | AK27: 11 | AL27: 12 | AM27: 13 | AQ27: 14 | AR27: 15 | AS27: 16 | AT27: 17 | AX27: 18 | AY27: 19 | AZ27: 20 | BA27: 21 | BE27: 22 | BF27: 23 | BG27: 24 | BH27: 25 | BL27: 26 | BM27: 27 | BN27: 28 | BO27: 29 | BS27: 30 | BT27: 31 | BU27: 32 | BV27: 33 | BZ27: 34 | CA27: 35 | CB27: 36 | CC27: 37 | CG27: 38 | CH27: 39 | CI27: 40 | CJ27: 41
C28: =IF(ISNUMBER(IBT_SchStats_Gender!Q8),IF(DD_new!$BC$2="B","Test Level ","Grade ") &IBT_SchStats_Gender!Q8,"") -> Grade 8 | D28: =IF(C27="","","Male") -> Male | E28: =IF(ISNUMBER(IBT_SchStats_Gender!$Q8),IF(AVERAGEIFS(Gender!$Q$65:$Q$88,Gender!$A$65:$A$88,IBT_SchStats_Gender!$Q8,Gender!$C$65:$C$88,MID(IBT_SchStats_Gender!$D18,1,1))>0,AVERAGEIFS(Gender!$F$65:$F$88,Gender!$A$65:$A$88,IBT_SchStats_Gender!$Q8,Gender!$C$65:$C$88,MID(IBT_SchStats_Gender!$D18,1,1)) + AVERAGEIFS(Gender!$Q$65:$Q$88,Gender!$A$65:$A$88,IBT_SchStats_Gender!$Q8,Gender!$C$65:$C$88,MID(IBT_SchStats_Gender!$D18,1,1)) &"("& AVERAGEIFS(Gender!$Q$65:$Q$88,Gender!$A$65:$A$88,IBT_SchStats_Gender!$Q8,Gender!$C$65:$C$88,MID(IBT_SchStats_Gender!$D18,1,1)) &")", AVERAGEIFS(Gender!$F$65:$F$88,Gender!$A$65:$A$88,IBT_SchStats_Gender!$Q8,Gender!$C$65:$C$88,MID(IBT_SchStats_Gender!$D18,1,1))),"") -> 22 | F28: =IFERROR(IF(AVERAGEIFS(Gender!$F$65:$F$88,Gender!$A$65:$A$88,IBT_SchStats_Gender!$Q8,Gender!$C$65:$C$88,MID(IBT_SchStats_Gender!$D18,1,1))<15,"n/a*",IF(ISNUMBER(IBT_SchStats_Gender!$Q8),AVERAGEIFS(Gender!$G$65:$G$88,Gender!$A$65:$A$88,IBT_SchStats_Gender!$Q8,Gender!$C$65:$C$88,MID(IBT_SchStats_Gender!$D18,1,1)),"")),"") -> 558 | G28: =IFERROR(IF(AVERAGEIFS(Gender!$F$65:$F$88,Gender!$A$65:$A$88,IBT_SchStats_Gender!$Q8,Gender!$C$65:$C$88,MID(IBT_SchStats_Gender!$D18,1,1))<15,"n/a*",IF(ISNUMBER(IBT_SchStats_Gender!$Q8),AVERAGEIFS(Gender!$H$65:$H$88,Gender!$A$65:$A$88,IBT_SchStats_Gender!$Q8,Gender!$C$65:$C$88,MID(IBT_SchStats_Gender!$D18,1,1)),"")),"") -> 59 | H28: =IFERROR(IF(ISNUMBER(IBT_SchStats_Gender!$Q8),AVERAGEIFS(Gender!$J$65:$J$88,Gender!$A$65:$A$88,IBT_SchStats_Gender!$Q8,Gender!$C$65:$C$88,MID(IBT_SchStats_Gender!$D18,1,1)),""),"n/a*") -> 709 | I28: =IFERROR(IF($H28<15,"n/a*",IF(ISNUMBER(IBT_SchStats_Gender!$Q8),AVERAGEIFS(Gender!$K$65:$K$88,Gender!$A$65:$A$88,IBT_SchStats_Gender!$Q8,Gender!$C$65:$C$88,MID(IBT_SchStats_Gender!$D28,1,1)),"")),"n/a*") -> 570 | J28: =IFERROR(IF($H28<15,"n/a*",IF(ISNUMBER(IBT_SchStats_Gender!$Q8),AVERAGEIFS(Gender!$L$65:$L$88,Gender!$A$65:$A$88,IBT_SchStats_Gender!$Q8,Gender!$C$65:$C$88,MID(IBT_SchStats_Gender!$D28,1,1)),"")),"n/a*") -> 66 | K28: =IFERROR(IF(ISNUMBER(IBT_SchStats_Gender!$Q8),AVERAGEIFS(Gender!$N$65:$N$88,Gender!$A$65:$A$88,IBT_SchStats_Gender!$Q8,Gender!$C$65:$C$88,MID(IBT_SchStats_Gender!$D18,1,1)),""),"n/a*") -> 3058 | L28: =IFERROR(IF($K28<15,"n/a*",IF(ISNUMBER(IBT_SchStats_Gender!$Q8),AVERAGEIFS(Gender!$O$65:$O$88,Gender!$A$65:$A$88,IBT_SchStats_Gender!$Q8,Gender!$C$65:$C$88,MID(IBT_SchStats_Gender!$D28,1,1)),"")),"n/a*") -> 576 | M28: =IFERROR(IF($K28<15,"n/a*",IF(ISNUMBER(IBT_SchStats_Gender!$Q8),AVERAGEIFS(Gender!$P$65:$P$88,Gender!$A$65:$A$88,IBT_SchStats_Gender!$Q8,Gender!$C$65:$C$88,MID(IBT_SchStats_Gender!$D28,1,1)),"")),"n/a*") -> 66 | W28: S | X28: C | Y28: I | AD28: S | AE28: C | AF28: I | AK28: S | AL28: C | AM28: I | AR28: S | AS28: C | AT28: I | AY28: S | AZ28: C | BA28: I | BF28: S | BG28: C | BH28: I | BM28: S | BN28: C | BO28: I | BT28: S | BU28: C | BV28: I | CA28: S | CB28: C | CC28: I | CH28: S | CI28: C | CJ28: I
C29: =IF(ISNUMBER(IBT_SchStats_Gender!Q9),IF(DD_new!$BC$2="B","Test Level ","Grade ") &IBT_SchStats_Gender!Q9,"") -> Grade 9 | D29: =IF(C29="","","Female") -> Female | E29: =IF(ISNUMBER(IBT_SchStats_Gender!$Q9),IF(AVERAGEIFS(Gender!$Q$65:$Q$88,Gender!$A$65:$A$88,IBT_SchStats_Gender!$Q9,Gender!$C$65:$C$88,MID(IBT_SchStats_Gender!$D17,1,1))>0,AVERAGEIFS(Gender!$F$65:$F$88,Gender!$A$65:$A$88,IBT_SchStats_Gender!$Q9,Gender!$C$65:$C$88,MID(IBT_SchStats_Gender!$D17,1,1)) + AVERAGEIFS(Gender!$Q$65:$Q$88,Gender!$A$65:$A$88,IBT_SchStats_Gender!$Q9,Gender!$C$65:$C$88,MID(IBT_SchStats_Gender!$D17,1,1)) &"("& AVERAGEIFS(Gender!$Q$65:$Q$88,Gender!$A$65:$A$88,IBT_SchStats_Gender!$Q9,Gender!$C$65:$C$88,MID(IBT_SchStats_Gender!$D17,1,1)) &")", AVERAGEIFS(Gender!$F$65:$F$88,Gender!$A$65:$A$88,IBT_SchStats_Gender!$Q9,Gender!$C$65:$C$88,MID(IBT_SchStats_Gender!$D17,1,1))),"") -> 19 | F29: =IFERROR(IF(AVERAGEIFS(Gender!$F$65:$F$88,Gender!$A$65:$A$88,IBT_SchStats_Gender!$Q9,Gender!$C$65:$C$88,MID(IBT_SchStats_Gender!$D17,1,1))<15,"n/a*",IF(ISNUMBER(IBT_SchStats_Gender!$Q9),AVERAGEIFS(Gender!$G$65:$G$88,Gender!$A$65:$A$88,IBT_SchStats_Gender!$Q9,Gender!$C$65:$C$88,MID(IBT_SchStats_Gender!$D17,1,1)),"")),"") -> 594 | G29: =IFERROR(IF(AVERAGEIFS(Gender!$F$65:$F$88,Gender!$A$65:$A$88,IBT_SchStats_Gender!$Q9,Gender!$C$65:$C$88,MID(IBT_SchStats_Gender!$D17,1,1))<15,"n/a*",IF(ISNUMBER(IBT_SchStats_Gender!$Q9),AVERAGEIFS(Gender!$H$65:$H$88,Gender!$A$65:$A$88,IBT_SchStats_Gender!$Q9,Gender!$C$65:$C$88,MID(IBT_SchStats_Gender!$D17,1,1)),"")),"") -> 92 | H29: =IFERROR(IF(ISNUMBER(IBT_SchStats_Gender!$Q9),AVERAGEIFS(Gender!$J$65:$J$88,Gender!$A$65:$A$88,IBT_SchStats_Gender!$Q9,Gender!$C$65:$C$88,MID(IBT_SchStats_Gender!$D17,1,1)),""),"n/a*") -> 526 | I29: =IFERROR(IF($H29<15,"n/a*",IF(ISNUMBER(IBT_SchStats_Gender!$Q9),AVERAGEIFS(Gender!$K$65:$K$88,Gender!$A$65:$A$88,IBT_SchStats_Gender!$Q9,Gender!$C$65:$C$88,MID(IBT_SchStats_Gender!$D29,1,1)),"")),"n/a*") -> 571 | J29: =IFERROR(IF($H29<15,"n/a*",IF(ISNUMBER(IBT_SchStats_Gender!$Q9),AVERAGEIFS(Gender!$L$65:$L$88,Gender!$A$65:$A$88,IBT_SchStats_Gender!$Q9,Gender!$C$65:$C$88,MID(IBT_SchStats_Gender!$D29,1,1)),"")),"n/a*") -> 50 | K29: =IFERROR(IF(ISNUMBER(IBT_SchStats_Gender!$Q9),AVERAGEIFS(Gender!$N$65:$N$88,Gender!$A$65:$A$88,IBT_SchStats_Gender!$Q9,Gender!$C$65:$C$88,MID(IBT_SchStats_Gender!$D17,1,1)),""),"n/a*") -> 2676 | L29: =IFERROR(IF($K29<15,"n/a*",IF(ISNUMBER(IBT_SchStats_Gender!$Q9),AVERAGEIFS(Gender!$O$65:$O$88,Gender!$A$65:$A$88,IBT_SchStats_Gender!$Q9,Gender!$C$65:$C$88,MID(IBT_SchStats_Gender!$D29,1,1)),"")),"n/a*") -> 583 | M29: =IFERROR(IF($K29<15,"n/a*",IF(ISNUMBER(IBT_SchStats_Gender!$Q9),AVERAGEIFS(Gender!$P$65:$P$88,Gender!$A$65:$A$88,IBT_SchStats_Gender!$Q9,Gender!$C$65:$C$88,MID(IBT_SchStats_Gender!$D29,1,1)),"")),"n/a*") -> 56
C30: =IF(ISNUMBER(IBT_SchStats_Gender!Q9),IF(DD_new!$BC$2="B","Test Level ","Grade ") &IBT_SchStats_Gender!Q9,"") -> Grade 9 | D30: =IF(C29="","","Male") -> Male | E30: =IF(ISNUMBER(IBT_SchStats_Gender!$Q9),IF(AVERAGEIFS(Gender!$Q$65:$Q$88,Gender!$A$65:$A$88,IBT_SchStats_Gender!$Q9,Gender!$C$65:$C$88,MID(IBT_SchStats_Gender!$D18,1,1))>0,AVERAGEIFS(Gender!$F$65:$F$88,Gender!$A$65:$A$88,IBT_SchStats_Gender!$Q9,Gender!$C$65:$C$88,MID(IBT_SchStats_Gender!$D18,1,1)) + AVERAGEIFS(Gender!$Q$65:$Q$88,Gender!$A$65:$A$88,IBT_SchStats_Gender!$Q9,Gender!$C$65:$C$88,MID(IBT_SchStats_Gender!$D18,1,1)) &"("& AVERAGEIFS(Gender!$Q$65:$Q$88,Gender!$A$65:$A$88,IBT_SchStats_Gender!$Q9,Gender!$C$65:$C$88,MID(IBT_SchStats_Gender!$D18,1,1)) &")", AVERAGEIFS(Gender!$F$65:$F$88,Gender!$A$65:$A$88,IBT_SchStats_Gender!$Q9,Gender!$C$65:$C$88,MID(IBT_SchStats_Gender!$D18,1,1))),"") -> 31 | F30: =IFERROR(IF(AVERAGEIFS(Gender!$F$65:$F$88,Gender!$A$65:$A$88,IBT_SchStats_Gender!$Q9,Gender!$C$65:$C$88,MID(IBT_SchStats_Gender!$D18,1,1))<15,"n/a*",IF(ISNUMBER(IBT_SchStats_Gender!$Q9),AVERAGEIFS(Gender!$G$65:$G$88,Gender!$A$65:$A$88,IBT_SchStats_Gender!$Q9,Gender!$C$65:$C$88,MID(IBT_SchStats_Gender!$D18,1,1)),"")),"") -> 569 | G30: =IFERROR(IF(AVERAGEIFS(Gender!$F$65:$F$88,Gender!$A$65:$A$88,IBT_SchStats_Gender!$Q9,Gender!$C$65:$C$88,MID(IBT_SchStats_Gender!$D18,1,1))<15,"n/a*",IF(ISNUMBER(IBT_SchStats_Gender!$Q9),AVERAGEIFS(Gender!$H$65:$H$88,Gender!$A$65:$A$88,IBT_SchStats_Gender!$Q9,Gender!$C$65:$C$88,MID(IBT_SchStats_Gender!$D18,1,1)),"")),"") -> 40 | H30: =IFERROR(IF(ISNUMBER(IBT_SchStats_Gender!$Q9),AVERAGEIFS(Gender!$J$65:$J$88,Gender!$A$65:$A$88,IBT_SchStats_Gender!$Q9,Gender!$C$65:$C$88,MID(IBT_SchStats_Gender!$D18,1,1)),""),"n/a*") -> 703 | I30: =IFERROR(IF($H30<15,"n/a*",IF(ISNUMBER(IBT_SchStats_Gender!$Q9),AVERAGEIFS(Gender!$K$65:$K$88,Gender!$A$65:$A$88,IBT_SchStats_Gender!$Q9,Gender!$C$65:$C$88,MID(IBT_SchStats_Gender!$D30,1,1)),"")),"n/a*") -> 580 | J30: =IFERROR(IF($H30<15,"n/a*",IF(ISNUMBER(IBT_SchStats_Gender!$Q9),AVERAGEIFS(Gender!$L$65:$L$88,Gender!$A$65:$A$88,IBT_SchStats_Gender!$Q9,Gender!$C$65:$C$88,MID(IBT_SchStats_Gender!$D30,1,1)),"")),"n/a*") -> 67 | K30: =IFERROR(IF(ISNUMBER(IBT_SchStats_Gender!$Q9),AVERAGEIFS(Gender!$N$65:$N$88,Gender!$A$65:$A$88,IBT_SchStats_Gender!$Q9,Gender!$C$65:$C$88,MID(IBT_SchStats_Gender!$D18,1,1)),""),"n/a*") -> 3318 | L30: =IFERROR(IF($K30<15,"n/a*",IF(ISNUMBER(IBT_SchStats_Gender!$Q9),AVERAGEIFS(Gender!$O$65:$O$88,Gender!$A$65:$A$88,IBT_SchStats_Gender!$Q9,Gender!$C$65:$C$88,MID(IBT_SchStats_Gender!$D30,1,1)),"")),"n/a*") -> 594 | M30: =IFERROR(IF($K30<15,"n/a*",IF(ISNUMBER(IBT_SchStats_Gender!$Q9),AVERAGEIFS(Gender!$P$65:$P$88,Gender!$A$65:$A$88,IBT_SchStats_Gender!$Q9,Gender!$C$65:$C$88,MID(IBT_SchStats_Gender!$D30,1,1)),"")),"n/a*") -> 67 | W30: S | X30: C | Y30: I
C31: =IF(ISNUMBER(IBT_SchStats_Gender!Q10),IF(DD_new!$BC$2="B","Test Level ","Grade ") &IBT_SchStats_Gender!Q10,"") -> Grade 10 | D31: =IF(C31="","","Female") -> Female | E31: =IF(ISNUMBER(IBT_SchStats_Gender!$Q10),IF(AVERAGEIFS(Gender!$Q$65:$Q$88,Gender!$A$65:$A$88,IBT_SchStats_Gender!$Q10,Gender!$C$65:$C$88,MID(IBT_SchStats_Gender!$D17,1,1))>0,AVERAGEIFS(Gender!$F$65:$F$88,Gender!$A$65:$A$88,IBT_SchStats_Gender!$Q10,Gender!$C$65:$C$88,MID(IBT_SchStats_Gender!$D17,1,1)) + AVERAGEIFS(Gender!$Q$65:$Q$88,Gender!$A$65:$A$88,IBT_SchStats_Gender!$Q10,Gender!$C$65:$C$88,MID(IBT_SchStats_Gender!$D17,1,1)) &"("& AVERAGEIFS(Gender!$Q$65:$Q$88,Gender!$A$65:$A$88,IBT_SchStats_Gender!$Q10,Gender!$C$65:$C$88,MID(IBT_SchStats_Gender!$D17,1,1)) &")", AVERAGEIFS(Gender!$F$65:$F$88,Gender!$A$65:$A$88,IBT_SchStats_Gender!$Q10,Gender!$C$65:$C$88,MID(IBT_SchStats_Gender!$D17,1,1))),"") -> 23 | F31: =IFERROR(IF(AVERAGEIFS(Gender!$F$65:$F$88,Gender!$A$65:$A$88,IBT_SchStats_Gender!$Q10,Gender!$C$65:$C$88,MID(IBT_SchStats_Gender!$D17,1,1))<15,"n/a*",IF(ISNUMBER(IBT_SchStats_Gender!$Q10),AVERAGEIFS(Gender!$G$65:$G$88,Gender!$A$65:$A$88,IBT_SchStats_Gender!$Q10,Gender!$C$65:$C$88,MID(IBT_SchStats_Gender!$D17,1,1)),"")),"") -> 603 | G31: =IFERROR(IF(AVERAGEIFS(Gender!$F$65:$F$88,Gender!$A$65:$A$88,IBT_SchStats_Gender!$Q10,Gender!$C$65:$C$88,MID(IBT_SchStats_Gender!$D17,1,1))<15,"n/a*",IF(ISNUMBER(IBT_SchStats_Gender!$Q10),AVERAGEIFS(Gender!$H$65:$H$88,Gender!$A$65:$A$88,IBT_SchStats_Gender!$Q10,Gender!$C$65:$C$88,MID(IBT_SchStats_Gender!$D17,1,1)),"")),"") -> 66 | H31: =IFERROR(IF(ISNUMBER(IBT_SchStats_Gender!$Q10),AVERAGEIFS(Gender!$J$65:$J$88,Gender!$A$65:$A$88,IBT_SchStats_Gender!$Q10,Gender!$C$65:$C$88,MID(IBT_SchStats_Gender!$D17,1,1)),""),"n/a*") -> 356 | I31: =IFERROR(IF($H31<15,"n/a*",IF(ISNUMBER(IBT_SchStats_Gender!$Q10),AVERAGEIFS(Gender!$K$65:$K$88,Gender!$A$65:$A$88,IBT_SchStats_Gender!$Q10,Gender!$C$65:$C$88,MID(IBT_SchStats_Gender!$D31,1,1)),"")),"n/a*") -> 620 | J31: =IFERROR(IF($H31<15,"n/a*",IF(ISNUMBER(IBT_SchStats_Gender!$Q10),AVERAGEIFS(Gender!$L$65:$L$88,Gender!$A$65:$A$88,IBT_SchStats_Gender!$Q10,Gender!$C$65:$C$88,MID(IBT_SchStats_Gender!$D31,1,1)),"")),"n/a*") -> 73 | K31: =IFERROR(IF(ISNUMBER(IBT_SchStats_Gender!$Q10),AVERAGEIFS(Gender!$N$65:$N$88,Gender!$A$65:$A$88,IBT_SchStats_Gender!$Q10,Gender!$C$65:$C$88,MID(IBT_SchStats_Gender!$D17,1,1)),""),"n/a*") -> 1466 | L31: =IFERROR(IF($K31<15,"n/a*",IF(ISNUMBER(IBT_SchStats_Gender!$Q10),AVERAGEIFS(Gender!$O$65:$O$88,Gender!$A$65:$A$88,IBT_SchStats_Gender!$Q10,Gender!$C$65:$C$88,MID(IBT_SchStats_Gender!$D31,1,1)),"")),"n/a*") -> 605 | M31: =IFERROR(IF($K31<15,"n/a*",IF(ISNUMBER(IBT_SchStats_Gender!$Q10),AVERAGEIFS(Gender!$P$65:$P$88,Gender!$A$65:$A$88,IBT_SchStats_Gender!$Q10,Gender!$C$65:$C$88,MID(IBT_SchStats_Gender!$D31,1,1)),"")),"n/a*") -> 58 | U31: 3 | V31: 1 | W31: =4*(V31)-1 -> 3 | X31: =4*(V31) -> 4 | Y31: =4*(V31)+1 -> 5
C32: =IF(ISNUMBER(IBT_SchStats_Gender!Q10),IF(DD_new!$BC$2="B","Test Level ","Grade ") &IBT_SchStats_Gender!Q10,"") -> Grade 10 | D32: =IF(C31="","","Male") -> Male | E32: =IF(ISNUMBER(IBT_SchStats_Gender!$Q10),IF(AVERAGEIFS(Gender!$Q$65:$Q$88,Gender!$A$65:$A$88,IBT_SchStats_Gender!$Q10,Gender!$C$65:$C$88,MID(IBT_SchStats_Gender!$D18,1,1))>0,AVERAGEIFS(Gender!$F$65:$F$88,Gender!$A$65:$A$88,IBT_SchStats_Gender!$Q10,Gender!$C$65:$C$88,MID(IBT_SchStats_Gender!$D18,1,1)) + AVERAGEIFS(Gender!$Q$65:$Q$88,Gender!$A$65:$A$88,IBT_SchStats_Gender!$Q10,Gender!$C$65:$C$88,MID(IBT_SchStats_Gender!$D18,1,1)) &"("& AVERAGEIFS(Gender!$Q$65:$Q$88,Gender!$A$65:$A$88,IBT_SchStats_Gender!$Q10,Gender!$C$65:$C$88,MID(IBT_SchStats_Gender!$D18,1,1)) &")", AVERAGEIFS(Gender!$F$65:$F$88,Gender!$A$65:$A$88,IBT_SchStats_Gender!$Q10,Gender!$C$65:$C$88,MID(IBT_SchStats_Gender!$D18,1,1))),"") -> 27 | F32: =IFERROR(IF(AVERAGEIFS(Gender!$F$65:$F$88,Gender!$A$65:$A$88,IBT_SchStats_Gender!$Q10,Gender!$C$65:$C$88,MID(IBT_SchStats_Gender!$D18,1,1))<15,"n/a*",IF(ISNUMBER(IBT_SchStats_Gender!$Q10),AVERAGEIFS(Gender!$G$65:$G$88,Gender!$A$65:$A$88,IBT_SchStats_Gender!$Q10,Gender!$C$65:$C$88,MID(IBT_SchStats_Gender!$D18,1,1)),"")),"") -> 605 | G32: =IFERROR(IF(AVERAGEIFS(Gender!$F$65:$F$88,Gender!$A$65:$A$88,IBT_SchStats_Gender!$Q10,Gender!$C$65:$C$88,MID(IBT_SchStats_Gender!$D18,1,1))<15,"n/a*",IF(ISNUMBER(IBT_SchStats_Gender!$Q10),AVERAGEIFS(Gender!$H$65:$H$88,Gender!$A$65:$A$88,IBT_SchStats_Gender!$Q10,Gender!$C$65:$C$88,MID(IBT_SchStats_Gender!$D18,1,1)),"")),"") -> 80 | H32: =IFERROR(IF(ISNUMBER(IBT_SchStats_Gender!$Q10),AVERAGEIFS(Gender!$J$65:$J$88,Gender!$A$65:$A$88,IBT_SchStats_Gender!$Q10,Gender!$C$65:$C$88,MID(IBT_SchStats_Gender!$D18,1,1)),""),"n/a*") -> 406 | I32: =IFERROR(IF($H32<15,"n/a*",IF(ISNUMBER(IBT_SchStats_Gender!$Q10),AVERAGEIFS(Gender!$K$65:$K$88,Gender!$A$65:$A$88,IBT_SchStats_Gender!$Q10,Gender!$C$65:$C$88,MID(IBT_SchStats_Gender!$D32,1,1)),"")),"n/a*") -> 621 | J32: =IFERROR(IF($H32<15,"n/a*",IF(ISNUMBER(IBT_SchStats_Gender!$Q10),AVERAGEIFS(Gender!$L$65:$L$88,Gender!$A$65:$A$88,IBT_SchStats_Gender!$Q10,Gender!$C$65:$C$88,MID(IBT_SchStats_Gender!$D32,1,1)),"")),"n/a*") -> 82 | K32: =IFERROR(IF(ISNUMBER(IBT_SchStats_Gender!$Q10),AVERAGEIFS(Gender!$N$65:$N$88,Gender!$A$65:$A$88,IBT_SchStats_Gender!$Q10,Gender!$C$65:$C$88,MID(IBT_SchStats_Gender!$D18,1,1)),""),"n/a*") -> 1696 | L32: =IFERROR(IF($K32<15,"n/a*",IF(ISNUMBER(IBT_SchStats_Gender!$Q10),AVERAGEIFS(Gender!$O$65:$O$88,Gender!$A$65:$A$88,IBT_SchStats_Gender!$Q10,Gender!$C$65:$C$88,MID(IBT_SchStats_Gender!$D32,1,1)),"")),"n/a*") -> 614 | M32: =IFERROR(IF($K32<15,"n/a*",IF(ISNUMBER(IBT_SchStats_Gender!$Q10),AVERAGEIFS(Gender!$P$65:$P$88,Gender!$A$65:$A$88,IBT_SchStats_Gender!$Q10,Gender!$C$65:$C$88,MID(IBT_SchStats_Gender!$D32,1,1)),"")),"n/a*") -> 69 | U32: 4 | V32: 2 | W32: =4*(V32)-1 -> 7 | X32: =4*(V32) -> 8 | Y32: =4*(V32)+1 -> 9
C33: =IF(ISNUMBER(IBT_SchStats_Gender!Q11),IF(DD_new!$BC$2="B","Test Level ","Grade ") &IBT_SchStats_Gender!Q11,"") ->  | D33: =IF(C33="","","Female") ->  | E33: =IF(ISNUMBER(IBT_SchStats_Gender!$Q11),IF(AVERAGEIFS(Gender!$Q$65:$Q$88,Gender!$A$65:$A$88,IBT_SchStats_Gender!$Q11,Gender!$C$65:$C$88,MID(IBT_SchStats_Gender!$D17,1,1))>0,AVERAGEIFS(Gender!$F$65:$F$88,Gender!$A$65:$A$88,IBT_SchStats_Gender!$Q11,Gender!$C$65:$C$88,MID(IBT_SchStats_Gender!$D17,1,1)) + AVERAGEIFS(Gender!$Q$65:$Q$88,Gender!$A$65:$A$88,IBT_SchStats_Gender!$Q11,Gender!$C$65:$C$88,MID(IBT_SchStats_Gender!$D17,1,1)) &"("& AVERAGEIFS(Gender!$Q$65:$Q$88,Gender!$A$65:$A$88,IBT_SchStats_Gender!$Q11,Gender!$C$65:$C$88,MID(IBT_SchStats_Gender!$D17,1,1)) &")", AVERAGEIFS(Gender!$F$65:$F$88,Gender!$A$65:$A$88,IBT_SchStats_Gender!$Q11,Gender!$C$65:$C$88,MID(IBT_SchStats_Gender!$D17,1,1))),"") ->  | F33: =IFERROR(IF(AVERAGEIFS(Gender!$F$65:$F$88,Gender!$A$65:$A$88,IBT_SchStats_Gender!$Q11,Gender!$C$65:$C$88,MID(IBT_SchStats_Gender!$D17,1,1))<15,"n/a*",IF(ISNUMBER(IBT_SchStats_Gender!$Q11),AVERAGEIFS(Gender!$G$65:$G$88,Gender!$A$65:$A$88,IBT_SchStats_Gender!$Q11,Gender!$C$65:$C$88,MID(IBT_SchStats_Gender!$D17,1,1)),"")),"") ->  | G33: =IFERROR(IF(AVERAGEIFS(Gender!$F$65:$F$88,Gender!$A$65:$A$88,IBT_SchStats_Gender!$Q11,Gender!$C$65:$C$88,MID(IBT_SchStats_Gender!$D17,1,1))<15,"n/a*",IF(ISNUMBER(IBT_SchStats_Gender!$Q11),AVERAGEIFS(Gender!$H$65:$H$88,Gender!$A$65:$A$88,IBT_SchStats_Gender!$Q11,Gender!$C$65:$C$88,MID(IBT_SchStats_Gender!$D17,1,1)),"")),"") ->  | H33: =IFERROR(IF(ISNUMBER(IBT_SchStats_Gender!$Q11),AVERAGEIFS(Gender!$J$65:$J$88,Gender!$A$65:$A$88,IBT_SchStats_Gender!$Q11,Gender!$C$65:$C$88,MID(IBT_SchStats_Gender!$D17,1,1)),""),"n/a*") ->  | I33: =IFERROR(IF($H33<15,"n/a*",IF(ISNUMBER(IBT_SchStats_Gender!$Q11),AVERAGEIFS(Gender!$K$65:$K$88,Gender!$A$65:$A$88,IBT_SchStats_Gender!$Q11,Gender!$C$65:$C$88,MID(IBT_SchStats_Gender!$D33,1,1)),"")),"n/a*") ->  | J33: =IFERROR(IF($H33<15,"n/a*",IF(ISNUMBER(IBT_SchStats_Gender!$Q11),AVERAGEIFS(Gender!$L$65:$L$88,Gender!$A$65:$A$88,IBT_SchStats_Gender!$Q11,Gender!$C$65:$C$88,MID(IBT_SchStats_Gender!$D33,1,1)),"")),"n/a*") ->  | K33: =IFERROR(IF(ISNUMBER(IBT_SchStats_Gender!$Q11),AVERAGEIFS(Gender!$N$65:$N$88,Gender!$A$65:$A$88,IBT_SchStats_Gender!$Q11,Gender!$C$65:$C$88,MID(IBT_SchStats_Gender!$D17,1,1)),""),"n/a*") ->  | L33: =IFERROR(IF($K33<15,"n/a*",IF(ISNUMBER(IBT_SchStats_Gender!$Q11),AVERAGEIFS(Gender!$O$65:$O$88,Gender!$A$65:$A$88,IBT_SchStats_Gender!$Q11,Gender!$C$65:$C$88,MID(IBT_SchStats_Gender!$D33,1,1)),"")),"n/a*") ->  | M33: =IFERROR(IF($K33<15,"n/a*",IF(ISNUMBER(IBT_SchStats_Gender!$Q11),AVERAGEIFS(Gender!$P$65:$P$88,Gender!$A$65:$A$88,IBT_SchStats_Gender!$Q11,Gender!$C$65:$C$88,MID(IBT_SchStats_Gender!$D33,1,1)),"")),"n/a*") ->  | U33: 5 | V33: 3 | W33: 11 | X33: 12 | Y33: 13
C34: =IF(ISNUMBER(IBT_SchStats_Gender!Q11),IF(DD_new!$BC$2="B","Test Level ","Grade ") &IBT_SchStats_Gender!Q11,"") ->  | D34: =IF(C33="","","Female") ->  | E34: =IF(ISNUMBER(IBT_SchStats_Gender!$Q11),IF(AVERAGEIFS(Gender!$Q$65:$Q$88,Gender!$A$65:$A$88,IBT_SchStats_Gender!$Q11,Gender!$C$65:$C$88,MID(IBT_SchStats_Gender!$D18,1,1))>0,AVERAGEIFS(Gender!$F$65:$F$88,Gender!$A$65:$A$88,IBT_SchStats_Gender!$Q11,Gender!$C$65:$C$88,MID(IBT_SchStats_Gender!$D18,1,1)) + AVERAGEIFS(Gender!$Q$65:$Q$88,Gender!$A$65:$A$88,IBT_SchStats_Gender!$Q11,Gender!$C$65:$C$88,MID(IBT_SchStats_Gender!$D18,1,1)) &"("& AVERAGEIFS(Gender!$Q$65:$Q$88,Gender!$A$65:$A$88,IBT_SchStats_Gender!$Q11,Gender!$C$65:$C$88,MID(IBT_SchStats_Gender!$D18,1,1)) &")", AVERAGEIFS(Gender!$F$65:$F$88,Gender!$A$65:$A$88,IBT_SchStats_Gender!$Q11,Gender!$C$65:$C$88,MID(IBT_SchStats_Gender!$D18,1,1))),"") ->  | F34: =IFERROR(IF(AVERAGEIFS(Gender!$F$65:$F$88,Gender!$A$65:$A$88,IBT_SchStats_Gender!$Q11,Gender!$C$65:$C$88,MID(IBT_SchStats_Gender!$D18,1,1))<15,"n/a*",IF(ISNUMBER(IBT_SchStats_Gender!$Q11),AVERAGEIFS(Gender!$G$65:$G$88,Gender!$A$65:$A$88,IBT_SchStats_Gender!$Q11,Gender!$C$65:$C$88,MID(IBT_SchStats_Gender!$D18,1,1)),"")),"") ->  | G34: =IFERROR(IF(AVERAGEIFS(Gender!$F$65:$F$88,Gender!$A$65:$A$88,IBT_SchStats_Gender!$Q11,Gender!$C$65:$C$88,MID(IBT_SchStats_Gender!$D18,1,1))<15,"n/a*",IF(ISNUMBER(IBT_SchStats_Gender!$Q11),AVERAGEIFS(Gender!$H$65:$H$88,Gender!$A$65:$A$88,IBT_SchStats_Gender!$Q11,Gender!$C$65:$C$88,MID(IBT_SchStats_Gender!$D18,1,1)),"")),"") ->  | H34: =IFERROR(IF(ISNUMBER(IBT_SchStats_Gender!$Q11),AVERAGEIFS(Gender!$J$65:$J$88,Gender!$A$65:$A$88,IBT_SchStats_Gender!$Q11,Gender!$C$65:$C$88,MID(IBT_SchStats_Gender!$D18,1,1)),""),"n/a*") ->  | I34: =IFERROR(IF($H34<15,"n/a*",IF(ISNUMBER(IBT_SchStats_Gender!$Q11),AVERAGEIFS(Gender!$K$65:$K$88,Gender!$A$65:$A$88,IBT_SchStats_Gender!$Q11,Gender!$C$65:$C$88,MID(IBT_SchStats_Gender!$D34,1,1)),"")),"n/a*") ->  | J34: =IFERROR(IF($H34<15,"n/a*",IF(ISNUMBER(IBT_SchStats_Gender!$Q11),AVERAGEIFS(Gender!$L$65:$L$88,Gender!$A$65:$A$88,IBT_SchStats_Gender!$Q11,Gender!$C$65:$C$88,MID(IBT_SchStats_Gender!$D34,1,1)),"")),"n/a*") ->  | K34: =IFERROR(IF(ISNUMBER(IBT_SchStats_Gender!$Q11),AVERAGEIFS(Gender!$N$65:$N$88,Gender!$A$65:$A$88,IBT_SchStats_Gender!$Q11,Gender!$C$65:$C$88,MID(IBT_SchStats_Gender!$D18,1,1)),""),"n/a*") ->  | L34: =IFERROR(IF($K34<15,"n/a*",IF(ISNUMBER(IBT_SchStats_Gender!$Q11),AVERAGEIFS(Gender!$O$65:$O$88,Gender!$A$65:$A$88,IBT_SchStats_Gender!$Q11,Gender!$C$65:$C$88,MID(IBT_SchStats_Gender!$D34,1,1)),"")),"n/a*") ->  | M34: =IFERROR(IF($K34<15,"n/a*",IF(ISNUMBER(IBT_SchStats_Gender!$Q11),AVERAGEIFS(Gender!$P$65:$P$88,Gender!$A$65:$A$88,IBT_SchStats_Gender!$Q11,Gender!$C$65:$C$88,MID(IBT_SchStats_Gender!$D34,1,1)),"")),"n/a*") ->  | U34: 6 | V34: 4 | W34: 15 | X34: 16 | Y34: 17
C35: =IF(ISNUMBER(IBT_SchStats_Gender!Q12),IF(DD_new!$BC$2="B","Test Level ","Grade ") &IBT_SchStats_Gender!Q12,"") ->  | D35: =IF(C35="","","Male") ->  | E35: =IF(ISNUMBER(IBT_SchStats_Gender!$Q12),IF(AVERAGEIFS(Gender!$Q$65:$Q$88,Gender!$A$65:$A$88,IBT_SchStats_Gender!$Q12,Gender!$C$65:$C$88,MID(IBT_SchStats_Gender!$D17,1,1))>0,AVERAGEIFS(Gender!$F$65:$F$88,Gender!$A$65:$A$88,IBT_SchStats_Gender!$Q12,Gender!$C$65:$C$88,MID(IBT_SchStats_Gender!$D17,1,1)) + AVERAGEIFS(Gender!$Q$65:$Q$88,Gender!$A$65:$A$88,IBT_SchStats_Gender!$Q12,Gender!$C$65:$C$88,MID(IBT_SchStats_Gender!$D17,1,1)) &"("& AVERAGEIFS(Gender!$Q$65:$Q$88,Gender!$A$65:$A$88,IBT_SchStats_Gender!$Q12,Gender!$C$65:$C$88,MID(IBT_SchStats_Gender!$D17,1,1)) &")", AVERAGEIFS(Gender!$F$65:$F$88,Gender!$A$65:$A$88,IBT_SchStats_Gender!$Q12,Gender!$C$65:$C$88,MID(IBT_SchStats_Gender!$D17,1,1))),"") ->  | F35: =IFERROR(IF(AVERAGEIFS(Gender!$F$65:$F$88,Gender!$A$65:$A$88,IBT_SchStats_Gender!$Q12,Gender!$C$65:$C$88,MID(IBT_SchStats_Gender!$D17,1,1))<15,"n/a*",IF(ISNUMBER(IBT_SchStats_Gender!$Q12),AVERAGEIFS(Gender!$G$65:$G$88,Gender!$A$65:$A$88,IBT_SchStats_Gender!$Q12,Gender!$C$65:$C$88,MID(IBT_SchStats_Gender!$D17,1,1)),"")),"") ->  | G35: =IFERROR(IF(AVERAGEIFS(Gender!$F$65:$F$88,Gender!$A$65:$A$88,IBT_SchStats_Gender!$Q12,Gender!$C$65:$C$88,MID(IBT_SchStats_Gender!$D17,1,1))<15,"n/a*",IF(ISNUMBER(IBT_SchStats_Gender!$Q12),AVERAGEIFS(Gender!$H$65:$H$88,Gender!$A$65:$A$88,IBT_SchStats_Gender!$Q12,Gender!$C$65:$C$88,MID(IBT_SchStats_Gender!$D17,1,1)),"")),"") ->  | H35: =IFERROR(IF(ISNUMBER(IBT_SchStats_Gender!$Q12),AVERAGEIFS(Gender!$J$65:$J$88,Gender!$A$65:$A$88,IBT_SchStats_Gender!$Q12,Gender!$C$65:$C$88,MID(IBT_SchStats_Gender!$D17,1,1)),""),"n/a*") ->  | I35: =IFERROR(IF($H35<15,"n/a*",IF(ISNUMBER(IBT_SchStats_Gender!$Q12),AVERAGEIFS(Gender!$K$65:$K$88,Gender!$A$65:$A$88,IBT_SchStats_Gender!$Q12,Gender!$C$65:$C$88,MID(IBT_SchStats_Gender!$D35,1,1)),"")),"n/a*") ->  | J35: =IFERROR(IF($H35<15,"n/a*",IF(ISNUMBER(IBT_SchStats_Gender!$Q12),AVERAGEIFS(Gender!$L$65:$L$88,Gender!$A$65:$A$88,IBT_SchStats_Gender!$Q12,Gender!$C$65:$C$88,MID(IBT_SchStats_Gender!$D35,1,1)),"")),"n/a*") ->  | K35: =IFERROR(IF(ISNUMBER(IBT_SchStats_Gender!$Q12),AVERAGEIFS(Gender!$N$65:$N$88,Gender!$A$65:$A$88,IBT_SchStats_Gender!$Q12,Gender!$C$65:$C$88,MID(IBT_SchStats_Gender!$D17,1,1)),""),"n/a*") ->  | L35: =IFERROR(IF($K35<15,"n/a*",IF(ISNUMBER(IBT_SchStats_Gender!$Q12),AVERAGEIFS(Gender!$O$65:$O$88,Gender!$A$65:$A$88,IBT_SchStats_Gender!$Q12,Gender!$C$65:$C$88,MID(IBT_SchStats_Gender!$D35,1,1)),"")),"n/a*") ->  | M35: =IFERROR(IF($K35<15,"n/a*",IF(ISNUMBER(IBT_SchStats_Gender!$Q12),AVERAGEIFS(Gender!$P$65:$P$88,Gender!$A$65:$A$88,IBT_SchStats_Gender!$Q12,Gender!$C$65:$C$88,MID(IBT_SchStats_Gender!$D35,1,1)),"")),"n/a*") ->  | U35: 7 | V35: 5 | W35: 19 | X35: 20 | Y35: 21
C36: =IF(ISNUMBER(IBT_SchStats_Gender!Q12),IF(DD_new!$BC$2="B","Test Level ","Grade ") &IBT_SchStats_Gender!Q12,"") ->  | D36: =IF(C35="","","Male") ->  | E36: =IF(ISNUMBER(IBT_SchStats_Gender!$Q12),IF(AVERAGEIFS(Gender!$Q$65:$Q$88,Gender!$A$65:$A$88,IBT_SchStats_Gender!$Q12,Gender!$C$65:$C$88,MID(IBT_SchStats_Gender!$D18,1,1))>0,AVERAGEIFS(Gender!$F$65:$F$88,Gender!$A$65:$A$88,IBT_SchStats_Gender!$Q12,Gender!$C$65:$C$88,MID(IBT_SchStats_Gender!$D18,1,1)) + AVERAGEIFS(Gender!$Q$65:$Q$88,Gender!$A$65:$A$88,IBT_SchStats_Gender!$Q12,Gender!$C$65:$C$88,MID(IBT_SchStats_Gender!$D18,1,1)) &"("& AVERAGEIFS(Gender!$Q$65:$Q$88,Gender!$A$65:$A$88,IBT_SchStats_Gender!$Q12,Gender!$C$65:$C$88,MID(IBT_SchStats_Gender!$D18,1,1)) &")", AVERAGEIFS(Gender!$F$65:$F$88,Gender!$A$65:$A$88,IBT_SchStats_Gender!$Q12,Gender!$C$65:$C$88,MID(IBT_SchStats_Gender!$D18,1,1))),"") ->  | F36: =IFERROR(IF(AVERAGEIFS(Gender!$F$65:$F$88,Gender!$A$65:$A$88,IBT_SchStats_Gender!$Q12,Gender!$C$65:$C$88,MID(IBT_SchStats_Gender!$D18,1,1))<15,"n/a*",IF(ISNUMBER(IBT_SchStats_Gender!$Q12),AVERAGEIFS(Gender!$G$65:$G$88,Gender!$A$65:$A$88,IBT_SchStats_Gender!$Q12,Gender!$C$65:$C$88,MID(IBT_SchStats_Gender!$D18,1,1)),"")),"") ->  | G36: =IFERROR(IF(AVERAGEIFS(Gender!$F$65:$F$88,Gender!$A$65:$A$88,IBT_SchStats_Gender!$Q12,Gender!$C$65:$C$88,MID(IBT_SchStats_Gender!$D18,1,1))<15,"n/a*",IF(ISNUMBER(IBT_SchStats_Gender!$Q12),AVERAGEIFS(Gender!$H$65:$H$88,Gender!$A$65:$A$88,IBT_SchStats_Gender!$Q12,Gender!$C$65:$C$88,MID(IBT_SchStats_Gender!$D18,1,1)),"")),"") ->  | H36: =IFERROR(IF(ISNUMBER(IBT_SchStats_Gender!$Q12),AVERAGEIFS(Gender!$J$65:$J$88,Gender!$A$65:$A$88,IBT_SchStats_Gender!$Q12,Gender!$C$65:$C$88,MID(IBT_SchStats_Gender!$D18,1,1)),""),"n/a*") ->  | I36: =IFERROR(IF($H36<15,"n/a*",IF(ISNUMBER(IBT_SchStats_Gender!$Q12),AVERAGEIFS(Gender!$K$65:$K$88,Gender!$A$65:$A$88,IBT_SchStats_Gender!$Q12,Gender!$C$65:$C$88,MID(IBT_SchStats_Gender!$D36,1,1)),"")),"n/a*") ->  | J36: =IFERROR(IF($H36<15,"n/a*",IF(ISNUMBER(IBT_SchStats_Gender!$Q12),AVERAGEIFS(Gender!$L$65:$L$88,Gender!$A$65:$A$88,IBT_SchStats_Gender!$Q12,Gender!$C$65:$C$88,MID(IBT_SchStats_Gender!$D36,1,1)),"")),"n/a*") ->  | K36: =IFERROR(IF(ISNUMBER(IBT_SchStats_Gender!$Q12),AVERAGEIFS(Gender!$N$65:$N$88,Gender!$A$65:$A$88,IBT_SchStats_Gender!$Q12,Gender!$C$65:$C$88,MID(IBT_SchStats_Gender!$D18,1,1)),""),"n/a*") ->  | L36: =IFERROR(IF($K36<15,"n/a*",IF(ISNUMBER(IBT_SchStats_Gender!$Q12),AVERAGEIFS(Gender!$O$65:$O$88,Gender!$A$65:$A$88,IBT_SchStats_Gender!$Q12,Gender!$C$65:$C$88,MID(IBT_SchStats_Gender!$D36,1,1)),"")),"n/a*") ->  | M36: =IFERROR(IF($K36<15,"n/a*",IF(ISNUMBER(IBT_SchStats_Gender!$Q12),AVERAGEIFS(Gender!$P$65:$P$88,Gender!$A$65:$A$88,IBT_SchStats_Gender!$Q12,Gender!$C$65:$C$88,MID(IBT_SchStats_Gender!$D36,1,1)),"")),"n/a*") ->  | U36: 8 | V36: 6 | W36: 23 | X36: 24 | Y36: 25
U37: 9 | V37: 7 | W37: 27 | X37: 28 | Y37: 29
U38: 10 | V38: 8 | W38: 31 | X38: 32 | Y38: 33
U39: 11 | V39: 9 | W39: 35 | X39: 36 | Y39: 37
U40: 12 | V40: 10 | W40: 39 | X40: 40 | Y40: 41
T41: Series | U41: row | V41: Start_col | W41: start_col | X41: end_col
T42: 1 | U42: 9 | V42: U | W42: 21 | X42: =W42+$S$15*7 -> 77
T43: 2 | U43: 10 | V43: =$V$42 -> U
T44: 3 | U44: 11 | V44: =$V$42 -> U
T45: 4 | U45: 12 | V45: U
T46: 5 | U46: 13 | V46: U
T47: 6 | U47: 16 | V47: U
T48: 7 | U48: 15 | V48: U
T49: 8 | U49: 14 | V49: U
T50: 9 | U50: 17 | V50: U
T51: 10 | U51: 18 | V51: U
T52: 11 | U52: 19 | V52: U
T53: x_Label | U53: 26

Sheet Class_means
AR1: Num classes: | AS1: =COUNTIF(CLdb!$V$39:$V$1001,">0") -> 2 | BT1: Page 1
C2: =IF(Labels!$EO$2="ArabicB", "TEST ", "CLASS ")& "MEAN SCORES" -> TEST MEAN SCORES | AR2: Num pages: | AS2: =IF(_xlfn.CEILING.MATH(AS1/25)<1,1,_xlfn.CEILING.MATH(AS1/25)) -> 1 | BT2: Page 2
AM3: 1 | AR3: Selected page index: | AS3: 1 | BT3: Page 3
C4: =IF(Labels!$EO$2="ArabicB","Test Level ", "Grade ") & "and Subject:" -> Test Level and Subject: | E4: Page: | BT4: Page 4
BT5: Page 5
P6: ="Grade "&Labels!$EN$2&" Classes" -> Grade 1 Classes | Q6: =DD!$B$5&CHAR(10)&IF(Labels!$EO$2="ArabicB", " Test Level ", " Grade ")&Labels!$EN$2 &IF(Labels!$EO$2="ArabicB","", " Class")&" Means"&CHAR(10)&Labels!$EO$2 -> IBT_SAMPLESCHOOL Test Level 1 Means ArabicB | AA6: =IBTdb!$H$22 ->  | AK6: Applied to Country and IBT level | AN6: domain | AO6: grade | AP6: msg | BT6: Page 6
J7: =IF(Labels!$EO$2="ArabicB",SUBSTITUTE(DD_new!E3,"Grade","Test Level"),DD_new!E3) -> Level 1 ArabicB | L7: N | M7: Mean | Q7: =IF(R7=-1,"","All IBT Schools") ->  | R7: =VLOOKUP(Labels!$ER$2&"_"&$AL$8&"_N",IBTdb!$N$32:$O$43,2,0) -> -1 | S7: =VLOOKUP(Labels!$ER$2&"_"&$AL$8&"_M",IBTdb!$L$32:$M$43,2,0) -> n/a* | AK7: Student_Grade(Year_Level) | AL7: Grade(Test Level) | AN7: =IF(DD_new!$G$3="S","Science",IF(DD_new!$G$3="M","Maths",IF(DD_new!$G$3="E","English",IF(DD_new!$G$3="A","ArabicA",IF(DD_new!$G$3="B","ArabicB",IF(DD_new!$G$3="R","Reasoning",IF(DD_new!$G$3="Y","English2",IF(DD_new!$G$3="H","Hindi",NA())))))))) -> ArabicB | AO7: =DD_new!$F$3 -> 1 | AP7: Number of SEN students included in the total, shown in brackets. | BT7: Page 7
J8: =Q7 ->  | L8: =IF(R7=-1,"",R7) ->  | M8: =IF(S7="n/a*","",S7) ->  | Q8: ="Schools in " &DD!$B$6 -> Schools in MIDDLE EAST | R8: =VLOOKUP(Labels!$ER$2&"_"&$AL$8&"_N",IBTdb!$N$45:$O$56,2,0) -> 6241 | T8: =VLOOKUP(Labels!$ER$2&"_"&$AL$8&"_M",IBTdb!$L$45:$M$56,2,0) -> 515 | AK8: =Labels!$EN$2 -> 1 | AL8: =IF(Labels!$EO$2="Math",VLOOKUP(AK8,CLdb!$UT$2:$UU$47,2,0),IF(Labels!$EO$2="English",VLOOKUP(AK8,CLdb!$UR$2:$US$47,2,0),IF(Labels!$EO$2="Science",VLOOKUP(AK8,CLdb!$UV$2:$UW$47,2,0),IF(Labels!$EO$2="ArabicA",VLOOKUP(AK8,CLdb!$UX$2:$UY$47,2,0),IF(Labels!$EO$2="ArabicB",VLOOKUP(AK8,CLdb!$UZ$2:$VA$47,2,0),IF(Labels!$EO$2="Reasoning",VLOOKUP(AK8,CLdb!$VB$2:$VC$47,2,0),IF(Labels!$EO$2="English2",VLOOKUP(AK8,CLdb!$VD$2:$VE$47,2,0),IF(Labels!$EO$2="Hindi",VLOOKUP(AK8,CLdb!$VF$2:$VG$47,2,0),NA())))))))) -> 1 | BT8: Page 8
J9: =Q8 -> Schools in MIDDLE EAST | L9: =R8 -> 6241 | M9: =T8 -> 515 | P9: =DD!$B$5 -> IBT_SAMPLESCHOOL | Q9: Your School | R9: =VLOOKUP(Labels!$ER$2&"_"&Labels!$EN$2&"_N",IBTdb!$N$58:$O$69,2,0) -> 50 | AA9: =VLOOKUP(Labels!$ER$2&"_"&Labels!$EN$2&"_M",IBTdb!$L$58:$M$69,2,0) -> 511 | AB9: =Labels!$EO$2 -> ArabicB | AN9: =SUMIFS(DD_new!$BZ:$BZ,DD_new!$BW:$BW,DD!$B$3,DD_new!$BT:$BT,Class_means!$AN$7,DD_new!$BV:$BV,Class_means!$AO$7) -> 0 | BT9: Page 9
J10: =P9 -> IBT_SAMPLESCHOOL | L10: =IF(AN9>=1,R9+AN9&"("&AN9&")",R9) -> 50 | M10: =AA9 -> 511 | P10: =IF(Labels!$EO$2="Math", "Mathematics IBT Scale", Labels!$EO$2&" IBT Scale") -> ArabicB IBT Scale | S10: math | T10: english | U10: science | V10: arabicA | W10: arabicB | X10: Reasoning | Y10: English2 | Z10: Hinid | AB10: Math N | AC10: English N | AD10: Science N | AE10: ArabicA | AF10: ArabicB | AG10: Reasoning | AH10: English2 | AI10: Hindi | AJ10: indicator: whether class name contain "Page" | AM10: class | AN10: SEN Student (sum by class) | AR10: math | AS10: english | AT10: science | AU10: arabicA | AV10: arabicB | AW10: Reasoning | AX10: English2 | AY10: Hindi | BA10: Math N | BB10: English N | BC10: Science N | BD10: ArabicA | BE10: ArabicB | BF10: Reasoning | BG10: English2 | BH10: Hindi | BI10: indicator: whether class name contain "Page" | BL10: class | BM10: SEN Student (sum by class) | BT10: Page 10
J11: =IF(K11="","",1) -> 1 | K11: =Q11 -> 1 / Level_1_TestForm A | L11: =IF(AL11>=1,R11&"("&AL11&")",R11) -> 25 | M11: =AA11 -> 511 | P11: ="Class Performance in "&DD!B4 -> Class Performance in IBT_SAMPLESCHOOL | Q11: =OFFSET(AP11,25*($AS$3-1),0,1,1) -> 1 / Level_1_TestForm A | R11: =OFFSET(AQ11,25*($AS$3-1),0,1,1)&IF(AN11>0,"("&AN11&")","") -> 25 | S11: =OFFSET(AR11,25*($AS$3-1),0,1,1) ->  | T11: =OFFSET(AS11,25*($AS$3-1),0,1,1) ->  | W11: 511 | AA11: =OFFSET(AZ11,25*($AS$3-1),0,1,1) -> 511 | AB11: =OFFSET(BA11,25*($AS$3-1),0,1,1) ->  | AC11: =OFFSET(BB11,25*($AS$3-1),0,1,1) ->  | AF11: 25 | AJ11: =OFFSET(BI11,25*($AS$3-1),0,1,1) -> 0 | AK11: =OFFSET(BJ11,25*($AS$3-1),0,1,1) -> 0 | AM11: =OFFSET(BL11,25*($AS$3-1),0,1,1) -> Level_1_TestForm A | AN11: =OFFSET(BM11,25*($AS$3-1),0,1,1) -> 0 | AP11: =IF(Labels!$EO$2="Math",IF(ISERROR(CLdb!TU39),"",CLdb!TU39),IF(Labels!$EO$2="English",IF(ISERROR(CLdb!TV39),"",CLdb!TV39),IF(Labels!$EO$2="Science",IF(ISERROR(CLdb!TW39),"",CLdb!TW39),IF(Labels!$EO$2="ArabicA",IF(ISERROR(CLdb!TX39),"",CLdb!TX39),IF(Labels!$EO$2="ArabicB",IF(ISERROR(CLdb!TY39),"",CLdb!TY39),IF(Labels!$EO$2="Reasoning",IF(ISERROR(CLdb!TZ39),"",CLdb!TZ39))))))) -> 1 / Level_1_TestForm A | AQ11: =IF($AB$9="Math",BA11, IF($AB$9="English",BB11, IF($AB$9="Science", BC11,IF($AB$9="ArabicA", BD11,IF($AB$9="ArabicB", BE11,IF($AB$9="Reasoning", BF11,IF($AB$9="English2", BG11,IF($AB$9="Hindi", BH11)))))))) -> 25 | AR11: =IF(OR(ISERROR(CLdb!E39),ISERROR(CLdb!N39)),"",CLdb!N39) ->  | AS11: =IF(OR(ISERROR(CLdb!E39),ISERROR(CLdb!O39)),"",CLdb!O39) ->  | AT11: =IF(OR(ISERROR(CLdb!E39),ISERROR(CLdb!P39)),"",CLdb!P39) ->  | AU11: =IF(OR(ISERROR(CLdb!E39),ISERROR(CLdb!Q39)),"",CLdb!Q39) ->  | AV11: =IF(OR(ISERROR(CLdb!E39),ISERROR(CLdb!R39)),"",CLdb!R39) -> 511 | AW11: =IF(OR(ISERROR(CLdb!E39),ISERROR(CLdb!S39)),"",CLdb!S39) ->  | AX11: =IF(OR(ISERROR(CLdb!E39),ISERROR(CLdb!T39)),"",CLdb!T39) ->  | AY11: =IF(OR(ISERROR(CLdb!E39),ISERROR(CLdb!U39)),"",CLdb!U39) ->  | AZ11: =IFERROR(IF(AND(AQ11-BM11<15,BI11=0),"",IF($AB$9="Math",OFFSET($AR$11,0,0,26),IF($AB$9="English",OFFSET($AR$11,0,1,25),IF($AB$9="Science",OFFSET($AR$11,0,2,25),IF($AB$9="ArabicA",OFFSET($AR$11,0,3,25),IF($AB$9="ArabicB",OFFSET($AR$11,0,4,25),IF($AB$9="Reasoning",OFFSET($AR$11,0,5,25),IF($AB$9="English2",OFFSET($AR$11,0,6,25),IF($AB$9="Hindi",OFFSET($AR$11,0,7,25),""))))))))),"") -> 511 | BA11: =IF(OR(ISERROR(CLdb!E39),ISERROR(CLdb!F39)),"",CLdb!F39) ->  | BB11: =IF(OR(ISERROR(CLdb!E39),ISERROR(CLdb!G39)),"",CLdb!G39) ->  | BC11: =IF(OR(ISERROR(CLdb!E39),ISERROR(CLdb!H39)),"",CLdb!H39) ->  | BD11: =IF(OR(ISERROR(CLdb!E39),ISERROR(CLdb!I39)),"",CLdb!I39) ->  | BE11: =IF(OR(ISERROR(CLdb!E39),ISERROR(CLdb!J39)),"",CLdb!J39) -> 25 | BF11: =IF(OR(ISERROR(CLdb!E39),ISERROR(CLdb!K39)),"",CLdb!K39) ->  | BG11: =IF(OR(ISERROR(CLdb!E39),ISERROR(CLdb!L39)),"",CLdb!L39) ->  | BH11: =IF(OR(ISERROR(CLdb!E39),ISERROR(CLdb!M39)),"",CLdb!M39) ->  | BI11: =IF(ISERROR(SEARCH("Page",AP11,1)),0,1) -> 0 | BJ11: =IF(AND(AQ11<15,BI11=0),1,0) -> 0 | BL11: =IF(AP11="","",TRIM(MID(AP11,SEARCH("/",AP11,1)+1,LEN(AP11)-SEARCH("/",AP11,1)))) -> Level_1_TestForm A | BM11: =IF(BL11="",0,SUMIFS(DD_new!$BZ:$BZ,DD_new!$BW:$BW,DD!$B$3,DD_new!$BT:$BT,Class_means!$AN$7,DD_new!$BV:$BV,Class_means!$AO$7,DD_new!$BY:$BY,Class_means!$BL11)) -> 0 | BT11: Page 11
J12: =IF(K12="","",J11+1) -> 2 | K12: =Q12 -> 1 / Level_1_TestForm A Page 2 | L12: =IF(AL12>=1,R12&"("&AL12&")",R12) -> 25 | M12: =AA12 -> 511 | Q12: =OFFSET(AP12,25*($AS$3-1),0,1,1) -> 1 / Level_1_TestForm A Page 2 | R12: =OFFSET(AQ12,25*($AS$3-1),0,1,1)&IF(AN12>0,"("&AN12&")","") -> 25 | S12: =OFFSET(AR12,25*($AS$3-1),0,1,1) ->  | T12: =OFFSET(AS12,25*($AS$3-1),0,1,1) ->  | U12: =OFFSET(AT12,25*($AS$3-1),0,1,1) ->  | V12: =OFFSET(AU12,25*($AS$3-1),0,1,1) ->  | W12: =OFFSET(AV12,25*($AS$3-1),0,1,1) -> 511 | AA12: =OFFSET(AZ12,25*($AS$3-1),0,1,1) -> 511 | AB12: =OFFSET(BA12,25*($AS$3-1),0,1,1) ->  | AC12: =OFFSET(BB12,25*($AS$3-1),0,1,1) ->  | AD12: =OFFSET(BC12,25*($AS$3-1),0,1,1) ->  | AE12: =OFFSET(BD12,25*($AS$3-1),0,1,1) ->  | AF12: =OFFSET(BE12,25*($AS$3-1),0,1,1) -> 25 | AJ12: =OFFSET(BI12,25*($AS$3-1),0,1,1) -> 1 | AK12: =OFFSET(BJ12,25*($AS$3-1),0,1,1) -> 0 | AM12: =OFFSET(BL12,25*($AS$3-1),0,1,1) -> Level_1_TestForm A Page 2 | AN12: =OFFSET(BM12,25*($AS$3-1),0,1,1) -> 0 | AP12: =IF(Labels!$EO$2="Math",IF(ISERROR(CLdb!TU40),"",CLdb!TU40),IF(Labels!$EO$2="English",IF(ISERROR(CLdb!TV40),"",CLdb!TV40),IF(Labels!$EO$2="Science",IF(ISERROR(CLdb!TW40),"",CLdb!TW40),IF(Labels!$EO$2="ArabicA",IF(ISERROR(CLdb!TX40),"",CLdb!TX40),IF(Labels!$EO$2="ArabicB",IF(ISERROR(CLdb!TY40),"",CLdb!TY40),IF(Labels!$EO$2="Reasoning",IF(ISERROR(CLdb!TZ40),"",CLdb!TZ40),IF(Labels!$EO$2="English2",IF(ISERROR(CLdb!UA40),"",CLdb!UA40),IF(Labels!$EO$2="Hindi",IF(ISERROR(CLdb!UB40),"",CLdb!UB40))))))))) -> 1 / Level_1_TestForm A Page 2 | AQ12: =IF($AB$9="Math",BA12, IF($AB$9="English",BB12, IF($AB$9="Science", BC12,IF($AB$9="ArabicA", BD12,IF($AB$9="ArabicB", BE12,IF($AB$9="Reasoning", BF12,IF($AB$9="English2", BG12,IF($AB$9="Hindi", BH12)))))))) -> 25 | AR12: =IF(OR(ISERROR(CLdb!E40),ISERROR(CLdb!N40)),"",CLdb!N40) ->  | AS12: =IF(OR(ISERROR(CLdb!E40),ISERROR(CLdb!O40)),"",CLdb!O40) ->  | AT12: =IF(OR(ISERROR(CLdb!E40),ISERROR(CLdb!P40)),"",CLdb!P40) ->  | AU12: =IF(OR(ISERROR(CLdb!E40),ISERROR(CLdb!Q40)),"",CLdb!Q40) ->  | AV12: =IF(OR(ISERROR(CLdb!E40),ISERROR(CLdb!R40)),"",CLdb!R40) -> 511 | AW12: =IF(OR(ISERROR(CLdb!E40),ISERROR(CLdb!S40)),"",CLdb!S40) ->  | AX12: =IF(OR(ISERROR(CLdb!E40),ISERROR(CLdb!T40)),"",CLdb!T40) ->  | AY12: =IF(OR(ISERROR(CLdb!E40),ISERROR(CLdb!U40)),"",CLdb!U40) ->  | AZ12: =IFERROR(IF(AND(AQ12-BM12<15,BI12=0),"",IF($AB$9="Math",OFFSET($AR$11,0,0,26),IF($AB$9="English",OFFSET($AR$11,0,1,25),IF($AB$9="Science",OFFSET($AR$11,0,2,25),IF($AB$9="ArabicA",OFFSET($AR$11,0,3,25),IF($AB$9="ArabicB",OFFSET($AR$11,0,4,25),IF($AB$9="Reasoning",OFFSET($AR$11,0,5,25),IF($AB$9="English2",OFFSET($AR$11,0,6,25),IF($AB$9="Hindi",OFFSET($AR$11,0,7,25),""))))))))),"") -> 511 | BA12: =IF(OR(ISERROR(CLdb!E40),ISERROR(CLdb!F40)),"",CLdb!F40) ->  | BB12: =IF(OR(ISERROR(CLdb!E40),ISERROR(CLdb!G40)),"",CLdb!G40) ->  | BC12: =IF(OR(ISERROR(CLdb!E40),ISERROR(CLdb!H40)),"",CLdb!H40) ->  | BD12: =IF(OR(ISERROR(CLdb!E40),ISERROR(CLdb!I40)),"",CLdb!I40) ->  | BE12: =IF(OR(ISERROR(CLdb!E40),ISERROR(CLdb!J40)),"",CLdb!J40) -> 25 | BF12: =IF(OR(ISERROR(CLdb!E40),ISERROR(CLdb!K40)),"",CLdb!K40) ->  | BG12: =IF(OR(ISERROR(CLdb!E40),ISERROR(CLdb!L40)),"",CLdb!L40) ->  | BH12: =IF(OR(ISERROR(CLdb!E40),ISERROR(CLdb!M40)),"",CLdb!M40) ->  | BI12: =IF(ISERROR(SEARCH("Page",AP12,1)),0,1) -> 1 | BJ12: =IF(AND(AQ12<15,BI12=0),1,0) -> 0 | BL12: =IF(AP12="","",TRIM(MID(AP12,SEARCH("/",AP12,1)+1,LEN(AP12)-SEARCH("/",AP12,1)))) -> Level_1_TestForm A Page 2 | BM12: =IF(BL12="",0,SUMIFS(DD_new!$BZ:$BZ,DD_new!$BW:$BW,DD!$B$3,DD_new!$BT:$BT,Class_means!$AN$7,DD_new!$BV:$BV,Class_means!$AO$7,DD_new!$BY:$BY,Class_means!$BL12)) -> 0 | BT12: Page 12
J13: =IF(K13="","",J12+1) ->  | AJ13: 0 | AK13: 0 | AN13: 0 | AP13: =IF(Labels!$EO$2="Math",IF(ISERROR(CLdb!TU41),"",CLdb!TU41),IF(Labels!$EO$2="English",IF(ISERROR(CLdb!TV41),"",CLdb!TV41),IF(Labels!$EO$2="Science",IF(ISERROR(CLdb!TW41),"",CLdb!TW41),IF(Labels!$EO$2="ArabicA",IF(ISERROR(CLdb!TX41),"",CLdb!TX41),IF(Labels!$EO$2="ArabicB",IF(ISERROR(CLdb!TY41),"",CLdb!TY41),IF(Labels!$EO$2="Reasoning",IF(ISERROR(CLdb!TZ41),"",CLdb!TZ41),IF(Labels!$EO$2="English2",IF(ISERROR(CLdb!UA41),"",CLdb!UA41),IF(Labels!$EO$2="Hindi",IF(ISERROR(CLdb!UB41),"",CLdb!UB41))))))))) ->  | AR13: =IF(OR(ISERROR(CLdb!E41),ISERROR(CLdb!N41)),"",CLdb!N41) ->  | AS13: =IF(OR(ISERROR(CLdb!E41),ISERROR(CLdb!O41)),"",CLdb!O41) ->  | AT13: =IF(OR(ISERROR(CLdb!E41),ISERROR(CLdb!P41)),"",CLdb!P41) ->  | AU13: =IF(OR(ISERROR(CLdb!E41),ISERROR(CLdb!Q41)),"",CLdb!Q41) ->  | AV13: =IF(OR(ISERROR(CLdb!E41),ISERROR(CLdb!R41)),"",CLdb!R41) ->  | AW13: =IF(OR(ISERROR(CLdb!E41),ISERROR(CLdb!S41)),"",CLdb!S41) ->  | AX13: =IF(OR(ISERROR(CLdb!E41),ISERROR(CLdb!T41)),"",CLdb!T41) ->  | AY13: =IF(OR(ISERROR(CLdb!E41),ISERROR(CLdb!U41)),"",CLdb!U41) ->  | BA13: =IF(OR(ISERROR(CLdb!E41),ISERROR(CLdb!F41)),"",CLdb!F41) ->  | BB13: =IF(OR(ISERROR(CLdb!E41),ISERROR(CLdb!G41)),"",CLdb!G41) ->  | BC13: =IF(OR(ISERROR(CLdb!E41),ISERROR(CLdb!H41)),"",CLdb!H41) ->  | BD13: =IF(OR(ISERROR(CLdb!E41),ISERROR(CLdb!I41)),"",CLdb!I41) ->  | BE13: =IF(OR(ISERROR(CLdb!E41),ISERROR(CLdb!J41)),"",CLdb!J41) ->  | BF13: =IF(OR(ISERROR(CLdb!E41),ISERROR(CLdb!K41)),"",CLdb!K41) ->  | BG13: =IF(OR(ISERROR(CLdb!E41),ISERROR(CLdb!L41)),"",CLdb!L41) ->  | BH13: =IF(OR(ISERROR(CLdb!E41),ISERROR(CLdb!M41)),"",CLdb!M41) ->  | BI13: 0 | BJ13: 0 | BM13: =IF(BL13="",0,SUMIFS(DD_new!$BZ:$BZ,DD_new!$BW:$BW,DD!$B$3,DD_new!$BT:$BT,Class_means!$AN$7,DD_new!$BV:$BV,Class_means!$AO$7,DD_new!$BY:$BY,Class_means!$BL13)) -> 0 | BT13: Page 13
AJ14: 0 | AK14: 0 | AN14: 0 | AP14: =IF(Labels!$EO$2="Math",IF(ISERROR(CLdb!TU42),"",CLdb!TU42),IF(Labels!$EO$2="English",IF(ISERROR(CLdb!TV42),"",CLdb!TV42),IF(Labels!$EO$2="Science",IF(ISERROR(CLdb!TW42),"",CLdb!TW42),IF(Labels!$EO$2="ArabicA",IF(ISERROR(CLdb!TX42),"",CLdb!TX42),IF(Labels!$EO$2="ArabicB",IF(ISERROR(CLdb!TY42),"",CLdb!TY42),IF(Labels!$EO$2="Reasoning",IF(ISERROR(CLdb!TZ42),"",CLdb!TZ42),IF(Labels!$EO$2="English2",IF(ISERROR(CLdb!UA42),"",CLdb!UA42),IF(Labels!$EO$2="Hindi",IF(ISERROR(CLdb!UB42),"",CLdb!UB42))))))))) ->  | AR14: =IF(OR(ISERROR(CLdb!E42),ISERROR(CLdb!N42)),"",CLdb!N42) ->  | AS14: =IF(OR(ISERROR(CLdb!E42),ISERROR(CLdb!O42)),"",CLdb!O42) ->  | AT14: =IF(OR(ISERROR(CLdb!E42),ISERROR(CLdb!P42)),"",CLdb!P42) ->  | AU14: =IF(OR(ISERROR(CLdb!E42),ISERROR(CLdb!Q42)),"",CLdb!Q42) ->  | AV14: =IF(OR(ISERROR(CLdb!E42),ISERROR(CLdb!R42)),"",CLdb!R42) ->  | AW14: =IF(OR(ISERROR(CLdb!E42),ISERROR(CLdb!S42)),"",CLdb!S42) ->  | AX14: =IF(OR(ISERROR(CLdb!E42),ISERROR(CLdb!T42)),"",CLdb!T42) ->  | AY14: =IF(OR(ISERROR(CLdb!E42),ISERROR(CLdb!U42)),"",CLdb!U42) ->  | BA14: =IF(OR(ISERROR(CLdb!E42),ISERROR(CLdb!F42)),"",CLdb!F42) ->  | BB14: =IF(OR(ISERROR(CLdb!E42),ISERROR(CLdb!G42)),"",CLdb!G42) ->  | BC14: =IF(OR(ISERROR(CLdb!E42),ISERROR(CLdb!H42)),"",CLdb!H42) ->  | BD14: =IF(OR(ISERROR(CLdb!E42),ISERROR(CLdb!I42)),"",CLdb!I42) ->  | BE14: =IF(OR(ISERROR(CLdb!E42),ISERROR(CLdb!J42)),"",CLdb!J42) ->  | BF14: =IF(OR(ISERROR(CLdb!E42),ISERROR(CLdb!K42)),"",CLdb!K42) ->  | BG14: =IF(OR(ISERROR(CLdb!E42),ISERROR(CLdb!L42)),"",CLdb!L42) ->  | BH14: =IF(OR(ISERROR(CLdb!E42),ISERROR(CLdb!M42)),"",CLdb!M42) ->  | BI14: 0 | BJ14: 0 | BM14: =IF(BL14="",0,SUMIFS(DD_new!$BZ:$BZ,DD_new!$BW:$BW,DD!$B$3,DD_new!$BT:$BT,Class_means!$AN$7,DD_new!$BV:$BV,Class_means!$AO$7,DD_new!$BY:$BY,Class_means!$BL14)) -> 0 | BT14: Page 14
AJ15: 0 | AK15: 0 | AN15: 0 | AP15: =IF(Labels!$EO$2="Math",IF(ISERROR(CLdb!TU43),"",CLdb!TU43),IF(Labels!$EO$2="English",IF(ISERROR(CLdb!TV43),"",CLdb!TV43),IF(Labels!$EO$2="Science",IF(ISERROR(CLdb!TW43),"",CLdb!TW43),IF(Labels!$EO$2="ArabicA",IF(ISERROR(CLdb!TX43),"",CLdb!TX43),IF(Labels!$EO$2="ArabicB",IF(ISERROR(CLdb!TY43),"",CLdb!TY43),IF(Labels!$EO$2="Reasoning",IF(ISERROR(CLdb!TZ43),"",CLdb!TZ43),IF(Labels!$EO$2="English2",IF(ISERROR(CLdb!UA43),"",CLdb!UA43),IF(Labels!$EO$2="Hindi",IF(ISERROR(CLdb!UB43),"",CLdb!UB43))))))))) ->  | AR15: =IF(OR(ISERROR(CLdb!E43),ISERROR(CLdb!N43)),"",CLdb!N43) ->  | AS15: =IF(OR(ISERROR(CLdb!E43),ISERROR(CLdb!O43)),"",CLdb!O43) ->  | AT15: =IF(OR(ISERROR(CLdb!E43),ISERROR(CLdb!P43)),"",CLdb!P43) ->  | AU15: =IF(OR(ISERROR(CLdb!E43),ISERROR(CLdb!Q43)),"",CLdb!Q43) ->  | AV15: =IF(OR(ISERROR(CLdb!E43),ISERROR(CLdb!R43)),"",CLdb!R43) ->  | AW15: =IF(OR(ISERROR(CLdb!E43),ISERROR(CLdb!S43)),"",CLdb!S43) ->  | AX15: =IF(OR(ISERROR(CLdb!E43),ISERROR(CLdb!T43)),"",CLdb!T43) ->  | AY15: =IF(OR(ISERROR(CLdb!E43),ISERROR(CLdb!U43)),"",CLdb!U43) ->  | BA15: =IF(OR(ISERROR(CLdb!E43),ISERROR(CLdb!F43)),"",CLdb!F43) ->  | BB15: =IF(OR(ISERROR(CLdb!E43),ISERROR(CLdb!G43)),"",CLdb!G43) ->  | BC15: =IF(OR(ISERROR(CLdb!E43),ISERROR(CLdb!H43)),"",CLdb!H43) ->  | BD15: =IF(OR(ISERROR(CLdb!E43),ISERROR(CLdb!I43)),"",CLdb!I43) ->  | BE15: =IF(OR(ISERROR(CLdb!E43),ISERROR(CLdb!J43)),"",CLdb!J43) ->  | BF15: =IF(OR(ISERROR(CLdb!E43),ISERROR(CLdb!K43)),"",CLdb!K43) ->  | BG15: =IF(OR(ISERROR(CLdb!E43),ISERROR(CLdb!L43)),"",CLdb!L43) ->  | BH15: =IF(OR(ISERROR(CLdb!E43),ISERROR(CLdb!M43)),"",CLdb!M43) ->  | BI15: 0 | BJ15: 0 | BM15: =IF(BL15="",0,SUMIFS(DD_new!$BZ:$BZ,DD_new!$BW:$BW,DD!$B$3,DD_new!$BT:$BT,Class_means!$AN$7,DD_new!$BV:$BV,Class_means!$AO$7,DD_new!$BY:$BY,Class_means!$BL15)) -> 0 | BT15: Page 15
AJ16: 0 | AK16: 0 | AN16: 0 | AP16: =IF(Labels!$EO$2="Math",IF(ISERROR(CLdb!TU44),"",CLdb!TU44),IF(Labels!$EO$2="English",IF(ISERROR(CLdb!TV44),"",CLdb!TV44),IF(Labels!$EO$2="Science",IF(ISERROR(CLdb!TW44),"",CLdb!TW44),IF(Labels!$EO$2="ArabicA",IF(ISERROR(CLdb!TX44),"",CLdb!TX44),IF(Labels!$EO$2="ArabicB",IF(ISERROR(CLdb!TY44),"",CLdb!TY44),IF(Labels!$EO$2="Reasoning",IF(ISERROR(CLdb!TZ44),"",CLdb!TZ44),IF(Labels!$EO$2="English2",IF(ISERROR(CLdb!UA44),"",CLdb!UA44),IF(Labels!$EO$2="Hindi",IF(ISERROR(CLdb!UB44),"",CLdb!UB44))))))))) ->  | AR16: =IF(OR(ISERROR(CLdb!E44),ISERROR(CLdb!N44)),"",CLdb!N44) ->  | AS16: =IF(OR(ISERROR(CLdb!E44),ISERROR(CLdb!O44)),"",CLdb!O44) ->  | AT16: =IF(OR(ISERROR(CLdb!E44),ISERROR(CLdb!P44)),"",CLdb!P44) ->  | AU16: =IF(OR(ISERROR(CLdb!E44),ISERROR(CLdb!Q44)),"",CLdb!Q44) ->  | AV16: =IF(OR(ISERROR(CLdb!E44),ISERROR(CLdb!R44)),"",CLdb!R44) ->  | AW16: =IF(OR(ISERROR(CLdb!E44),ISERROR(CLdb!S44)),"",CLdb!S44) ->  | AX16: =IF(OR(ISERROR(CLdb!E44),ISERROR(CLdb!T44)),"",CLdb!T44) ->  | AY16: =IF(OR(ISERROR(CLdb!E44),ISERROR(CLdb!U44)),"",CLdb!U44) ->  | BA16: =IF(OR(ISERROR(CLdb!E44),ISERROR(CLdb!F44)),"",CLdb!F44) ->  | BB16: =IF(OR(ISERROR(CLdb!E44),ISERROR(CLdb!G44)),"",CLdb!G44) ->  | BC16: =IF(OR(ISERROR(CLdb!E44),ISERROR(CLdb!H44)),"",CLdb!H44) ->  | BD16: =IF(OR(ISERROR(CLdb!E44),ISERROR(CLdb!I44)),"",CLdb!I44) ->  | BE16: =IF(OR(ISERROR(CLdb!E44),ISERROR(CLdb!J44)),"",CLdb!J44) ->  | BF16: =IF(OR(ISERROR(CLdb!E44),ISERROR(CLdb!K44)),"",CLdb!K44) ->  | BG16: =IF(OR(ISERROR(CLdb!E44),ISERROR(CLdb!L44)),"",CLdb!L44) ->  | BH16: =IF(OR(ISERROR(CLdb!E44),ISERROR(CLdb!M44)),"",CLdb!M44) ->  | BI16: 0 | BJ16: 0 | BM16: =IF(BL16="",0,SUMIFS(DD_new!$BZ:$BZ,DD_new!$BW:$BW,DD!$B$3,DD_new!$BT:$BT,Class_means!$AN$7,DD_new!$BV:$BV,Class_means!$AO$7,DD_new!$BY:$BY,Class_means!$BL16)) -> 0 | BT16: Page 16
AJ17: 0 | AK17: 0 | AN17: 0 | AP17: =IF(Labels!$EO$2="Math",IF(ISERROR(CLdb!TU45),"",CLdb!TU45),IF(Labels!$EO$2="English",IF(ISERROR(CLdb!TV45),"",CLdb!TV45),IF(Labels!$EO$2="Science",IF(ISERROR(CLdb!TW45),"",CLdb!TW45),IF(Labels!$EO$2="ArabicA",IF(ISERROR(CLdb!TX45),"",CLdb!TX45),IF(Labels!$EO$2="ArabicB",IF(ISERROR(CLdb!TY45),"",CLdb!TY45),IF(Labels!$EO$2="Reasoning",IF(ISERROR(CLdb!TZ45),"",CLdb!TZ45),IF(Labels!$EO$2="English2",IF(ISERROR(CLdb!UA45),"",CLdb!UA45),IF(Labels!$EO$2="Hindi",IF(ISERROR(CLdb!UB45),"",CLdb!UB45))))))))) ->  | AR17: =IF(OR(ISERROR(CLdb!E45),ISERROR(CLdb!N45)),"",CLdb!N45) ->  | AS17: =IF(OR(ISERROR(CLdb!E45),ISERROR(CLdb!O45)),"",CLdb!O45) ->  | AT17: =IF(OR(ISERROR(CLdb!E45),ISERROR(CLdb!P45)),"",CLdb!P45) ->  | AU17: =IF(OR(ISERROR(CLdb!E45),ISERROR(CLdb!Q45)),"",CLdb!Q45) ->  | AV17: =IF(OR(ISERROR(CLdb!E45),ISERROR(CLdb!R45)),"",CLdb!R45) ->  | AW17: =IF(OR(ISERROR(CLdb!E45),ISERROR(CLdb!S45)),"",CLdb!S45) ->  | AX17: =IF(OR(ISERROR(CLdb!E45),ISERROR(CLdb!T45)),"",CLdb!T45) ->  | AY17: =IF(OR(ISERROR(CLdb!E45),ISERROR(CLdb!U45)),"",CLdb!U45) ->  | BA17: =IF(OR(ISERROR(CLdb!E45),ISERROR(CLdb!F45)),"",CLdb!F45) ->  | BB17: =IF(OR(ISERROR(CLdb!E45),ISERROR(CLdb!G45)),"",CLdb!G45) ->  | BC17: =IF(OR(ISERROR(CLdb!E45),ISERROR(CLdb!H45)),"",CLdb!H45) ->  | BD17: =IF(OR(ISERROR(CLdb!E45),ISERROR(CLdb!I45)),"",CLdb!I45) ->  | BE17: =IF(OR(ISERROR(CLdb!E45),ISERROR(CLdb!J45)),"",CLdb!J45) ->  | BF17: =IF(OR(ISERROR(CLdb!E45),ISERROR(CLdb!K45)),"",CLdb!K45) ->  | BG17: =IF(OR(ISERROR(CLdb!E45),ISERROR(CLdb!L45)),"",CLdb!L45) ->  | BH17: =IF(OR(ISERROR(CLdb!E45),ISERROR(CLdb!M45)),"",CLdb!M45) ->  | BI17: 0 | BJ17: 0 | BM17: =IF(BL17="",0,SUMIFS(DD_new!$BZ:$BZ,DD_new!$BW:$BW,DD!$B$3,DD_new!$BT:$BT,Class_means!$AN$7,DD_new!$BV:$BV,Class_means!$AO$7,DD_new!$BY:$BY,Class_means!$BL17)) -> 0 | BT17: Page 17
AJ18: 0 | AK18: 0 | AN18: 0 | AP18: =IF(Labels!$EO$2="Math",IF(ISERROR(CLdb!TU46),"",CLdb!TU46),IF(Labels!$EO$2="English",IF(ISERROR(CLdb!TV46),"",CLdb!TV46),IF(Labels!$EO$2="Science",IF(ISERROR(CLdb!TW46),"",CLdb!TW46),IF(Labels!$EO$2="ArabicA",IF(ISERROR(CLdb!TX46),"",CLdb!TX46),IF(Labels!$EO$2="ArabicB",IF(ISERROR(CLdb!TY46),"",CLdb!TY46),IF(Labels!$EO$2="Reasoning",IF(ISERROR(CLdb!TZ46),"",CLdb!TZ46),IF(Labels!$EO$2="English2",IF(ISERROR(CLdb!UA46),"",CLdb!UA46),IF(Labels!$EO$2="Hindi",IF(ISERROR(CLdb!UB46),"",CLdb!UB46))))))))) ->  | AR18: =IF(OR(ISERROR(CLdb!E46),ISERROR(CLdb!N46)),"",CLdb!N46) ->  | AS18: =IF(OR(ISERROR(CLdb!E46),ISERROR(CLdb!O46)),"",CLdb!O46) ->  | AT18: =IF(OR(ISERROR(CLdb!E46),ISERROR(CLdb!P46)),"",CLdb!P46) ->  | AU18: =IF(OR(ISERROR(CLdb!E46),ISERROR(CLdb!Q46)),"",CLdb!Q46) ->  | AV18: =IF(OR(ISERROR(CLdb!E46),ISERROR(CLdb!R46)),"",CLdb!R46) ->  | AW18: =IF(OR(ISERROR(CLdb!E46),ISERROR(CLdb!S46)),"",CLdb!S46) ->  | AX18: =IF(OR(ISERROR(CLdb!E46),ISERROR(CLdb!T46)),"",CLdb!T46) ->  | AY18: =IF(OR(ISERROR(CLdb!E46),ISERROR(CLdb!U46)),"",CLdb!U46) ->  | BA18: =IF(OR(ISERROR(CLdb!E46),ISERROR(CLdb!F46)),"",CLdb!F46) ->  | BB18: =IF(OR(ISERROR(CLdb!E46),ISERROR(CLdb!G46)),"",CLdb!G46) ->  | BC18: =IF(OR(ISERROR(CLdb!E46),ISERROR(CLdb!H46)),"",CLdb!H46) ->  | BD18: =IF(OR(ISERROR(CLdb!E46),ISERROR(CLdb!I46)),"",CLdb!I46) ->  | BE18: =IF(OR(ISERROR(CLdb!E46),ISERROR(CLdb!J46)),"",CLdb!J46) ->  | BF18: =IF(OR(ISERROR(CLdb!E46),ISERROR(CLdb!K46)),"",CLdb!K46) ->  | BG18: =IF(OR(ISERROR(CLdb!E46),ISERROR(CLdb!L46)),"",CLdb!L46) ->  | BH18: =IF(OR(ISERROR(CLdb!E46),ISERROR(CLdb!M46)),"",CLdb!M46) ->  | BI18: 0 | BJ18: 0 | BM18: =IF(BL18="",0,SUMIFS(DD_new!$BZ:$BZ,DD_new!$BW:$BW,DD!$B$3,DD_new!$BT:$BT,Class_means!$AN$7,DD_new!$BV:$BV,Class_means!$AO$7,DD_new!$BY:$BY,Class_means!$BL18)) -> 0 | BT18: Page 18
AJ19: 0 | AK19: 0 | AN19: 0 | AP19: =IF(Labels!$EO$2="Math",IF(ISERROR(CLdb!TU47),"",CLdb!TU47),IF(Labels!$EO$2="English",IF(ISERROR(CLdb!TV47),"",CLdb!TV47),IF(Labels!$EO$2="Science",IF(ISERROR(CLdb!TW47),"",CLdb!TW47),IF(Labels!$EO$2="ArabicA",IF(ISERROR(CLdb!TX47),"",CLdb!TX47),IF(Labels!$EO$2="ArabicB",IF(ISERROR(CLdb!TY47),"",CLdb!TY47),IF(Labels!$EO$2="Reasoning",IF(ISERROR(CLdb!TZ47),"",CLdb!TZ47),IF(Labels!$EO$2="English2",IF(ISERROR(CLdb!UA47),"",CLdb!UA47),IF(Labels!$EO$2="Hindi",IF(ISERROR(CLdb!UB47),"",CLdb!UB47))))))))) ->  | AR19: =IF(OR(ISERROR(CLdb!E47),ISERROR(CLdb!N47)),"",CLdb!N47) ->  | AS19: =IF(OR(ISERROR(CLdb!E47),ISERROR(CLdb!O47)),"",CLdb!O47) ->  | AT19: =IF(OR(ISERROR(CLdb!E47),ISERROR(CLdb!P47)),"",CLdb!P47) ->  | AU19: =IF(OR(ISERROR(CLdb!E47),ISERROR(CLdb!Q47)),"",CLdb!Q47) ->  | AV19: =IF(OR(ISERROR(CLdb!E47),ISERROR(CLdb!R47)),"",CLdb!R47) ->  | AW19: =IF(OR(ISERROR(CLdb!E47),ISERROR(CLdb!S47)),"",CLdb!S47) ->  | AX19: =IF(OR(ISERROR(CLdb!E47),ISERROR(CLdb!T47)),"",CLdb!T47) ->  | AY19: =IF(OR(ISERROR(CLdb!E47),ISERROR(CLdb!U47)),"",CLdb!U47) ->  | BA19: =IF(OR(ISERROR(CLdb!E47),ISERROR(CLdb!F47)),"",CLdb!F47) ->  | BB19: =IF(OR(ISERROR(CLdb!E47),ISERROR(CLdb!G47)),"",CLdb!G47) ->  | BC19: =IF(OR(ISERROR(CLdb!E47),ISERROR(CLdb!H47)),"",CLdb!H47) ->  | BD19: =IF(OR(ISERROR(CLdb!E47),ISERROR(CLdb!I47)),"",CLdb!I47) ->  | BE19: =IF(OR(ISERROR(CLdb!E47),ISERROR(CLdb!J47)),"",CLdb!J47) ->  | BF19: =IF(OR(ISERROR(CLdb!E47),ISERROR(CLdb!K47)),"",CLdb!K47) ->  | BG19: =IF(OR(ISERROR(CLdb!E47),ISERROR(CLdb!L47)),"",CLdb!L47) ->  | BH19: =IF(OR(ISERROR(CLdb!E47),ISERROR(CLdb!M47)),"",CLdb!M47) ->  | BI19: 0 | BJ19: 0 | BM19: =IF(BL19="",0,SUMIFS(DD_new!$BZ:$BZ,DD_new!$BW:$BW,DD!$B$3,DD_new!$BT:$BT,Class_means!$AN$7,DD_new!$BV:$BV,Class_means!$AO$7,DD_new!$BY:$BY,Class_means!$BL19)) -> 0 | BT19: Page 19
J20: =IF(K20="","",J19+1) ->  | AJ20: 0 | AK20: 0 | AN20: 0 | AP20: =IF(Labels!$EO$2="Math",IF(ISERROR(CLdb!TU48),"",CLdb!TU48),IF(Labels!$EO$2="English",IF(ISERROR(CLdb!TV48),"",CLdb!TV48),IF(Labels!$EO$2="Science",IF(ISERROR(CLdb!TW48),"",CLdb!TW48),IF(Labels!$EO$2="ArabicA",IF(ISERROR(CLdb!TX48),"",CLdb!TX48),IF(Labels!$EO$2="ArabicB",IF(ISERROR(CLdb!TY48),"",CLdb!TY48),IF(Labels!$EO$2="Reasoning",IF(ISERROR(CLdb!TZ48),"",CLdb!TZ48),IF(Labels!$EO$2="English2",IF(ISERROR(CLdb!UA48),"",CLdb!UA48),IF(Labels!$EO$2="Hindi",IF(ISERROR(CLdb!UB48),"",CLdb!UB48))))))))) ->  | AR20: =IF(OR(ISERROR(CLdb!E48),ISERROR(CLdb!N48)),"",CLdb!N48) ->  | AS20: =IF(OR(ISERROR(CLdb!E48),ISERROR(CLdb!O48)),"",CLdb!O48) ->  | AT20: =IF(OR(ISERROR(CLdb!E48),ISERROR(CLdb!P48)),"",CLdb!P48) ->  | AU20: =IF(OR(ISERROR(CLdb!E48),ISERROR(CLdb!Q48)),"",CLdb!Q48) ->  | AV20: =IF(OR(ISERROR(CLdb!E48),ISERROR(CLdb!R48)),"",CLdb!R48) ->  | AW20: =IF(OR(ISERROR(CLdb!E48),ISERROR(CLdb!S48)),"",CLdb!S48) ->  | AX20: =IF(OR(ISERROR(CLdb!E48),ISERROR(CLdb!T48)),"",CLdb!T48) ->  | AY20: =IF(OR(ISERROR(CLdb!E48),ISERROR(CLdb!U48)),"",CLdb!U48) ->  | BA20: =IF(OR(ISERROR(CLdb!E48),ISERROR(CLdb!F48)),"",CLdb!F48) ->  | BB20: =IF(OR(ISERROR(CLdb!E48),ISERROR(CLdb!G48)),"",CLdb!G48) ->  | BC20: =IF(OR(ISERROR(CLdb!E48),ISERROR(CLdb!H48)),"",CLdb!H48) ->  | BD20: =IF(OR(ISERROR(CLdb!E48),ISERROR(CLdb!I48)),"",CLdb!I48) ->  | BE20: =IF(OR(ISERROR(CLdb!E48),ISERROR(CLdb!J48)),"",CLdb!J48) ->  | BF20: =IF(OR(ISERROR(CLdb!E48),ISERROR(CLdb!K48)),"",CLdb!K48) ->  | BG20: =IF(OR(ISERROR(CLdb!E48),ISERROR(CLdb!L48)),"",CLdb!L48) ->  | BH20: =IF(OR(ISERROR(CLdb!E48),ISERROR(CLdb!M48)),"",CLdb!M48) ->  | BI20: 0 | BJ20: 0 | BM20: =IF(BL20="",0,SUMIFS(DD_new!$BZ:$BZ,DD_new!$BW:$BW,DD!$B$3,DD_new!$BT:$BT,Class_means!$AN$7,DD_new!$BV:$BV,Class_means!$AO$7,DD_new!$BY:$BY,Class_means!$BL20)) -> 0 | BT20: Page 20
AJ21: 0 | AK21: 0 | AN21: 0 | AP21: =IF(Labels!$EO$2="Math",IF(ISERROR(CLdb!TU49),"",CLdb!TU49),IF(Labels!$EO$2="English",IF(ISERROR(CLdb!TV49),"",CLdb!TV49),IF(Labels!$EO$2="Science",IF(ISERROR(CLdb!TW49),"",CLdb!TW49),IF(Labels!$EO$2="ArabicA",IF(ISERROR(CLdb!TX49),"",CLdb!TX49),IF(Labels!$EO$2="ArabicB",IF(ISERROR(CLdb!TY49),"",CLdb!TY49),IF(Labels!$EO$2="Reasoning",IF(ISERROR(CLdb!TZ49),"",CLdb!TZ49),IF(Labels!$EO$2="English2",IF(ISERROR(CLdb!UA49),"",CLdb!UA49),IF(Labels!$EO$2="Hindi",IF(ISERROR(CLdb!UB49),"",CLdb!UB49))))))))) ->  | AR21: =IF(OR(ISERROR(CLdb!E49),ISERROR(CLdb!N49)),"",CLdb!N49) ->  | AS21: =IF(OR(ISERROR(CLdb!E49),ISERROR(CLdb!O49)),"",CLdb!O49) ->  | AT21: =IF(OR(ISERROR(CLdb!E49),ISERROR(CLdb!P49)),"",CLdb!P49) ->  | AU21: =IF(OR(ISERROR(CLdb!E49),ISERROR(CLdb!Q49)),"",CLdb!Q49) ->  | AV21: =IF(OR(ISERROR(CLdb!E49),ISERROR(CLdb!R49)),"",CLdb!R49) ->  | AW21: =IF(OR(ISERROR(CLdb!E49),ISERROR(CLdb!S49)),"",CLdb!S49) ->  | AX21: =IF(OR(ISERROR(CLdb!E49),ISERROR(CLdb!T49)),"",CLdb!T49) ->  | AY21: =IF(OR(ISERROR(CLdb!E49),ISERROR(CLdb!U49)),"",CLdb!U49) ->  | BA21: =IF(OR(ISERROR(CLdb!E49),ISERROR(CLdb!F49)),"",CLdb!F49) ->  | BB21: =IF(OR(ISERROR(CLdb!E49),ISERROR(CLdb!G49)),"",CLdb!G49) ->  | BC21: =IF(OR(ISERROR(CLdb!E49),ISERROR(CLdb!H49)),"",CLdb!H49) ->  | BD21: =IF(OR(ISERROR(CLdb!E49),ISERROR(CLdb!I49)),"",CLdb!I49) ->  | BE21: =IF(OR(ISERROR(CLdb!E49),ISERROR(CLdb!J49)),"",CLdb!J49) ->  | BF21: =IF(OR(ISERROR(CLdb!E49),ISERROR(CLdb!K49)),"",CLdb!K49) ->  | BG21: =IF(OR(ISERROR(CLdb!E49),ISERROR(CLdb!L49)),"",CLdb!L49) ->  | BH21: =IF(OR(ISERROR(CLdb!E49),ISERROR(CLdb!M49)),"",CLdb!M49) ->  | BI21: 0 | BJ21: 0 | BM21: =IF(BL21="",0,SUMIFS(DD_new!$BZ:$BZ,DD_new!$BW:$BW,DD!$B$3,DD_new!$BT:$BT,Class_means!$AN$7,DD_new!$BV:$BV,Class_means!$AO$7,DD_new!$BY:$BY,Class_means!$BL21)) -> 0 | BT21: Page 21
AJ22: 0 | AK22: 0 | AN22: 0 | AP22: =IF(Labels!$EO$2="Math",IF(ISERROR(CLdb!TU50),"",CLdb!TU50),IF(Labels!$EO$2="English",IF(ISERROR(CLdb!TV50),"",CLdb!TV50),IF(Labels!$EO$2="Science",IF(ISERROR(CLdb!TW50),"",CLdb!TW50),IF(Labels!$EO$2="ArabicA",IF(ISERROR(CLdb!TX50),"",CLdb!TX50),IF(Labels!$EO$2="ArabicB",IF(ISERROR(CLdb!TY50),"",CLdb!TY50),IF(Labels!$EO$2="Reasoning",IF(ISERROR(CLdb!TZ50),"",CLdb!TZ50),IF(Labels!$EO$2="English2",IF(ISERROR(CLdb!UA50),"",CLdb!UA50),IF(Labels!$EO$2="Hindi",IF(ISERROR(CLdb!UB50),"",CLdb!UB50))))))))) ->  | AR22: =IF(OR(ISERROR(CLdb!E50),ISERROR(CLdb!N50)),"",CLdb!N50) ->  | AS22: =IF(OR(ISERROR(CLdb!E50),ISERROR(CLdb!O50)),"",CLdb!O50) ->  | AT22: =IF(OR(ISERROR(CLdb!E50),ISERROR(CLdb!P50)),"",CLdb!P50) ->  | AU22: =IF(OR(ISERROR(CLdb!E50),ISERROR(CLdb!Q50)),"",CLdb!Q50) ->  | AV22: =IF(OR(ISERROR(CLdb!E50),ISERROR(CLdb!R50)),"",CLdb!R50) ->  | AW22: =IF(OR(ISERROR(CLdb!E50),ISERROR(CLdb!S50)),"",CLdb!S50) ->  | AX22: =IF(OR(ISERROR(CLdb!E50),ISERROR(CLdb!T50)),"",CLdb!T50) ->  | AY22: =IF(OR(ISERROR(CLdb!E50),ISERROR(CLdb!U50)),"",CLdb!U50) ->  | BA22: =IF(OR(ISERROR(CLdb!E50),ISERROR(CLdb!F50)),"",CLdb!F50) ->  | BB22: =IF(OR(ISERROR(CLdb!E50),ISERROR(CLdb!G50)),"",CLdb!G50) ->  | BC22: =IF(OR(ISERROR(CLdb!E50),ISERROR(CLdb!H50)),"",CLdb!H50) ->  | BD22: =IF(OR(ISERROR(CLdb!E50),ISERROR(CLdb!I50)),"",CLdb!I50) ->  | BE22: =IF(OR(ISERROR(CLdb!E50),ISERROR(CLdb!J50)),"",CLdb!J50) ->  | BF22: =IF(OR(ISERROR(CLdb!E50),ISERROR(CLdb!K50)),"",CLdb!K50) ->  | BG22: =IF(OR(ISERROR(CLdb!E50),ISERROR(CLdb!L50)),"",CLdb!L50) ->  | BH22: =IF(OR(ISERROR(CLdb!E50),ISERROR(CLdb!M50)),"",CLdb!M50) ->  | BI22: 0 | BJ22: 0 | BM22: =IF(BL22="",0,SUMIFS(DD_new!$BZ:$BZ,DD_new!$BW:$BW,DD!$B$3,DD_new!$BT:$BT,Class_means!$AN$7,DD_new!$BV:$BV,Class_means!$AO$7,DD_new!$BY:$BY,Class_means!$BL22)) -> 0 | BT22: Page 22
AJ23: 0 | AK23: 0 | AN23: 0 | AP23: =IF(Labels!$EO$2="Math",IF(ISERROR(CLdb!TU51),"",CLdb!TU51),IF(Labels!$EO$2="English",IF(ISERROR(CLdb!TV51),"",CLdb!TV51),IF(Labels!$EO$2="Science",IF(ISERROR(CLdb!TW51),"",CLdb!TW51),IF(Labels!$EO$2="ArabicA",IF(ISERROR(CLdb!TX51),"",CLdb!TX51),IF(Labels!$EO$2="ArabicB",IF(ISERROR(CLdb!TY51),"",CLdb!TY51),IF(Labels!$EO$2="Reasoning",IF(ISERROR(CLdb!TZ51),"",CLdb!TZ51),IF(Labels!$EO$2="English2",IF(ISERROR(CLdb!UA51),"",CLdb!UA51),IF(Labels!$EO$2="Hindi",IF(ISERROR(CLdb!UB51),"",CLdb!UB51))))))))) ->  | AR23: =IF(OR(ISERROR(CLdb!E51),ISERROR(CLdb!N51)),"",CLdb!N51) ->  | AS23: =IF(OR(ISERROR(CLdb!E51),ISERROR(CLdb!O51)),"",CLdb!O51) ->  | AT23: =IF(OR(ISERROR(CLdb!E51),ISERROR(CLdb!P51)),"",CLdb!P51) ->  | AU23: =IF(OR(ISERROR(CLdb!E51),ISERROR(CLdb!Q51)),"",CLdb!Q51) ->  | AV23: =IF(OR(ISERROR(CLdb!E51),ISERROR(CLdb!R51)),"",CLdb!R51) ->  | AW23: =IF(OR(ISERROR(CLdb!E51),ISERROR(CLdb!S51)),"",CLdb!S51) ->  | AX23: =IF(OR(ISERROR(CLdb!E51),ISERROR(CLdb!T51)),"",CLdb!T51) ->  | AY23: =IF(OR(ISERROR(CLdb!E51),ISERROR(CLdb!U51)),"",CLdb!U51) ->  | BA23: =IF(OR(ISERROR(CLdb!E51),ISERROR(CLdb!F51)),"",CLdb!F51) ->  | BB23: =IF(OR(ISERROR(CLdb!E51),ISERROR(CLdb!G51)),"",CLdb!G51) ->  | BC23: =IF(OR(ISERROR(CLdb!E51),ISERROR(CLdb!H51)),"",CLdb!H51) ->  | BD23: =IF(OR(ISERROR(CLdb!E51),ISERROR(CLdb!I51)),"",CLdb!I51) ->  | BE23: =IF(OR(ISERROR(CLdb!E51),ISERROR(CLdb!J51)),"",CLdb!J51) ->  | BF23: =IF(OR(ISERROR(CLdb!E51),ISERROR(CLdb!K51)),"",CLdb!K51) ->  | BG23: =IF(OR(ISERROR(CLdb!E51),ISERROR(CLdb!L51)),"",CLdb!L51) ->  | BH23: =IF(OR(ISERROR(CLdb!E51),ISERROR(CLdb!M51)),"",CLdb!M51) ->  | BI23: 0 | BJ23: 0 | BM23: =IF(BL23="",0,SUMIFS(DD_new!$BZ:$BZ,DD_new!$BW:$BW,DD!$B$3,DD_new!$BT:$BT,Class_means!$AN$7,DD_new!$BV:$BV,Class_means!$AO$7,DD_new!$BY:$BY,Class_means!$BL23)) -> 0 | BT23: Page 23
AJ24: 0 | AK24: 0 | AN24: 0 | AP24: =IF(Labels!$EO$2="Math",IF(ISERROR(CLdb!TU52),"",CLdb!TU52),IF(Labels!$EO$2="English",IF(ISERROR(CLdb!TV52),"",CLdb!TV52),IF(Labels!$EO$2="Science",IF(ISERROR(CLdb!TW52),"",CLdb!TW52),IF(Labels!$EO$2="ArabicA",IF(ISERROR(CLdb!TX52),"",CLdb!TX52),IF(Labels!$EO$2="ArabicB",IF(ISERROR(CLdb!TY52),"",CLdb!TY52),IF(Labels!$EO$2="Reasoning",IF(ISERROR(CLdb!TZ52),"",CLdb!TZ52),IF(Labels!$EO$2="English2",IF(ISERROR(CLdb!UA52),"",CLdb!UA52),IF(Labels!$EO$2="Hindi",IF(ISERROR(CLdb!UB52),"",CLdb!UB52))))))))) ->  | AR24: =IF(OR(ISERROR(CLdb!E52),ISERROR(CLdb!N52)),"",CLdb!N52) ->  | AS24: =IF(OR(ISERROR(CLdb!E52),ISERROR(CLdb!O52)),"",CLdb!O52) ->  | AT24: =IF(OR(ISERROR(CLdb!E52),ISERROR(CLdb!P52)),"",CLdb!P52) ->  | AU24: =IF(OR(ISERROR(CLdb!E52),ISERROR(CLdb!Q52)),"",CLdb!Q52) ->  | AV24: =IF(OR(ISERROR(CLdb!E52),ISERROR(CLdb!R52)),"",CLdb!R52) ->  | AW24: =IF(OR(ISERROR(CLdb!E52),ISERROR(CLdb!S52)),"",CLdb!S52) ->  | AX24: =IF(OR(ISERROR(CLdb!E52),ISERROR(CLdb!T52)),"",CLdb!T52) ->  | AY24: =IF(OR(ISERROR(CLdb!E52),ISERROR(CLdb!U52)),"",CLdb!U52) ->  | BA24: =IF(OR(ISERROR(CLdb!E52),ISERROR(CLdb!F52)),"",CLdb!F52) ->  | BB24: =IF(OR(ISERROR(CLdb!E52),ISERROR(CLdb!G52)),"",CLdb!G52) ->  | BC24: =IF(OR(ISERROR(CLdb!E52),ISERROR(CLdb!H52)),"",CLdb!H52) ->  | BD24: =IF(OR(ISERROR(CLdb!E52),ISERROR(CLdb!I52)),"",CLdb!I52) ->  | BE24: =IF(OR(ISERROR(CLdb!E52),ISERROR(CLdb!J52)),"",CLdb!J52) ->  | BF24: =IF(OR(ISERROR(CLdb!E52),ISERROR(CLdb!K52)),"",CLdb!K52) ->  | BG24: =IF(OR(ISERROR(CLdb!E52),ISERROR(CLdb!L52)),"",CLdb!L52) ->  | BH24: =IF(OR(ISERROR(CLdb!E52),ISERROR(CLdb!M52)),"",CLdb!M52) ->  | BI24: 0 | BJ24: 0 | BM24: =IF(BL24="",0,SUMIFS(DD_new!$BZ:$BZ,DD_new!$BW:$BW,DD!$B$3,DD_new!$BT:$BT,Class_means!$AN$7,DD_new!$BV:$BV,Class_means!$AO$7,DD_new!$BY:$BY,Class_means!$BL24)) -> 0 | BT24: Page 24
AJ25: 0 | AK25: 0 | AN25: 0 | AP25: =IF(Labels!$EO$2="Math",IF(ISERROR(CLdb!TU53),"",CLdb!TU53),IF(Labels!$EO$2="English",IF(ISERROR(CLdb!TV53),"",CLdb!TV53),IF(Labels!$EO$2="Science",IF(ISERROR(CLdb!TW53),"",CLdb!TW53),IF(Labels!$EO$2="ArabicA",IF(ISERROR(CLdb!TX53),"",CLdb!TX53),IF(Labels!$EO$2="ArabicB",IF(ISERROR(CLdb!TY53),"",CLdb!TY53),IF(Labels!$EO$2="Reasoning",IF(ISERROR(CLdb!TZ53),"",CLdb!TZ53),IF(Labels!$EO$2="English2",IF(ISERROR(CLdb!UA53),"",CLdb!UA53),IF(Labels!$EO$2="Hindi",IF(ISERROR(CLdb!UB53),"",CLdb!UB53))))))))) ->  | AR25: =IF(OR(ISERROR(CLdb!E53),ISERROR(CLdb!N53)),"",CLdb!N53) ->  | AS25: =IF(OR(ISERROR(CLdb!E53),ISERROR(CLdb!O53)),"",CLdb!O53) ->  | AT25: =IF(OR(ISERROR(CLdb!E53),ISERROR(CLdb!P53)),"",CLdb!P53) ->  | AU25: =IF(OR(ISERROR(CLdb!E53),ISERROR(CLdb!Q53)),"",CLdb!Q53) ->  | AV25: =IF(OR(ISERROR(CLdb!E53),ISERROR(CLdb!R53)),"",CLdb!R53) ->  | AW25: =IF(OR(ISERROR(CLdb!E53),ISERROR(CLdb!S53)),"",CLdb!S53) ->  | AX25: =IF(OR(ISERROR(CLdb!E53),ISERROR(CLdb!T53)),"",CLdb!T53) ->  | AY25: =IF(OR(ISERROR(CLdb!E53),ISERROR(CLdb!U53)),"",CLdb!U53) ->  | BA25: =IF(OR(ISERROR(CLdb!E53),ISERROR(CLdb!F53)),"",CLdb!F53) ->  | BB25: =IF(OR(ISERROR(CLdb!E53),ISERROR(CLdb!G53)),"",CLdb!G53) ->  | BC25: =IF(OR(ISERROR(CLdb!E53),ISERROR(CLdb!H53)),"",CLdb!H53) ->  | BD25: =IF(OR(ISERROR(CLdb!E53),ISERROR(CLdb!I53)),"",CLdb!I53) ->  | BE25: =IF(OR(ISERROR(CLdb!E53),ISERROR(CLdb!J53)),"",CLdb!J53) ->  | BF25: =IF(OR(ISERROR(CLdb!E53),ISERROR(CLdb!K53)),"",CLdb!K53) ->  | BG25: =IF(OR(ISERROR(CLdb!E53),ISERROR(CLdb!L53)),"",CLdb!L53) ->  | BH25: =IF(OR(ISERROR(CLdb!E53),ISERROR(CLdb!M53)),"",CLdb!M53) ->  | BI25: 0 | BJ25: 0 | BM25: =IF(BL25="",0,SUMIFS(DD_new!$BZ:$BZ,DD_new!$BW:$BW,DD!$B$3,DD_new!$BT:$BT,Class_means!$AN$7,DD_new!$BV:$BV,Class_means!$AO$7,DD_new!$BY:$BY,Class_means!$BL25)) -> 0 | BT25: Page 25
AJ26: 0 | AK26: 0 | AN26: 0 | AP26: =IF(Labels!$EO$2="Math",IF(ISERROR(CLdb!TU54),"",CLdb!TU54),IF(Labels!$EO$2="English",IF(ISERROR(CLdb!TV54),"",CLdb!TV54),IF(Labels!$EO$2="Science",IF(ISERROR(CLdb!TW54),"",CLdb!TW54),IF(Labels!$EO$2="ArabicA",IF(ISERROR(CLdb!TX54),"",CLdb!TX54),IF(Labels!$EO$2="ArabicB",IF(ISERROR(CLdb!TY54),"",CLdb!TY54),IF(Labels!$EO$2="Reasoning",IF(ISERROR(CLdb!TZ54),"",CLdb!TZ54),IF(Labels!$EO$2="English2",IF(ISERROR(CLdb!UA54),"",CLdb!UA54),IF(Labels!$EO$2="Hindi",IF(ISERROR(CLdb!UB54),"",CLdb!UB54))))))))) ->  | AR26: =IF(OR(ISERROR(CLdb!E54),ISERROR(CLdb!N54)),"",CLdb!N54) ->  | AS26: =IF(OR(ISERROR(CLdb!E54),ISERROR(CLdb!O54)),"",CLdb!O54) ->  | AT26: =IF(OR(ISERROR(CLdb!E54),ISERROR(CLdb!P54)),"",CLdb!P54) ->  | AU26: =IF(OR(ISERROR(CLdb!E54),ISERROR(CLdb!Q54)),"",CLdb!Q54) ->  | AV26: =IF(OR(ISERROR(CLdb!E54),ISERROR(CLdb!R54)),"",CLdb!R54) ->  | AW26: =IF(OR(ISERROR(CLdb!E54),ISERROR(CLdb!S54)),"",CLdb!S54) ->  | AX26: =IF(OR(ISERROR(CLdb!E54),ISERROR(CLdb!T54)),"",CLdb!T54) ->  | AY26: =IF(OR(ISERROR(CLdb!E54),ISERROR(CLdb!U54)),"",CLdb!U54) ->  | BA26: =IF(OR(ISERROR(CLdb!E54),ISERROR(CLdb!F54)),"",CLdb!F54) ->  | BB26: =IF(OR(ISERROR(CLdb!E54),ISERROR(CLdb!G54)),"",CLdb!G54) ->  | BC26: =IF(OR(ISERROR(CLdb!E54),ISERROR(CLdb!H54)),"",CLdb!H54) ->  | BD26: =IF(OR(ISERROR(CLdb!E54),ISERROR(CLdb!I54)),"",CLdb!I54) ->  | BE26: =IF(OR(ISERROR(CLdb!E54),ISERROR(CLdb!J54)),"",CLdb!J54) ->  | BF26: =IF(OR(ISERROR(CLdb!E54),ISERROR(CLdb!K54)),"",CLdb!K54) ->  | BG26: =IF(OR(ISERROR(CLdb!E54),ISERROR(CLdb!L54)),"",CLdb!L54) ->  | BH26: =IF(OR(ISERROR(CLdb!E54),ISERROR(CLdb!M54)),"",CLdb!M54) ->  | BI26: 0 | BJ26: 0 | BM26: =IF(BL26="",0,SUMIFS(DD_new!$BZ:$BZ,DD_new!$BW:$BW,DD!$B$3,DD_new!$BT:$BT,Class_means!$AN$7,DD_new!$BV:$BV,Class_means!$AO$7,DD_new!$BY:$BY,Class_means!$BL26)) -> 0
AJ27: 0 | AK27: 0 | AN27: 0 | AP27: =IF(Labels!$EO$2="Math",IF(ISERROR(CLdb!TU55),"",CLdb!TU55),IF(Labels!$EO$2="English",IF(ISERROR(CLdb!TV55),"",CLdb!TV55),IF(Labels!$EO$2="Science",IF(ISERROR(CLdb!TW55),"",CLdb!TW55),IF(Labels!$EO$2="ArabicA",IF(ISERROR(CLdb!TX55),"",CLdb!TX55),IF(Labels!$EO$2="ArabicB",IF(ISERROR(CLdb!TY55),"",CLdb!TY55),IF(Labels!$EO$2="Reasoning",IF(ISERROR(CLdb!TZ55),"",CLdb!TZ55),IF(Labels!$EO$2="English2",IF(ISERROR(CLdb!UA55),"",CLdb!UA55),IF(Labels!$EO$2="Hindi",IF(ISERROR(CLdb!UB55),"",CLdb!UB55))))))))) ->  | AR27: =IF(OR(ISERROR(CLdb!E55),ISERROR(CLdb!N55)),"",CLdb!N55) ->  | AS27: =IF(OR(ISERROR(CLdb!E55),ISERROR(CLdb!O55)),"",CLdb!O55) ->  | AT27: =IF(OR(ISERROR(CLdb!E55),ISERROR(CLdb!P55)),"",CLdb!P55) ->  | AU27: =IF(OR(ISERROR(CLdb!E55),ISERROR(CLdb!Q55)),"",CLdb!Q55) ->  | AV27: =IF(OR(ISERROR(CLdb!E55),ISERROR(CLdb!R55)),"",CLdb!R55) ->  | AW27: =IF(OR(ISERROR(CLdb!E55),ISERROR(CLdb!S55)),"",CLdb!S55) ->  | AX27: =IF(OR(ISERROR(CLdb!E55),ISERROR(CLdb!T55)),"",CLdb!T55) ->  | AY27: =IF(OR(ISERROR(CLdb!E55),ISERROR(CLdb!U55)),"",CLdb!U55) ->  | BA27: =IF(OR(ISERROR(CLdb!E55),ISERROR(CLdb!F55)),"",CLdb!F55) ->  | BB27: =IF(OR(ISERROR(CLdb!E55),ISERROR(CLdb!G55)),"",CLdb!G55) ->  | BC27: =IF(OR(ISERROR(CLdb!E55),ISERROR(CLdb!H55)),"",CLdb!H55) ->  | BD27: =IF(OR(ISERROR(CLdb!E55),ISERROR(CLdb!I55)),"",CLdb!I55) ->  | BE27: =IF(OR(ISERROR(CLdb!E55),ISERROR(CLdb!J55)),"",CLdb!J55) ->  | BF27: =IF(OR(ISERROR(CLdb!E55),ISERROR(CLdb!K55)),"",CLdb!K55) ->  | BG27: =IF(OR(ISERROR(CLdb!E55),ISERROR(CLdb!L55)),"",CLdb!L55) ->  | BH27: =IF(OR(ISERROR(CLdb!E55),ISERROR(CLdb!M55)),"",CLdb!M55) ->  | BI27: 0 | BJ27: 0 | BM27: =IF(BL27="",0,SUMIFS(DD_new!$BZ:$BZ,DD_new!$BW:$BW,DD!$B$3,DD_new!$BT:$BT,Class_means!$AN$7,DD_new!$BV:$BV,Class_means!$AO$7,DD_new!$BY:$BY,Class_means!$BL27)) -> 0
AJ28: 0 | AK28: 0 | AN28: 0 | AP28: =IF(Labels!$EO$2="Math",IF(ISERROR(CLdb!TU56),"",CLdb!TU56),IF(Labels!$EO$2="English",IF(ISERROR(CLdb!TV56),"",CLdb!TV56),IF(Labels!$EO$2="Science",IF(ISERROR(CLdb!TW56),"",CLdb!TW56),IF(Labels!$EO$2="ArabicA",IF(ISERROR(CLdb!TX56),"",CLdb!TX56),IF(Labels!$EO$2="ArabicB",IF(ISERROR(CLdb!TY56),"",CLdb!TY56),IF(Labels!$EO$2="Reasoning",IF(ISERROR(CLdb!TZ56),"",CLdb!TZ56),IF(Labels!$EO$2="English2",IF(ISERROR(CLdb!UA56),"",CLdb!UA56),IF(Labels!$EO$2="Hindi",IF(ISERROR(CLdb!UB56),"",CLdb!UB56))))))))) ->  | AR28: =IF(OR(ISERROR(CLdb!E56),ISERROR(CLdb!N56)),"",CLdb!N56) ->  | AS28: =IF(OR(ISERROR(CLdb!E56),ISERROR(CLdb!O56)),"",CLdb!O56) ->  | AT28: =IF(OR(ISERROR(CLdb!E56),ISERROR(CLdb!P56)),"",CLdb!P56) ->  | AU28: =IF(OR(ISERROR(CLdb!E56),ISERROR(CLdb!Q56)),"",CLdb!Q56) ->  | AV28: =IF(OR(ISERROR(CLdb!E56),ISERROR(CLdb!R56)),"",CLdb!R56) ->  | AW28: =IF(OR(ISERROR(CLdb!E56),ISERROR(CLdb!S56)),"",CLdb!S56) ->  | AX28: =IF(OR(ISERROR(CLdb!E56),ISERROR(CLdb!T56)),"",CLdb!T56) ->  | AY28: =IF(OR(ISERROR(CLdb!E56),ISERROR(CLdb!U56)),"",CLdb!U56) ->  | BA28: =IF(OR(ISERROR(CLdb!E56),ISERROR(CLdb!F56)),"",CLdb!F56) ->  | BB28: =IF(OR(ISERROR(CLdb!E56),ISERROR(CLdb!G56)),"",CLdb!G56) ->  | BC28: =IF(OR(ISERROR(CLdb!E56),ISERROR(CLdb!H56)),"",CLdb!H56) ->  | BD28: =IF(OR(ISERROR(CLdb!E56),ISERROR(CLdb!I56)),"",CLdb!I56) ->  | BE28: =IF(OR(ISERROR(CLdb!E56),ISERROR(CLdb!J56)),"",CLdb!J56) ->  | BF28: =IF(OR(ISERROR(CLdb!E56),ISERROR(CLdb!K56)),"",CLdb!K56) ->  | BG28: =IF(OR(ISERROR(CLdb!E56),ISERROR(CLdb!L56)),"",CLdb!L56) ->  | BH28: =IF(OR(ISERROR(CLdb!E56),ISERROR(CLdb!M56)),"",CLdb!M56) ->  | BI28: 0 | BJ28: 0 | BM28: =IF(BL28="",0,SUMIFS(DD_new!$BZ:$BZ,DD_new!$BW:$BW,DD!$B$3,DD_new!$BT:$BT,Class_means!$AN$7,DD_new!$BV:$BV,Class_means!$AO$7,DD_new!$BY:$BY,Class_means!$BL28)) -> 0
AJ29: 0 | AK29: 0 | AN29: 0 | AP29: =IF(Labels!$EO$2="Math",IF(ISERROR(CLdb!TU57),"",CLdb!TU57),IF(Labels!$EO$2="English",IF(ISERROR(CLdb!TV57),"",CLdb!TV57),IF(Labels!$EO$2="Science",IF(ISERROR(CLdb!TW57),"",CLdb!TW57),IF(Labels!$EO$2="ArabicA",IF(ISERROR(CLdb!TX57),"",CLdb!TX57),IF(Labels!$EO$2="ArabicB",IF(ISERROR(CLdb!TY57),"",CLdb!TY57),IF(Labels!$EO$2="Reasoning",IF(ISERROR(CLdb!TZ57),"",CLdb!TZ57),IF(Labels!$EO$2="English2",IF(ISERROR(CLdb!UA57),"",CLdb!UA57),IF(Labels!$EO$2="Hindi",IF(ISERROR(CLdb!UB57),"",CLdb!UB57))))))))) ->  | AR29: =IF(OR(ISERROR(CLdb!E57),ISERROR(CLdb!N57)),"",CLdb!N57) ->  | AS29: =IF(OR(ISERROR(CLdb!E57),ISERROR(CLdb!O57)),"",CLdb!O57) ->  | AT29: =IF(OR(ISERROR(CLdb!E57),ISERROR(CLdb!P57)),"",CLdb!P57) ->  | AU29: =IF(OR(ISERROR(CLdb!E57),ISERROR(CLdb!Q57)),"",CLdb!Q57) ->  | AV29: =IF(OR(ISERROR(CLdb!E57),ISERROR(CLdb!R57)),"",CLdb!R57) ->  | AW29: =IF(OR(ISERROR(CLdb!E57),ISERROR(CLdb!S57)),"",CLdb!S57) ->  | AX29: =IF(OR(ISERROR(CLdb!E57),ISERROR(CLdb!T57)),"",CLdb!T57) ->  | AY29: =IF(OR(ISERROR(CLdb!E57),ISERROR(CLdb!U57)),"",CLdb!U57) ->  | BA29: =IF(OR(ISERROR(CLdb!E57),ISERROR(CLdb!F57)),"",CLdb!F57) ->  | BB29: =IF(OR(ISERROR(CLdb!E57),ISERROR(CLdb!G57)),"",CLdb!G57) ->  | BC29: =IF(OR(ISERROR(CLdb!E57),ISERROR(CLdb!H57)),"",CLdb!H57) ->  | BD29: =IF(OR(ISERROR(CLdb!E57),ISERROR(CLdb!I57)),"",CLdb!I57) ->  | BE29: =IF(OR(ISERROR(CLdb!E57),ISERROR(CLdb!J57)),"",CLdb!J57) ->  | BF29: =IF(OR(ISERROR(CLdb!E57),ISERROR(CLdb!K57)),"",CLdb!K57) ->  | BG29: =IF(OR(ISERROR(CLdb!E57),ISERROR(CLdb!L57)),"",CLdb!L57) ->  | BH29: =IF(OR(ISERROR(CLdb!E57),ISERROR(CLdb!M57)),"",CLdb!M57) ->  | BI29: 0 | BJ29: 0 | BM29: =IF(BL29="",0,SUMIFS(DD_new!$BZ:$BZ,DD_new!$BW:$BW,DD!$B$3,DD_new!$BT:$BT,Class_means!$AN$7,DD_new!$BV:$BV,Class_means!$AO$7,DD_new!$BY:$BY,Class_means!$BL29)) -> 0
AJ30: 0 | AK30: 0 | AN30: 0 | AP30: =IF(Labels!$EO$2="Math",IF(ISERROR(CLdb!TU58),"",CLdb!TU58),IF(Labels!$EO$2="English",IF(ISERROR(CLdb!TV58),"",CLdb!TV58),IF(Labels!$EO$2="Science",IF(ISERROR(CLdb!TW58),"",CLdb!TW58),IF(Labels!$EO$2="ArabicA",IF(ISERROR(CLdb!TX58),"",CLdb!TX58),IF(Labels!$EO$2="ArabicB",IF(ISERROR(CLdb!TY58),"",CLdb!TY58),IF(Labels!$EO$2="Reasoning",IF(ISERROR(CLdb!TZ58),"",CLdb!TZ58),IF(Labels!$EO$2="English2",IF(ISERROR(CLdb!UA58),"",CLdb!UA58),IF(Labels!$EO$2="Hindi",IF(ISERROR(CLdb!UB58),"",CLdb!UB58))))))))) ->  | AR30: =IF(OR(ISERROR(CLdb!E58),ISERROR(CLdb!N58)),"",CLdb!N58) ->  | AS30: =IF(OR(ISERROR(CLdb!E58),ISERROR(CLdb!O58)),"",CLdb!O58) ->  | AT30: =IF(OR(ISERROR(CLdb!E58),ISERROR(CLdb!P58)),"",CLdb!P58) ->  | AU30: =IF(OR(ISERROR(CLdb!E58),ISERROR(CLdb!Q58)),"",CLdb!Q58) ->  | AV30: =IF(OR(ISERROR(CLdb!E58),ISERROR(CLdb!R58)),"",CLdb!R58) ->  | AW30: =IF(OR(ISERROR(CLdb!E58),ISERROR(CLdb!S58)),"",CLdb!S58) ->  | AX30: =IF(OR(ISERROR(CLdb!E58),ISERROR(CLdb!T58)),"",CLdb!T58) ->  | AY30: =IF(OR(ISERROR(CLdb!E58),ISERROR(CLdb!U58)),"",CLdb!U58) ->  | BA30: =IF(OR(ISERROR(CLdb!E58),ISERROR(CLdb!F58)),"",CLdb!F58) ->  | BB30: =IF(OR(ISERROR(CLdb!E58),ISERROR(CLdb!G58)),"",CLdb!G58) ->  | BC30: =IF(OR(ISERROR(CLdb!E58),ISERROR(CLdb!H58)),"",CLdb!H58) ->  | BD30: =IF(OR(ISERROR(CLdb!E58),ISERROR(CLdb!I58)),"",CLdb!I58) ->  | BE30: =IF(OR(ISERROR(CLdb!E58),ISERROR(CLdb!J58)),"",CLdb!J58) ->  | BF30: =IF(OR(ISERROR(CLdb!E58),ISERROR(CLdb!K58)),"",CLdb!K58) ->  | BG30: =IF(OR(ISERROR(CLdb!E58),ISERROR(CLdb!L58)),"",CLdb!L58) ->  | BH30: =IF(OR(ISERROR(CLdb!E58),ISERROR(CLdb!M58)),"",CLdb!M58) ->  | BI30: 0 | BJ30: 0 | BM30: =IF(BL30="",0,SUMIFS(DD_new!$BZ:$BZ,DD_new!$BW:$BW,DD!$B$3,DD_new!$BT:$BT,Class_means!$AN$7,DD_new!$BV:$BV,Class_means!$AO$7,DD_new!$BY:$BY,Class_means!$BL30)) -> 0
AJ31: 0 | AK31: 0 | AN31: 0 | AP31: =IF(Labels!$EO$2="Math",IF(ISERROR(CLdb!TU59),"",CLdb!TU59),IF(Labels!$EO$2="English",IF(ISERROR(CLdb!TV59),"",CLdb!TV59),IF(Labels!$EO$2="Science",IF(ISERROR(CLdb!TW59),"",CLdb!TW59),IF(Labels!$EO$2="ArabicA",IF(ISERROR(CLdb!TX59),"",CLdb!TX59),IF(Labels!$EO$2="ArabicB",IF(ISERROR(CLdb!TY59),"",CLdb!TY59),IF(Labels!$EO$2="Reasoning",IF(ISERROR(CLdb!TZ59),"",CLdb!TZ59),IF(Labels!$EO$2="English2",IF(ISERROR(CLdb!UA59),"",CLdb!UA59),IF(Labels!$EO$2="Hindi",IF(ISERROR(CLdb!UB59),"",CLdb!UB59))))))))) ->  | AR31: =IF(OR(ISERROR(CLdb!E59),ISERROR(CLdb!N59)),"",CLdb!N59) ->  | AS31: =IF(OR(ISERROR(CLdb!E59),ISERROR(CLdb!O59)),"",CLdb!O59) ->  | AT31: =IF(OR(ISERROR(CLdb!E59),ISERROR(CLdb!P59)),"",CLdb!P59) ->  | AU31: =IF(OR(ISERROR(CLdb!E59),ISERROR(CLdb!Q59)),"",CLdb!Q59) ->  | AV31: =IF(OR(ISERROR(CLdb!E59),ISERROR(CLdb!R59)),"",CLdb!R59) ->  | AW31: =IF(OR(ISERROR(CLdb!E59),ISERROR(CLdb!S59)),"",CLdb!S59) ->  | AX31: =IF(OR(ISERROR(CLdb!E59),ISERROR(CLdb!T59)),"",CLdb!T59) ->  | AY31: =IF(OR(ISERROR(CLdb!E59),ISERROR(CLdb!U59)),"",CLdb!U59) ->  | BA31: =IF(OR(ISERROR(CLdb!E59),ISERROR(CLdb!F59)),"",CLdb!F59) ->  | BB31: =IF(OR(ISERROR(CLdb!E59),ISERROR(CLdb!G59)),"",CLdb!G59) ->  | BC31: =IF(OR(ISERROR(CLdb!E59),ISERROR(CLdb!H59)),"",CLdb!H59) ->  | BD31: =IF(OR(ISERROR(CLdb!E59),ISERROR(CLdb!I59)),"",CLdb!I59) ->  | BE31: =IF(OR(ISERROR(CLdb!E59),ISERROR(CLdb!J59)),"",CLdb!J59) ->  | BF31: =IF(OR(ISERROR(CLdb!E59),ISERROR(CLdb!K59)),"",CLdb!K59) ->  | BG31: =IF(OR(ISERROR(CLdb!E59),ISERROR(CLdb!L59)),"",CLdb!L59) ->  | BH31: =IF(OR(ISERROR(CLdb!E59),ISERROR(CLdb!M59)),"",CLdb!M59) ->  | BI31: =IF(ISERROR(SEARCH("Page",AP31,1)),0,1) -> 0 | BJ31: 0 | BM31: =IF(BL31="",0,SUMIFS(DD_new!$BZ:$BZ,DD_new!$BW:$BW,DD!$B$3,DD_new!$BT:$BT,Class_means!$AN$7,DD_new!$BV:$BV,Class_means!$AO$7,DD_new!$BY:$BY,Class_means!$BL31)) -> 0
AJ32: 0 | AK32: 0 | AN32: 0 | AP32: =IF(Labels!$EO$2="Math",IF(ISERROR(CLdb!TU60),"",CLdb!TU60),IF(Labels!$EO$2="English",IF(ISERROR(CLdb!TV60),"",CLdb!TV60),IF(Labels!$EO$2="Science",IF(ISERROR(CLdb!TW60),"",CLdb!TW60),IF(Labels!$EO$2="ArabicA",IF(ISERROR(CLdb!TX60),"",CLdb!TX60),IF(Labels!$EO$2="ArabicB",IF(ISERROR(CLdb!TY60),"",CLdb!TY60),IF(Labels!$EO$2="Reasoning",IF(ISERROR(CLdb!TZ60),"",CLdb!TZ60),IF(Labels!$EO$2="English2",IF(ISERROR(CLdb!UA60),"",CLdb!UA60),IF(Labels!$EO$2="Hindi",IF(ISERROR(CLdb!UB60),"",CLdb!UB60))))))))) ->  | AR32: =IF(OR(ISERROR(CLdb!E60),ISERROR(CLdb!N60)),"",CLdb!N60) ->  | AS32: =IF(OR(ISERROR(CLdb!E60),ISERROR(CLdb!O60)),"",CLdb!O60) ->  | AT32: =IF(OR(ISERROR(CLdb!E60),ISERROR(CLdb!P60)),"",CLdb!P60) ->  | AU32: =IF(OR(ISERROR(CLdb!E60),ISERROR(CLdb!Q60)),"",CLdb!Q60) ->  | AV32: =IF(OR(ISERROR(CLdb!E60),ISERROR(CLdb!R60)),"",CLdb!R60) ->  | AW32: =IF(OR(ISERROR(CLdb!E60),ISERROR(CLdb!S60)),"",CLdb!S60) ->  | AX32: =IF(OR(ISERROR(CLdb!E60),ISERROR(CLdb!T60)),"",CLdb!T60) ->  | AY32: =IF(OR(ISERROR(CLdb!E60),ISERROR(CLdb!U60)),"",CLdb!U60) ->  | BA32: =IF(OR(ISERROR(CLdb!E60),ISERROR(CLdb!F60)),"",CLdb!F60) ->  | BB32: =IF(OR(ISERROR(CLdb!E60),ISERROR(CLdb!G60)),"",CLdb!G60) ->  | BC32: =IF(OR(ISERROR(CLdb!E60),ISERROR(CLdb!H60)),"",CLdb!H60) ->  | BD32: =IF(OR(ISERROR(CLdb!E60),ISERROR(CLdb!I60)),"",CLdb!I60) ->  | BE32: =IF(OR(ISERROR(CLdb!E60),ISERROR(CLdb!J60)),"",CLdb!J60) ->  | BF32: =IF(OR(ISERROR(CLdb!E60),ISERROR(CLdb!K60)),"",CLdb!K60) ->  | BG32: =IF(OR(ISERROR(CLdb!E60),ISERROR(CLdb!L60)),"",CLdb!L60) ->  | BH32: =IF(OR(ISERROR(CLdb!E60),ISERROR(CLdb!M60)),"",CLdb!M60) ->  | BI32: 0 | BJ32: 0 | BM32: =IF(BL32="",0,SUMIFS(DD_new!$BZ:$BZ,DD_new!$BW:$BW,DD!$B$3,DD_new!$BT:$BT,Class_means!$AN$7,DD_new!$BV:$BV,Class_means!$AO$7,DD_new!$BY:$BY,Class_means!$BL32)) -> 0
AJ33: 0 | AK33: 0 | AN33: 0 | AP33: =IF(Labels!$EO$2="Math",IF(ISERROR(CLdb!TU61),"",CLdb!TU61),IF(Labels!$EO$2="English",IF(ISERROR(CLdb!TV61),"",CLdb!TV61),IF(Labels!$EO$2="Science",IF(ISERROR(CLdb!TW61),"",CLdb!TW61),IF(Labels!$EO$2="ArabicA",IF(ISERROR(CLdb!TX61),"",CLdb!TX61),IF(Labels!$EO$2="ArabicB",IF(ISERROR(CLdb!TY61),"",CLdb!TY61),IF(Labels!$EO$2="Reasoning",IF(ISERROR(CLdb!TZ61),"",CLdb!TZ61),IF(Labels!$EO$2="English2",IF(ISERROR(CLdb!UA61),"",CLdb!UA61),IF(Labels!$EO$2="Hindi",IF(ISERROR(CLdb!UB61),"",CLdb!UB61))))))))) ->  | AR33: =IF(OR(ISERROR(CLdb!E61),ISERROR(CLdb!N61)),"",CLdb!N61) ->  | AS33: =IF(OR(ISERROR(CLdb!E61),ISERROR(CLdb!O61)),"",CLdb!O61) ->  | AT33: =IF(OR(ISERROR(CLdb!E61),ISERROR(CLdb!P61)),"",CLdb!P61) ->  | AU33: =IF(OR(ISERROR(CLdb!E61),ISERROR(CLdb!Q61)),"",CLdb!Q61) ->  | AV33: =IF(OR(ISERROR(CLdb!E61),ISERROR(CLdb!R61)),"",CLdb!R61) ->  | AW33: =IF(OR(ISERROR(CLdb!E61),ISERROR(CLdb!S61)),"",CLdb!S61) ->  | AX33: =IF(OR(ISERROR(CLdb!E61),ISERROR(CLdb!T61)),"",CLdb!T61) ->  | AY33: =IF(OR(ISERROR(CLdb!E61),ISERROR(CLdb!U61)),"",CLdb!U61) ->  | BA33: =IF(OR(ISERROR(CLdb!E61),ISERROR(CLdb!F61)),"",CLdb!F61) ->  | BB33: =IF(OR(ISERROR(CLdb!E61),ISERROR(CLdb!G61)),"",CLdb!G61) ->  | BC33: =IF(OR(ISERROR(CLdb!E61),ISERROR(CLdb!H61)),"",CLdb!H61) ->  | BD33: =IF(OR(ISERROR(CLdb!E61),ISERROR(CLdb!I61)),"",CLdb!I61) ->  | BE33: =IF(OR(ISERROR(CLdb!E61),ISERROR(CLdb!J61)),"",CLdb!J61) ->  | BF33: =IF(OR(ISERROR(CLdb!E61),ISERROR(CLdb!K61)),"",CLdb!K61) ->  | BG33: =IF(OR(ISERROR(CLdb!E61),ISERROR(CLdb!L61)),"",CLdb!L61) ->  | BH33: =IF(OR(ISERROR(CLdb!E61),ISERROR(CLdb!M61)),"",CLdb!M61) ->  | BI33: 0 | BJ33: 0 | BM33: =IF(BL33="",0,SUMIFS(DD_new!$BZ:$BZ,DD_new!$BW:$BW,DD!$B$3,DD_new!$BT:$BT,Class_means!$AN$7,DD_new!$BV:$BV,Class_means!$AO$7,DD_new!$BY:$BY,Class_means!$BL33)) -> 0
AJ34: 0 | AK34: 0 | AN34: 0 | AP34: =IF(Labels!$EO$2="Math",IF(ISERROR(CLdb!TU62),"",CLdb!TU62),IF(Labels!$EO$2="English",IF(ISERROR(CLdb!TV62),"",CLdb!TV62),IF(Labels!$EO$2="Science",IF(ISERROR(CLdb!TW62),"",CLdb!TW62),IF(Labels!$EO$2="ArabicA",IF(ISERROR(CLdb!TX62),"",CLdb!TX62),IF(Labels!$EO$2="ArabicB",IF(ISERROR(CLdb!TY62),"",CLdb!TY62),IF(Labels!$EO$2="Reasoning",IF(ISERROR(CLdb!TZ62),"",CLdb!TZ62),IF(Labels!$EO$2="English2",IF(ISERROR(CLdb!UA62),"",CLdb!UA62),IF(Labels!$EO$2="Hindi",IF(ISERROR(CLdb!UB62),"",CLdb!UB62))))))))) ->  | AR34: =IF(OR(ISERROR(CLdb!E62),ISERROR(CLdb!N62)),"",CLdb!N62) ->  | AS34: =IF(OR(ISERROR(CLdb!E62),ISERROR(CLdb!O62)),"",CLdb!O62) ->  | AT34: =IF(OR(ISERROR(CLdb!E62),ISERROR(CLdb!P62)),"",CLdb!P62) ->  | AU34: =IF(OR(ISERROR(CLdb!E62),ISERROR(CLdb!Q62)),"",CLdb!Q62) ->  | AV34: =IF(OR(ISERROR(CLdb!E62),ISERROR(CLdb!R62)),"",CLdb!R62) ->  | AW34: =IF(OR(ISERROR(CLdb!E62),ISERROR(CLdb!S62)),"",CLdb!S62) ->  | AX34: =IF(OR(ISERROR(CLdb!E62),ISERROR(CLdb!T62)),"",CLdb!T62) ->  | AY34: =IF(OR(ISERROR(CLdb!E62),ISERROR(CLdb!U62)),"",CLdb!U62) ->  | BA34: =IF(OR(ISERROR(CLdb!E62),ISERROR(CLdb!F62)),"",CLdb!F62) ->  | BB34: =IF(OR(ISERROR(CLdb!E62),ISERROR(CLdb!G62)),"",CLdb!G62) ->  | BC34: =IF(OR(ISERROR(CLdb!E62),ISERROR(CLdb!H62)),"",CLdb!H62) ->  | BD34: =IF(OR(ISERROR(CLdb!E62),ISERROR(CLdb!I62)),"",CLdb!I62) ->  | BE34: =IF(OR(ISERROR(CLdb!E62),ISERROR(CLdb!J62)),"",CLdb!J62) ->  | BF34: =IF(OR(ISERROR(CLdb!E62),ISERROR(CLdb!K62)),"",CLdb!K62) ->  | BG34: =IF(OR(ISERROR(CLdb!E62),ISERROR(CLdb!L62)),"",CLdb!L62) ->  | BH34: =IF(OR(ISERROR(CLdb!E62),ISERROR(CLdb!M62)),"",CLdb!M62) ->  | BI34: 0 | BJ34: 0 | BM34: =IF(BL34="",0,SUMIFS(DD_new!$BZ:$BZ,DD_new!$BW:$BW,DD!$B$3,DD_new!$BT:$BT,Class_means!$AN$7,DD_new!$BV:$BV,Class_means!$AO$7,DD_new!$BY:$BY,Class_means!$BL34)) -> 0
AJ35: 0 | AK35: 0 | AN35: 0 | AP35: =IF(Labels!$EO$2="Math",IF(ISERROR(CLdb!TU63),"",CLdb!TU63),IF(Labels!$EO$2="English",IF(ISERROR(CLdb!TV63),"",CLdb!TV63),IF(Labels!$EO$2="Science",IF(ISERROR(CLdb!TW63),"",CLdb!TW63),IF(Labels!$EO$2="ArabicA",IF(ISERROR(CLdb!TX63),"",CLdb!TX63),IF(Labels!$EO$2="ArabicB",IF(ISERROR(CLdb!TY63),"",CLdb!TY63),IF(Labels!$EO$2="Reasoning",IF(ISERROR(CLdb!TZ63),"",CLdb!TZ63),IF(Labels!$EO$2="English2",IF(ISERROR(CLdb!UA63),"",CLdb!UA63),IF(Labels!$EO$2="Hindi",IF(ISERROR(CLdb!UB63),"",CLdb!UB63))))))))) ->  | AR35: =IF(OR(ISERROR(CLdb!E63),ISERROR(CLdb!N63)),"",CLdb!N63) ->  | AS35: =IF(OR(ISERROR(CLdb!E63),ISERROR(CLdb!O63)),"",CLdb!O63) ->  | AT35: =IF(OR(ISERROR(CLdb!E63),ISERROR(CLdb!P63)),"",CLdb!P63) ->  | AU35: =IF(OR(ISERROR(CLdb!E63),ISERROR(CLdb!Q63)),"",CLdb!Q63) ->  | AV35: =IF(OR(ISERROR(CLdb!E63),ISERROR(CLdb!R63)),"",CLdb!R63) ->  | AW35: =IF(OR(ISERROR(CLdb!E63),ISERROR(CLdb!S63)),"",CLdb!S63) ->  | AX35: =IF(OR(ISERROR(CLdb!E63),ISERROR(CLdb!T63)),"",CLdb!T63) ->  | AY35: =IF(OR(ISERROR(CLdb!E63),ISERROR(CLdb!U63)),"",CLdb!U63) ->  | BA35: =IF(OR(ISERROR(CLdb!E63),ISERROR(CLdb!F63)),"",CLdb!F63) ->  | BB35: =IF(OR(ISERROR(CLdb!E63),ISERROR(CLdb!G63)),"",CLdb!G63) ->  | BC35: =IF(OR(ISERROR(CLdb!E63),ISERROR(CLdb!H63)),"",CLdb!H63) ->  | BD35: =IF(OR(ISERROR(CLdb!E63),ISERROR(CLdb!I63)),"",CLdb!I63) ->  | BE35: =IF(OR(ISERROR(CLdb!E63),ISERROR(CLdb!J63)),"",CLdb!J63) ->  | BF35: =IF(OR(ISERROR(CLdb!E63),ISERROR(CLdb!K63)),"",CLdb!K63) ->  | BG35: =IF(OR(ISERROR(CLdb!E63),ISERROR(CLdb!L63)),"",CLdb!L63) ->  | BH35: =IF(OR(ISERROR(CLdb!E63),ISERROR(CLdb!M63)),"",CLdb!M63) ->  | BI35: 0 | BJ35: 0 | BM35: =IF(BL35="",0,SUMIFS(DD_new!$BZ:$BZ,DD_new!$BW:$BW,DD!$B$3,DD_new!$BT:$BT,Class_means!$AN$7,DD_new!$BV:$BV,Class_means!$AO$7,DD_new!$BY:$BY,Class_means!$BL35)) -> 0
C36: =IF(MAX($AK$11:$AK$35)=1,"Class aggregate scale scores have been withheld for classes with fewer than 15 students","") ->  | J36: =IF($AN$9>=1,$AP$7,"") ->  | AP36: =IF(Labels!$EO$2="Math",IF(ISERROR(CLdb!TU64),"",CLdb!TU64),IF(Labels!$EO$2="English",IF(ISERROR(CLdb!TV64),"",CLdb!TV64),IF(Labels!$EO$2="Science",IF(ISERROR(CLdb!TW64),"",CLdb!TW64),IF(Labels!$EO$2="ArabicA",IF(ISERROR(CLdb!TX64),"",CLdb!TX64),IF(Labels!$EO$2="ArabicB",IF(ISERROR(CLdb!TY64),"",CLdb!TY64),IF(Labels!$EO$2="Reasoning",IF(ISERROR(CLdb!TZ64),"",CLdb!TZ64),IF(Labels!$EO$2="English2",IF(ISERROR(CLdb!UA64),"",CLdb!UA64),IF(Labels!$EO$2="Hindi",IF(ISERROR(CLdb!UB64),"",CLdb!UB64))))))))) ->  | AR36: =IF(OR(ISERROR(CLdb!E64),ISERROR(CLdb!N64)),"",CLdb!N64) ->  | AS36: =IF(OR(ISERROR(CLdb!E64),ISERROR(CLdb!O64)),"",CLdb!O64) ->  | AT36: =IF(OR(ISERROR(CLdb!E64),ISERROR(CLdb!P64)),"",CLdb!P64) ->  | AU36: =IF(OR(ISERROR(CLdb!E64),ISERROR(CLdb!Q64)),"",CLdb!Q64) ->  | AV36: =IF(OR(ISERROR(CLdb!E64),ISERROR(CLdb!R64)),"",CLdb!R64) ->  | AW36: =IF(OR(ISERROR(CLdb!E64),ISERROR(CLdb!S64)),"",CLdb!S64) ->  | AX36: =IF(OR(ISERROR(CLdb!E64),ISERROR(CLdb!T64)),"",CLdb!T64) ->  | AY36: =IF(OR(ISERROR(CLdb!E64),ISERROR(CLdb!U64)),"",CLdb!U64) ->  | BA36: =IF(OR(ISERROR(CLdb!E64),ISERROR(CLdb!F64)),"",CLdb!F64) ->  | BB36: =IF(OR(ISERROR(CLdb!E64),ISERROR(CLdb!G64)),"",CLdb!G64) ->  | BC36: =IF(OR(ISERROR(CLdb!E64),ISERROR(CLdb!H64)),"",CLdb!H64) ->  | BD36: =IF(OR(ISERROR(CLdb!E64),ISERROR(CLdb!I64)),"",CLdb!I64) ->  | BE36: =IF(OR(ISERROR(CLdb!E64),ISERROR(CLdb!J64)),"",CLdb!J64) ->  | BF36: =IF(OR(ISERROR(CLdb!E64),ISERROR(CLdb!K64)),"",CLdb!K64) ->  | BG36: =IF(OR(ISERROR(CLdb!E64),ISERROR(CLdb!L64)),"",CLdb!L64) ->  | BH36: =IF(OR(ISERROR(CLdb!E64),ISERROR(CLdb!M64)),"",CLdb!M64) ->  | BI36: =IF(ISERROR(SEARCH("Page",AP36,1)),0,1) -> 0 | BJ36: =IF(AND(AQ36<15,BI36=0),1,0) -> 0 | BL36: =IF(AP36="","",TRIM(MID(AP36,SEARCH("/",AP36,1)+1,LEN(AP36)-SEARCH("/",AP36,1)))) ->  | BM36: =IF(BL36="",0,SUMIFS(DD_new!$BZ:$BZ,DD_new!$BW:$BW,DD!$B$3,DD_new!$BT:$BT,Class_means!$AN$7,DD_new!$BV:$BV,Class_means!$AO$7,DD_new!$BY:$BY,Class_means!$BL36)) -> 0
AP37: =IF(Labels!$EO$2="Math",IF(ISERROR(CLdb!TU65),"",CLdb!TU65),IF(Labels!$EO$2="English",IF(ISERROR(CLdb!TV65),"",CLdb!TV65),IF(Labels!$EO$2="Science",IF(ISERROR(CLdb!TW65),"",CLdb!TW65),IF(Labels!$EO$2="ArabicA",IF(ISERROR(CLdb!TX65),"",CLdb!TX65),IF(Labels!$EO$2="ArabicB",IF(ISERROR(CLdb!TY65),"",CLdb!TY65),IF(Labels!$EO$2="Reasoning",IF(ISERROR(CLdb!TZ65),"",CLdb!TZ65),IF(Labels!$EO$2="English2",IF(ISERROR(CLdb!UA65),"",CLdb!UA65),IF(Labels!$EO$2="Hindi",IF(ISERROR(CLdb!UB65),"",CLdb!UB65))))))))) ->  | AR37: =IF(OR(ISERROR(CLdb!E65),ISERROR(CLdb!N65)),"",CLdb!N65) ->  | AS37: =IF(OR(ISERROR(CLdb!E65),ISERROR(CLdb!O65)),"",CLdb!O65) ->  | AT37: =IF(OR(ISERROR(CLdb!E65),ISERROR(CLdb!P65)),"",CLdb!P65) ->  | AU37: =IF(OR(ISERROR(CLdb!E65),ISERROR(CLdb!Q65)),"",CLdb!Q65) ->  | AV37: =IF(OR(ISERROR(CLdb!E65),ISERROR(CLdb!R65)),"",CLdb!R65) ->  | AW37: =IF(OR(ISERROR(CLdb!E65),ISERROR(CLdb!S65)),"",CLdb!S65) ->  | AX37: =IF(OR(ISERROR(CLdb!E65),ISERROR(CLdb!T65)),"",CLdb!T65) ->  | AY37: =IF(OR(ISERROR(CLdb!E65),ISERROR(CLdb!U65)),"",CLdb!U65) ->  | BA37: =IF(OR(ISERROR(CLdb!E65),ISERROR(CLdb!F65)),"",CLdb!F65) ->  | BB37: =IF(OR(ISERROR(CLdb!E65),ISERROR(CLdb!G65)),"",CLdb!G65) ->  | BC37: =IF(OR(ISERROR(CLdb!E65),ISERROR(CLdb!H65)),"",CLdb!H65) ->  | BD37: =IF(OR(ISERROR(CLdb!E65),ISERROR(CLdb!I65)),"",CLdb!I65) ->  | BE37: =IF(OR(ISERROR(CLdb!E65),ISERROR(CLdb!J65)),"",CLdb!J65) ->  | BF37: =IF(OR(ISERROR(CLdb!E65),ISERROR(CLdb!K65)),"",CLdb!K65) ->  | BG37: =IF(OR(ISERROR(CLdb!E65),ISERROR(CLdb!L65)),"",CLdb!L65) ->  | BH37: =IF(OR(ISERROR(CLdb!E65),ISERROR(CLdb!M65)),"",CLdb!M65) ->  | BI37: 0 | BJ37: 0 | BM37: =IF(BL37="",0,SUMIFS(DD_new!$BZ:$BZ,DD_new!$BW:$BW,DD!$B$3,DD_new!$BT:$BT,Class_means!$AN$7,DD_new!$BV:$BV,Class_means!$AO$7,DD_new!$BY:$BY,Class_means!$BL37)) -> 0
AP38: =IF(Labels!$EO$2="Math",IF(ISERROR(CLdb!TU66),"",CLdb!TU66),IF(Labels!$EO$2="English",IF(ISERROR(CLdb!TV66),"",CLdb!TV66),IF(Labels!$EO$2="Science",IF(ISERROR(CLdb!TW66),"",CLdb!TW66),IF(Labels!$EO$2="ArabicA",IF(ISERROR(CLdb!TX66),"",CLdb!TX66),IF(Labels!$EO$2="ArabicB",IF(ISERROR(CLdb!TY66),"",CLdb!TY66),IF(Labels!$EO$2="Reasoning",IF(ISERROR(CLdb!TZ66),"",CLdb!TZ66),IF(Labels!$EO$2="English2",IF(ISERROR(CLdb!UA66),"",CLdb!UA66),IF(Labels!$EO$2="Hindi",IF(ISERROR(CLdb!UB66),"",CLdb!UB66))))))))) ->  | AR38: =IF(OR(ISERROR(CLdb!E66),ISERROR(CLdb!N66)),"",CLdb!N66) ->  | AS38: =IF(OR(ISERROR(CLdb!E66),ISERROR(CLdb!O66)),"",CLdb!O66) ->  | AT38: =IF(OR(ISERROR(CLdb!E66),ISERROR(CLdb!P66)),"",CLdb!P66) ->  | AU38: =IF(OR(ISERROR(CLdb!E66),ISERROR(CLdb!Q66)),"",CLdb!Q66) ->  | AV38: =IF(OR(ISERROR(CLdb!E66),ISERROR(CLdb!R66)),"",CLdb!R66) ->  | AW38: =IF(OR(ISERROR(CLdb!E66),ISERROR(CLdb!S66)),"",CLdb!S66) ->  | AX38: =IF(OR(ISERROR(CLdb!E66),ISERROR(CLdb!T66)),"",CLdb!T66) ->  | AY38: =IF(OR(ISERROR(CLdb!E66),ISERROR(CLdb!U66)),"",CLdb!U66) ->  | BA38: =IF(OR(ISERROR(CLdb!E66),ISERROR(CLdb!F66)),"",CLdb!F66) ->  | BB38: =IF(OR(ISERROR(CLdb!E66),ISERROR(CLdb!G66)),"",CLdb!G66) ->  | BC38: =IF(OR(ISERROR(CLdb!E66),ISERROR(CLdb!H66)),"",CLdb!H66) ->  | BD38: =IF(OR(ISERROR(CLdb!E66),ISERROR(CLdb!I66)),"",CLdb!I66) ->  | BE38: =IF(OR(ISERROR(CLdb!E66),ISERROR(CLdb!J66)),"",CLdb!J66) ->  | BF38: =IF(OR(ISERROR(CLdb!E66),ISERROR(CLdb!K66)),"",CLdb!K66) ->  | BG38: =IF(OR(ISERROR(CLdb!E66),ISERROR(CLdb!L66)),"",CLdb!L66) ->  | BH38: =IF(OR(ISERROR(CLdb!E66),ISERROR(CLdb!M66)),"",CLdb!M66) ->  | BI38: 0 | BJ38: 0 | BM38: =IF(BL38="",0,SUMIFS(DD_new!$BZ:$BZ,DD_new!$BW:$BW,DD!$B$3,DD_new!$BT:$BT,Class_means!$AN$7,DD_new!$BV:$BV,Class_means!$AO$7,DD_new!$BY:$BY,Class_means!$BL38)) -> 0
AP39: =IF(Labels!$EO$2="Math",IF(ISERROR(CLdb!TU67),"",CLdb!TU67),IF(Labels!$EO$2="English",IF(ISERROR(CLdb!TV67),"",CLdb!TV67),IF(Labels!$EO$2="Science",IF(ISERROR(CLdb!TW67),"",CLdb!TW67),IF(Labels!$EO$2="ArabicA",IF(ISERROR(CLdb!TX67),"",CLdb!TX67),IF(Labels!$EO$2="ArabicB",IF(ISERROR(CLdb!TY67),"",CLdb!TY67),IF(Labels!$EO$2="Reasoning",IF(ISERROR(CLdb!TZ67),"",CLdb!TZ67),IF(Labels!$EO$2="English2",IF(ISERROR(CLdb!UA67),"",CLdb!UA67),IF(Labels!$EO$2="Hindi",IF(ISERROR(CLdb!UB67),"",CLdb!UB67))))))))) ->  | AR39: =IF(OR(ISERROR(CLdb!E67),ISERROR(CLdb!N67)),"",CLdb!N67) ->  | AS39: =IF(OR(ISERROR(CLdb!E67),ISERROR(CLdb!O67)),"",CLdb!O67) ->  | AT39: =IF(OR(ISERROR(CLdb!E67),ISERROR(CLdb!P67)),"",CLdb!P67) ->  | AU39: =IF(OR(ISERROR(CLdb!E67),ISERROR(CLdb!Q67)),"",CLdb!Q67) ->  | AV39: =IF(OR(ISERROR(CLdb!E67),ISERROR(CLdb!R67)),"",CLdb!R67) ->  | AW39: =IF(OR(ISERROR(CLdb!E67),ISERROR(CLdb!S67)),"",CLdb!S67) ->  | AX39: =IF(OR(ISERROR(CLdb!E67),ISERROR(CLdb!T67)),"",CLdb!T67) ->  | AY39: =IF(OR(ISERROR(CLdb!E67),ISERROR(CLdb!U67)),"",CLdb!U67) ->  | BA39: =IF(OR(ISERROR(CLdb!E67),ISERROR(CLdb!F67)),"",CLdb!F67) ->  | BB39: =IF(OR(ISERROR(CLdb!E67),ISERROR(CLdb!G67)),"",CLdb!G67) ->  | BC39: =IF(OR(ISERROR(CLdb!E67),ISERROR(CLdb!H67)),"",CLdb!H67) ->  | BD39: =IF(OR(ISERROR(CLdb!E67),ISERROR(CLdb!I67)),"",CLdb!I67) ->  | BE39: =IF(OR(ISERROR(CLdb!E67),ISERROR(CLdb!J67)),"",CLdb!J67) ->  | BF39: =IF(OR(ISERROR(CLdb!E67),ISERROR(CLdb!K67)),"",CLdb!K67) ->  | BG39: =IF(OR(ISERROR(CLdb!E67),ISERROR(CLdb!L67)),"",CLdb!L67) ->  | BH39: =IF(OR(ISERROR(CLdb!E67),ISERROR(CLdb!M67)),"",CLdb!M67) ->  | BI39: 0 | BJ39: 0 | BM39: =IF(BL39="",0,SUMIFS(DD_new!$BZ:$BZ,DD_new!$BW:$BW,DD!$B$3,DD_new!$BT:$BT,Class_means!$AN$7,DD_new!$BV:$BV,Class_means!$AO$7,DD_new!$BY:$BY,Class_means!$BL39)) -> 0
AP40: =IF(Labels!$EO$2="Math",IF(ISERROR(CLdb!TU68),"",CLdb!TU68),IF(Labels!$EO$2="English",IF(ISERROR(CLdb!TV68),"",CLdb!TV68),IF(Labels!$EO$2="Science",IF(ISERROR(CLdb!TW68),"",CLdb!TW68),IF(Labels!$EO$2="ArabicA",IF(ISERROR(CLdb!TX68),"",CLdb!TX68),IF(Labels!$EO$2="ArabicB",IF(ISERROR(CLdb!TY68),"",CLdb!TY68),IF(Labels!$EO$2="Reasoning",IF(ISERROR(CLdb!TZ68),"",CLdb!TZ68),IF(Labels!$EO$2="English2",IF(ISERROR(CLdb!UA68),"",CLdb!UA68),IF(Labels!$EO$2="Hindi",IF(ISERROR(CLdb!UB68),"",CLdb!UB68))))))))) ->  | AR40: =IF(OR(ISERROR(CLdb!E68),ISERROR(CLdb!N68)),"",CLdb!N68) ->  | AS40: =IF(OR(ISERROR(CLdb!E68),ISERROR(CLdb!O68)),"",CLdb!O68) ->  | AT40: =IF(OR(ISERROR(CLdb!E68),ISERROR(CLdb!P68)),"",CLdb!P68) ->  | AU40: =IF(OR(ISERROR(CLdb!E68),ISERROR(CLdb!Q68)),"",CLdb!Q68) ->  | AV40: =IF(OR(ISERROR(CLdb!E68),ISERROR(CLdb!R68)),"",CLdb!R68) ->  | AW40: =IF(OR(ISERROR(CLdb!E68),ISERROR(CLdb!S68)),"",CLdb!S68) ->  | AX40: =IF(OR(ISERROR(CLdb!E68),ISERROR(CLdb!T68)),"",CLdb!T68) ->  | AY40: =IF(OR(ISERROR(CLdb!E68),ISERROR(CLdb!U68)),"",CLdb!U68) ->  | BA40: =IF(OR(ISERROR(CLdb!E68),ISERROR(CLdb!F68)),"",CLdb!F68) ->  | BB40: =IF(OR(ISERROR(CLdb!E68),ISERROR(CLdb!G68)),"",CLdb!G68) ->  | BC40: =IF(OR(ISERROR(CLdb!E68),ISERROR(CLdb!H68)),"",CLdb!H68) ->  | BD40: =IF(OR(ISERROR(CLdb!E68),ISERROR(CLdb!I68)),"",CLdb!I68) ->  | BE40: =IF(OR(ISERROR(CLdb!E68),ISERROR(CLdb!J68)),"",CLdb!J68) ->  | BF40: =IF(OR(ISERROR(CLdb!E68),ISERROR(CLdb!K68)),"",CLdb!K68) ->  | BG40: =IF(OR(ISERROR(CLdb!E68),ISERROR(CLdb!L68)),"",CLdb!L68) ->  | BH40: =IF(OR(ISERROR(CLdb!E68),ISERROR(CLdb!M68)),"",CLdb!M68) ->  | BI40: 0 | BJ40: 0 | BM40: =IF(BL40="",0,SUMIFS(DD_new!$BZ:$BZ,DD_new!$BW:$BW,DD!$B$3,DD_new!$BT:$BT,Class_means!$AN$7,DD_new!$BV:$BV,Class_means!$AO$7,DD_new!$BY:$BY,Class_means!$BL40)) -> 0
AP41: =IF(Labels!$EO$2="Math",IF(ISERROR(CLdb!TU69),"",CLdb!TU69),IF(Labels!$EO$2="English",IF(ISERROR(CLdb!TV69),"",CLdb!TV69),IF(Labels!$EO$2="Science",IF(ISERROR(CLdb!TW69),"",CLdb!TW69),IF(Labels!$EO$2="ArabicA",IF(ISERROR(CLdb!TX69),"",CLdb!TX69),IF(Labels!$EO$2="ArabicB",IF(ISERROR(CLdb!TY69),"",CLdb!TY69),IF(Labels!$EO$2="Reasoning",IF(ISERROR(CLdb!TZ69),"",CLdb!TZ69),IF(Labels!$EO$2="English2",IF(ISERROR(CLdb!UA69),"",CLdb!UA69),IF(Labels!$EO$2="Hindi",IF(ISERROR(CLdb!UB69),"",CLdb!UB69))))))))) ->  | AR41: =IF(OR(ISERROR(CLdb!E69),ISERROR(CLdb!N69)),"",CLdb!N69) ->  | AS41: =IF(OR(ISERROR(CLdb!E69),ISERROR(CLdb!O69)),"",CLdb!O69) ->  | AT41: =IF(OR(ISERROR(CLdb!E69),ISERROR(CLdb!P69)),"",CLdb!P69) ->  | AU41: =IF(OR(ISERROR(CLdb!E69),ISERROR(CLdb!Q69)),"",CLdb!Q69) ->  | AV41: =IF(OR(ISERROR(CLdb!E69),ISERROR(CLdb!R69)),"",CLdb!R69) ->  | AW41: =IF(OR(ISERROR(CLdb!E69),ISERROR(CLdb!S69)),"",CLdb!S69) ->  | AX41: =IF(OR(ISERROR(CLdb!E69),ISERROR(CLdb!T69)),"",CLdb!T69) ->  | AY41: =IF(OR(ISERROR(CLdb!E69),ISERROR(CLdb!U69)),"",CLdb!U69) ->  | BA41: =IF(OR(ISERROR(CLdb!E69),ISERROR(CLdb!F69)),"",CLdb!F69) ->  | BB41: =IF(OR(ISERROR(CLdb!E69),ISERROR(CLdb!G69)),"",CLdb!G69) ->  | BC41: =IF(OR(ISERROR(CLdb!E69),ISERROR(CLdb!H69)),"",CLdb!H69) ->  | BD41: =IF(OR(ISERROR(CLdb!E69),ISERROR(CLdb!I69)),"",CLdb!I69) ->  | BE41: =IF(OR(ISERROR(CLdb!E69),ISERROR(CLdb!J69)),"",CLdb!J69) ->  | BF41: =IF(OR(ISERROR(CLdb!E69),ISERROR(CLdb!K69)),"",CLdb!K69) ->  | BG41: =IF(OR(ISERROR(CLdb!E69),ISERROR(CLdb!L69)),"",CLdb!L69) ->  | BH41: =IF(OR(ISERROR(CLdb!E69),ISERROR(CLdb!M69)),"",CLdb!M69) ->  | BI41: 0 | BJ41: 0 | BM41: =IF(BL41="",0,SUMIFS(DD_new!$BZ:$BZ,DD_new!$BW:$BW,DD!$B$3,DD_new!$BT:$BT,Class_means!$AN$7,DD_new!$BV:$BV,Class_means!$AO$7,DD_new!$BY:$BY,Class_means!$BL41)) -> 0
AP42: =IF(Labels!$EO$2="Math",IF(ISERROR(CLdb!TU70),"",CLdb!TU70),IF(Labels!$EO$2="English",IF(ISERROR(CLdb!TV70),"",CLdb!TV70),IF(Labels!$EO$2="Science",IF(ISERROR(CLdb!TW70),"",CLdb!TW70),IF(Labels!$EO$2="ArabicA",IF(ISERROR(CLdb!TX70),"",CLdb!TX70),IF(Labels!$EO$2="ArabicB",IF(ISERROR(CLdb!TY70),"",CLdb!TY70),IF(Labels!$EO$2="Reasoning",IF(ISERROR(CLdb!TZ70),"",CLdb!TZ70),IF(Labels!$EO$2="English2",IF(ISERROR(CLdb!UA70),"",CLdb!UA70),IF(Labels!$EO$2="Hindi",IF(ISERROR(CLdb!UB70),"",CLdb!UB70))))))))) ->  | AR42: =IF(OR(ISERROR(CLdb!E70),ISERROR(CLdb!N70)),"",CLdb!N70) ->  | AS42: =IF(OR(ISERROR(CLdb!E70),ISERROR(CLdb!O70)),"",CLdb!O70) ->  | AT42: =IF(OR(ISERROR(CLdb!E70),ISERROR(CLdb!P70)),"",CLdb!P70) ->  | AU42: =IF(OR(ISERROR(CLdb!E70),ISERROR(CLdb!Q70)),"",CLdb!Q70) ->  | AV42: =IF(OR(ISERROR(CLdb!E70),ISERROR(CLdb!R70)),"",CLdb!R70) ->  | AW42: =IF(OR(ISERROR(CLdb!E70),ISERROR(CLdb!S70)),"",CLdb!S70) ->  | AX42: =IF(OR(ISERROR(CLdb!E70),ISERROR(CLdb!T70)),"",CLdb!T70) ->  | AY42: =IF(OR(ISERROR(CLdb!E70),ISERROR(CLdb!U70)),"",CLdb!U70) ->  | BA42: =IF(OR(ISERROR(CLdb!E70),ISERROR(CLdb!F70)),"",CLdb!F70) ->  | BB42: =IF(OR(ISERROR(CLdb!E70),ISERROR(CLdb!G70)),"",CLdb!G70) ->  | BC42: =IF(OR(ISERROR(CLdb!E70),ISERROR(CLdb!H70)),"",CLdb!H70) ->  | BD42: =IF(OR(ISERROR(CLdb!E70),ISERROR(CLdb!I70)),"",CLdb!I70) ->  | BE42: =IF(OR(ISERROR(CLdb!E70),ISERROR(CLdb!J70)),"",CLdb!J70) ->  | BF42: =IF(OR(ISERROR(CLdb!E70),ISERROR(CLdb!K70)),"",CLdb!K70) ->  | BG42: =IF(OR(ISERROR(CLdb!E70),ISERROR(CLdb!L70)),"",CLdb!L70) ->  | BH42: =IF(OR(ISERROR(CLdb!E70),ISERROR(CLdb!M70)),"",CLdb!M70) ->  | BI42: 0 | BJ42: 0 | BM42: =IF(BL42="",0,SUMIFS(DD_new!$BZ:$BZ,DD_new!$BW:$BW,DD!$B$3,DD_new!$BT:$BT,Class_means!$AN$7,DD_new!$BV:$BV,Class_means!$AO$7,DD_new!$BY:$BY,Class_means!$BL42)) -> 0
AP43: =IF(Labels!$EO$2="Math",IF(ISERROR(CLdb!TU71),"",CLdb!TU71),IF(Labels!$EO$2="English",IF(ISERROR(CLdb!TV71),"",CLdb!TV71),IF(Labels!$EO$2="Science",IF(ISERROR(CLdb!TW71),"",CLdb!TW71),IF(Labels!$EO$2="ArabicA",IF(ISERROR(CLdb!TX71),"",CLdb!TX71),IF(Labels!$EO$2="ArabicB",IF(ISERROR(CLdb!TY71),"",CLdb!TY71),IF(Labels!$EO$2="Reasoning",IF(ISERROR(CLdb!TZ71),"",CLdb!TZ71),IF(Labels!$EO$2="English2",IF(ISERROR(CLdb!UA71),"",CLdb!UA71),IF(Labels!$EO$2="Hindi",IF(ISERROR(CLdb!UB71),"",CLdb!UB71))))))))) ->  | AR43: =IF(OR(ISERROR(CLdb!E71),ISERROR(CLdb!N71)),"",CLdb!N71) ->  | AS43: =IF(OR(ISERROR(CLdb!E71),ISERROR(CLdb!O71)),"",CLdb!O71) ->  | AT43: =IF(OR(ISERROR(CLdb!E71),ISERROR(CLdb!P71)),"",CLdb!P71) ->  | AU43: =IF(OR(ISERROR(CLdb!E71),ISERROR(CLdb!Q71)),"",CLdb!Q71) ->  | AV43: =IF(OR(ISERROR(CLdb!E71),ISERROR(CLdb!R71)),"",CLdb!R71) ->  | AW43: =IF(OR(ISERROR(CLdb!E71),ISERROR(CLdb!S71)),"",CLdb!S71) ->  | AX43: =IF(OR(ISERROR(CLdb!E71),ISERROR(CLdb!T71)),"",CLdb!T71) ->  | AY43: =IF(OR(ISERROR(CLdb!E71),ISERROR(CLdb!U71)),"",CLdb!U71) ->  | BA43: =IF(OR(ISERROR(CLdb!E71),ISERROR(CLdb!F71)),"",CLdb!F71) ->  | BB43: =IF(OR(ISERROR(CLdb!E71),ISERROR(CLdb!G71)),"",CLdb!G71) ->  | BC43: =IF(OR(ISERROR(CLdb!E71),ISERROR(CLdb!H71)),"",CLdb!H71) ->  | BD43: =IF(OR(ISERROR(CLdb!E71),ISERROR(CLdb!I71)),"",CLdb!I71) ->  | BE43: =IF(OR(ISERROR(CLdb!E71),ISERROR(CLdb!J71)),"",CLdb!J71) ->  | BF43: =IF(OR(ISERROR(CLdb!E71),ISERROR(CLdb!K71)),"",CLdb!K71) ->  | BG43: =IF(OR(ISERROR(CLdb!E71),ISERROR(CLdb!L71)),"",CLdb!L71) ->  | BH43: =IF(OR(ISERROR(CLdb!E71),ISERROR(CLdb!M71)),"",CLdb!M71) ->  | BI43: 0 | BJ43: 0 | BM43: =IF(BL43="",0,SUMIFS(DD_new!$BZ:$BZ,DD_new!$BW:$BW,DD!$B$3,DD_new!$BT:$BT,Class_means!$AN$7,DD_new!$BV:$BV,Class_means!$AO$7,DD_new!$BY:$BY,Class_means!$BL43)) -> 0
AP44: =IF(Labels!$EO$2="Math",IF(ISERROR(CLdb!TU72),"",CLdb!TU72),IF(Labels!$EO$2="English",IF(ISERROR(CLdb!TV72),"",CLdb!TV72),IF(Labels!$EO$2="Science",IF(ISERROR(CLdb!TW72),"",CLdb!TW72),IF(Labels!$EO$2="ArabicA",IF(ISERROR(CLdb!TX72),"",CLdb!TX72),IF(Labels!$EO$2="ArabicB",IF(ISERROR(CLdb!TY72),"",CLdb!TY72),IF(Labels!$EO$2="Reasoning",IF(ISERROR(CLdb!TZ72),"",CLdb!TZ72),IF(Labels!$EO$2="English2",IF(ISERROR(CLdb!UA72),"",CLdb!UA72),IF(Labels!$EO$2="Hindi",IF(ISERROR(CLdb!UB72),"",CLdb!UB72))))))))) ->  | AR44: =IF(OR(ISERROR(CLdb!E72),ISERROR(CLdb!N72)),"",CLdb!N72) ->  | AS44: =IF(OR(ISERROR(CLdb!E72),ISERROR(CLdb!O72)),"",CLdb!O72) ->  | AT44: =IF(OR(ISERROR(CLdb!E72),ISERROR(CLdb!P72)),"",CLdb!P72) ->  | AU44: =IF(OR(ISERROR(CLdb!E72),ISERROR(CLdb!Q72)),"",CLdb!Q72) ->  | AV44: =IF(OR(ISERROR(CLdb!E72),ISERROR(CLdb!R72)),"",CLdb!R72) ->  | AW44: =IF(OR(ISERROR(CLdb!E72),ISERROR(CLdb!S72)),"",CLdb!S72) ->  | AX44: =IF(OR(ISERROR(CLdb!E72),ISERROR(CLdb!T72)),"",CLdb!T72) ->  | AY44: =IF(OR(ISERROR(CLdb!E72),ISERROR(CLdb!U72)),"",CLdb!U72) ->  | BA44: =IF(OR(ISERROR(CLdb!E72),ISERROR(CLdb!F72)),"",CLdb!F72) ->  | BB44: =IF(OR(ISERROR(CLdb!E72),ISERROR(CLdb!G72)),"",CLdb!G72) ->  | BC44: =IF(OR(ISERROR(CLdb!E72),ISERROR(CLdb!H72)),"",CLdb!H72) ->  | BD44: =IF(OR(ISERROR(CLdb!E72),ISERROR(CLdb!I72)),"",CLdb!I72) ->  | BE44: =IF(OR(ISERROR(CLdb!E72),ISERROR(CLdb!J72)),"",CLdb!J72) ->  | BF44: =IF(OR(ISERROR(CLdb!E72),ISERROR(CLdb!K72)),"",CLdb!K72) ->  | BG44: =IF(OR(ISERROR(CLdb!E72),ISERROR(CLdb!L72)),"",CLdb!L72) ->  | BH44: =IF(OR(ISERROR(CLdb!E72),ISERROR(CLdb!M72)),"",CLdb!M72) ->  | BI44: 0 | BJ44: 0 | BM44: =IF(BL44="",0,SUMIFS(DD_new!$BZ:$BZ,DD_new!$BW:$BW,DD!$B$3,DD_new!$BT:$BT,Class_means!$AN$7,DD_new!$BV:$BV,Class_means!$AO$7,DD_new!$BY:$BY,Class_means!$BL44)) -> 0
AP45: =IF(Labels!$EO$2="Math",IF(ISERROR(CLdb!TU73),"",CLdb!TU73),IF(Labels!$EO$2="English",IF(ISERROR(CLdb!TV73),"",CLdb!TV73),IF(Labels!$EO$2="Science",IF(ISERROR(CLdb!TW73),"",CLdb!TW73),IF(Labels!$EO$2="ArabicA",IF(ISERROR(CLdb!TX73),"",CLdb!TX73),IF(Labels!$EO$2="ArabicB",IF(ISERROR(CLdb!TY73),"",CLdb!TY73),IF(Labels!$EO$2="Reasoning",IF(ISERROR(CLdb!TZ73),"",CLdb!TZ73),IF(Labels!$EO$2="English2",IF(ISERROR(CLdb!UA73),"",CLdb!UA73),IF(Labels!$EO$2="Hindi",IF(ISERROR(CLdb!UB73),"",CLdb!UB73))))))))) ->  | AR45: =IF(OR(ISERROR(CLdb!E73),ISERROR(CLdb!N73)),"",CLdb!N73) ->  | AS45: =IF(OR(ISERROR(CLdb!E73),ISERROR(CLdb!O73)),"",CLdb!O73) ->  | AT45: =IF(OR(ISERROR(CLdb!E73),ISERROR(CLdb!P73)),"",CLdb!P73) ->  | AU45: =IF(OR(ISERROR(CLdb!E73),ISERROR(CLdb!Q73)),"",CLdb!Q73) ->  | AV45: =IF(OR(ISERROR(CLdb!E73),ISERROR(CLdb!R73)),"",CLdb!R73) ->  | AW45: =IF(OR(ISERROR(CLdb!E73),ISERROR(CLdb!S73)),"",CLdb!S73) ->  | AX45: =IF(OR(ISERROR(CLdb!E73),ISERROR(CLdb!T73)),"",CLdb!T73) ->  | AY45: =IF(OR(ISERROR(CLdb!E73),ISERROR(CLdb!U73)),"",CLdb!U73) ->  | BA45: =IF(OR(ISERROR(CLdb!E73),ISERROR(CLdb!F73)),"",CLdb!F73) ->  | BB45: =IF(OR(ISERROR(CLdb!E73),ISERROR(CLdb!G73)),"",CLdb!G73) ->  | BC45: =IF(OR(ISERROR(CLdb!E73),ISERROR(CLdb!H73)),"",CLdb!H73) ->  | BD45: =IF(OR(ISERROR(CLdb!E73),ISERROR(CLdb!I73)),"",CLdb!I73) ->  | BE45: =IF(OR(ISERROR(CLdb!E73),ISERROR(CLdb!J73)),"",CLdb!J73) ->  | BF45: =IF(OR(ISERROR(CLdb!E73),ISERROR(CLdb!K73)),"",CLdb!K73) ->  | BG45: =IF(OR(ISERROR(CLdb!E73),ISERROR(CLdb!L73)),"",CLdb!L73) ->  | BH45: =IF(OR(ISERROR(CLdb!E73),ISERROR(CLdb!M73)),"",CLdb!M73) ->  | BI45: 0 | BJ45: 0 | BM45: =IF(BL45="",0,SUMIFS(DD_new!$BZ:$BZ,DD_new!$BW:$BW,DD!$B$3,DD_new!$BT:$BT,Class_means!$AN$7,DD_new!$BV:$BV,Class_means!$AO$7,DD_new!$BY:$BY,Class_means!$BL45)) -> 0
AP46: =IF(Labels!$EO$2="Math",IF(ISERROR(CLdb!TU74),"",CLdb!TU74),IF(Labels!$EO$2="English",IF(ISERROR(CLdb!TV74),"",CLdb!TV74),IF(Labels!$EO$2="Science",IF(ISERROR(CLdb!TW74),"",CLdb!TW74),IF(Labels!$EO$2="ArabicA",IF(ISERROR(CLdb!TX74),"",CLdb!TX74),IF(Labels!$EO$2="ArabicB",IF(ISERROR(CLdb!TY74),"",CLdb!TY74),IF(Labels!$EO$2="Reasoning",IF(ISERROR(CLdb!TZ74),"",CLdb!TZ74),IF(Labels!$EO$2="English2",IF(ISERROR(CLdb!UA74),"",CLdb!UA74),IF(Labels!$EO$2="Hindi",IF(ISERROR(CLdb!UB74),"",CLdb!UB74))))))))) ->  | AR46: =IF(OR(ISERROR(CLdb!E74),ISERROR(CLdb!N74)),"",CLdb!N74) ->  | AS46: =IF(OR(ISERROR(CLdb!E74),ISERROR(CLdb!O74)),"",CLdb!O74) ->  | AT46: =IF(OR(ISERROR(CLdb!E74),ISERROR(CLdb!P74)),"",CLdb!P74) ->  | AU46: =IF(OR(ISERROR(CLdb!E74),ISERROR(CLdb!Q74)),"",CLdb!Q74) ->  | AV46: =IF(OR(ISERROR(CLdb!E74),ISERROR(CLdb!R74)),"",CLdb!R74) ->  | AW46: =IF(OR(ISERROR(CLdb!E74),ISERROR(CLdb!S74)),"",CLdb!S74) ->  | AX46: =IF(OR(ISERROR(CLdb!E74),ISERROR(CLdb!T74)),"",CLdb!T74) ->  | AY46: =IF(OR(ISERROR(CLdb!E74),ISERROR(CLdb!U74)),"",CLdb!U74) ->  | BA46: =IF(OR(ISERROR(CLdb!E74),ISERROR(CLdb!F74)),"",CLdb!F74) ->  | BB46: =IF(OR(ISERROR(CLdb!E74),ISERROR(CLdb!G74)),"",CLdb!G74) ->  | BC46: =IF(OR(ISERROR(CLdb!E74),ISERROR(CLdb!H74)),"",CLdb!H74) ->  | BD46: =IF(OR(ISERROR(CLdb!E74),ISERROR(CLdb!I74)),"",CLdb!I74) ->  | BE46: =IF(OR(ISERROR(CLdb!E74),ISERROR(CLdb!J74)),"",CLdb!J74) ->  | BF46: =IF(OR(ISERROR(CLdb!E74),ISERROR(CLdb!K74)),"",CLdb!K74) ->  | BG46: =IF(OR(ISERROR(CLdb!E74),ISERROR(CLdb!L74)),"",CLdb!L74) ->  | BH46: =IF(OR(ISERROR(CLdb!E74),ISERROR(CLdb!M74)),"",CLdb!M74) ->  | BI46: 0 | BJ46: 0 | BM46: =IF(BL46="",0,SUMIFS(DD_new!$BZ:$BZ,DD_new!$BW:$BW,DD!$B$3,DD_new!$BT:$BT,Class_means!$AN$7,DD_new!$BV:$BV,Class_means!$AO$7,DD_new!$BY:$BY,Class_means!$BL46)) -> 0
AP47: =IF(Labels!$EO$2="Math",IF(ISERROR(CLdb!TU75),"",CLdb!TU75),IF(Labels!$EO$2="English",IF(ISERROR(CLdb!TV75),"",CLdb!TV75),IF(Labels!$EO$2="Science",IF(ISERROR(CLdb!TW75),"",CLdb!TW75),IF(Labels!$EO$2="ArabicA",IF(ISERROR(CLdb!TX75),"",CLdb!TX75),IF(Labels!$EO$2="ArabicB",IF(ISERROR(CLdb!TY75),"",CLdb!TY75),IF(Labels!$EO$2="Reasoning",IF(ISERROR(CLdb!TZ75),"",CLdb!TZ75),IF(Labels!$EO$2="English2",IF(ISERROR(CLdb!UA75),"",CLdb!UA75),IF(Labels!$EO$2="Hindi",IF(ISERROR(CLdb!UB75),"",CLdb!UB75))))))))) ->  | AR47: =IF(OR(ISERROR(CLdb!E75),ISERROR(CLdb!N75)),"",CLdb!N75) ->  | AS47: =IF(OR(ISERROR(CLdb!E75),ISERROR(CLdb!O75)),"",CLdb!O75) ->  | AT47: =IF(OR(ISERROR(CLdb!E75),ISERROR(CLdb!P75)),"",CLdb!P75) ->  | AU47: =IF(OR(ISERROR(CLdb!E75),ISERROR(CLdb!Q75)),"",CLdb!Q75) ->  | AV47: =IF(OR(ISERROR(CLdb!E75),ISERROR(CLdb!R75)),"",CLdb!R75) ->  | AW47: =IF(OR(ISERROR(CLdb!E75),ISERROR(CLdb!S75)),"",CLdb!S75) ->  | AX47: =IF(OR(ISERROR(CLdb!E75),ISERROR(CLdb!T75)),"",CLdb!T75) ->  | AY47: =IF(OR(ISERROR(CLdb!E75),ISERROR(CLdb!U75)),"",CLdb!U75) ->  | BA47: =IF(OR(ISERROR(CLdb!E75),ISERROR(CLdb!F75)),"",CLdb!F75) ->  | BB47: =IF(OR(ISERROR(CLdb!E75),ISERROR(CLdb!G75)),"",CLdb!G75) ->  | BC47: =IF(OR(ISERROR(CLdb!E75),ISERROR(CLdb!H75)),"",CLdb!H75) ->  | BD47: =IF(OR(ISERROR(CLdb!E75),ISERROR(CLdb!I75)),"",CLdb!I75) ->  | BE47: =IF(OR(ISERROR(CLdb!E75),ISERROR(CLdb!J75)),"",CLdb!J75) ->  | BF47: =IF(OR(ISERROR(CLdb!E75),ISERROR(CLdb!K75)),"",CLdb!K75) ->  | BG47: =IF(OR(ISERROR(CLdb!E75),ISERROR(CLdb!L75)),"",CLdb!L75) ->  | BH47: =IF(OR(ISERROR(CLdb!E75),ISERROR(CLdb!M75)),"",CLdb!M75) ->  | BI47: 0 | BJ47: 0 | BM47: =IF(BL47="",0,SUMIFS(DD_new!$BZ:$BZ,DD_new!$BW:$BW,DD!$B$3,DD_new!$BT:$BT,Class_means!$AN$7,DD_new!$BV:$BV,Class_means!$AO$7,DD_new!$BY:$BY,Class_means!$BL47)) -> 0
AP48: =IF(Labels!$EO$2="Math",IF(ISERROR(CLdb!TU76),"",CLdb!TU76),IF(Labels!$EO$2="English",IF(ISERROR(CLdb!TV76),"",CLdb!TV76),IF(Labels!$EO$2="Science",IF(ISERROR(CLdb!TW76),"",CLdb!TW76),IF(Labels!$EO$2="ArabicA",IF(ISERROR(CLdb!TX76),"",CLdb!TX76),IF(Labels!$EO$2="ArabicB",IF(ISERROR(CLdb!TY76),"",CLdb!TY76),IF(Labels!$EO$2="Reasoning",IF(ISERROR(CLdb!TZ76),"",CLdb!TZ76),IF(Labels!$EO$2="English2",IF(ISERROR(CLdb!UA76),"",CLdb!UA76),IF(Labels!$EO$2="Hindi",IF(ISERROR(CLdb!UB76),"",CLdb!UB76))))))))) ->  | AR48: =IF(OR(ISERROR(CLdb!E76),ISERROR(CLdb!N76)),"",CLdb!N76) ->  | AS48: =IF(OR(ISERROR(CLdb!E76),ISERROR(CLdb!O76)),"",CLdb!O76) ->  | AT48: =IF(OR(ISERROR(CLdb!E76),ISERROR(CLdb!P76)),"",CLdb!P76) ->  | AU48: =IF(OR(ISERROR(CLdb!E76),ISERROR(CLdb!Q76)),"",CLdb!Q76) ->  | AV48: =IF(OR(ISERROR(CLdb!E76),ISERROR(CLdb!R76)),"",CLdb!R76) ->  | AW48: =IF(OR(ISERROR(CLdb!E76),ISERROR(CLdb!S76)),"",CLdb!S76) ->  | AX48: =IF(OR(ISERROR(CLdb!E76),ISERROR(CLdb!T76)),"",CLdb!T76) ->  | AY48: =IF(OR(ISERROR(CLdb!E76),ISERROR(CLdb!U76)),"",CLdb!U76) ->  | BA48: =IF(OR(ISERROR(CLdb!E76),ISERROR(CLdb!F76)),"",CLdb!F76) ->  | BB48: =IF(OR(ISERROR(CLdb!E76),ISERROR(CLdb!G76)),"",CLdb!G76) ->  | BC48: =IF(OR(ISERROR(CLdb!E76),ISERROR(CLdb!H76)),"",CLdb!H76) ->  | BD48: =IF(OR(ISERROR(CLdb!E76),ISERROR(CLdb!I76)),"",CLdb!I76) ->  | BE48: =IF(OR(ISERROR(CLdb!E76),ISERROR(CLdb!J76)),"",CLdb!J76) ->  | BF48: =IF(OR(ISERROR(CLdb!E76),ISERROR(CLdb!K76)),"",CLdb!K76) ->  | BG48: =IF(OR(ISERROR(CLdb!E76),ISERROR(CLdb!L76)),"",CLdb!L76) ->  | BH48: =IF(OR(ISERROR(CLdb!E76),ISERROR(CLdb!M76)),"",CLdb!M76) ->  | BI48: 0 | BJ48: 0 | BM48: =IF(BL48="",0,SUMIFS(DD_new!$BZ:$BZ,DD_new!$BW:$BW,DD!$B$3,DD_new!$BT:$BT,Class_means!$AN$7,DD_new!$BV:$BV,Class_means!$AO$7,DD_new!$BY:$BY,Class_means!$BL48)) -> 0
AP49: =IF(Labels!$EO$2="Math",IF(ISERROR(CLdb!TU77),"",CLdb!TU77),IF(Labels!$EO$2="English",IF(ISERROR(CLdb!TV77),"",CLdb!TV77),IF(Labels!$EO$2="Science",IF(ISERROR(CLdb!TW77),"",CLdb!TW77),IF(Labels!$EO$2="ArabicA",IF(ISERROR(CLdb!TX77),"",CLdb!TX77),IF(Labels!$EO$2="ArabicB",IF(ISERROR(CLdb!TY77),"",CLdb!TY77),IF(Labels!$EO$2="Reasoning",IF(ISERROR(CLdb!TZ77),"",CLdb!TZ77),IF(Labels!$EO$2="English2",IF(ISERROR(CLdb!UA77),"",CLdb!UA77),IF(Labels!$EO$2="Hindi",IF(ISERROR(CLdb!UB77),"",CLdb!UB77))))))))) ->  | AR49: =IF(OR(ISERROR(CLdb!E77),ISERROR(CLdb!N77)),"",CLdb!N77) ->  | AS49: =IF(OR(ISERROR(CLdb!E77),ISERROR(CLdb!O77)),"",CLdb!O77) ->  | AT49: =IF(OR(ISERROR(CLdb!E77),ISERROR(CLdb!P77)),"",CLdb!P77) ->  | AU49: =IF(OR(ISERROR(CLdb!E77),ISERROR(CLdb!Q77)),"",CLdb!Q77) ->  | AV49: =IF(OR(ISERROR(CLdb!E77),ISERROR(CLdb!R77)),"",CLdb!R77) ->  | AW49: =IF(OR(ISERROR(CLdb!E77),ISERROR(CLdb!S77)),"",CLdb!S77) ->  | AX49: =IF(OR(ISERROR(CLdb!E77),ISERROR(CLdb!T77)),"",CLdb!T77) ->  | AY49: =IF(OR(ISERROR(CLdb!E77),ISERROR(CLdb!U77)),"",CLdb!U77) ->  | BA49: =IF(OR(ISERROR(CLdb!E77),ISERROR(CLdb!F77)),"",CLdb!F77) ->  | BB49: =IF(OR(ISERROR(CLdb!E77),ISERROR(CLdb!G77)),"",CLdb!G77) ->  | BC49: =IF(OR(ISERROR(CLdb!E77),ISERROR(CLdb!H77)),"",CLdb!H77) ->  | BD49: =IF(OR(ISERROR(CLdb!E77),ISERROR(CLdb!I77)),"",CLdb!I77) ->  | BE49: =IF(OR(ISERROR(CLdb!E77),ISERROR(CLdb!J77)),"",CLdb!J77) ->  | BF49: =IF(OR(ISERROR(CLdb!E77),ISERROR(CLdb!K77)),"",CLdb!K77) ->  | BG49: =IF(OR(ISERROR(CLdb!E77),ISERROR(CLdb!L77)),"",CLdb!L77) ->  | BH49: =IF(OR(ISERROR(CLdb!E77),ISERROR(CLdb!M77)),"",CLdb!M77) ->  | BI49: 0 | BJ49: 0 | BM49: =IF(BL49="",0,SUMIFS(DD_new!$BZ:$BZ,DD_new!$BW:$BW,DD!$B$3,DD_new!$BT:$BT,Class_means!$AN$7,DD_new!$BV:$BV,Class_means!$AO$7,DD_new!$BY:$BY,Class_means!$BL49)) -> 0
AP50: =IF(Labels!$EO$2="Math",IF(ISERROR(CLdb!TU78),"",CLdb!TU78),IF(Labels!$EO$2="English",IF(ISERROR(CLdb!TV78),"",CLdb!TV78),IF(Labels!$EO$2="Science",IF(ISERROR(CLdb!TW78),"",CLdb!TW78),IF(Labels!$EO$2="ArabicA",IF(ISERROR(CLdb!TX78),"",CLdb!TX78),IF(Labels!$EO$2="ArabicB",IF(ISERROR(CLdb!TY78),"",CLdb!TY78),IF(Labels!$EO$2="Reasoning",IF(ISERROR(CLdb!TZ78),"",CLdb!TZ78),IF(Labels!$EO$2="English2",IF(ISERROR(CLdb!UA78),"",CLdb!UA78),IF(Labels!$EO$2="Hindi",IF(ISERROR(CLdb!UB78),"",CLdb!UB78))))))))) ->  | AR50: =IF(OR(ISERROR(CLdb!E78),ISERROR(CLdb!N78)),"",CLdb!N78) ->  | AS50: =IF(OR(ISERROR(CLdb!E78),ISERROR(CLdb!O78)),"",CLdb!O78) ->  | AT50: =IF(OR(ISERROR(CLdb!E78),ISERROR(CLdb!P78)),"",CLdb!P78) ->  | AU50: =IF(OR(ISERROR(CLdb!E78),ISERROR(CLdb!Q78)),"",CLdb!Q78) ->  | AV50: =IF(OR(ISERROR(CLdb!E78),ISERROR(CLdb!R78)),"",CLdb!R78) ->  | AW50: =IF(OR(ISERROR(CLdb!E78),ISERROR(CLdb!S78)),"",CLdb!S78) ->  | AX50: =IF(OR(ISERROR(CLdb!E78),ISERROR(CLdb!T78)),"",CLdb!T78) ->  | AY50: =IF(OR(ISERROR(CLdb!E78),ISERROR(CLdb!U78)),"",CLdb!U78) ->  | BA50: =IF(OR(ISERROR(CLdb!E78),ISERROR(CLdb!F78)),"",CLdb!F78) ->  | BB50: =IF(OR(ISERROR(CLdb!E78),ISERROR(CLdb!G78)),"",CLdb!G78) ->  | BC50: =IF(OR(ISERROR(CLdb!E78),ISERROR(CLdb!H78)),"",CLdb!H78) ->  | BD50: =IF(OR(ISERROR(CLdb!E78),ISERROR(CLdb!I78)),"",CLdb!I78) ->  | BE50: =IF(OR(ISERROR(CLdb!E78),ISERROR(CLdb!J78)),"",CLdb!J78) ->  | BF50: =IF(OR(ISERROR(CLdb!E78),ISERROR(CLdb!K78)),"",CLdb!K78) ->  | BG50: =IF(OR(ISERROR(CLdb!E78),ISERROR(CLdb!L78)),"",CLdb!L78) ->  | BH50: =IF(OR(ISERROR(CLdb!E78),ISERROR(CLdb!M78)),"",CLdb!M78) ->  | BI50: 0 | BJ50: 0 | BM50: =IF(BL50="",0,SUMIFS(DD_new!$BZ:$BZ,DD_new!$BW:$BW,DD!$B$3,DD_new!$BT:$BT,Class_means!$AN$7,DD_new!$BV:$BV,Class_means!$AO$7,DD_new!$BY:$BY,Class_means!$BL50)) -> 0
AP51: =IF(Labels!$EO$2="Math",IF(ISERROR(CLdb!TU79),"",CLdb!TU79),IF(Labels!$EO$2="English",IF(ISERROR(CLdb!TV79),"",CLdb!TV79),IF(Labels!$EO$2="Science",IF(ISERROR(CLdb!TW79),"",CLdb!TW79),IF(Labels!$EO$2="ArabicA",IF(ISERROR(CLdb!TX79),"",CLdb!TX79),IF(Labels!$EO$2="ArabicB",IF(ISERROR(CLdb!TY79),"",CLdb!TY79),IF(Labels!$EO$2="Reasoning",IF(ISERROR(CLdb!TZ79),"",CLdb!TZ79),IF(Labels!$EO$2="English2",IF(ISERROR(CLdb!UA79),"",CLdb!UA79),IF(Labels!$EO$2="Hindi",IF(ISERROR(CLdb!UB79),"",CLdb!UB79))))))))) ->  | AR51: =IF(OR(ISERROR(CLdb!E79),ISERROR(CLdb!N79)),"",CLdb!N79) ->  | AS51: =IF(OR(ISERROR(CLdb!E79),ISERROR(CLdb!O79)),"",CLdb!O79) ->  | AT51: =IF(OR(ISERROR(CLdb!E79),ISERROR(CLdb!P79)),"",CLdb!P79) ->  | AU51: =IF(OR(ISERROR(CLdb!E79),ISERROR(CLdb!Q79)),"",CLdb!Q79) ->  | AV51: =IF(OR(ISERROR(CLdb!E79),ISERROR(CLdb!R79)),"",CLdb!R79) ->  | AW51: =IF(OR(ISERROR(CLdb!E79),ISERROR(CLdb!S79)),"",CLdb!S79) ->  | AX51: =IF(OR(ISERROR(CLdb!E79),ISERROR(CLdb!T79)),"",CLdb!T79) ->  | AY51: =IF(OR(ISERROR(CLdb!E79),ISERROR(CLdb!U79)),"",CLdb!U79) ->  | BA51: =IF(OR(ISERROR(CLdb!E79),ISERROR(CLdb!F79)),"",CLdb!F79) ->  | BB51: =IF(OR(ISERROR(CLdb!E79),ISERROR(CLdb!G79)),"",CLdb!G79) ->  | BC51: =IF(OR(ISERROR(CLdb!E79),ISERROR(CLdb!H79)),"",CLdb!H79) ->  | BD51: =IF(OR(ISERROR(CLdb!E79),ISERROR(CLdb!I79)),"",CLdb!I79) ->  | BE51: =IF(OR(ISERROR(CLdb!E79),ISERROR(CLdb!J79)),"",CLdb!J79) ->  | BF51: =IF(OR(ISERROR(CLdb!E79),ISERROR(CLdb!K79)),"",CLdb!K79) ->  | BG51: =IF(OR(ISERROR(CLdb!E79),ISERROR(CLdb!L79)),"",CLdb!L79) ->  | BH51: =IF(OR(ISERROR(CLdb!E79),ISERROR(CLdb!M79)),"",CLdb!M79) ->  | BI51: 0 | BJ51: 0 | BM51: =IF(BL51="",0,SUMIFS(DD_new!$BZ:$BZ,DD_new!$BW:$BW,DD!$B$3,DD_new!$BT:$BT,Class_means!$AN$7,DD_new!$BV:$BV,Class_means!$AO$7,DD_new!$BY:$BY,Class_means!$BL51)) -> 0
AP52: =IF(Labels!$EO$2="Math",IF(ISERROR(CLdb!TU80),"",CLdb!TU80),IF(Labels!$EO$2="English",IF(ISERROR(CLdb!TV80),"",CLdb!TV80),IF(Labels!$EO$2="Science",IF(ISERROR(CLdb!TW80),"",CLdb!TW80),IF(Labels!$EO$2="ArabicA",IF(ISERROR(CLdb!TX80),"",CLdb!TX80),IF(Labels!$EO$2="ArabicB",IF(ISERROR(CLdb!TY80),"",CLdb!TY80),IF(Labels!$EO$2="Reasoning",IF(ISERROR(CLdb!TZ80),"",CLdb!TZ80),IF(Labels!$EO$2="English2",IF(ISERROR(CLdb!UA80),"",CLdb!UA80),IF(Labels!$EO$2="Hindi",IF(ISERROR(CLdb!UB80),"",CLdb!UB80))))))))) ->  | AR52: =IF(OR(ISERROR(CLdb!E80),ISERROR(CLdb!N80)),"",CLdb!N80) ->  | AS52: =IF(OR(ISERROR(CLdb!E80),ISERROR(CLdb!O80)),"",CLdb!O80) ->  | AT52: =IF(OR(ISERROR(CLdb!E80),ISERROR(CLdb!P80)),"",CLdb!P80) ->  | AU52: =IF(OR(ISERROR(CLdb!E80),ISERROR(CLdb!Q80)),"",CLdb!Q80) ->  | AV52: =IF(OR(ISERROR(CLdb!E80),ISERROR(CLdb!R80)),"",CLdb!R80) ->  | AW52: =IF(OR(ISERROR(CLdb!E80),ISERROR(CLdb!S80)),"",CLdb!S80) ->  | AX52: =IF(OR(ISERROR(CLdb!E80),ISERROR(CLdb!T80)),"",CLdb!T80) ->  | AY52: =IF(OR(ISERROR(CLdb!E80),ISERROR(CLdb!U80)),"",CLdb!U80) ->  | BA52: =IF(OR(ISERROR(CLdb!E80),ISERROR(CLdb!F80)),"",CLdb!F80) ->  | BB52: =IF(OR(ISERROR(CLdb!E80),ISERROR(CLdb!G80)),"",CLdb!G80) ->  | BC52: =IF(OR(ISERROR(CLdb!E80),ISERROR(CLdb!H80)),"",CLdb!H80) ->  | BD52: =IF(OR(ISERROR(CLdb!E80),ISERROR(CLdb!I80)),"",CLdb!I80) ->  | BE52: =IF(OR(ISERROR(CLdb!E80),ISERROR(CLdb!J80)),"",CLdb!J80) ->  | BF52: =IF(OR(ISERROR(CLdb!E80),ISERROR(CLdb!K80)),"",CLdb!K80) ->  | BG52: =IF(OR(ISERROR(CLdb!E80),ISERROR(CLdb!L80)),"",CLdb!L80) ->  | BH52: =IF(OR(ISERROR(CLdb!E80),ISERROR(CLdb!M80)),"",CLdb!M80) ->  | BI52: 0 | BJ52: 0 | BM52: =IF(BL52="",0,SUMIFS(DD_new!$BZ:$BZ,DD_new!$BW:$BW,DD!$B$3,DD_new!$BT:$BT,Class_means!$AN$7,DD_new!$BV:$BV,Class_means!$AO$7,DD_new!$BY:$BY,Class_means!$BL52)) -> 0
AP53: =IF(Labels!$EO$2="Math",IF(ISERROR(CLdb!TU81),"",CLdb!TU81),IF(Labels!$EO$2="English",IF(ISERROR(CLdb!TV81),"",CLdb!TV81),IF(Labels!$EO$2="Science",IF(ISERROR(CLdb!TW81),"",CLdb!TW81),IF(Labels!$EO$2="ArabicA",IF(ISERROR(CLdb!TX81),"",CLdb!TX81),IF(Labels!$EO$2="ArabicB",IF(ISERROR(CLdb!TY81),"",CLdb!TY81),IF(Labels!$EO$2="Reasoning",IF(ISERROR(CLdb!TZ81),"",CLdb!TZ81),IF(Labels!$EO$2="English2",IF(ISERROR(CLdb!UA81),"",CLdb!UA81),IF(Labels!$EO$2="Hindi",IF(ISERROR(CLdb!UB81),"",CLdb!UB81))))))))) ->  | AR53: =IF(OR(ISERROR(CLdb!E81),ISERROR(CLdb!N81)),"",CLdb!N81) ->  | AS53: =IF(OR(ISERROR(CLdb!E81),ISERROR(CLdb!O81)),"",CLdb!O81) ->  | AT53: =IF(OR(ISERROR(CLdb!E81),ISERROR(CLdb!P81)),"",CLdb!P81) ->  | AU53: =IF(OR(ISERROR(CLdb!E81),ISERROR(CLdb!Q81)),"",CLdb!Q81) ->  | AV53: =IF(OR(ISERROR(CLdb!E81),ISERROR(CLdb!R81)),"",CLdb!R81) ->  | AW53: =IF(OR(ISERROR(CLdb!E81),ISERROR(CLdb!S81)),"",CLdb!S81) ->  | AX53: =IF(OR(ISERROR(CLdb!E81),ISERROR(CLdb!T81)),"",CLdb!T81) ->  | AY53: =IF(OR(ISERROR(CLdb!E81),ISERROR(CLdb!U81)),"",CLdb!U81) ->  | BA53: =IF(OR(ISERROR(CLdb!E81),ISERROR(CLdb!F81)),"",CLdb!F81) ->  | BB53: =IF(OR(ISERROR(CLdb!E81),ISERROR(CLdb!G81)),"",CLdb!G81) ->  | BC53: =IF(OR(ISERROR(CLdb!E81),ISERROR(CLdb!H81)),"",CLdb!H81) ->  | BD53: =IF(OR(ISERROR(CLdb!E81),ISERROR(CLdb!I81)),"",CLdb!I81) ->  | BE53: =IF(OR(ISERROR(CLdb!E81),ISERROR(CLdb!J81)),"",CLdb!J81) ->  | BF53: =IF(OR(ISERROR(CLdb!E81),ISERROR(CLdb!K81)),"",CLdb!K81) ->  | BG53: =IF(OR(ISERROR(CLdb!E81),ISERROR(CLdb!L81)),"",CLdb!L81) ->  | BH53: =IF(OR(ISERROR(CLdb!E81),ISERROR(CLdb!M81)),"",CLdb!M81) ->  | BI53: 0 | BJ53: 0 | BM53: =IF(BL53="",0,SUMIFS(DD_new!$BZ:$BZ,DD_new!$BW:$BW,DD!$B$3,DD_new!$BT:$BT,Class_means!$AN$7,DD_new!$BV:$BV,Class_means!$AO$7,DD_new!$BY:$BY,Class_means!$BL53)) -> 0
AP54: =IF(Labels!$EO$2="Math",IF(ISERROR(CLdb!TU82),"",CLdb!TU82),IF(Labels!$EO$2="English",IF(ISERROR(CLdb!TV82),"",CLdb!TV82),IF(Labels!$EO$2="Science",IF(ISERROR(CLdb!TW82),"",CLdb!TW82),IF(Labels!$EO$2="ArabicA",IF(ISERROR(CLdb!TX82),"",CLdb!TX82),IF(Labels!$EO$2="ArabicB",IF(ISERROR(CLdb!TY82),"",CLdb!TY82),IF(Labels!$EO$2="Reasoning",IF(ISERROR(CLdb!TZ82),"",CLdb!TZ82),IF(Labels!$EO$2="English2",IF(ISERROR(CLdb!UA82),"",CLdb!UA82),IF(Labels!$EO$2="Hindi",IF(ISERROR(CLdb!UB82),"",CLdb!UB82))))))))) ->  | AR54: =IF(OR(ISERROR(CLdb!E82),ISERROR(CLdb!N82)),"",CLdb!N82) ->  | AS54: =IF(OR(ISERROR(CLdb!E82),ISERROR(CLdb!O82)),"",CLdb!O82) ->  | AT54: =IF(OR(ISERROR(CLdb!E82),ISERROR(CLdb!P82)),"",CLdb!P82) ->  | AU54: =IF(OR(ISERROR(CLdb!E82),ISERROR(CLdb!Q82)),"",CLdb!Q82) ->  | AV54: =IF(OR(ISERROR(CLdb!E82),ISERROR(CLdb!R82)),"",CLdb!R82) ->  | AW54: =IF(OR(ISERROR(CLdb!E82),ISERROR(CLdb!S82)),"",CLdb!S82) ->  | AX54: =IF(OR(ISERROR(CLdb!E82),ISERROR(CLdb!T82)),"",CLdb!T82) ->  | AY54: =IF(OR(ISERROR(CLdb!E82),ISERROR(CLdb!U82)),"",CLdb!U82) ->  | BA54: =IF(OR(ISERROR(CLdb!E82),ISERROR(CLdb!F82)),"",CLdb!F82) ->  | BB54: =IF(OR(ISERROR(CLdb!E82),ISERROR(CLdb!G82)),"",CLdb!G82) ->  | BC54: =IF(OR(ISERROR(CLdb!E82),ISERROR(CLdb!H82)),"",CLdb!H82) ->  | BD54: =IF(OR(ISERROR(CLdb!E82),ISERROR(CLdb!I82)),"",CLdb!I82) ->  | BE54: =IF(OR(ISERROR(CLdb!E82),ISERROR(CLdb!J82)),"",CLdb!J82) ->  | BF54: =IF(OR(ISERROR(CLdb!E82),ISERROR(CLdb!K82)),"",CLdb!K82) ->  | BG54: =IF(OR(ISERROR(CLdb!E82),ISERROR(CLdb!L82)),"",CLdb!L82) ->  | BH54: =IF(OR(ISERROR(CLdb!E82),ISERROR(CLdb!M82)),"",CLdb!M82) ->  | BI54: 0 | BJ54: 0 | BM54: =IF(BL54="",0,SUMIFS(DD_new!$BZ:$BZ,DD_new!$BW:$BW,DD!$B$3,DD_new!$BT:$BT,Class_means!$AN$7,DD_new!$BV:$BV,Class_means!$AO$7,DD_new!$BY:$BY,Class_means!$BL54)) -> 0
AP55: =IF(Labels!$EO$2="Math",IF(ISERROR(CLdb!TU83),"",CLdb!TU83),IF(Labels!$EO$2="English",IF(ISERROR(CLdb!TV83),"",CLdb!TV83),IF(Labels!$EO$2="Science",IF(ISERROR(CLdb!TW83),"",CLdb!TW83),IF(Labels!$EO$2="ArabicA",IF(ISERROR(CLdb!TX83),"",CLdb!TX83),IF(Labels!$EO$2="ArabicB",IF(ISERROR(CLdb!TY83),"",CLdb!TY83),IF(Labels!$EO$2="Reasoning",IF(ISERROR(CLdb!TZ83),"",CLdb!TZ83),IF(Labels!$EO$2="English2",IF(ISERROR(CLdb!UA83),"",CLdb!UA83),IF(Labels!$EO$2="Hindi",IF(ISERROR(CLdb!UB83),"",CLdb!UB83))))))))) ->  | AR55: =IF(OR(ISERROR(CLdb!E83),ISERROR(CLdb!N83)),"",CLdb!N83) ->  | AS55: =IF(OR(ISERROR(CLdb!E83),ISERROR(CLdb!O83)),"",CLdb!O83) ->  | AT55: =IF(OR(ISERROR(CLdb!E83),ISERROR(CLdb!P83)),"",CLdb!P83) ->  | AU55: =IF(OR(ISERROR(CLdb!E83),ISERROR(CLdb!Q83)),"",CLdb!Q83) ->  | AV55: =IF(OR(ISERROR(CLdb!E83),ISERROR(CLdb!R83)),"",CLdb!R83) ->  | AW55: =IF(OR(ISERROR(CLdb!E83),ISERROR(CLdb!S83)),"",CLdb!S83) ->  | AX55: =IF(OR(ISERROR(CLdb!E83),ISERROR(CLdb!T83)),"",CLdb!T83) ->  | AY55: =IF(OR(ISERROR(CLdb!E83),ISERROR(CLdb!U83)),"",CLdb!U83) ->  | BA55: =IF(OR(ISERROR(CLdb!E83),ISERROR(CLdb!F83)),"",CLdb!F83) ->  | BB55: =IF(OR(ISERROR(CLdb!E83),ISERROR(CLdb!G83)),"",CLdb!G83) ->  | BC55: =IF(OR(ISERROR(CLdb!E83),ISERROR(CLdb!H83)),"",CLdb!H83) ->  | BD55: =IF(OR(ISERROR(CLdb!E83),ISERROR(CLdb!I83)),"",CLdb!I83) ->  | BE55: =IF(OR(ISERROR(CLdb!E83),ISERROR(CLdb!J83)),"",CLdb!J83) ->  | BF55: =IF(OR(ISERROR(CLdb!E83),ISERROR(CLdb!K83)),"",CLdb!K83) ->  | BG55: =IF(OR(ISERROR(CLdb!E83),ISERROR(CLdb!L83)),"",CLdb!L83) ->  | BH55: =IF(OR(ISERROR(CLdb!E83),ISERROR(CLdb!M83)),"",CLdb!M83) ->  | BI55: 0 | BJ55: 0 | BM55: =IF(BL55="",0,SUMIFS(DD_new!$BZ:$BZ,DD_new!$BW:$BW,DD!$B$3,DD_new!$BT:$BT,Class_means!$AN$7,DD_new!$BV:$BV,Class_means!$AO$7,DD_new!$BY:$BY,Class_means!$BL55)) -> 0
